Workbook

Sheet notes (hidden)
A1: FY21 Chapter 70
A3: Tabs | B3: What happens on this sheet | C3: Data source (if any) | D3: Notes
A4: Parameters | B4: Allows the user to adjust all of the policy levers in Chapter 70, except for changes to foundation. Foundation budget scenarios can be changed, but they must 1st be run separately and dropped into localcont (all the way to the right). Up to 11 alternatives can be included. | D4: Updated table for graph re: "additional increments toward target" to include 175%CEY increment
A5: Index | B5: Controls the district being viewed for all reports except regional dist members | C5: Dropdown box reads LEAs | D5: Changed LEA 603 label to "Hoosac Valley"
A6: Rates | B6: CY and PY foundation budget rates Used to calculate foundation budget report | C6: Copied in from found file | D6: Copied in FY21 rates
A7: Foundation Budget | B7: 1 district report showing build-up of foundation budget | C7: Rates, dist435 | D7: labels
A8: Municipal Contribution | B8: 1 city/town report showing build-up of required local contribution (municipal level) | C8: townwide contributions | D8: labels
A9: Regional Allocation | B9: 1 city/town report showing allocation of total municipal required local contribution based on proportion of foundation budget at each district to which it belongs | C9: localcont | D9: labels
A10: Summary | B10: 1 district report summarizing C70 calculation and comparison to PY | C10: aid436, disthist | D10: labels
A11: Regional Dist Members | B11: 1 regional district report summarizing enrollment and local contribution for each member town Changed in FY18 to vlookup on localcont | C11: localcont, leas | D11: Updated sheet to present foundation enrollment and local contribution for each town-to-regional-district combination
A12: LocalCont | B12: Results from distfrac get copied into the far right (up to 11 versions of foundation budget can be entered). Toggle is on parameters sheet. Data is organized in 5 row format for each city/town (municipality and its districts, blanks are 998 and total is 999). Used to calculate each municipal-district combination's RLC. | C12: found file, distfrac (allocate sheet) | D12: Copied in FY20 foundation budget, %s, RLCs and enro.
A14: Comparison to FY19 | B14: 2 year comparison for operating districts | C14: aid436, disthist, localcont
A15: Townwide Contributions | B15: Calculates municipal required local contributions | C15: DOR (EQV, Income, MRGFs), PY file (RLCs), parameters | D15: Copied FY20 RLCs into PY RLC column
A16: Aid436 | B16: Calculates district Ch 70 aid | C16: disthist, localcont, frac, parameters Starting w/ LEA 406, in col J (target aid %), formula changes to pull from frac tab. | D16: updated base aid for Belmont & Minuteman as Belmont will no longer be a member of Minuteman in FY21
A17: Frac | B17: Calculates target aid percentage for regional districts
A18: DistHist | B18: ***Don't forget to copy in target aid %s from PY Historical C70 data used in summary report, and other places | D18: Copied in FY20 FB, RLC and Aid Copied in target aid %s from FY20 updated FY20 aid values for Belmont & Minuteman to match base aid adjustments on aid436
A19: Dist435 | B19: Data source for foundation budget report, shows detailed enrollment and budget columns | C19: found20
A21: Data | B21: Source | C21: Year | D21: Notes
A22: Inflation | B22: BEA website | C22: Q3 2018 to Q3 2019 as of Dec 2018 (1.99%) | D22: Table 1.1.9. Implicit Price Deflators for Gross Domestic Product
A23: Wage Adjustment Factor Inputs | B23: EOLWD | C23: Calendar Year 2017 | D23: wagesense21
A24: EQV | B24: DOR | C24: 2018 EQV | D24: DOR file Dec. 2018
A25: Income | B25: DOR | C25: 2017 Income | D25: DOR file Dec. 2019
A26: Enrollment | B26: DESE | C26: FY21 | D26: found21
A27: Postgrad Enrollment | B27: DESE-CVTE office | C27: FY21 | D27: FY21
A28: MRGFs | B28: DOR/ANF | C28: FY21 | D28: DOR 1/8/2020

Sheet parameters (hidden)
A1: Cyr | B1: FY21 | C1: 21
A2: Pyr | B2: FY20 | C2: 20
A3: As of | B3: 2020-11-25
A5: Parameters | D5: Base | K5: Analysis of Aggregate Wealth Model Implementation
B6: Which version of foundation budget? | C6: 1 | D6: 1 | G6: FY20 C70 | H6: 5176002652
B7: Effort reduction | C7: 1 | D7: 0 | K7: Progress Towards Target Local Share
B8: Pct downpayment on target aid share | C8: 0 | D8: 0 | G8: FY21 foundation aid increase | H8: ='Aid436'!K448 -> 106795442
D9: 0 | L9: FY07 | M9: FY08 | N9: FY09 | O9: FY10 | P9: FY11 | Q9: FY12 | R9: FY13 | S9: FY14 | T9: FY15 | U9: FY16 | V9: FY17 | W9: FY18 | X9: FY19 | Y9: FY20 | Z9: FY21
G10: Minimum per pupil aid increase | H10: ='Aid436'!X448 -> 0 | K10: excess effort before effort reduction | L10: 621.084157 | M10: 494.058912 | N10: 372.382091 | O10: 228.110232 | P10: 366 | Q10: 293.3 | R10: 229.8 | S10: 234.5 | T10: 307.903014 | U10: 235.358789 | V10: 299.86437 | W10: 151.670894 | X10: 68.664221 | Y10: 21.435137 | Z10: ='Townwide Contributions'!V361/1000000 -> 104.649236
G11: Min aid adjustment increase | H11: ='Aid436'!AI448 -> 0 | K11: effort reduction | L11: 124.2168314 | M11: 123.514728 | N11: 122.88609 | O11: 34.216535 | P11: 109.8 | Q11: 58.7 | R11: 34.5 | S11: 35.2 | T11: 153.951507 | U11: 117.6793945 | V11: 254.8847145 | W11: 128.9202599 | X11: 68.664221 | Y11: 21.435137 | Z11: ='Townwide Contributions'!V361/1000000 -> 104.649236
G12: Non-op reduction | H12: ='Aid436'!AK448 -> 66899.52 | K12: net excess after effort reduction | L12: 496.8673256 | M12: 370.544184 | N12: 249.496001 | O12: 193.893697 | P12: 256.2 | Q12: =Q10-Q11 -> 234.6 | R12: =R10-R11 -> 195.3 | S12: 199.3 | T12: 152.0806983 | U12: 117.4829132 | V12: 44.97879348 | W12: 22.74921402 | X12: 0 | Y12: 0 | Z12: ='Townwide Contributions'!AC361/1000000 -> 0
G13: FY21 Chapter 70 | H13: ='Aid436'!AM448 -> 5283343073 | K13: shortfall below target before increment | L13: -321.452322 | M13: -352.174875 | N13: -359.193563 | O13: -427.2 | P13: -228 | Q13: -211 | R13: -200 | S13: -180.2 | T13: -162.972215 | U13: -132.627218 | V13: -96.928091 | W13: -103.17317 | X13: -117.254713 | Y13: -207.485209 | Z13: ='Townwide Contributions'!AA361/1000000 -> -163.71
B14: Per pupil guaranteed increase | C14: 0 | D14: 0 | G14: Devens | H14: =308558 -> 308558 | K14: additional increments toward target | L14: 0 | M14: -19.739149 | N14: -21.387588 | O14: -121.2 | P14: -10.6 | Q14: -10 | R14: -4.2 | S14: -3.9 | T14: -7.563093 | U14: -5.848739 | V14: -2.474215 | W14: -3.628178 | X14: -5.320349 | Y14: -19.253945 | Z14: =('Townwide Contributions'!T361/1000000*-1)+('Townwide Contributions'!W361/1000000*-1) -> -9.378217
B15: Which version of mrgf? | C15: 1 | D15: 1 | K15: net shortfall below target after increment | L15: -321.452322 | M15: -332.435726 | N15: -337.805975 | O15: -306 | P15: -217.4 | Q15: -200.9 | R15: -195.7 | S15: -176.3 | T15: -155.409122 | U15: -126.778479 | V15: -94.453876 | W15: -99.544992 | X15: -111.934364 | Y15: -188.231264 | Z15: ='Townwide Contributions'!AB361/1000000 -> -154.331783
B16: Below effort threshold 1 | C16: 2.5 | D16: 2.5 | G16: Change in C70 Appropriation | H16: =H13+H14-H6 -> 107648979.5 | K16: n of municipalities with effort too high | L16: 232 | M16: 218 | N16: 214 | O16: 193 | P16: 282 | Q16: 257 | R16: 249 | S16: 255 | T16: 279 | U16: 278 | V16: 303 | W16: 291 | X16: 0 | Y16: 0 | Z16: ='Townwide Contributions'!AC364 -> 0
B17: Below effort threshold 2 | C17: 7.5 | D17: 7.5 | G17: Percent Change | H17: =H16/H6 -> 0.02079770563
B18: Below effort contribution increment, 5-10% under | C18: 0.01 | D18: 0.01
B19: Below effort contribution increment, >10% under | C19: 0.02 | D19: 0.02 | G19: N of Foundation Aid Districts | H19: ='Aid436'!O448 -> 113
B20: Maximum local contribution pct of foundation | C20: 0.825 | D20: 0.825 | G20: N of Districts with an Aid Increase | H20: ='Comparison to FY20'!N331 -> 113
B21: Statewide target for local contribution % of foundation | C21: 0.59 | D21: 0.59 | G21: Total C70 Including Devens | H21: =H13+H14 -> 5283651631
B22: Cap contributions at fixed percentage of foundation | C22: 0.9 | D22: 0.9
B23: Percentage cut to base aid | C23: 0 | D23: 0
A24: Eqv/income percentages
B26: Target effort | C26: =C21*localcont!K1765 -> 6859653346
B27: Effort based upon following percentages | C27: ='Townwide Contributions'!K361 -> 6859653340
B28: Difference from target | C28: =IF(ABS(C27-C26)<10,0,C27-C26) -> 0
B29: Percentage of EQV | C29: 0.003625549417
B30: Percentage of INCOME | C30: =C29*1/C34 -> 0.01433248352
B32: Total EQV | C32: ='Townwide Contributions'!C361 -> 1249672575100
B33: Total Income | C33: ='Townwide Contributions'!E361 -> 3.16117557e+11
B34: State Average % of EQV | C34: =C33/C32 -> 0.252960306
A37: See Progress Towards Targets
K42: Progress Towards Target Aid Share
L44: FY07 | M44: FY08 | N44: FY09 | O44: FY10 | P44: FY11 | Q44: FY12 | R44: FY13 | S44: FY14 | T44: FY15 | U44: FY16 | V44: FY17 | W44: FY18 | X44: FY19 | Y44: FY20 | Z44: FY21
K45: aid above target | L45: 394.9 | M45: 421 | N45: 440.4 | O45: 413.5991456 | P45: 489.2905867 | Q45: 360.5802896 | R45: 372.9139726 | S45: 385.3 | T45: 404.6539336 | U45: 419.0730779 | V45: 488.1362137 | W45: 497.4038449 | X45: 487.8069694 | Y45: 518.4487954 | Z45: ='Aid436'!AT449/1000000 -> 516.4943275
K46: aid below target | L46: -176.3 | M46: -143 | N46: -105.5 | O46: -97.82363262 | P46: -75.73073977 | Q46: -110.4290612 | R46: -84.70629692 | S46: -66.9 | T46: -49.39921427 | U46: -44.48798888 | V46: -13.01302676 | W46: -7.202688836 | X46: -0.01809683687 | Y46: -0.001189981026 | Z46: ='Aid436'!AT450/1000000 -> -0.01283887927
C50: =TEXT(effortred,"0%") -> 100%

Sheet Index
A1: Massachusetts Department of Elementary and Secondary Education | J1: 2020-12-04
A2: =parameters!B1& " Chapter 70 and Net School Spending Formula Spreadsheet" -> FY21 Chapter 70 and Net School Spending Formula Spreadsheet
B3: Select or type full district name below | C3: LEA code
A4: =C4 -> 999 | B4: Select a district | C4: =VLOOKUP(B4,leas!$E$4:$F$445,2,FALSE) -> 999
B6: Use the drop-down menu to select a municipal or regional district and then go to any of the first four links below.
B7: Only municipal district selections will activate the Municipal Contribution Requirement and Regional Allocation reports.
B8: A list of LEAs by code begins on row 26 of this sheet.
B10: We recommend that you save this workbook to your computer before proceeding, then leave this browser, and open the workbook using Excel or My Computer.
B12: Summary
B13: Foundation Budget
B14: Municipal Contribution Requirement
B15: Regional Allocation
B17: Regional District Detail | D17: (go to this sheet to see any particular regional district's comparison of enrollment and minimum contributions to the prior year)
B19: There are also a number of "hidden" sheets which contain the underlying spreadsheet calculations.
B20: They can be accessed by right-clicking on any of the tabs below and choosing a sheet to unhide.
B22: Questions or comments about Chapter 70 may be directed to:
B23: Rob O'Donnell | D23: Robert.F.O'Donnell@mass.gov | G23: 781-338-6512
B24: Rob Hanna | D24: Robert.Hanna@mass.gov | G24: 781-338-6525
B26: District | D26: LEA Number
B27: Abington | D27: 1
B28: Acton | D28: 2
B29: Acton Boxborough | D29: 600
B30: Acushnet | D30: 3
B31: Adams | D31: 4
B32: Agawam | D32: 5
B33: Alford | D33: 6
B34: Amesbury | D34: 7
B35: Amherst | D35: 8
B36: Amherst Pelham | D36: 605
B37: Andover | D37: 9
B38: Arlington | D38: 10
B39: Ashburnham | D39: 11
B40: Ashburnham Westminster | D40: 610
B41: Ashby | D41: 12
B42: Ashfield | D42: 13
B43: Ashland | D43: 14
B44: Assabet Valley | D44: 801
B45: Athol | D45: 15
B46: Athol Royalston | D46: 615
B47: Attleboro | D47: 16
B48: Auburn | D48: 17
B49: Avon | D49: 18
B50: Ayer | D50: 19
B51: Ayer Shirley | D51: 616
B52: Barnstable | D52: 20
B53: Barre | D53: 21
B54: Becket | D54: 22
B55: Bedford | D55: 23
B56: Belchertown | D56: 24
B57: Bellingham | D57: 25
B58: Belmont | D58: 26
B59: Berkley | D59: 27
B60: Berkshire Hills | D60: 618
B61: Berlin | D61: 28
B62: Berlin Boylston | D62: 620
B63: Bernardston | D63: 29
B64: Beverly | D64: 30
B65: Billerica | D65: 31
B66: Blackstone | D66: 32
B67: Blackstone Millville | D67: 622
B68: Blackstone Valley | D68: 805
B69: Blandford | D69: 33
B70: Blue Hills | D70: 806
B71: Bolton | D71: 34
B72: Boston | D72: 35
B73: Bourne | D73: 36
B74: Boxborough | D74: 37
B75: Boxford | D75: 38
B76: Boylston | D76: 39
B77: Braintree | D77: 40
B78: Brewster | D78: 41
B79: Bridgewater | D79: 42
B80: Bridgewater Raynham | D80: 625
B81: Brimfield | D81: 43
B82: Bristol County | D82: 910
B83: Bristol Plymouth | D83: 810
B84: Brockton | D84: 44
B85: Brookfield | D85: 45
B86: Brookline | D86: 46
B87: Buckland | D87: 47
B88: Burlington | D88: 48
B89: Cambridge | D89: 49
B90: Canton | D90: 50
B91: Cape Cod | D91: 815
B92: Carlisle | D92: 51
B93: Carver | D93: 52
B94: Central Berkshire | D94: 635
B95: Charlemont | D95: 53
B96: Charlton | D96: 54
B97: Chatham | D97: 55
B98: Chelmsford | D98: 56
B99: Chelsea | D99: 57
B100: Cheshire | D100: 58
B101: Chester | D101: 59
B102: Chesterfield | D102: 60
B103: Chesterfield Goshen | D103: 632
B104: Chicopee | D104: 61
B105: Chilmark | D105: 62
B106: Clarksburg | D106: 63
B107: Clinton | D107: 64
B108: Cohasset | D108: 65
B109: Colrain | D109: 66
B110: Concord | D110: 67
B111: Concord Carlisle | D111: 640
B112: Conway | D112: 68
B113: Cummington | D113: 69
B114: Dalton | D114: 70
B115: Danvers | D115: 71
B116: Dartmouth | D116: 72
B117: Dedham | D117: 73
B118: Deerfield | D118: 74
B119: Dennis | D119: 75
B120: Dennis Yarmouth | D120: 645
B121: Dighton | D121: 76
B122: Dighton Rehoboth | D122: 650
B123: Douglas | D123: 77
B124: Dover | D124: 78
B125: Dover Sherborn | D125: 655
B126: Dracut | D126: 79
B127: Dudley | D127: 80
B128: Dudley Charlton | D128: 658
B129: Dunstable | D129: 81
B130: Duxbury | D130: 82
B131: East Bridgewater | D131: 83
B132: East Brookfield | D132: 84
B133: East Longmeadow | D133: 87
B134: Eastham | D134: 85
B135: Easthampton | D135: 86
B136: Easton | D136: 88
B137: Edgartown | D137: 89
B138: Egremont | D138: 90
B139: Erving | D139: 91
B140: Essex | D140: 92
B141: Essex North Shore | D141: 817
B142: Everett | D142: 93
B143: Fairhaven | D143: 94
B144: Fall River | D144: 95
B145: Falmouth | D145: 96
B146: Farmington River | D146: 662
B147: Fitchburg | D147: 97
B148: Florida | D148: 98
B149: Foxborough | D149: 99
B150: Framingham | D150: 100
B151: Franklin | D151: 101
B152: Franklin County | D152: 818
B153: Freetown | D153: 102
B154: Freetown Lakeville | D154: 665
B155: Frontier | D155: 670
B156: Gardner | D156: 103
B157: Gateway | D157: 672
B158: Gay Head | D158: 104
B159: Georgetown | D159: 105
B160: Gill | D160: 106
B161: Gill Montague | D161: 674
B162: Gloucester | D162: 107
B163: Goshen | D163: 108
B164: Gosnold | D164: 109
B165: Grafton | D165: 110
B166: Granby | D166: 111
B167: Granville | D167: 112
B168: Great Barrington | D168: 113
B169: Greater Fall River | D169: 821
B170: Greater Lawrence | D170: 823
B171: Greater Lowell | D171: 828
B172: Greater New Bedford | D172: 825
B173: Greenfield | D173: 114
B174: Groton | D174: 115
B175: Groton Dunstable | D175: 673
B176: Groveland | D176: 116
B177: Hadley | D177: 117
B178: Halifax | D178: 118
B179: Hamilton | D179: 119
B180: Hamilton Wenham | D180: 675
B181: Hampden | D181: 120
B182: Hampden Wilbraham | D182: 680
B183: Hampshire | D183: 683
B184: Hancock | D184: 121
B185: Hanover | D185: 122
B186: Hanson | D186: 123
B187: Hardwick | D187: 124
B188: Harvard | D188: 125
B189: Harwich | D189: 126
B190: Hatfield | D190: 127
B191: Haverhill | D191: 128
B192: Hawlemont | D192: 685
B193: Hawley | D193: 129
B194: Heath | D194: 130
B195: Hingham | D195: 131
B196: Hinsdale | D196: 132
B197: Holbrook | D197: 133
B198: Holden | D198: 134
B199: Holland | D199: 135
B200: Holliston | D200: 136
B201: Holyoke | D201: 137
B202: Hoosac Valley | D202: 603
B203: Hopedale | D203: 138
B204: Hopkinton | D204: 139
B205: Hubbardston | D205: 140
B206: Hudson | D206: 141
B207: Hull | D207: 142
... 257 more rows

Sheet MoreAboutData
B1: =CYr&" Chapter 70 and Net School Spending Formula" -> FY21 Chapter 70 and Net School Spending Formula | C1: FY18 Chapter 70 and Net School Spending Formula Spreadsheet | D1: FY18 Chapter 70 and Net School Spending Formula Spreadsheet | E1: FY18 Chapter 70 and Net School Spending Formula Spreadsheet | F1: FY18 Chapter 70 and Net School Spending Formula Spreadsheet | G1: Return to Index
B2: More about the data
A3: TABLE OF CONTENTS
A4: Index | E4: Back to the top
A5: Select the district you're interested in from the dropdown list on this sheet.
A6: Foundation Budget | E6: Back to the top
A7: This report displays the foundation enrollment and foundation budget for a single district. A district’s foundation budget is updated each year and it is derived by multiplying the number of pupils in thirteen enrollment categories by cost rates in eleven functional areas.
A9: Key Terms
A10: Foundation Enrollment: A count of the students for whom a school district is financially responsible on October 1st of any given year. Inflation: Foundation budget rates are adjusted each year by a statutorily defined inflationary factor. It affects all districts in the same way. Wage Adjustment Factor (WAF): Gives a district credit for having higher school costs if it is located in a geographic area where average wages are higher than in other areas of the state. Calculated using the latest available average wage data supplied by the state’s Executive Office of Labor and Workforce Development (EOLWD). Low Income Decile: Determined based on the relative concentration of low income students served in the district. Corresponds to a foundation budget rate for low income students.
A11: Municipal Contribution | E11: Back to the top
A12: This report displays the required local contribution for a single municipality. Each municipality has a target local share of its foundation budget, based on local ability to pay. The required local contribution for each municipality is based on the previous year's required contribution, and includes some transition factors so that the shift toward the target levels occurs over a period of several years.
A14: Key Terms
A15: Equalized Valuation (EQV): Calculated by DOR every two years. Full and fair cash value of all taxable property for each municipality. Income: Derived annually by DOR from state income tax returns. Includes all forms of wage, pension, interest, business, investment, and capital gains income. Combined Effort Yield (CEY): Sum of property and income effort. Based on DESE-calculated property and income percentages, which, when applied to all municipalities in the Commonwealth, yields 59% of statewide foundation coming from local revenue. Target Local Contribution/Share: Calculated for each municipality as an equitable share of its foundation budget based on property wealth and income. Municipal Revenue Growth Factor (MRGF): Calculated each year by DOR and quantifies the most recent annual percentage change in each community's local revenues (such as the annual increase in the Proposition 2½ levy limit) that should be available for schools.
A16: Regional Allocation | E16: Back to the top
A17: This report displays the allocation of a municipality's required local contribution across the districts to which it belongs. The municipality's required contribution is allocated in direct proportion to the district's share of the municipality's foundation budget.
A18: Summary | E18: Back to the top
A19: This report displays the Chapter 70 aid calculation for a single district. The aid calculation begins with each district's prior year Chapter 70 amount. The difference between each district's foundation budget and its required contribution equals foundation aid. On the right-hand side, there is a comparison to the prior year.
A20: Key Terms
A21: Foundation Aid: The amount of aid needed by a district to reach its foundation budget, after factoring in this year's required local contribution. Foundation budget - Required Local Contribution = Foundation Aid Minimum Aid: A guaranteed per pupil aid increase over the prior year. Required Net School Spending (NSS): The sum of this year's required local contribution and Chapter 70 aid. A district must spend this amount to be in compliance.
A22: Regional District Members | E22: Back to the top
A23: This report displays relevant data for municipal members of a single regional district.
A24: Key Terms
A25: Foundation Enrollment: Foundation enrollment for the selected district, in total and by member. Required Minimum Contribution: Total required minimum contribution for the selected district, in total and by member.
A26: Comparison to FY20 | E26: Back to the top
A27: This report displays prior year and current year foundation enrollment, foundation budget, required local contribution and Chapter 70 aid for all operating districts.
A29: Rates | E29: Back to the top
A30: This sheet displays the FY21 foundation budget rates.
A31: Townwide Contributions | E31: Back to the top
A32: This sheet calculates FY21 required local contributions for each municipality.
A33: Aid436 | E33: Back to the top
A34: This sheet calculates FY21 Chapter 70 aid for each district.

Sheet localcont (hidden)
I1: c70fy20 | J1: c70fy20 | O1: c70fy20 | R1: c70fy20 | Z1: 2020-09-09 | CM1: Lookup table for foundation budget scenarios | CN1: 1 | CO1: 2
CN2: 2 | CO2: 8
D3: 1 | E3: 2 | F3: 3 | G3: 4 | H3: 5 | I3: 6 | J3: 7 | K3: 8 | L3: 9 | M3: 10 | N3: 11 | O3: 12 | P3: 13 | Q3: 14 | R3: 15 | S3: 16 | T3: 17 | U3: 18 | V3: 19 | W3: 20 | X3: 21 | Y3: 1 | Z3: 2 | AA3: 3 | AB3: 4 | AC3: 5 | AD3: 6 | AE3: 7 | AF3: 8 | AG3: 9 | AH3: 10 | AI3: 11 | AJ3: 12 | AK3: 13 | AL3: 14 | AM3: 15 | AN3: 16 | AO3: 17 | AP3: 18 | AQ3: 19 | AR3: 20 | AS3: 21 | AT3: 22 | AU3: 23 | AV3: 24 | AW3: 25 | AX3: 26 | AY3: 27 | AZ3: 28 | BA3: 29 | BB3: 30 | BC3: 31 | BD3: 32 | BE3: 33 | BF3: 34 | BG3: 35 | BH3: 36 | BI3: 37 | BJ3: 38 | BK3: 39 | BL3: 40 | BM3: 41 | BN3: 42 | BO3: 43 | BP3: 44 | BQ3: 45 | BR3: 46 | BS3: 47 | BT3: 48 | BU3: 49 | BV3: 50 | BW3: 51 | BX3: 52 | BY3: 53 | BZ3: 54 | CA3: 55 | CB3: 56 | CC3: 57 | CD3: 58 | CE3: 59 | CF3: 60 | CG3: 61 | CH3: 62 | CI3: 63 | CJ3: 64 | CK3: 65 | CL3: 66 | CN3: 3 | CO3: 14 | CR3: 62 | CS3: 63 | CT3: 64 | CU3: 65 | CV3: 66
G4: lea1755 | K4: found1755 | N4: prelcont1755 | O4: pynetmin | R4: pyenro | W4: enro1755 | CN4: 4 | CO4: 20
Z5: 1 | AF5: 2 | AL5: 3 | AR5: 4 | AX5: 5 | BD5: 6 | BJ5: 7 | BP5: 8 | BV5: 9 | CB5: 10 | CH5: 11 | CN5: 5 | CO5: 26 | CR5: FY19
T6: =parameters!$C$6 -> 1 | Z6: FY21 | CN6: 6 | CO6: 32 | CR6: FY19
I7: =PYr -> FY20 | J7: =PYr -> FY20 | K7: =CYr -> FY21 | L7: =CYr -> FY21 | M7: =CYr -> FY21 | N7: =CYr -> FY21 | O7: =PYr -> FY20 | CN7: 7 | CO7: 38 | CW7: FY19 | CX7: FY19
I8: Foundation | J8: Share of Total | K8: Foundation | L8: Share of Total | M8: Townwide | N8: Net Minimum | O8: Net Minimum | P8: =PYr&" to "&CYr -> FY20 to FY21 | Q8: Percent | R8: =PYr -> FY20 | S8: FY21 | W8: final | X8: foundation | AC8: final | AD8: foundation | AI8: final | AJ8: foundation | AO8: final | AP8: foundation | AU8: final | AV8: foundation | BA8: final | BB8: foundation | BG8: final | BH8: foundation | BM8: final | BN8: foundation | BS8: final | BT8: foundation | BY8: final | BZ8: foundation | CE8: final | CF8: foundation | CK8: final | CL8: foundation | CN8: 8 | CO8: 44 | CU8: final | CV8: foundation | CW8: Share of Total | CX8: Net Minimum
A9: TownLEA | B9: Town | C9: LEA | D9: Order | E9: Town | F9: City or Town | G9: LEA | H9: School District | I9: Budget | J9: Foundation | K9: Budget | L9: Foundation | M9: Contribution | N9: Contribution | O9: Contribution | P9: Change | Q9: Change | R9: Enrollment | S9: Enrollment | T9: Town | U9: LEA | V9: Order | W9: enrollment | X9: budget | Z9: Town | AA9: LEA | AB9: Order | AC9: enrollment | AD9: budget | AF9: Town | AG9: LEA | AH9: Order | AI9: enrollment | AJ9: budget | AL9: Town | AM9: LEA | AN9: Order | AO9: enrollment | AP9: budget | AR9: Town | AS9: LEA | AT9: Order | AU9: enrollment | AV9: budget | AX9: Town | AY9: LEA | AZ9: Order | BA9: enrollment | BB9: budget | BD9: Town | BE9: LEA | BF9: Order | BG9: enrollment | BH9: budget | BJ9: Town | BK9: LEA | BL9: Order | BM9: enrollment | BN9: budget | BP9: Town | BQ9: LEA | BR9: Order | BS9: enrollment | BT9: budget | BV9: Town | BW9: LEA | BX9: Order | BY9: enrollment | BZ9: budget | CB9: Town | CC9: LEA | CD9: Order | CE9: enrollment | CF9: budget | CH9: Town | CI9: LEA | CJ9: Order | CK9: enrollment | CL9: budget | CN9: 9 | CO9: 50 | CR9: Town | CS9: LEA | CT9: Order | CU9: enrollment | CV9: budget | CW9: Foundation | CX9: Contribution
A10: =B10&C10 -> 00010001 | B10: 0001 | C10: 0001 | D10: 1 | E10: 1 | F10: Abington | G10: 1 | H10: Abington | I10: 23388476.61 | J10: 0.9336205456 | K10: =X10 -> 25332546.71 | L10: =IF(K14>0, K10/K14, 0) -> 0.9439033323 | N10: =ROUND(M14*L10,0) -> 15287069 | O10: 14463601 | P10: =N10-O10 -> 823468 | Q10: =IF(O10>0,P10*100/O10,IF(P10>0,100,0)) -> 5.693381614 | R10: 2105 | S10: =W10 -> 2197 | T10: =VLOOKUP($D10, foundoptions, VLOOKUP($T$6, foundoptcell, 2, FALSE), FALSE) -> 1 | U10: =VLOOKUP($D10, foundoptions, VLOOKUP($T$6, foundoptcell, 2, FALSE)+1, FALSE) -> 1 | V10: =VLOOKUP($D10, foundoptions, VLOOKUP($T$6, foundoptcell, 2, FALSE)+2, FALSE) -> 1 | W10: =VLOOKUP($D10, foundoptions, VLOOKUP($T$6, foundoptcell, 2, FALSE)+3, FALSE) -> 2197 | X10: =VLOOKUP($D10, foundoptions, VLOOKUP($T$6, foundoptcell, 2, FALSE)+4, FALSE) -> 25332546.71 | Y10: =D10 -> 1 | Z10: 1 | AA10: 1 | AB10: 1 | AC10: 2197 | AD10: 25332546.71 | AQ10: =AK10-AE10 -> 0 | CN10: 10 | CO10: 56 | CR10: 1 | CS10: 1 | CT10: 1 | CU10: 2024 | CV10: 21515960.21 | CW10: 0.917737123 | CX10: 13701008
A11: 00010873 | B11: 0001 | C11: 0873 | D11: 2 | E11: 1 | F11: Abington | G11: 873 | H11: South Shore | I11: 1662896.479 | J11: 0.06637945444 | K11: =X11 -> 1505526.474 | L11: =IF(K14>0, K11/K14, 0) -> 0.05609666772 | N11: =ROUND(M14*L11,0) -> 908518 | O11: 1028347 | P11: =N11-O11 -> -119829 | Q11: -11.6525842 | R11: 94.64716007 | S11: =W11 -> 84.46580407 | T11: 1 | U11: 873 | V11: 2 | W11: 84.46580407 | X11: 1505526.474 | Y11: =D11 -> 2 | Z11: 1 | AA11: 873 | AB11: 2 | AC11: 84.46580407 | AD11: 1505526.474 | AQ11: =AK11-AE11 -> 0 | CN11: 11 | CO11: 62 | CR11: 1 | CS11: 873 | CT11: 2 | CU11: 115 | CV11: 1928618.495 | CW11: 0.08226287702 | CX11: 1228112
A12: 00010998 | B12: 0001 | C12: 0998 | D12: 3 | E12: 1 | G12: 998 | I12: 0 | J12: 0 | K12: =X12 -> 0 | L12: =IF(K14>0, K12/K14, 0) -> 0 | N12: =ROUND(M14*L12,0) -> 0 | O12: 0 | P12: =N12-O12 -> 0 | Q12: 0 | R12: 0 | S12: 0 | T12: 1 | U12: 998 | V12: 3 | W12: 0 | X12: 0 | Y12: 3 | Z12: 1 | AA12: 998 | AB12: 3 | AC12: 0 | AD12: 0 | AQ12: 0 | CR12: 1 | CS12: 998 | CT12: 3 | CU12: 0 | CV12: 0 | CW12: 0 | CX12: 0
A13: 00010998 | B13: 0001 | C13: 0998 | D13: 4 | E13: 1 | G13: 998 | I13: 0 | J13: 0 | K13: =X13 -> 0 | L13: =IF(K14>0, K13/K14, 0) -> 0 | N13: =ROUND(M14*L13,0) -> 0 | O13: 0 | P13: =N13-O13 -> 0 | Q13: 0 | R13: 0 | S13: 0 | T13: 1 | U13: 998 | V13: 4 | W13: 0 | X13: 0 | Y13: 4 | Z13: 1 | AA13: 998 | AB13: 4 | AC13: 0 | AD13: 0 | AQ13: 0 | CR13: 1 | CS13: 998 | CT13: 4 | CU13: 0 | CV13: 0 | CW13: 0 | CX13: 0
A14: 00010999 | B14: 0001 | C14: 0999 | D14: 5 | E14: 1 | F14: Abington | G14: 999 | H14: Total | I14: 25051373.09 | J14: 1 | K14: =SUM(K10:K13) -> 26838073.19 | L14: =SUM(L10:L13) -> 1 | M14: =VLOOKUP(E14,town351,24) -> 16195587 | N14: =SUM(N10:N13) -> 16195587 | O14: 15491948 | P14: =SUM(P10:P13) -> 703639 | Q14: 4.54196593 | R14: 2199.64716 | S14: 2281.465804 | T14: 1 | U14: 999 | V14: 5 | W14: 2281.465804 | X14: 26838073.19 | Y14: 5 | Z14: 1 | AA14: 999 | AB14: 5 | AC14: 2281.465804 | AD14: 26838073.19 | AQ14: 0 | CR14: 1 | CS14: 999 | CT14: 5 | CU14: 2139 | CV14: 23444578.71 | CW14: 1 | CX14: 14929120
A15: 00020002 | B15: 0002 | C15: 0002 | D15: 6 | E15: 2 | F15: Acton | G15: 2 | H15: Acton | I15: 0 | J15: 0 | K15: =X15 -> 0 | L15: =IF(K19>0, K15/K19, 0) -> 0 | N15: =ROUND(M19*L15,0) -> 0 | O15: 0 | P15: =N15-O15 -> 0 | Q15: 0 | R15: 0 | S15: 0 | T15: 2 | U15: 2 | V15: 6 | W15: 0 | X15: 0 | Y15: 6 | Z15: 2 | AA15: 2 | AB15: 6 | AC15: 0 | AD15: 0 | AQ15: 0 | CR15: 2 | CS15: 2 | CT15: 6 | CU15: 0 | CV15: 0 | CW15: 0 | CX15: 0
A16: 00020600 | B16: 0002 | C16: 0600 | D16: 7 | E16: 2 | F16: Acton | G16: 600 | H16: Acton Boxborough | I16: 48574850.57 | J16: 0.9880265875 | K16: 48408644.57 | L16: =IF(K19>0, K16/K19, 0) -> 0.9844972316 | N16: =ROUND(M19*L16,0) -> 38561442 | O16: 37733689 | P16: =N16-O16 -> 827753 | Q16: 2.193671019 | R16: 4585.679103 | S16: 4437.978144 | T16: 2 | U16: 600 | V16: 7 | W16: 4437.978144 | X16: 48408644.57 | Y16: 7 | Z16: 2 | AA16: 600 | AB16: 7 | AC16: 4437.978144 | AD16: 48408644.57 | AQ16: 0 | CR16: 2 | CS16: 600 | CT16: 7 | CU16: 4587.53929 | CV16: 46559239.31 | CW16: 0.9866805097 | CX16: 35990717
A17: 00020830 | B17: 0002 | C17: 0830 | D17: 8 | E17: 2 | F17: Acton | G17: 830 | H17: Minuteman | I17: 588654.9299 | J17: 0.01197341247 | K17: 762285.54 | L17: =IF(K19>0, K17/K19, 0) -> 0.01550276837 | N17: =ROUND(M19*L17,0) -> 607223 | O17: 457276 | P17: =N17-O17 -> 149947 | Q17: 32.79135577 | R17: 32 | S17: 41 | T17: 2 | U17: 830 | V17: 8 | W17: 41 | X17: 762285.54 | Y17: 8 | Z17: 2 | AA17: 830 | AB17: 8 | AC17: 41 | AD17: 762285.54 | AQ17: 0 | CR17: 2 | CS17: 830 | CT17: 8 | CU17: 35.1026393 | CV17: 628516.8595 | CW17: 0.01331949028 | CX17: 485849
A18: 00020998 | B18: 0002 | C18: 0998 | D18: 9 | E18: 2 | G18: 998 | I18: 0 | J18: 0 | K18: 0 | L18: =IF(K19>0, K18/K19, 0) -> 0 | N18: =ROUND(M19*L18,0) -> 0 | O18: 0 | P18: =N18-O18 -> 0 | Q18: 0 | R18: 0 | S18: 0 | T18: 2 | U18: 998 | V18: 9 | W18: 0 | X18: 0 | Y18: 9 | Z18: 2 | AA18: 998 | AB18: 9 | AC18: 0 | AD18: 0 | AQ18: 0 | CR18: 2 | CS18: 998 | CT18: 9 | CU18: 0 | CV18: 0 | CW18: 0 | CX18: 0
A19: 00020999 | B19: 0002 | C19: 0999 | D19: 10 | E19: 2 | F19: Acton | G19: 999 | H19: Total | I19: 49163505.5 | J19: 1 | K19: =SUM(K15:K18) -> 49170930.11 | L19: =SUM(L15:L18) -> 1 | M19: =VLOOKUP(E19,town351,24) -> 39168665 | N19: =SUM(N15:N18) -> 39168665 | O19: 38190965 | P19: =SUM(P15:P18) -> 977700 | Q19: =IF(O19>0,P19*100/O19,IF(P19>0,100,0)) -> 2.560029578 | R19: 4617.679103 | S19: 4478.978144 | T19: 2 | U19: 999 | V19: 10 | W19: 4478.978144 | X19: 49170930.11 | Y19: 10 | Z19: 2 | AA19: 999 | AB19: 10 | AC19: 4478.978144 | AD19: 49170930.11 | AQ19: 0 | CR19: 2 | CS19: 999 | CT19: 10 | CU19: 4622.641929 | CV19: 47187756.17 | CW19: 1 | CX19: 36476566
A20: 00030003 | B20: 0003 | C20: 0003 | D20: 11 | E20: 3 | F20: Acushnet | G20: 3 | H20: Acushnet | I20: 13443441.48 | J20: 0.852640232 | K20: =X20 -> 13990412.9 | L20: =IF(K24>0, K20/K24, 0) -> 0.855919388 | N20: =ROUND(M24*L20,0) -> 7889510 | O20: 7498601 | P20: =N20-O20 -> 390909 | Q20: 5.213092416 | R20: 1272 | S20: 1292 | T20: 3 | U20: 3 | V20: 11 | W20: 1292 | X20: 13990412.9 | Y20: 11 | Z20: 3 | AA20: 3 | AB20: 11 | AC20: 1292 | AD20: 13990412.9 | AQ20: 0 | CR20: 3 | CS20: 3 | CT20: 11 | CU20: 1227 | CV20: 12395984.84 | CW20: 0.8408793154 | CX20: 7125126
A21: 00030855 | B21: 0003 | C21: 0855 | D21: 12 | E21: 3 | F21: Acushnet | G21: 855 | H21: Old Colony | I21: 2117481.57 | J21: 0.1342996865 | K21: 2180595.949 | L21: =IF(K24>0, K21/K24, 0) -> 0.1334066666 | N21: =ROUND(M24*L21,0) -> 1229687 | O21: 1181107 | P21: =N21-O21 -> 48580 | Q21: 4.113090516 | R21: 127 | S21: 128.5505376 | T21: 3 | U21: 855 | V21: 12 | W21: 128.5505376 | X21: 2180595.949 | Y21: 12 | Z21: 3 | AA21: 855 | AB21: 12 | AC21: 128.5505376 | AD21: 2180595.949 | AQ21: 0 | CR21: 3 | CS21: 855 | CT21: 12 | CU21: 133 | CV21: 2136088.548 | CW21: 0.1449011675 | CX21: 1227809
A22: 00030910 | B22: 0003 | C22: 0910 | D22: 13 | E22: 3 | F22: Acushnet | G22: 910 | H22: Bristol County | I22: 205916.2044 | J22: 0.01306008142 | K22: 174470.7556 | L22: =IF(K24>0, K22/K24, 0) -> 0.01067394532 | N22: =ROUND(M24*L22,0) -> 98388 | O22: 114858 | P22: =N22-O22 -> -16470 | Q22: -14.33944523 | R22: 12 | S22: 10 | T22: 3 | U22: 910 | V22: 13 | W22: 10 | X22: 174470.7556 | Y22: 13 | Z22: 3 | AA22: 910 | AB22: 13 | AC22: 10 | AD22: 174470.7556 | AQ22: 0 | CR22: 3 | CS22: 910 | CT22: 13 | CU22: 13 | CV22: 209619.7569 | CW22: 0.01421951704 | CX22: 120488
A23: 00030998 | B23: 0003 | C23: 0998 | D23: 14 | E23: 3 | G23: 998 | I23: 0 | J23: 0 | K23: 0 | L23: =IF(K24>0, K23/K24, 0) -> 0 | N23: =ROUND(M24*L23,0) -> 0 | O23: 0 | P23: =N23-O23 -> 0 | Q23: 0 | R23: 0 | S23: 0 | T23: 3 | U23: 998 | V23: 14 | W23: 0 | X23: 0 | Y23: 14 | Z23: 3 | AA23: 998 | AB23: 14 | AC23: 0 | AD23: 0 | AQ23: 0 | CR23: 3 | CS23: 998 | CT23: 14 | CU23: 0 | CV23: 0 | CW23: 0 | CX23: 0
A24: 00030999 | B24: 0003 | C24: 0999 | D24: 15 | E24: 3 | F24: Acushnet | G24: 999 | H24: Total | I24: 15766839.26 | J24: 1 | K24: =SUM(K20:K23) -> 16345479.6 | L24: =SUM(L20:L23) -> 1 | M24: =VLOOKUP(E24,town351,24) -> 9217585 | N24: =SUM(N20:N23) -> 9217585 | O24: 8794566 | P24: =SUM(P20:P23) -> 423019 | Q24: 4.810004269 | R24: 1411 | S24: 1430.550538 | T24: 3 | U24: 999 | V24: 15 | W24: 1430.550538 | X24: 16345479.6 | Y24: 15 | Z24: 3 | AA24: 999 | AB24: 15 | AC24: 1430.550538 | AD24: 16345479.6 | AQ24: 0 | CR24: 3 | CS24: 999 | CT24: 15 | CU24: 1373 | CV24: 14741693.14 | CW24: 1 | CX24: 8473423
A25: 00040004 | B25: 0004 | C25: 0004 | D25: 16 | E25: 4 | F25: Adams | G25: 4 | H25: Adams | I25: 0 | J25: 0 | K25: =X25 -> 0 | L25: =IF(K29>0, K25/K29, 0) -> 0 | N25: =ROUND(M29*L25,0) -> 0 | O25: 0 | P25: =N25-O25 -> 0 | Q25: 0 | R25: 0 | S25: 0 | T25: 4 | U25: 4 | V25: 16 | W25: 0 | X25: 0 | Y25: 16 | Z25: 4 | AA25: 4 | AB25: 16 | AC25: 0 | AD25: 0 | AQ25: 0 | CR25: 4 | CS25: 4 | CT25: 16 | CU25: 0 | CV25: 0 | CW25: 0 | CX25: 0
A26: 00040603 | B26: 0004 | C26: 0603 | D26: 17 | E26: 4 | F26: Adams | G26: 603 | H26: Hoosac Valley | I26: 11341094.59 | J26: 0.827929119 | K26: 11030366.69 | L26: =IF(K29>0, K26/K29, 0) -> 0.8139311601 | N26: =ROUND(M29*L26,0) -> 3790093 | O26: 3804547 | P26: =N26-O26 -> -14454 | Q26: -0.3799138242 | R26: 937.4886536 | S26: 901.7089494 | T26: 4 | U26: 603 | V26: 17 | W26: 901.7089494 | X26: 11030366.69 | Y26: 17 | Z26: 4 | AA26: 603 | AB26: 17 | AC26: 901.7089494 | AD26: 11030366.69 | AQ26: 0 | CR26: 4 | CS26: 603 | CT26: 17 | CU26: 975.2043636 | CV26: 11011705.79 | CW26: 0.8352437046 | CX26: 3713168
A27: 00040851 | B27: 0004 | C27: 0851 | D27: 18 | E27: 4 | F27: Adams | G27: 851 | H27: Northern Berkshire | I27: 2357052.182 | J27: 0.172070881 | K27: 2521598.427 | L27: =IF(K29>0, K27/K29, 0) -> 0.1860688399 | N27: =ROUND(M29*L27,0) -> 866435 | O27: 790710 | P27: =N27-O27 -> 75725 | Q27: 9.576836008 | R27: 134 | S27: 141 | T27: 4 | U27: 851 | V27: 18 | W27: 141 | X27: 2521598.427 | Y27: 18 | Z27: 4 | AA27: 851 | AB27: 18 | AC27: 141 | AD27: 2521598.427 | AQ27: 0 | CR27: 4 | CS27: 851 | CT27: 18 | CU27: 129 | CV27: 2172117.959 | CW27: 0.1647562954 | CX27: 732442
A28: 00040998 | B28: 0004 | C28: 0998 | D28: 19 | E28: 4 | G28: 998 | I28: 0 | J28: 0 | K28: 0 | L28: =IF(K29>0, K28/K29, 0) -> 0 | N28: =ROUND(M29*L28,0) -> 0 | O28: 0 | P28: =N28-O28 -> 0 | Q28: 0 | R28: 0 | S28: 0 | T28: 4 | U28: 998 | V28: 19 | W28: 0 | X28: 0 | Y28: 19 | Z28: 4 | AA28: 998 | AB28: 19 | AC28: 0 | AD28: 0 | AQ28: 0 | CR28: 4 | CS28: 998 | CT28: 19 | CU28: 0 | CV28: 0 | CW28: 0 | CX28: 0
A29: 00040999 | B29: 0004 | C29: 0999 | D29: 20 | E29: 4 | F29: Adams | G29: 999 | H29: Total | I29: 13698146.77 | J29: 1 | K29: =SUM(K25:K28) -> 13551965.12 | L29: =SUM(L25:L28) -> 1 | M29: =VLOOKUP(E29,town351,24) -> 4656528 | N29: =SUM(N25:N28) -> 4656528 | O29: 4595257 | P29: =SUM(P25:P28) -> 61271 | Q29: 1.333353064 | R29: 1071.488654 | S29: 1042.708949 | T29: 4 | U29: 999 | V29: 20 | W29: 1042.708949 | X29: 13551965.12 | Y29: 20 | Z29: 4 | AA29: 999 | AB29: 20 | AC29: 1042.708949 | AD29: 13551965.12 | AQ29: 0 | CR29: 4 | CS29: 999 | CT29: 20 | CU29: 1104.204364 | CV29: 13183823.75 | CW29: 1 | CX29: 4445610
A30: 00050005 | B30: 0005 | C30: 0005 | D30: 21 | E30: 5 | F30: Agawam | G30: 5 | H30: Agawam | I30: 42227451.05 | J30: 1 | K30: =X30 -> 42427489.5 | L30: =IF(K34>0, K30/K34, 0) -> 1 | N30: =ROUND(M34*L30,0) -> 23256462 | O30: 22951211 | P30: =N30-O30 -> 305251 | Q30: 1.329999537 | R30: 3677 | S30: 3623 | T30: 5 | U30: 5 | V30: 21 | W30: 3623 | X30: 42427489.5 | Y30: 21 | Z30: 5 | AA30: 5 | AB30: 21 | AC30: 3623 | AD30: 42427489.5 | AQ30: 0 | CR30: 5 | CS30: 5 | CT30: 21 | CU30: 3773 | CV30: 41326070.32 | CW30: 1 | CX30: 22474431
A31: 00050998 | B31: 0005 | C31: 0998 | D31: 22 | E31: 5 | G31: 998 | I31: 0 | J31: 0 | K31: 0 | L31: =IF(K34>0, K31/K34, 0) -> 0 | N31: =ROUND(M34*L31,0) -> 0 | O31: 0 | P31: =N31-O31 -> 0 | Q31: 0 | R31: 0 | S31: 0 | T31: 5 | U31: 998 | V31: 22 | W31: 0 | X31: 0 | Y31: 22 | Z31: 5 | AA31: 998 | AB31: 22 | AC31: 0 | AD31: 0 | AQ31: 0 | CR31: 5 | CS31: 998 | CT31: 22 | CU31: 0 | CV31: 0 | CW31: 0 | CX31: 0
A32: 00050998 | B32: 0005 | C32: 0998 | D32: 23 | E32: 5 | G32: 998 | I32: 0 | J32: 0 | K32: 0 | L32: =IF(K34>0, K32/K34, 0) -> 0 | N32: =ROUND(M34*L32,0) -> 0 | O32: 0 | P32: =N32-O32 -> 0 | Q32: 0 | R32: 0 | S32: 0 | T32: 5 | U32: 998 | V32: 23 | W32: 0 | X32: 0 | Y32: 23 | Z32: 5 | AA32: 998 | AB32: 23 | AC32: 0 | AD32: 0 | AQ32: 0 | CR32: 5 | CS32: 998 | CT32: 23 | CU32: 0 | CV32: 0 | CW32: 0 | CX32: 0
A33: 00050998 | B33: 0005 | C33: 0998 | D33: 24 | E33: 5 | G33: 998 | I33: 0 | J33: 0 | K33: 0 | L33: =IF(K34>0, K33/K34, 0) -> 0 | N33: =ROUND(M34*L33,0) -> 0 | O33: 0 | P33: =N33-O33 -> 0 | Q33: 0 | R33: 0 | S33: 0 | T33: 5 | U33: 998 | V33: 24 | W33: 0 | X33: 0 | Y33: 24 | Z33: 5 | AA33: 998 | AB33: 24 | AC33: 0 | AD33: 0 | AQ33: 0 | CR33: 5 | CS33: 998 | CT33: 24 | CU33: 0 | CV33: 0 | CW33: 0 | CX33: 0
A34: 00050999 | B34: 0005 | C34: 0999 | D34: 25 | E34: 5 | F34: Agawam | G34: 999 | H34: Total | I34: 42227451.05 | J34: 1 | K34: =SUM(K30:K33) -> 42427489.5 | L34: =SUM(L30:L33) -> 1 | M34: =VLOOKUP(E34,town351,24) -> 23256462 | N34: =SUM(N30:N33) -> 23256462 | O34: 22951211 | P34: =SUM(P30:P33) -> 305251 | Q34: 1.329999537 | R34: 3677 | S34: 3623 | T34: 5 | U34: 999 | V34: 25 | W34: 3623 | X34: 42427489.5 | Y34: 25 | Z34: 5 | AA34: 999 | AB34: 25 | AC34: 3623 | AD34: 42427489.5 | AQ34: 0 | CR34: 5 | CS34: 999 | CT34: 25 | CU34: 3773 | CV34: 41326070.32 | CW34: 1 | CX34: 22474431
A35: 00060006 | B35: 0006 | C35: 0006 | D35: 26 | E35: 6 | F35: Alford | G35: 6 | H35: Alford | I35: 0 | J35: 0 | K35: =X35 -> 0 | L35: =IF(K39>0, K35/K39, 0) -> 0 | N35: =ROUND(M39*L35,0) -> 0 | O35: 0 | P35: =N35-O35 -> 0 | Q35: 0 | R35: 0 | S35: 0 | T35: 6 | U35: 6 | V35: 26 | W35: 0 | X35: 0 | Y35: 26 | Z35: 6 | AA35: 6 | AB35: 26 | AC35: 0 | AD35: 0 | AQ35: 0 | CR35: 6 | CS35: 6 | CT35: 26 | CU35: 0 | CV35: 0 | CW35: 0 | CX35: 0
A36: 00060765 | B36: 0006 | C36: 0765 | D36: 27 | E36: 6 | F36: Alford | G36: 765 | H36: Southern Berkshire | I36: 263079.9496 | J36: 1 | K36: 249430.3231 | L36: =IF(K39>0, K36/K39, 0) -> 1 | N36: =ROUND(M39*L36,0) -> 205780 | O36: 217041 | P36: =N36-O36 -> -11261 | Q36: -5.188420621 | R36: 22.4619883 | S36: 21.27089337 | T36: 6 | U36: 765 | V36: 27 | W36: 21.27089337 | X36: 249430.3231 | Y36: 27 | Z36: 6 | AA36: 765 | AB36: 27 | AC36: 21.27089337 | AD36: 249430.3231 | AQ36: 0 | CR36: 6 | CS36: 765 | CT36: 27 | CU36: 25.33131619 | CV36: 275789.3386 | CW36: 1 | CX36: 185505
A37: 00060998 | B37: 0006 | C37: 0998 | D37: 28 | E37: 6 | G37: 998 | I37: 0 | J37: 0 | K37: 0 | L37: =IF(K39>0, K37/K39, 0) -> 0 | N37: =ROUND(M39*L37,0) -> 0 | O37: 0 | P37: =N37-O37 -> 0 | Q37: 0 | R37: 0 | S37: 0 | T37: 6 | U37: 998 | V37: 28 | W37: 0 | X37: 0 | Y37: 28 | Z37: 6 | AA37: 998 | AB37: 28 | AC37: 0 | AD37: 0 | AQ37: 0 | CR37: 6 | CS37: 998 | CT37: 28 | CU37: 0 | CV37: 0 | CW37: 0 | CX37: 0
A38: 00060998 | B38: 0006 | C38: 0998 | D38: 29 | E38: 6 | G38: 998 | I38: 0 | J38: 0 | K38: 0 | L38: =IF(K39>0, K38/K39, 0) -> 0 | N38: =ROUND(M39*L38,0) -> 0 | O38: 0 | P38: =N38-O38 -> 0 | Q38: 0 | R38: 0 | S38: 0 | T38: 6 | U38: 998 | V38: 29 | W38: 0 | X38: 0 | Y38: 29 | Z38: 6 | AA38: 998 | AB38: 29 | AC38: 0 | AD38: 0 | AQ38: 0 | CR38: 6 | CS38: 998 | CT38: 29 | CU38: 0 | CV38: 0 | CW38: 0 | CX38: 0
A39: 00060999 | B39: 0006 | C39: 0999 | D39: 30 | E39: 6 | F39: Alford | G39: 999 | H39: Total | I39: 263079.9496 | J39: 1 | K39: =SUM(K35:K38) -> 249430.3231 | L39: =SUM(L35:L38) -> 1 | M39: =VLOOKUP(E39,town351,24) -> 205780 | N39: =SUM(N35:N38) -> 205780 | O39: 217041 | P39: =SUM(P35:P38) -> -11261 | Q39: -5.188420621 | R39: 22.4619883 | S39: 21.27089337 | T39: 6 | U39: 999 | V39: 30 | W39: 21.27089337 | X39: 249430.3231 | Y39: 30 | Z39: 6 | AA39: 999 | AB39: 30 | AC39: 21.27089337 | AD39: 249430.3231 | AQ39: 0 | CR39: 6 | CS39: 999 | CT39: 30 | CU39: 25.33131619 | CV39: 275789.3386 | CW39: 1 | CX39: 185505
A40: 00070007 | B40: 0007 | C40: 0007 | D40: 31 | E40: 7 | F40: Amesbury | G40: 7 | H40: Amesbury | I40: 22996252.75 | J40: 0.9368666126 | K40: =X40 -> 22553274.58 | L40: =IF(K44>0, K40/K44, 0) -> 0.9306505241 | N40: =ROUND(M44*L40,0) -> 16118764 | O40: 15621860 | P40: =N40-O40 -> 496904 | Q40: 3.180824819 | R40: 2112 | S40: 2036 | T40: 7 | U40: 7 | V40: 31 | W40: 2036 | X40: 22553274.58 | Y40: 31 | Z40: 7 | AA40: 7 | AB40: 31 | AC40: 2036 | AD40: 22553274.58 | AQ40: 0 | CR40: 7 | CS40: 7 | CT40: 31 | CU40: 2198 | CV40: 22830750.46 | CW40: 0.9490965242 | CX40: 15155898
A41: 00070885 | B41: 0007 | C41: 0885 | D41: 32 | E41: 7 | F41: Amesbury | G41: 885 | H41: Whittier | I41: 1549667.064 | J41: 0.0631333874 | K41: 1680606.986 | L41: =IF(K44>0, K41/K44, 0) -> 0.06934947591 | N41: =ROUND(M44*L41,0) -> 1201125 | O41: 1052723 | P41: =N41-O41 -> 148402 | Q41: 14.09696568 | R41: 90 | S41: 95.00000001 | T41: 7 | U41: 885 | V41: 32 | W41: 95.00000001 | X41: 1680606.986 | Y41: 32 | Z41: 7 | AA41: 885 | AB41: 32 | AC41: 95.00000001 | AD41: 1680606.986 | AQ41: 0 | CR41: 7 | CS41: 885 | CT41: 32 | CU41: 74 | CV41: 1224495.637 | CW41: 0.05090347576 | CX41: 812866
A42: 00070998 | B42: 0007 | C42: 0998 | D42: 33 | E42: 7 | G42: 998 | I42: 0 | J42: 0 | K42: 0 | L42: =IF(K44>0, K42/K44, 0) -> 0 | N42: =ROUND(M44*L42,0) -> 0 | O42: 0 | P42: =N42-O42 -> 0 | Q42: 0 | R42: 0 | S42: 0 | T42: 7 | U42: 998 | V42: 33 | W42: 0 | X42: 0 | Y42: 33 | Z42: 7 | AA42: 998 | AB42: 33 | AC42: 0 | AD42: 0 | AQ42: 0 | CR42: 7 | CS42: 998 | CT42: 33 | CU42: 0 | CV42: 0 | CW42: 0 | CX42: 0
A43: 00070998 | B43: 0007 | C43: 0998 | D43: 34 | E43: 7 | G43: 998 | I43: 0 | J43: 0 | K43: 0 | L43: =IF(K44>0, K43/K44, 0) -> 0 | N43: =ROUND(M44*L43,0) -> 0 | O43: 0 | P43: =N43-O43 -> 0 | Q43: 0 | R43: 0 | S43: 0 | T43: 7 | U43: 998 | V43: 34 | W43: 0 | X43: 0 | Y43: 34 | Z43: 7 | AA43: 998 | AB43: 34 | AC43: 0 | AD43: 0 | AQ43: 0 | CR43: 7 | CS43: 998 | CT43: 34 | CU43: 0 | CV43: 0 | CW43: 0 | CX43: 0
A44: 00070999 | B44: 0007 | C44: 0999 | D44: 35 | E44: 7 | F44: Amesbury | G44: 999 | H44: Total | I44: 24545919.81 | J44: 1 | K44: =SUM(K40:K43) -> 24233881.57 | L44: =SUM(L40:L43) -> 1 | M44: =VLOOKUP(E44,town351,24) -> 17319889 | N44: =SUM(N40:N43) -> 17319889 | O44: 16674583 | P44: =SUM(P40:P43) -> 645306 | Q44: 3.869997828 | R44: 2202 | S44: 2131 | T44: 7 | U44: 999 | V44: 35 | W44: 2131 | X44: 24233881.57 | Y44: 35 | Z44: 7 | AA44: 999 | AB44: 35 | AC44: 2131 | AD44: 24233881.57 | AQ44: 0 | CR44: 7 | CS44: 999 | CT44: 35 | CU44: 2272 | CV44: 24055246.1 | CW44: 1 | CX44: 15968764
A45: 00080008 | B45: 0008 | C45: 0008 | D45: 36 | E45: 8 | F45: Amherst | G45: 8 | H45: Amherst | I45: 12803970.65 | J45: 0.490800974 | K45: =X45 -> 12512134.57 | L45: =IF(K49>0, K45/K49, 0) -> 0.4777109969 | N45: =ROUND(M49*L45,0) -> 9645618 | O45: 9508882 | P45: =N45-O45 -> 136736 | Q45: 1.437981878 | R45: 1134 | S45: 1097 | T45: 8 | U45: 8 | V45: 36 | W45: 1097 | X45: 12512134.57 | Y45: 36 | Z45: 8 | AA45: 8 | AB45: 36 | AC45: 1097 | AD45: 12512134.57 | AQ45: 0 | CR45: 8 | CS45: 8 | CT45: 36 | CU45: 1106 | CV45: 11969353.38 | CW45: 0.4813199267 | CX45: 8946746
A46: 00080605 | B46: 0008 | C46: 0605 | D46: 37 | E46: 8 | F46: Amherst | G46: 605 | H46: Amherst Pelham | I46: 13283937.34 | J46: 0.509199026 | K46: 13679715 | L46: =IF(K49>0, K46/K49, 0) -> 0.5222890031 | N46: =ROUND(M49*L46,0) -> 10545708 | O46: 9865329 | P46: =N46-O46 -> 680379 | Q46: 6.896668119 | R46: 1123 | S46: 1131 | T46: 8 | U46: 605 | V46: 37 | W46: 1131 | X46: 13679715 | Y46: 37 | Z46: 8 | AA46: 605 | AB46: 37 | AC46: 1131 | AD46: 13679715 | AQ46: 0 | CR46: 8 | CS46: 605 | CT46: 37 | CU46: 1152 | CV46: 12898416.93 | CW46: 0.5186800733 | CX46: 9641195
A47: 00080998 | B47: 0008 | C47: 0998 | D47: 38 | E47: 8 | G47: 998 | I47: 0 | J47: 0 | K47: 0 | L47: =IF(K49>0, K47/K49, 0) -> 0 | N47: =ROUND(M49*L47,0) -> 0 | O47: 0 | P47: =N47-O47 -> 0 | Q47: 0 | R47: 0 | S47: 0 | T47: 8 | U47: 998 | V47: 38 | W47: 0 | X47: 0 | Y47: 38 | Z47: 8 | AA47: 998 | AB47: 38 | AC47: 0 | AD47: 0 | AQ47: 0 | CR47: 8 | CS47: 998 | CT47: 38 | CU47: 0 | CV47: 0 | CW47: 0 | CX47: 0
A48: 00080998 | B48: 0008 | C48: 0998 | D48: 39 | E48: 8 | G48: 998 | I48: 0 | J48: 0 | K48: 0 | L48: =IF(K49>0, K48/K49, 0) -> 0 | N48: =ROUND(M49*L48,0) -> 0 | O48: 0 | P48: =N48-O48 -> 0 | Q48: 0 | R48: 0 | S48: 0 | T48: 8 | U48: 998 | V48: 39 | W48: 0 | X48: 0 | Y48: 39 | Z48: 8 | AA48: 998 | AB48: 39 | AC48: 0 | AD48: 0 | AQ48: 0 | CR48: 8 | CS48: 998 | CT48: 39 | CU48: 0 | CV48: 0 | CW48: 0 | CX48: 0
A49: 00080999 | B49: 0008 | C49: 0999 | D49: 40 | E49: 8 | F49: Amherst | G49: 999 | H49: Total | I49: 26087907.99 | J49: 1 | K49: =SUM(K45:K48) -> 26191849.57 | L49: =SUM(L45:L48) -> 1 | M49: =VLOOKUP(E49,town351,24) -> 20191326 | N49: =SUM(N45:N48) -> 20191326 | O49: 19374211 | P49: =SUM(P45:P48) -> 817115 | Q49: 4.217539491 | R49: 2257 | S49: 2228 | T49: 8 | U49: 999 | V49: 40 | W49: 2228 | X49: 26191849.57 | Y49: 40 | Z49: 8 | AA49: 999 | AB49: 40 | AC49: 2228 | AD49: 26191849.57 | AQ49: 0 | CR49: 8 | CS49: 999 | CT49: 40 | CU49: 2258 | CV49: 24867770.31 | CW49: 1 | CX49: 18587941
A50: 00090009 | B50: 0009 | C50: 0009 | D50: 41 | E50: 9 | F50: Andover | G50: 9 | H50: Andover | I50: 63835635.79 | J50: 0.9903391191 | K50: =X50 -> 64237434.88 | L50: =IF(K54>0, K50/K54, 0) -> 0.9898346414 | N50: =ROUND(M54*L50,0) -> 52995883 | O50: 52178457 | P50: =N50-O50 -> 817426 | Q50: 1.566596728 | R50: 5835 | S50: 5740 | T50: 9 | U50: 9 | V50: 41 | W50: 5740 | X50: 64237434.88 | Y50: 41 | Z50: 9 | AA50: 9 | AB50: 41 | AC50: 5740 | AD50: 64237434.88 | AQ50: 0 | CR50: 9 | CS50: 9 | CT50: 41 | CU50: 5805 | CV50: 60546641.05 | CW50: 0.9910091393 | CX50: 49950979
A51: 00090823 | B51: 0009 | C51: 0823 | D51: 42 | E51: 9 | F51: Andover | G51: 823 | H51: Greater Lawrence | I51: 622724.5424 | J51: 0.009660880903 | K51: 659702.6749 | L51: =IF(K54>0, K51/K54, 0) -> 0.01016535859 | N51: =ROUND(M54*L51,0) -> 544255 | O51: 509007 | P51: =N51-O51 -> 35248 | Q51: 6.92485565 | R51: 31.00000001 | S51: 32 | T51: 9 | U51: 823 | V51: 42 | W51: 32 | X51: 659702.6749 | Y51: 42 | Z51: 9 | AA51: 823 | AB51: 42 | AC51: 32 | AD51: 659702.6749 | AQ51: 0 | CR51: 9 | CS51: 823 | CT51: 42 | CU51: 29 | CV51: 549305.1397 | CW51: 0.00899086067 | CX51: 453177
A52: 00090998 | B52: 0009 | C52: 0998 | D52: 43 | E52: 9 | G52: 998 | I52: 0 | J52: 0 | K52: 0 | L52: =IF(K54>0, K52/K54, 0) -> 0 | N52: =ROUND(M54*L52,0) -> 0 | O52: 0 | P52: =N52-O52 -> 0 | Q52: 0 | R52: 0 | S52: 0 | T52: 9 | U52: 998 | V52: 43 | W52: 0 | X52: 0 | Y52: 43 | Z52: 9 | AA52: 998 | AB52: 43 | AC52: 0 | AD52: 0 | AQ52: 0 | CR52: 9 | CS52: 998 | CT52: 43 | CU52: 0 | CV52: 0 | CW52: 0 | CX52: 0
A53: 00090998 | B53: 0009 | C53: 0998 | D53: 44 | E53: 9 | G53: 998 | I53: 0 | J53: 0 | K53: 0 | L53: =IF(K54>0, K53/K54, 0) -> 0 | N53: =ROUND(M54*L53,0) -> 0 | O53: 0 | P53: =N53-O53 -> 0 | Q53: 0 | R53: 0 | S53: 0 | T53: 9 | U53: 998 | V53: 44 | W53: 0 | X53: 0 | Y53: 44 | Z53: 9 | AA53: 998 | AB53: 44 | AC53: 0 | AD53: 0 | AQ53: 0 | CR53: 9 | CS53: 998 | CT53: 44 | CU53: 0 | CV53: 0 | CW53: 0 | CX53: 0
A54: 00090999 | B54: 0009 | C54: 0999 | D54: 45 | E54: 9 | F54: Andover | G54: 999 | H54: Total | I54: 64458360.34 | J54: 1 | K54: =SUM(K50:K53) -> 64897137.55 | L54: =SUM(L50:L53) -> 1 | M54: =VLOOKUP(E54,town351,24) -> 53540138 | N54: =SUM(N50:N53) -> 53540138 | O54: 52687464 | P54: =SUM(P50:P53) -> 852674 | Q54: 1.618362197 | R54: 5866 | S54: 5772 | T54: 9 | U54: 999 | V54: 45 | W54: 5772 | X54: 64897137.55 | Y54: 45 | Z54: 9 | AA54: 999 | AB54: 45 | AC54: 5772 | AD54: 64897137.55 | AQ54: 0 | CR54: 9 | CS54: 999 | CT54: 45 | CU54: 5834 | CV54: 61095946.19 | CW54: 1 | CX54: 50404156
A55: 00100010 | B55: 0010 | C55: 0010 | D55: 46 | E55: 10 | F55: Arlington | G55: 10 | H55: Arlington | I55: 62294073.1 | J55: 0.9657766875 | K55: =X55 -> 64895656.34 | L55: =IF(K59>0, K55/K59, 0) -> 0.9601150127 | N55: =ROUND(M59*L55,0) -> 50343449 | O55: 48330137 | P55: =N55-O55 -> 2013312 | Q55: 4.165748589 | R55: 5980 | S55: 6092 | T55: 10 | U55: 10 | V55: 46 | W55: 6092 | X55: 64895656.34 | Y55: 46 | Z55: 10 | AA55: 10 | AB55: 46 | AC55: 6092 | AD55: 64895656.34 | AQ55: 0 | CR55: 10 | CS55: 10 | CT55: 46 | CU55: 5785 | CV55: 58002940.65 | CW55: 0.965620222 | CX55: 46237018
A56: 00100830 | B56: 0010 | C56: 0830 | D56: 47 | E56: 10 | F56: Arlington | G56: 830 | H56: Minuteman | I56: 2207455.987 | J56: 0.03422331251 | K56: 2695887.885 | L56: =IF(K59>0, K56/K59, 0) -> 0.03988498733 | N56: =ROUND(M59*L56,0) -> 2091362 | O56: 1712629 | P56: =N56-O56 -> 378733 | Q56: 22.1141298 | R56: 120 | S56: 145 | T56: 10 | U56: 830 | V56: 47 | W56: 145 | X56: 2695887.885 | Y56: 47 | Z56: 10 | AA56: 830 | AB56: 47 | AC56: 145 | AD56: 2695887.885 | AQ56: 0 | CR56: 10 | CS56: 830 | CT56: 47 | CU56: 115.3372434 | CV56: 2065126.824 | CW56: 0.03437977799 | CX56: 1646215
A57: 00100998 | B57: 0010 | C57: 0998 | D57: 48 | E57: 10 | G57: 998 | I57: 0 | J57: 0 | K57: 0 | L57: =IF(K59>0, K57/K59, 0) -> 0 | N57: =ROUND(M59*L57,0) -> 0 | O57: 0 | P57: =N57-O57 -> 0 | Q57: 0 | R57: 0 | S57: 0 | T57: 10 | U57: 998 | V57: 48 | W57: 0 | X57: 0 | Y57: 48 | Z57: 10 | AA57: 998 | AB57: 48 | AC57: 0 | AD57: 0 | AQ57: 0 | CR57: 10 | CS57: 998 | CT57: 48 | CU57: 0 | CV57: 0 | CW57: 0 | CX57: 0
A58: 00100998 | B58: 0010 | C58: 0998 | D58: 49 | E58: 10 | G58: 998 | I58: 0 | J58: 0 | K58: 0 | L58: =IF(K59>0, K58/K59, 0) -> 0 | N58: =ROUND(M59*L58,0) -> 0 | O58: 0 | P58: =N58-O58 -> 0 | Q58: 0 | R58: 0 | S58: 0 | T58: 10 | U58: 998 | V58: 49 | W58: 0 | X58: 0 | Y58: 49 | Z58: 10 | AA58: 998 | AB58: 49 | AC58: 0 | AD58: 0 | AQ58: 0 | CR58: 10 | CS58: 998 | CT58: 49 | CU58: 0 | CV58: 0 | CW58: 0 | CX58: 0
A59: 00100999 | B59: 0010 | C59: 0999 | D59: 50 | E59: 10 | F59: Arlington | G59: 999 | H59: Total | I59: 64501529.08 | J59: 1 | K59: =SUM(K55:K58) -> 67591544.23 | L59: =SUM(L55:L58) -> 1 | M59: =VLOOKUP(E59,town351,24) -> 52434811 | N59: =SUM(N55:N58) -> 52434811 | O59: 50042766 | P59: =SUM(P55:P58) -> 2392045 | Q59: 4.780001569 | R59: 6100 | S59: 6237 | T59: 10 | U59: 999 | V59: 50 | W59: 6237 | X59: 67591544.23 | Y59: 50 | Z59: 10 | AA59: 999 | AB59: 50 | AC59: 6237 | AD59: 67591544.23 | AQ59: 0 | CR59: 10 | CS59: 999 | CT59: 50 | CU59: 5900.337243 | CV59: 60068067.47 | CW59: 1 | CX59: 47883233
A60: 00110011 | B60: 0011 | C60: 0011 | D60: 51 | E60: 11 | F60: Ashburnham | G60: 11 | H60: Ashburnham | I60: 0 | J60: 0 | K60: =X60 -> 0 | L60: =IF(K64>0, K60/K64, 0) -> 0 | N60: =ROUND(M64*L60,0) -> 0 | O60: 0 | P60: =N60-O60 -> 0 | Q60: 0 | R60: 0 | S60: 0 | T60: 11 | U60: 11 | V60: 51 | W60: 0 | X60: 0 | Y60: 51 | Z60: 11 | AA60: 11 | AB60: 51 | AC60: 0 | AD60: 0 | AQ60: 0 | CR60: 11 | CS60: 11 | CT60: 51 | CU60: 0 | CV60: 0 | CW60: 0 | CX60: 0
A61: 00110610 | B61: 0011 | C61: 0610 | D61: 52 | E61: 11 | F61: Ashburnham | G61: 610 | H61: Ashburnham Westminster | I61: 10689890.54 | J61: 0.9143082126 | K61: 11216451.87 | L61: =IF(K64>0, K61/K64, 0) -> 0.9065010139 | N61: =ROUND(M64*L61,0) -> 5065245 | O61: 4915371 | P61: =N61-O61 -> 149874 | Q61: 3.049088258 | R61: 1020.045276 | S61: 1040.34715 | T61: 11 | U61: 610 | V61: 52 | W61: 1040.34715 | X61: 11216451.87 | Y61: 52 | Z61: 11 | AA61: 610 | AB61: 52 | AC61: 1040.34715 | AD61: 11216451.87 | AQ61: 0 | CR61: 11 | CS61: 610 | CT61: 52 | CU61: 1076.284344 | CV61: 10862999.7 | CW61: 0.9127346045 | CX61: 4717731
A62: 00110832 | B62: 0011 | C62: 0832 | D62: 53 | E62: 11 | F62: Ashburnham | G62: 832 | H62: Montachusett | I62: 1001889.532 | J62: 0.08569178737 | K62: 1156895.427 | L62: =IF(K64>0, K62/K64, 0) -> 0.09349898613 | N62: =ROUND(M64*L62,0) -> 522443 | O62: 460684 | P62: =N62-O62 -> 61759 | Q62: 13.40593552 | R62: 59 | S62: 67 | T62: 11 | U62: 832 | V62: 53 | W62: 67 | X62: 1156895.427 | Y62: 53 | Z62: 11 | AA62: 832 | AB62: 53 | AC62: 67 | AD62: 1156895.427 | AQ62: 0 | CR62: 11 | CS62: 832 | CT62: 53 | CU62: 64.04306865 | CV62: 1038597.594 | CW62: 0.08726539548 | CX62: 451056
A63: 00110998 | B63: 0011 | C63: 0998 | D63: 54 | E63: 11 | G63: 998 | I63: 0 | J63: 0 | K63: 0 | L63: =IF(K64>0, K63/K64, 0) -> 0 | N63: =ROUND(M64*L63,0) -> 0 | O63: 0 | P63: =N63-O63 -> 0 | Q63: 0 | R63: 0 | S63: 0 | T63: 11 | U63: 998 | V63: 54 | W63: 0 | X63: 0 | Y63: 54 | Z63: 11 | AA63: 998 | AB63: 54 | AC63: 0 | AD63: 0 | AQ63: 0 | CR63: 11 | CS63: 998 | CT63: 54 | CU63: 0 | CV63: 0 | CW63: 0 | CX63: 0
A64: 00110999 | B64: 0011 | C64: 0999 | D64: 55 | E64: 11 | F64: Ashburnham | G64: 999 | H64: Total | I64: 11691780.07 | J64: 1 | K64: =SUM(K60:K63) -> 12373347.3 | L64: =SUM(L60:L63) -> 1 | M64: =VLOOKUP(E64,town351,24) -> 5587688 | N64: =SUM(N60:N63) -> 5587688 | O64: 5376055 | P64: =SUM(P60:P63) -> 211633 | Q64: 3.93658547 | R64: 1079.045276 | S64: 1107.34715 | T64: 11 | U64: 999 | V64: 55 | W64: 1107.34715 | X64: 12373347.3 | Y64: 55 | Z64: 11 | AA64: 999 | AB64: 55 | AC64: 1107.34715 | AD64: 12373347.3 | AQ64: 0 | CR64: 11 | CS64: 999 | CT64: 55 | CU64: 1140.327412 | CV64: 11901597.29 | CW64: 1 | CX64: 5168787
A65: 00120012 | B65: 0012 | C65: 0012 | D65: 56 | E65: 12 | F65: Ashby | G65: 12 | H65: Ashby | I65: 0 | J65: 0 | K65: =X65 -> 0 | L65: =IF(K69>0, K65/K69, 0) -> 0 | N65: =ROUND(M69*L65,0) -> 0 | O65: 0 | P65: =N65-O65 -> 0 | Q65: 0 | R65: 0 | S65: 0 | T65: 12 | U65: 12 | V65: 56 | W65: 0 | X65: 0 | Y65: 56 | Z65: 12 | AA65: 12 | AB65: 56 | AC65: 0 | AD65: 0 | AQ65: 0 | CR65: 12 | CS65: 12 | CT65: 56 | CU65: 0 | CV65: 0 | CW65: 0 | CX65: 0
A66: 00120735 | B66: 0012 | C66: 0735 | D66: 57 | E66: 12 | F66: Ashby | G66: 735 | H66: North Middlesex | I66: 3851136.718 | J66: 0.8763469212 | K66: 3861597.255 | L66: =IF(K69>0, K66/K69, 0) -> 0.8646762836 | N66: =ROUND(M69*L66,0) -> 2247102 | O66: 2202332 | P66: =N66-O66 -> 44770 | Q66: 2.032845184 | R66: 363.1624413 | S66: 357.1371446 | T66: 12 | U66: 735 | V66: 57 | W66: 357.1371446 | X66: 3861597.255 | Y66: 57 | Z66: 12 | AA66: 735 | AB66: 57 | AC66: 357.1371446 | AD66: 3861597.255 | AQ66: 0 | CR66: 12 | CS66: 735 | CT66: 57 | CU66: 370.7240412 | CV66: 3774894.734 | CW66: 0.8891500395 | CX66: 2175126
A67: 00120832 | B67: 0012 | C67: 0832 | D67: 58 | E67: 12 | F67: Ashby | G67: 832 | H67: Montachusett | I67: 543397.7122 | J67: 0.1236530788 | K67: 604348.3576 | L67: =IF(K69>0, K67/K69, 0) -> 0.1353237164 | N67: =ROUND(M69*L67,0) -> 351676 | O67: 310750 | P67: =N67-O67 -> 40926 | Q67: 13.17007241 | R67: 32 | S67: 35 | T67: 12 | U67: 832 | V67: 58 | W67: 35 | X67: 604348.3576 | Y67: 58 | Z67: 12 | AA67: 832 | AB67: 58 | AC67: 35 | AD67: 604348.3576 | AQ67: 0 | CR67: 12 | CS67: 832 | CT67: 58 | CU67: 29.01951547 | CV67: 470614.5348 | CW67: 0.1108499605 | CX67: 271172
A68: 00120998 | B68: 0012 | C68: 0998 | D68: 59 | E68: 12 | G68: 998 | I68: 0 | J68: 0 | K68: 0 | L68: =IF(K69>0, K68/K69, 0) -> 0 | N68: =ROUND(M69*L68,0) -> 0 | O68: 0 | P68: =N68-O68 -> 0 | Q68: 0 | R68: 0 | S68: 0 | T68: 12 | U68: 998 | V68: 59 | W68: 0 | X68: 0 | Y68: 59 | Z68: 12 | AA68: 998 | AB68: 59 | AC68: 0 | AD68: 0 | AQ68: 0 | CR68: 12 | CS68: 998 | CT68: 59 | CU68: 0 | CV68: 0 | CW68: 0 | CX68: 0
A69: 00120999 | B69: 0012 | C69: 0999 | D69: 60 | E69: 12 | F69: Ashby | G69: 999 | H69: Total | I69: 4394534.43 | J69: 1 | K69: =SUM(K65:K68) -> 4465945.613 | L69: =SUM(L65:L68) -> 1 | M69: =VLOOKUP(E69,town351,24) -> 2598778 | N69: =SUM(N65:N68) -> 2598778 | O69: 2513082 | P69: =SUM(P65:P68) -> 85696 | Q69: 3.409996172 | R69: 395.1624413 | S69: 392.1371446 | T69: 12 | U69: 999 | V69: 60 | W69: 392.1371446 | X69: 4465945.613 | Y69: 60 | Z69: 12 | AA69: 999 | AB69: 60 | AC69: 392.1371446 | AD69: 4465945.613 | AQ69: 0 | CR69: 12 | CS69: 999 | CT69: 60 | CU69: 399.7435566 | CV69: 4245509.269 | CW69: 1 | CX69: 2446298
A70: 00130013 | B70: 0013 | C70: 0013 | D70: 61 | E70: 13 | F70: Ashfield | G70: 13 | H70: Ashfield | I70: 100602.5808 | J70: 0.04853259741 | K70: =X70 -> 117262.4 | L70: =IF(K74>0, K70/K74, 0) -> 0.06320717214 | N70: =ROUND(M74*L70,0) -> 96741 | O70: 74854 | P70: =N70-O70 -> 21887 | Q70: 29.23958639 | R70: 7 | S70: 8 | T70: 13 | U70: 13 | V70: 61 | W70: 8 | X70: 117262.4 | Y70: 61 | Z70: 13 | AA70: 13 | AB70: 61 | AC70: 8 | AD70: 117262.4 | AQ70: 0 | CR70: 13 | CS70: 13 | CT70: 61 | CU70: 15 | CV70: 233861.83 | CW70: 0.1066373907 | CX70: 163542
A71: 00130717 | B71: 0013 | C71: 0717 | D71: 62 | E71: 13 | F71: Ashfield | G71: 717 | H71: Mohawk Trail | I71: 1972284.224 | J71: 0.9514674026 | K71: 1737944.787 | L71: =IF(K74>0, K71/K74, 0) -> 0.9367928279 | N71: =ROUND(M74*L71,0) -> 1433805 | O71: 1467494 | P71: =N71-O71 -> -33689 | Q71: -2.295682299 | R71: 172.2222222 | S71: 150.1666667 | T71: 13 | U71: 717 | V71: 62 | W71: 150.1666667 | X71: 1737944.787 | Y71: 62 | Z71: 13 | AA71: 717 | AB71: 62 | AC71: 150.1666667 | AD71: 1737944.787 | AQ71: 0 | CR71: 13 | CS71: 717 | CT71: 62 | CU71: 179.693617 | CV71: 1959194.738 | CW71: 0.8933626093 | CX71: 1370082
A72: 00130998 | B72: 0013 | C72: 0998 | D72: 63 | E72: 13 | G72: 998 | I72: 0 | J72: 0 | K72: 0 | L72: =IF(K74>0, K72/K74, 0) -> 0 | N72: =ROUND(M74*L72,0) -> 0 | O72: 0 | P72: =N72-O72 -> 0 | Q72: 0 | R72: 0 | S72: 0 | T72: 13 | U72: 998 | V72: 63 | W72: 0 | X72: 0 | Y72: 63 | Z72: 13 | AA72: 998 | AB72: 63 | AC72: 0 | AD72: 0 | AQ72: 0 | CR72: 13 | CS72: 998 | CT72: 63 | CU72: 0 | CV72: 0 | CW72: 0 | CX72: 0
A73: 00130998 | B73: 0013 | C73: 0998 | D73: 64 | E73: 13 | G73: 998 | I73: 0 | J73: 0 | K73: 0 | L73: =IF(K74>0, K73/K74, 0) -> 0 | N73: =ROUND(M74*L73,0) -> 0 | O73: 0 | P73: =N73-O73 -> 0 | Q73: 0 | R73: 0 | S73: 0 | T73: 13 | U73: 998 | V73: 64 | W73: 0 | X73: 0 | Y73: 64 | Z73: 13 | AA73: 998 | AB73: 64 | AC73: 0 | AD73: 0 | AQ73: 0 | CR73: 13 | CS73: 998 | CT73: 64 | CU73: 0 | CV73: 0 | CW73: 0 | CX73: 0
A74: =B74&C74 -> 00130999 | B74: 0013 | C74: 0999 | D74: 65 | E74: 13 | F74: Ashfield | G74: 999 | H74: Total | I74: 2072886.805 | J74: 1 | K74: =SUM(K70:K73) -> 1855207.187 | L74: =SUM(L70:L73) -> 1 | M74: =VLOOKUP(E74,town351,24) -> 1530546 | N74: =SUM(N70:N73) -> 1530546 | O74: 1542348 | P74: =SUM(P70:P73) -> -11802 | Q74: -0.7651969594 | R74: 179.2222222 | S74: 158.1666667 | T74: =VLOOKUP($D74, foundoptions, VLOOKUP($T$6, foundoptcell, 2, FALSE), FALSE) -> 13 | U74: =VLOOKUP($D74, foundoptions, VLOOKUP($T$6, foundoptcell, 2, FALSE)+1, FALSE) -> 999 | V74: =VLOOKUP($D74, foundoptions, VLOOKUP($T$6, foundoptcell, 2, FALSE)+2, FALSE) -> 65 | W74: =VLOOKUP($D74, foundoptions, VLOOKUP($T$6, foundoptcell, 2, FALSE)+3, FALSE) -> 158.1666667 | X74: =VLOOKUP($D74, foundoptions, VLOOKUP($T$6, foundoptcell, 2, FALSE)+4, FALSE) -> 1855207.187 | Y74: 65 | Z74: 13 | AA74: 999 | AB74: 65 | AC74: 158.1666667 | AD74: 1855207.187 | AQ74: 0 | CR74: 13 | CS74: 999 | CT74: 65 | CU74: 194.693617 | CV74: 2193056.568 | CW74: 1 | CX74: 1533624
A75: 00140014 | B75: 0014 | C75: 0014 | D75: 66 | E75: 14 | F75: Ashland | G75: 14 | H75: Ashland | I75: 29177890.76 | J75: 0.96607914 | K75: =X75 -> 30232498.72 | L75: =IF(K79>0, K75/K79, 0) -> 0.9673029453 | N75: =ROUND(M79*L75,0) -> 22294876 | O75: 21472389 | P75: =N75-O75 -> 822487 | Q75: 3.830440106 | R75: 2764 | S75: =W75 -> 2786 | T75: 14 | U75: 14 | V75: 66 | W75: 2786 | X75: 30232498.72 | Y75: =D75 -> 66 | Z75: 14 | AA75: 14 | AB75: 66 | AC75: 2786 | AD75: 30232498.72 | AQ75: =AK75-AE75 -> 0 | CR75: 14 | CS75: 14 | CT75: 66 | CU75: 2581 | CV75: 26344731.8 | CW75: 0.9575405389 | CX75: 20247938
A76: 00140829 | B76: 0014 | C76: 0829 | D76: 67 | E76: 14 | F76: Ashland | G76: 829 | H76: South Middlesex | I76: 1024490.754 | J76: 0.03392085998 | K76: 1021927.69 | L76: =IF(K79>0, K76/K79, 0) -> 0.0326970547 | N76: =ROUND(M79*L76,0) -> 753618 | O76: 753936 | P76: =N76-O76 -> -318 | Q76: -0.04217864646 | R76: 55 | S76: 53.06649937 | T76: 14 | U76: 829 | V76: 67 | W76: 53.06649937 | X76: 1021927.69 | Y76: 67 | Z76: 14 | AA76: 829 | AB76: 67 | AC76: 53.06649937 | AD76: 1021927.69 | AQ76: 0 | CR76: 14 | CS76: 829 | CT76: 67 | CU76: 66 | CV76: 1168183.558 | CW76: 0.04245946106 | CX76: 897838
A77: 00140998 | B77: 0014 | C77: 0998 | D77: 68 | E77: 14 | G77: 998 | I77: 0 | J77: 0 | K77: 0 | L77: =IF(K79>0, K77/K79, 0) -> 0 | N77: =ROUND(M79*L77,0) -> 0 | O77: 0 | P77: =N77-O77 -> 0 | Q77: 0 | R77: 0 | S77: 0 | T77: 14 | U77: 998 | V77: 68 | W77: 0 | X77: 0 | Y77: 68 | Z77: 14 | AA77: 998 | AB77: 68 | AC77: 0 | AD77: 0 | AQ77: 0 | CR77: 14 | CS77: 998 | CT77: 68 | CU77: 0 | CV77: 0 | CW77: 0 | CX77: 0
A78: 00140998 | B78: 0014 | C78: 0998 | D78: 69 | E78: 14 | G78: 998 | I78: 0 | J78: 0 | K78: 0 | L78: =IF(K79>0, K78/K79, 0) -> 0 | N78: =ROUND(M79*L78,0) -> 0 | O78: 0 | P78: =N78-O78 -> 0 | Q78: 0 | R78: 0 | S78: 0 | T78: 14 | U78: 998 | V78: 69 | W78: 0 | X78: 0 | Y78: 69 | Z78: 14 | AA78: 998 | AB78: 69 | AC78: 0 | AD78: 0 | AQ78: 0 | CR78: 14 | CS78: 998 | CT78: 69 | CU78: 0 | CV78: 0 | CW78: 0 | CX78: 0
A79: 00140999 | B79: 0014 | C79: 0999 | D79: 70 | E79: 14 | F79: Ashland | G79: 999 | H79: Total | I79: 30202381.51 | J79: 1 | K79: =SUM(K75:K78) -> 31254426.41 | L79: =SUM(L75:L78) -> 1 | M79: =VLOOKUP(E79,town351,24) -> 23048494 | N79: =SUM(N75:N78) -> 23048494 | O79: 22226325 | P79: =SUM(P75:P78) -> 822169 | Q79: 3.699077558 | R79: 2819 | S79: 2839.066499 | T79: 14 | U79: 999 | V79: 70 | W79: 2839.066499 | X79: 31254426.41 | Y79: 70 | Z79: 14 | AA79: 999 | AB79: 70 | AC79: 2839.066499 | AD79: 31254426.41 | AQ79: 0 | CR79: 14 | CS79: 999 | CT79: 70 | CU79: 2647 | CV79: 27512915.35 | CW79: 1 | CX79: 21145776
A80: 00150015 | B80: 0015 | C80: 0015 | D80: 71 | E80: 15 | F80: Athol | G80: 15 | H80: Athol | I80: 0 | J80: 0 | K80: =X80 -> 0 | L80: =IF(K84>0, K80/K84, 0) -> 0 | N80: =ROUND(M84*L80,0) -> 0 | O80: 0 | P80: =N80-O80 -> 0 | Q80: =IF(O80>0,P80*100/O80,IF(P80>0,100,0)) -> 0 | R80: 0 | S80: 0 | T80: 15 | U80: 15 | V80: 71 | W80: 0 | X80: 0 | Y80: 71 | Z80: 15 | AA80: 15 | AB80: 71 | AC80: 0 | AD80: 0 | AQ80: 0 | CR80: 15 | CS80: 15 | CT80: 71 | CU80: 1 | CV80: 13837.16 | CW80: 0.0007016448517 | CX80: 2099
A81: 00150615 | B81: 0015 | C81: 0615 | D81: 72 | E81: 15 | F81: Athol | G81: 615 | H81: Athol Royalston | I81: 19054143.74 | J81: 0.9189238516 | K81: 20152139.44 | L81: =IF(K84>0, K81/K84, 0) -> 0.9152996519 | N81: =ROUND(M84*L81,0) -> 3085382 | O81: 2910183 | P81: =N81-O81 -> 175199 | Q81: =IF(O81>0,P81*100/O81,IF(P81>0,100,0)) -> 6.020205602 | R81: 1617.073696 | S81: 1641.540166 | T81: 15 | U81: 615 | V81: 72 | W81: 1641.540166 | X81: 20152139.44 | Y81: 72 | Z81: 15 | AA81: 615 | AB81: 72 | AC81: 1641.540166 | AD81: 20152139.44 | AQ81: 0 | CR81: 15 | CS81: 615 | CT81: 72 | CU81: 1628.887892 | CV81: 18262894.24 | CW81: 0.9260618308 | CX81: 2770441
A82: 00150832 | B82: 0015 | C82: 0832 | D82: 73 | E82: 15 | F82: Athol | G82: 832 | H82: Montachusett | I82: 1681136.672 | J82: 0.08107614842 | K82: 1864846.361 | L82: =IF(K84>0, K82/K84, 0) -> 0.08470034805 | N82: =ROUND(M84*L82,0) -> 285516 | O82: 256764 | P82: =N82-O82 -> 28752 | Q82: =IF(O82>0,P82*100/O82,IF(P82>0,100,0)) -> 11.19783147 | R82: 98.99999999 | S82: 108 | T82: 15 | U82: 832 | V82: 73 | W82: 108 | X82: 1864846.361 | Y82: 73 | Z82: 15 | AA82: 832 | AB82: 73 | AC82: 108 | AD82: 1864846.361 | AQ82: 0 | CR82: 15 | CS82: 832 | CT82: 73 | CU82: 89.05989233 | CV82: 1444299.779 | CW82: 0.0732365243 | CX82: 219097
A83: 00150998 | B83: 0015 | C83: 0998 | D83: 74 | E83: 15 | G83: 998 | I83: 0 | J83: 0 | K83: 0 | L83: =IF(K84>0, K83/K84, 0) -> 0 | N83: =ROUND(M84*L83,0) -> 0 | O83: 0 | P83: =N83-O83 -> 0 | Q83: =IF(O83>0,P83*100/O83,IF(P83>0,100,0)) -> 0 | R83: 0 | S83: 0 | T83: 15 | U83: 998 | V83: 74 | W83: 0 | X83: 0 | Y83: 74 | Z83: 15 | AA83: 998 | AB83: 74 | AC83: 0 | AD83: 0 | AQ83: 0 | CR83: 15 | CS83: 998 | CT83: 74 | CU83: 0 | CV83: 0 | CW83: 0 | CX83: 0
A84: 00150999 | B84: 0015 | C84: 0999 | D84: 75 | E84: 15 | F84: Athol | G84: 999 | H84: Total | I84: 20735280.41 | J84: 1 | K84: =SUM(K80:K83) -> 22016985.81 | L84: =SUM(L80:L83) -> 1 | M84: =VLOOKUP(E84,town351,24) -> 3370898 | N84: =SUM(N80:N83) -> 3370898 | O84: 3166947 | P84: =SUM(P80:P83) -> 203951 | Q84: =IF(O84>0,P84*100/O84,IF(P84>0,100,0)) -> 6.439987786 | R84: 1716.073696 | S84: 1749.540166 | T84: 15 | U84: 999 | V84: 75 | W84: 1749.540166 | X84: 22016985.81 | Y84: 75 | Z84: 15 | AA84: 999 | AB84: 75 | AC84: 1749.540166 | AD84: 22016985.81 | AQ84: 0 | CR84: 15 | CS84: 999 | CT84: 75 | CU84: 1718.947785 | CV84: 19721031.18 | CW84: 1 | CX84: 2991637
A85: 00160016 | B85: 0016 | C85: 0016 | D85: 76 | E85: 16 | F85: Attleboro | G85: 16 | H85: Attleboro | I85: 77760770.56 | J85: 0.994077125 | K85: =X85 -> 79207276.43 | L85: =IF(K89>0, K85/K89, 0) -> 0.9947412933 | N85: =ROUND(M89*L85,0) -> 38037529 | O85: 36638947 | P85: =N85-O85 -> 1398582 | Q85: 3.817200314 | R85: 6355 | S85: 6383 | T85: 16 | U85: 16 | V85: 76 | W85: 6383 | X85: 79207276.43 | Y85: 76 | Z85: 16 | AA85: 16 | AB85: 76 | AC85: 6383 | AD85: 79207276.43 | AQ85: 0 | CR85: 16 | CS85: 16 | CT85: 76 | CU85: 6311 | CV85: 72980818.83 | CW85: 0.9927616586 | CX85: 35206834
A86: 00160910 | B86: 0016 | C86: 0910 | D86: 77 | E86: 16 | F86: Attleboro | G86: 910 | H86: Bristol County | I86: 463311.4598 | J86: 0.005922875001 | K86: 418729.8133 | L86: =IF(K89>0, K86/K89, 0) -> 0.00525870671 | N86: =ROUND(M89*L86,0) -> 201086 | O86: 218301 | P86: =N86-O86 -> -17215 | Q86: -7.88590066 | R86: 27 | S86: 24 | T86: 16 | U86: 910 | V86: 77 | W86: 24 | X86: 418729.8133 | Y86: 77 | Z86: 16 | AA86: 910 | AB86: 77 | AC86: 24 | AD86: 418729.8133 | AQ86: 0 | CR86: 16 | CS86: 910 | CT86: 77 | CU86: 33 | CV86: 532111.6905 | CW86: 0.007238341429 | CX86: 256697
A87: 00160998 | B87: 0016 | C87: 0998 | D87: 78 | E87: 16 | G87: 998 | I87: 0 | J87: 0 | K87: 0 | L87: =IF(K89>0, K87/K89, 0) -> 0 | N87: =ROUND(M89*L87,0) -> 0 | O87: 0 | P87: =N87-O87 -> 0 | Q87: 0 | R87: 0 | S87: 0 | T87: 16 | U87: 998 | V87: 78 | W87: 0 | X87: 0 | Y87: 78 | Z87: 16 | AA87: 998 | AB87: 78 | AC87: 0 | AD87: 0 | AQ87: 0 | CR87: 16 | CS87: 998 | CT87: 78 | CU87: 0 | CV87: 0 | CW87: 0 | CX87: 0
A88: 00160998 | B88: 0016 | C88: 0998 | D88: 79 | E88: 16 | G88: 998 | I88: 0 | J88: 0 | K88: 0 | L88: =IF(K89>0, K88/K89, 0) -> 0 | N88: =ROUND(M89*L88,0) -> 0 | O88: 0 | P88: =N88-O88 -> 0 | Q88: 0 | R88: 0 | S88: 0 | T88: 16 | U88: 998 | V88: 79 | W88: 0 | X88: 0 | Y88: 79 | Z88: 16 | AA88: 998 | AB88: 79 | AC88: 0 | AD88: 0 | AQ88: 0 | CR88: 16 | CS88: 998 | CT88: 79 | CU88: 0 | CV88: 0 | CW88: 0 | CX88: 0
A89: 00160999 | B89: 0016 | C89: 0999 | D89: 80 | E89: 16 | F89: Attleboro | G89: 999 | H89: Total | I89: 78224082.02 | J89: 1 | K89: =SUM(K85:K88) -> 79626006.24 | L89: =SUM(L85:L88) -> 1 | M89: =VLOOKUP(E89,town351,24) -> 38238615 | N89: =SUM(N85:N88) -> 38238615 | O89: 36857248 | P89: =SUM(P85:P88) -> 1381367 | Q89: 3.74788427 | R89: 6382 | S89: 6407 | T89: 16 | U89: 999 | V89: 80 | W89: 6407 | X89: 79626006.24 | Y89: 80 | Z89: 16 | AA89: 999 | AB89: 80 | AC89: 6407 | AD89: 79626006.24 | AQ89: 0 | CR89: 16 | CS89: 999 | CT89: 80 | CU89: 6344 | CV89: 73512930.52 | CW89: 1 | CX89: 35463531
A90: 00170017 | B90: 0017 | C90: 0017 | D90: 81 | E90: 17 | F90: Auburn | G90: 17 | H90: Auburn | I90: 26762943.25 | J90: 0.9485820474 | K90: =X90 -> 27521289.79 | L90: =IF(K94>0, K90/K94, 0) -> 0.946950121 | N90: =ROUND(M94*L90,0) -> 15309359 | O90: 15076760 | P90: =N90-O90 -> 232599 | Q90: 1.542765156 | R90: 2494 | S90: 2511 | T90: 17 | U90: 17 | V90: 81 | W90: 2511 | X90: 27521289.79 | Y90: 81 | Z90: 17 | AA90: 17 | AB90: 81 | AC90: 2511 | AD90: 27521289.79 | AQ90: 0 | CR90: 17 | CS90: 17 | CT90: 81 | CU90: 2495 | CV90: 25672129.78 | CW90: 0.9495990138 | CX90: 14624535
A91: 00170876 | B91: 0017 | C91: 0876 | D91: 82 | E91: 17 | F91: Auburn | G91: 876 | H91: Southern Worcester | I91: 1450687.108 | J91: 0.05141795257 | K91: 1541793.028 | L91: =IF(K94>0, K91/K94, 0) -> 0.05304987904 | N91: =ROUND(M94*L91,0) -> 857658 | O91: 817237 | P91: =N91-O91 -> 40421 | Q91: 4.94605604 | R91: 86 | S91: 89.99999999 | T91: 17 | U91: 876 | V91: 82 | W91: 89.99999999 | X91: 1541793.028 | Y91: 82 | Z91: 17 | AA91: 876 | AB91: 82 | AC91: 89.99999999 | AD91: 1541793.028 | AQ91: 0 | CR91: 17 | CS91: 876 | CT91: 82 | CU91: 84 | CV91: 1362575.824 | CW91: 0.05040098621 | CX91: 776213
A92: 00170998 | B92: 0017 | C92: 0998 | D92: 83 | E92: 17 | G92: 998 | I92: 0 | J92: 0 | K92: 0 | L92: =IF(K94>0, K92/K94, 0) -> 0 | N92: =ROUND(M94*L92,0) -> 0 | O92: 0 | P92: =N92-O92 -> 0 | Q92: 0 | R92: 0 | S92: 0 | T92: 17 | U92: 998 | V92: 83 | W92: 0 | X92: 0 | Y92: 83 | Z92: 17 | AA92: 998 | AB92: 83 | AC92: 0 | AD92: 0 | AQ92: 0 | CR92: 17 | CS92: 998 | CT92: 83 | CU92: 0 | CV92: 0 | CW92: 0 | CX92: 0
A93: 00170998 | B93: 0017 | C93: 0998 | D93: 84 | E93: 17 | G93: 998 | I93: 0 | J93: 0 | K93: 0 | L93: =IF(K94>0, K93/K94, 0) -> 0 | N93: =ROUND(M94*L93,0) -> 0 | O93: 0 | P93: =N93-O93 -> 0 | Q93: 0 | R93: 0 | S93: 0 | T93: 17 | U93: 998 | V93: 84 | W93: 0 | X93: 0 | Y93: 84 | Z93: 17 | AA93: 998 | AB93: 84 | AC93: 0 | AD93: 0 | AQ93: 0 | CR93: 17 | CS93: 998 | CT93: 84 | CU93: 0 | CV93: 0 | CW93: 0 | CX93: 0
A94: 00170999 | B94: 0017 | C94: 0999 | D94: 85 | E94: 17 | F94: Auburn | G94: 999 | H94: Total | I94: 28213630.36 | J94: 1 | K94: =SUM(K90:K93) -> 29063082.82 | L94: =SUM(L90:L93) -> 1 | M94: =VLOOKUP(E94,town351,24) -> 16167017 | N94: =SUM(N90:N93) -> 16167017 | O94: 15893997 | P94: =SUM(P90:P93) -> 273020 | Q94: 1.717755452 | R94: 2580 | S94: 2601 | T94: 17 | U94: 999 | V94: 85 | W94: 2601 | X94: 29063082.82 | Y94: 85 | Z94: 17 | AA94: 999 | AB94: 85 | AC94: 2601 | AD94: 29063082.82 | AQ94: 0 | CR94: 17 | CS94: 999 | CT94: 85 | CU94: 2579 | CV94: 27034705.6 | CW94: 1 | CX94: 15400748
A95: 00180018 | B95: 0018 | C95: 0018 | D95: 86 | E95: 18 | F95: Avon | G95: 18 | H95: Avon | I95: 6653932.031 | J95: 0.8640464021 | K95: =X95 -> 7045846.11 | L95: =IF(K99>0, K95/K99, 0) -> 0.8522800851 | N95: =ROUND(M99*L95,0) -> 4598969 | O95: 4537696 | P95: =N95-O95 -> 61273 | Q95: 1.350310819 | R95: 563 | S95: 586 | T95: 18 | U95: 18 | V95: 86 | W95: 586 | X95: 7045846.11 | Y95: 86 | Z95: 18 | AA95: 18 | AB95: 86 | AC95: 586 | AD95: 7045846.11 | AQ95: 0 | CR95: 18 | CS95: 18 | CT95: 86 | CU95: 561 | CV95: 6193899.03 | CW95: 0.8546657806 | CX95: 4386495
A96: 00180806 | B96: 0018 | C96: 0806 | D96: 87 | E96: 18 | F96: Avon | G96: 806 | H96: Blue Hills | I96: 957542.3835 | J96: 0.1243416746 | K96: 1149360.157 | L96: =IF(K99>0, K96/K99, 0) -> 0.1390289764 | N96: =ROUND(M99*L96,0) -> 750211 | O96: 653003 | P96: =N96-O96 -> 97208 | Q96: 14.88630221 | R96: 54 | S96: 63 | T96: 18 | U96: 806 | V96: 87 | W96: 63 | X96: 1149360.157 | Y96: 87 | Z96: 18 | AA96: 806 | AB96: 87 | AC96: 63 | AD96: 1149360.157 | AQ96: 0 | CR96: 18 | CS96: 806 | CT96: 87 | CU96: 58 | CV96: 984907.1615 | CW96: 0.1359025137 | CX96: 697507
A97: 00180915 | B97: 0018 | C97: 0915 | D97: 88 | E97: 18 | F97: Avon | G97: 915 | H97: Norfolk County | I97: 89422.22132 | J97: 0.01161192333 | K97: 71848.46428 | L97: =IF(K99>0, K97/K99, 0) -> 0.008690938505 | N97: =ROUND(M99*L97,0) -> 46897 | O97: 60982 | P97: =N97-O97 -> -14085 | Q97: -23.09697944 | R97: 5 | S97: 4.000000001 | T97: 18 | U97: 915 | V97: 88 | W97: 4.000000001 | X97: 71848.46428 | Y97: 88 | Z97: 18 | AA97: 915 | AB97: 88 | AC97: 4.000000001 | AD97: 71848.46428 | AQ97: 0 | CR97: 18 | CS97: 915 | CT97: 88 | CU97: 3.999999999 | CV97: 68353.07351 | CW97: 0.009431705722 | CX97: 48407
A98: 00180998 | B98: 0018 | C98: 0998 | D98: 89 | E98: 18 | G98: 998 | I98: 0 | J98: 0 | K98: 0 | L98: =IF(K99>0, K98/K99, 0) -> 0 | N98: =ROUND(M99*L98,0) -> 0 | O98: 0 | P98: =N98-O98 -> 0 | Q98: 0 | R98: 0 | S98: 0 | T98: 18 | U98: 998 | V98: 89 | W98: 0 | X98: 0 | Y98: 89 | Z98: 18 | AA98: 998 | AB98: 89 | AC98: 0 | AD98: 0 | AQ98: 0 | CR98: 18 | CS98: 998 | CT98: 89 | CU98: 0 | CV98: 0 | CW98: 0 | CX98: 0
A99: 00180999 | B99: 0018 | C99: 0999 | D99: 90 | E99: 18 | F99: Avon | G99: 999 | H99: Total | I99: 7700896.636 | J99: 1 | K99: =SUM(K95:K98) -> 8267054.731 | L99: =SUM(L95:L98) -> 1 | M99: =VLOOKUP(E99,town351,24) -> 5396077 | N99: =SUM(N95:N98) -> 5396077 | O99: 5251681 | P99: =SUM(P95:P98) -> 144396 | Q99: 2.74951963 | R99: 622 | S99: 653 | T99: 18 | U99: 999 | V99: 90 | W99: 653 | X99: 8267054.731 | Y99: 90 | Z99: 18 | AA99: 999 | AB99: 90 | AC99: 653 | AD99: 8267054.731 | AQ99: 0 | CR99: 18 | CS99: 999 | CT99: 90 | CU99: 623 | CV99: 7247159.265 | CW99: 1 | CX99: 5132409
A100: 00190019 | B100: 0019 | C100: 0019 | D100: 91 | E100: 19 | F100: Ayer | G100: 19 | H100: Ayer | I100: 0 | J100: 0 | K100: =X100 -> 0 | L100: =IF(K104>0, K100/K104, 0) -> 0 | N100: =ROUND(M104*L100,0) -> 0 | O100: 0 | P100: =N100-O100 -> 0 | Q100: 0 | R100: 0 | S100: 0 | T100: 19 | U100: 19 | V100: 91 | W100: 0 | X100: 0 | Y100: 91 | Z100: 19 | AA100: 19 | AB100: 91 | AC100: 0 | AD100: 0 | AQ100: 0 | CR100: 19 | CS100: 19 | CT100: 91 | CU100: 0 | CV100: 0 | CW100: 0 | CX100: 0
A101: 00190616 | B101: 0019 | C101: 0616 | D101: 92 | E101: 19 | F101: Ayer | G101: 616 | H101: Ayer Shirley | I101: 10831730.84 | J101: 0.9256854959 | K101: 10850922.74 | L101: =IF(K104>0, K101/K104, 0) -> 0.9192623296 | N101: =ROUND(M104*L101,0) -> 7768754 | O101: 7646864 | P101: =N101-O101 -> 121890 | Q101: 1.593986764 | R101: 979.8717654 | S101: 961.138115 | T101: 19 | U101: 616 | V101: 92 | W101: 961.138115 | X101: 10850922.74 | Y101: 92 | Z101: 19 | AA101: 616 | AB101: 92 | AC101: 961.138115 | AD101: 10850922.74 | AQ101: 0 | CR101: 19 | CS101: 616 | CT101: 92 | CU101: 953.354394 | CV101: 9988703.748 | CW101: 0.9274031692 | CX101: 7215157
A102: 00190852 | B102: 0019 | C102: 0852 | D102: 93 | E102: 19 | F102: Ayer | G102: 852 | H102: Nashoba Valley | I102: 869576.8806 | J102: 0.07431450413 | K102: 953023.0879 | L102: =IF(K104>0, K102/K104, 0) -> 0.08073767045 | N102: =ROUND(M104*L102,0) -> 682320 | O102: 613894 | P102: =N102-O102 -> 68426 | Q102: 11.14622394 | R102: 51 | S102: 55 | T102: 19 | U102: 852 | V102: 93 | W102: 55 | X102: 953023.0879 | Y102: 93 | Z102: 19 | AA102: 852 | AB102: 93 | AC102: 55 | AD102: 953023.0879 | AQ102: 0 | CR102: 19 | CS102: 852 | CT102: 93 | CU102: 48 | CV102: 781912.613 | CW102: 0.07259683075 | CX102: 564800
A103: 00190998 | B103: 0019 | C103: 0998 | D103: 94 | E103: 19 | G103: 998 | I103: 0 | J103: 0 | K103: 0 | L103: =IF(K104>0, K103/K104, 0) -> 0 | N103: =ROUND(M104*L103,0) -> 0 | O103: 0 | P103: =N103-O103 -> 0 | Q103: 0 | R103: 0 | S103: 0 | T103: 19 | U103: 998 | V103: 94 | W103: 0 | X103: 0 | Y103: 94 | Z103: 19 | AA103: 998 | AB103: 94 | AC103: 0 | AD103: 0 | AQ103: 0 | CR103: 19 | CS103: 998 | CT103: 94 | CU103: 0 | CV103: 0 | CW103: 0 | CX103: 0
A104: 00190999 | B104: 0019 | C104: 0999 | D104: 95 | E104: 19 | F104: Ayer | G104: 999 | H104: Total | I104: 11701307.72 | J104: 1 | K104: =SUM(K100:K103) -> 11803945.82 | L104: =SUM(L100:L103) -> 1 | M104: =VLOOKUP(E104,town351,24) -> 8451074 | N104: =SUM(N100:N103) -> 8451074 | O104: 8260758 | P104: =SUM(P100:P103) -> 190316 | Q104: 2.303856377 | R104: 1030.871765 | S104: 1016.138115 | T104: 19 | U104: 999 | V104: 95 | W104: 1016.138115 | X104: 11803945.82 | Y104: 95 | Z104: 19 | AA104: 999 | AB104: 95 | AC104: 1016.138115 | AD104: 11803945.82 | AQ104: 0 | CR104: 19 | CS104: 999 | CT104: 95 | CU104: 1001.354394 | CV104: 10770616.36 | CW104: 1 | CX104: 7779957
A105: 00200020 | B105: 0020 | C105: 0020 | D105: 96 | E105: 20 | F105: Barnstable | G105: 20 | H105: Barnstable | I105: 63524348.52 | J105: 0.952360238 | K105: =X105 -> 65773443.14 | L105: =IF(K109>0, K105/K109, 0) -> 0.9483805832 | N105: =ROUND(M109*L105,0) -> 52762387 | O105: 51296149 | P105: =N105-O105 -> 1466238 | Q105: 2.858378316 | R105: 5444 | S105: 5405 | T105: 20 | U105: 20 | V105: 96 | W105: 5405 | X105: 65773443.14 | Y105: 96 | Z105: 20 | AA105: 20 | AB105: 96 | AC105: 5405 | AD105: 65773443.14 | AQ105: 0 | CR105: 20 | CS105: 20 | CT105: 96 | CU105: 5480 | CV105: 60393953.44 | CW105: 0.952336101 | CX105: 49825012
A106: 00200815 | B106: 0020 | C106: 0815 | D106: 97 | E106: 20 | F106: Barnstable | G106: 815 | H106: Cape Cod | I106: 3177668.198 | J106: 0.04763976195 | K106: 3579983.431 | L106: =IF(K109>0, K106/K109, 0) -> 0.05161941677 | N106: =ROUND(M109*L106,0) -> 2871805 | O106: 2565979 | P106: =N106-O106 -> 305826 | Q106: 11.91849193 | R106: 177 | S106: 195 | T106: 20 | U106: 815 | V106: 97 | W106: 195 | X106: 3579983.431 | Y106: 97 | Z106: 20 | AA106: 815 | AB106: 97 | AC106: 195 | AD106: 3579983.431 | AQ106: 0 | CR106: 20 | CS106: 815 | CT106: 97 | CU106: 179 | CV106: 3022684.212 | CW106: 0.047663899 | CX106: 2493714
A107: 00200998 | B107: 0020 | C107: 0998 | D107: 98 | E107: 20 | G107: 998 | I107: 0 | J107: 0 | K107: 0 | L107: =IF(K109>0, K107/K109, 0) -> 0 | N107: =ROUND(M109*L107,0) -> 0 | O107: 0 | P107: =N107-O107 -> 0 | Q107: 0 | R107: 0 | S107: 0 | T107: 20 | U107: 998 | V107: 98 | W107: 0 | X107: 0 | Y107: 98 | Z107: 20 | AA107: 998 | AB107: 98 | AC107: 0 | AD107: 0 | AQ107: 0 | CR107: 20 | CS107: 998 | CT107: 98 | CU107: 0 | CV107: 0 | CW107: 0 | CX107: 0
A108: 00200998 | B108: 0020 | C108: 0998 | D108: 99 | E108: 20 | G108: 998 | I108: 0 | J108: 0 | K108: 0 | L108: =IF(K109>0, K108/K109, 0) -> 0 | N108: =ROUND(M109*L108,0) -> 0 | O108: 0 | P108: =N108-O108 -> 0 | Q108: 0 | R108: 0 | S108: 0 | T108: 20 | U108: 998 | V108: 99 | W108: 0 | X108: 0 | Y108: 99 | Z108: 20 | AA108: 998 | AB108: 99 | AC108: 0 | AD108: 0 | AQ108: 0 | CR108: 20 | CS108: 998 | CT108: 99 | CU108: 0 | CV108: 0 | CW108: 0 | CX108: 0
A109: 00200999 | B109: 0020 | C109: 0999 | D109: 100 | E109: 20 | F109: Barnstable | G109: 999 | H109: Total | I109: 66702016.72 | J109: 1 | K109: =SUM(K105:K108) -> 69353426.57 | L109: =SUM(L105:L108) -> 1 | M109: =VLOOKUP(E109,town351,24) -> 55634192 | N109: =SUM(N105:N108) -> 55634192 | O109: 53862128 | P109: =SUM(P105:P108) -> 1772064 | Q109: 3.289999979 | R109: 5621 | S109: 5600 | T109: 20 | U109: 999 | V109: 100 | W109: 5600 | X109: 69353426.57 | Y109: 100 | Z109: 20 | AA109: 999 | AB109: 100 | AC109: 5600 | AD109: 69353426.57 | AQ109: 0 | CR109: 20 | CS109: 999 | CT109: 100 | CU109: 5659 | CV109: 63416637.65 | CW109: 1 | CX109: 52318726
A110: 00210021 | B110: 0021 | C110: 0021 | D110: 101 | E110: 21 | F110: Barre | G110: 21 | H110: Barre | I110: 0 | J110: 0 | K110: =X110 -> 0 | L110: =IF(K114>0, K110/K114, 0) -> 0 | N110: =ROUND(M114*L110,0) -> 0 | O110: 0 | P110: =N110-O110 -> 0 | Q110: 0 | R110: 0 | S110: 0 | T110: 21 | U110: 21 | V110: 101 | W110: 0 | X110: 0 | Y110: 101 | Z110: 21 | AA110: 21 | AB110: 101 | AC110: 0 | AD110: 0 | AQ110: 0 | CR110: 21 | CS110: 21 | CT110: 101 | CU110: 0 | CV110: 0 | CW110: 0 | CX110: 0
A111: 00210753 | B111: 0021 | C111: 0753 | D111: 102 | E111: 21 | F111: Barre | G111: 753 | H111: Quabbin | I111: 8382080.505 | J111: 0.8900128133 | K111: 8321416.382 | L111: =IF(K114>0, K111/K114, 0) -> 0.8992393185 | N111: =ROUND(M114*L111,0) -> 3314067 | O111: 3263850 | P111: =N111-O111 -> 50217 | Q111: 1.538581736 | R111: 756.7442806 | S111: 734.5938462 | T111: 21 | U111: 753 | V111: 102 | W111: 734.5938462 | X111: 8321416.382 | Y111: 102 | Z111: 21 | AA111: 753 | AB111: 102 | AC111: 734.5938462 | AD111: 8321416.382 | AQ111: 0 | CR111: 21 | CS111: 753 | CT111: 102 | CU111: 790.1778412 | CV111: 8357183.38 | CW111: 0.9212855705 | CX111: 3282113
A112: 00210832 | B112: 0021 | C112: 0832 | D112: 103 | E112: 21 | F112: Barre | G112: 832 | H112: Montachusett | I112: 1035851.889 | J112: 0.1099871867 | K112: 932423.1804 | L112: =IF(K114>0, K112/K114, 0) -> 0.1007606815 | N112: =ROUND(M114*L112,0) -> 371345 | O112: 403344 | P112: =N112-O112 -> -31999 | Q112: -7.933426554 | R112: 61.00000001 | S112: 54 | T112: 21 | U112: 832 | V112: 103 | W112: 54 | X112: 932423.1804 | Y112: 103 | Z112: 21 | AA112: 832 | AB112: 103 | AC112: 54 | AD112: 932423.1804 | AQ112: 0 | CR112: 21 | CS112: 832 | CT112: 103 | CU112: 44.02960968 | CV112: 714035.8459 | CW112: 0.07871442946 | CX112: 280423
A113: 00210998 | B113: 0021 | C113: 0998 | D113: 104 | E113: 21 | G113: 998 | I113: 0 | J113: 0 | K113: 0 | L113: =IF(K114>0, K113/K114, 0) -> 0 | N113: =ROUND(M114*L113,0) -> 0 | O113: 0 | P113: =N113-O113 -> 0 | Q113: 0 | R113: 0 | S113: 0 | T113: 21 | U113: 998 | V113: 104 | W113: 0 | X113: 0 | Y113: 104 | Z113: 21 | AA113: 998 | AB113: 104 | AC113: 0 | AD113: 0 | AQ113: 0 | CR113: 21 | CS113: 998 | CT113: 104 | CU113: 0 | CV113: 0 | CW113: 0 | CX113: 0
A114: 00210999 | B114: 0021 | C114: 0999 | D114: 105 | E114: 21 | F114: Barre | G114: 999 | H114: Total | I114: 9417932.394 | J114: 1 | K114: =SUM(K110:K113) -> 9253839.562 | L114: =SUM(L110:L113) -> 1 | M114: =VLOOKUP(E114,town351,24) -> 3685412 | N114: =SUM(N110:N113) -> 3685412 | O114: 3667194 | P114: =SUM(P110:P113) -> 18218 | Q114: 0.496783099 | R114: 817.7442806 | S114: 788.5938462 | T114: 21 | U114: 999 | V114: 105 | W114: 788.5938462 | X114: 9253839.562 | Y114: 105 | Z114: 21 | AA114: 999 | AB114: 105 | AC114: 788.5938462 | AD114: 9253839.562 | AQ114: 0 | CR114: 21 | CS114: 999 | CT114: 105 | CU114: 834.2074509 | CV114: 9071219.226 | CW114: 1 | CX114: 3562536
A115: 00220022 | B115: 0022 | C115: 0022 | D115: 106 | E115: 22 | F115: Becket | G115: 22 | H115: Becket | I115: 143717.9726 | J115: 0.05563203724 | K115: =X115 -> 188943.82 | L115: =IF(K119>0, K115/K119, 0) -> 0.08011418385 | N115: =ROUND(M119*L115,0) -> 155879 | O115: 108529 | P115: =N115-O115 -> 47350 | Q115: 43.62889182 | R115: 10 | S115: 11 | T115: 22 | U115: 22 | V115: 106 | W115: 11 | X115: 188943.82 | Y115: 106 | Z115: 22 | AA115: 22 | AB115: 106 | AC115: 11 | AD115: 188943.82 | AQ115: 0 | CR115: 22 | CS115: 22 | CT115: 106 | CU115: 13 | CV115: 206187.51 | CW115: 0.08517180085 | CX115: 157270
A116: 00220635 | B116: 0022 | C116: 0635 | D116: 107 | E116: 22 | F116: Becket | G116: 635 | H116: Central Berkshire | I116: 2439649.089 | J116: 0.9443679628 | K116: 2169487.745 | L116: =IF(K119>0, K116/K119, 0) -> 0.9198858161 | N116: =ROUND(M119*L116,0) -> 1789827 | O116: 1842302 | P116: =N116-O116 -> -52475 | Q116: -2.848338655 | R116: 213.5022166 | S116: 187.0465116 | T116: 22 | U116: 635 | V116: 107 | W116: 187.0465116 | X116: 2169487.745 | Y116: 107 | Z116: 22 | AA116: 635 | AB116: 107 | AC116: 187.0465116 | AD116: 2169487.745 | AQ116: 0 | CR116: 22 | CS116: 635 | CT116: 107 | CU116: 205.0704225 | CV116: 2214654.928 | CW116: 0.9148281992 | CX116: 1689234
A117: 00220998 | B117: 0022 | C117: 0998 | D117: 108 | E117: 22 | G117: 998 | I117: 0 | J117: 0 | K117: 0 | L117: =IF(K119>0, K117/K119, 0) -> 0 | N117: =ROUND(M119*L117,0) -> 0 | O117: 0 | P117: =N117-O117 -> 0 | Q117: 0 | R117: 0 | S117: 0 | T117: 22 | U117: 998 | V117: 108 | W117: 0 | X117: 0 | Y117: 108 | Z117: 22 | AA117: 998 | AB117: 108 | AC117: 0 | AD117: 0 | AQ117: 0 | CR117: 22 | CS117: 998 | CT117: 108 | CU117: 0 | CV117: 0 | CW117: 0 | CX117: 0
A118: 00220998 | B118: 0022 | C118: 0998 | D118: 109 | E118: 22 | G118: 998 | I118: 0 | J118: 0 | K118: 0 | L118: =IF(K119>0, K118/K119, 0) -> 0 | N118: =ROUND(M119*L118,0) -> 0 | O118: 0 | P118: =N118-O118 -> 0 | Q118: 0 | R118: 0 | S118: 0 | T118: 22 | U118: 998 | V118: 109 | W118: 0 | X118: 0 | Y118: 109 | Z118: 22 | AA118: 998 | AB118: 109 | AC118: 0 | AD118: 0 | AQ118: 0 | CR118: 22 | CS118: 998 | CT118: 109 | CU118: 0 | CV118: 0 | CW118: 0 | CX118: 0
A119: 00220999 | B119: 0022 | C119: 0999 | D119: 110 | E119: 22 | F119: Becket | G119: 999 | H119: Total | I119: 2583367.061 | J119: 1 | K119: =SUM(K115:K118) -> 2358431.565 | L119: =SUM(L115:L118) -> 1 | M119: =VLOOKUP(E119,town351,24) -> 1945706 | N119: =SUM(N115:N118) -> 1945706 | O119: 1950831 | P119: =SUM(P115:P118) -> -5125 | Q119: -0.2627085586 | R119: 223.5022166 | S119: 198.0465116 | T119: 22 | U119: 999 | V119: 110 | W119: 198.0465116 | X119: 2358431.565 | Y119: 110 | Z119: 22 | AA119: 999 | AB119: 110 | AC119: 198.0465116 | AD119: 2358431.565 | AQ119: 0 | CR119: 22 | CS119: 999 | CT119: 110 | CU119: 218.0704225 | CV119: 2420842.438 | CW119: 1 | CX119: 1846504
A120: 00230023 | B120: 0023 | C120: 0023 | D120: 111 | E120: 23 | F120: Bedford | G120: 23 | H120: Bedford | I120: 29672258.16 | J120: 0.985602029 | K120: =X120 -> 30502691.57 | L120: =IF(K124>0, K120/K124, 0) -> 0.9815981544 | N120: =ROUND(M124*L120,0) -> 25097492 | O120: 24098559 | P120: =N120-O120 -> 998933 | Q120: 4.145198059 | R120: 2693 | S120: 2707 | T120: 23 | U120: 23 | V120: 111 | W120: 2707 | X120: 30502691.57 | Y120: 111 | Z120: 23 | AA120: 23 | AB120: 111 | AC120: 2707 | AD120: 30502691.57 | AQ120: 0 | CR120: 23 | CS120: 23 | CT120: 111 | CU120: 2661 | CV120: 27912085.89 | CW120: 0.9892623389 | CX120: 23027471
A121: 00230871 | B121: 0023 | C121: 0871 | D121: 112 | E121: 23 | F121: Bedford | G121: 871 | H121: Shawsheen Valley | I121: 433461.2744 | J121: 0.01439797097 | K121: 571828.522 | L121: =IF(K124>0, K121/K124, 0) -> 0.01840184564 | N121: =ROUND(M124*L121,0) -> 470498 | O121: 352039 | P121: =N121-O121 -> 118459 | Q121: 33.6493968 | R121: 26 | S121: 34 | T121: 23 | U121: 871 | V121: 112 | W121: 34 | X121: 571828.522 | Y121: 112 | Z121: 23 | AA121: 871 | AB121: 112 | AC121: 34 | AD121: 571828.522 | AQ121: 0 | CR121: 23 | CS121: 871 | CT121: 112 | CU121: 19 | CV121: 302963.6389 | CW121: 0.01073766107 | CX121: 249945
A122: 00230998 | B122: 0023 | C122: 0998 | D122: 113 | E122: 23 | G122: 998 | I122: 0 | J122: 0 | K122: 0 | L122: =IF(K124>0, K122/K124, 0) -> 0 | N122: =ROUND(M124*L122,0) -> 0 | O122: 0 | P122: =N122-O122 -> 0 | Q122: 0 | R122: 0 | S122: 0 | T122: 23 | U122: 998 | V122: 113 | W122: 0 | X122: 0 | Y122: 113 | Z122: 23 | AA122: 998 | AB122: 113 | AC122: 0 | AD122: 0 | AQ122: 0 | CR122: 23 | CS122: 998 | CT122: 113 | CU122: 0 | CV122: 0 | CW122: 0 | CX122: 0
A123: 00230998 | B123: 0023 | C123: 0998 | D123: 114 | E123: 23 | G123: 998 | I123: 0 | J123: 0 | K123: 0 | L123: =IF(K124>0, K123/K124, 0) -> 0 | N123: =ROUND(M124*L123,0) -> 0 | O123: 0 | P123: =N123-O123 -> 0 | Q123: 0 | R123: 0 | S123: 0 | T123: 23 | U123: 998 | V123: 114 | W123: 0 | X123: 0 | Y123: 114 | Z123: 23 | AA123: 998 | AB123: 114 | AC123: 0 | AD123: 0 | AQ123: 0 | CR123: 23 | CS123: 998 | CT123: 114 | CU123: 0 | CV123: 0 | CW123: 0 | CX123: 0
A124: 00230999 | B124: 0023 | C124: 0999 | D124: 115 | E124: 23 | F124: Bedford | G124: 999 | H124: Total | I124: 30105719.43 | J124: 1 | K124: =SUM(K120:K123) -> 31074520.1 | L124: =SUM(L120:L123) -> 1 | M124: =VLOOKUP(E124,town351,24) -> 25567990 | N124: =SUM(N120:N123) -> 25567990 | O124: 24450598 | P124: =SUM(P120:P123) -> 1117392 | Q124: 4.569998656 | R124: 2719 | S124: 2741 | T124: 23 | U124: 999 | V124: 115 | W124: 2741 | X124: 31074520.1 | Y124: 115 | Z124: 23 | AA124: 999 | AB124: 115 | AC124: 2741 | AD124: 31074520.1 | AQ124: 0 | CR124: 23 | CS124: 999 | CT124: 115 | CU124: 2680 | CV124: 28215049.53 | CW124: 1 | CX124: 23277416
A125: 00240024 | B125: 0024 | C125: 0024 | D125: 116 | E125: 24 | F125: Belchertown | G125: 24 | H125: Belchertown | I125: 24514320.31 | J125: 0.9293079522 | K125: =X125 -> 24726417.46 | L125: =IF(K129>0, K125/K129, 0) -> 0.9419551847 | N125: =ROUND(M129*L125,0) -> 12418125 | O125: 12048062 | P125: =N125-O125 -> 370063 | Q125: 3.071556239 | R125: 2310 | S125: 2278 | T125: 24 | U125: 24 | V125: 116 | W125: 2278 | X125: 24726417.46 | Y125: 116 | Z125: 24 | AA125: 24 | AB125: 116 | AC125: 2278 | AD125: 24726417.46 | AQ125: 0 | CR125: 24 | CS125: 24 | CT125: 116 | CU125: 2344 | CV125: 23863029.98 | CW125: 0.9302301329 | CX125: 11563925
A126: 00240860 | B126: 0024 | C126: 0860 | D126: 117 | E126: 24 | F126: Belchertown | G126: 860 | H126: Pathfinder | I126: 1864793.58 | J126: 0.07069204782 | K126: 1523682.185 | L126: =IF(K129>0, K126/K129, 0) -> 0.05804481529 | N126: =ROUND(M129*L126,0) -> 765225 | O126: 916491 | P126: =N126-O126 -> -151266 | Q126: -16.5049084 | R126: 105 | S126: 84 | T126: 24 | U126: 860 | V126: 117 | W126: 84 | X126: 1523682.185 | Y126: 117 | Z126: 24 | AA126: 860 | AB126: 117 | AC126: 84 | AD126: 1523682.185 | AQ126: 0 | CR126: 24 | CS126: 860 | CT126: 117 | CU126: 106 | CV126: 1789794.128 | CW126: 0.06976986706 | CX126: 867327
A127: 00240998 | B127: 0024 | C127: 0998 | D127: 118 | E127: 24 | G127: 998 | I127: 0 | J127: 0 | K127: 0 | L127: =IF(K129>0, K127/K129, 0) -> 0 | N127: =ROUND(M129*L127,0) -> 0 | O127: 0 | P127: =N127-O127 -> 0 | Q127: 0 | R127: 0 | S127: 0 | T127: 24 | U127: 998 | V127: 118 | W127: 0 | X127: 0 | Y127: 118 | Z127: 24 | AA127: 998 | AB127: 118 | AC127: 0 | AD127: 0 | AQ127: 0 | CR127: 24 | CS127: 998 | CT127: 118 | CU127: 0 | CV127: 0 | CW127: 0 | CX127: 0
A128: 00240998 | B128: 0024 | C128: 0998 | D128: 119 | E128: 24 | G128: 998 | I128: 0 | J128: 0 | K128: 0 | L128: =IF(K129>0, K128/K129, 0) -> 0 | N128: =ROUND(M129*L128,0) -> 0 | O128: 0 | P128: =N128-O128 -> 0 | Q128: 0 | R128: 0 | S128: 0 | T128: 24 | U128: 998 | V128: 119 | W128: 0 | X128: 0 | Y128: 119 | Z128: 24 | AA128: 998 | AB128: 119 | AC128: 0 | AD128: 0 | AQ128: 0 | CR128: 24 | CS128: 998 | CT128: 119 | CU128: 0 | CV128: 0 | CW128: 0 | CX128: 0
A129: 00240999 | B129: 0024 | C129: 0999 | D129: 120 | E129: 24 | F129: Belchertown | G129: 999 | H129: Total | I129: 26379113.89 | J129: 1 | K129: =SUM(K125:K128) -> 26250099.65 | L129: =SUM(L125:L128) -> 1 | M129: =VLOOKUP(E129,town351,24) -> 13183350 | N129: =SUM(N125:N128) -> 13183350 | O129: 12964553 | P129: =SUM(P125:P128) -> 218797 | Q129: 1.687655564 | R129: 2415 | S129: 2362 | T129: 24 | U129: 999 | V129: 120 | W129: 2362 | X129: 26250099.65 | Y129: 120 | Z129: 24 | AA129: 999 | AB129: 120 | AC129: 2362 | AD129: 26250099.65 | AQ129: 0 | CR129: 24 | CS129: 999 | CT129: 120 | CU129: 2450 | CV129: 25652824.11 | CW129: 1 | CX129: 12431252
A130: 00250025 | B130: 0025 | C130: 0025 | D130: 121 | E130: 25 | F130: Bellingham | G130: 25 | H130: Bellingham | I130: 24541929.43 | J130: 0.9444573063 | K130: =X130 -> 24676853.43 | L130: =IF(K134>0, K130/K134, 0) -> 0.9395915074 | N130: =ROUND(M134*L130,0) -> 16772086 | O130: 16455942 | P130: =N130-O130 -> 316144 | Q130: 1.921154073 | R130: 2286 | S130: 2247 | T130: 25 | U130: 25 | V130: 121 | W130: 2247 | X130: 24676853.43 | Y130: 121 | Z130: 25 | AA130: 25 | AB130: 121 | AC130: 2247 | AD130: 24676853.43 | AQ130: 0 | CR130: 25 | CS130: 25 | CT130: 121 | CU130: 2330 | CV130: 23842628.52 | CW130: 0.9440503857 | CX130: 15794941
A131: 00250805 | B131: 0025 | C131: 0805 | D131: 122 | E131: 25 | F131: Bellingham | G131: 805 | H131: Blackstone Valley | I131: 1067715.698 | J131: 0.04108934856 | K131: 1119516.477 | L131: =IF(K134>0, K131/K134, 0) -> 0.0426265114 | N131: =ROUND(M134*L131,0) -> 760900 | O131: 715929 | P131: =N131-O131 -> 44971 | Q131: 6.281488807 | R131: 66 | S131: 68 | T131: 25 | U131: 805 | V131: 122 | W131: 68 | X131: 1119516.477 | Y131: 122 | Z131: 25 | AA131: 805 | AB131: 122 | AC131: 68 | AD131: 1119516.477 | AQ131: 0 | CR131: 25 | CS131: 805 | CT131: 122 | CU131: 71 | CV131: 1105456.372 | CW131: 0.04377061504 | CX131: 732328
A132: 00250915 | B132: 0025 | C132: 0915 | D132: 123 | E132: 25 | F132: Bellingham | G132: 915 | H132: Norfolk County | I132: 375573.3296 | J132: 0.01445334509 | K132: 467015.0177 | L132: =IF(K134>0, K132/K134, 0) -> 0.01778198123 | N132: =ROUND(M134*L132,0) -> 317416 | O132: 251831 | P132: =N132-O132 -> 65585 | Q132: 26.04325917 | R132: 21 | S132: 26 | T132: 25 | U132: 915 | V132: 123 | W132: 26 | X132: 467015.0177 | Y132: 123 | Z132: 25 | AA132: 915 | AB132: 123 | AC132: 26 | AD132: 467015.0177 | AQ132: 0 | CR132: 25 | CS132: 915 | CT132: 123 | CU132: 18 | CV132: 307588.8309 | CW132: 0.01217899923 | CX132: 203767
A133: 00250998 | B133: 0025 | C133: 0998 | D133: 124 | E133: 25 | G133: 998 | I133: 0 | J133: 0 | K133: 0 | L133: =IF(K134>0, K133/K134, 0) -> 0 | N133: =ROUND(M134*L133,0) -> 0 | O133: 0 | P133: =N133-O133 -> 0 | Q133: 0 | R133: 0 | S133: 0 | T133: 25 | U133: 998 | V133: 124 | W133: 0 | X133: 0 | Y133: 124 | Z133: 25 | AA133: 998 | AB133: 124 | AC133: 0 | AD133: 0 | AQ133: 0 | CR133: 25 | CS133: 998 | CT133: 124 | CU133: 0 | CV133: 0 | CW133: 0 | CX133: 0
A134: 00250999 | B134: 0025 | C134: 0999 | D134: 125 | E134: 25 | F134: Bellingham | G134: 999 | H134: Total | I134: 25985218.45 | J134: 1 | K134: =SUM(K130:K133) -> 26263384.92 | L134: =SUM(L130:L133) -> 1 | M134: =VLOOKUP(E134,town351,24) -> 17850402 | N134: =SUM(N130:N133) -> 17850402 | O134: 17423702 | P134: =SUM(P130:P133) -> 426700 | Q134: 2.448962913 | R134: 2373 | S134: 2341 | T134: 25 | U134: 999 | V134: 125 | W134: 2341 | X134: 26263384.92 | Y134: 125 | Z134: 25 | AA134: 999 | AB134: 125 | AC134: 2341 | AD134: 26263384.92 | AQ134: 0 | CR134: 25 | CS134: 999 | CT134: 125 | CU134: 2419 | CV134: 25255673.72 | CW134: 1 | CX134: 16731036
A135: 00260026 | B135: 0026 | C135: 0026 | D135: 126 | E135: 26 | F135: Belmont | G135: 26 | H135: Belmont | I135: 47857221.47 | J135: 0.9893518993 | K135: =X135 -> 50418107.66 | L135: =IF(K139>0, K135/K139, 0) -> 1 | N135: =ROUND(M139*L135,0) -> 40662179 | O135: 38364680 | P135: =N135-O135 -> 2297499 | Q135: 5.988578557 | R135: 4517 | S135: 4638 | T135: 26 | U135: 26 | V135: 126 | W135: 4638 | X135: 50418107.66 | Y135: 126 | Z135: 26 | AA135: 26 | AB135: 126 | AC135: 4638 | AD135: 50418107.66 | AQ135: 0 | CR135: 26 | CS135: 26 | CT135: 126 | CU135: 4488 | CV135: 45512607.46 | CW135: 0.9913942987 | CX135: 36735671
A136: 00260830 | B136: 0026 | C136: 0830 | D136: 127 | E136: 26 | G136: 998 | I136: 515073.0637 | J136: 0.01064810071 | K136: 0 | L136: =IF(K139>0, K136/K139, 0) -> 0 | N136: =ROUND(M139*L136,0) -> 0 | O136: 412908 | P136: =N136-O136 -> -412908 | Q136: -100 | R136: 28 | S136: 0 | T136: 26 | U136: 830 | V136: 127 | W136: 0 | X136: 0 | Y136: 127 | Z136: 26 | AA136: 830 | AB136: 127 | AC136: 0 | AD136: 0 | AQ136: 0 | CR136: 26 | CS136: 830 | CT136: 127 | CU136: 22.06451613 | CV136: 395067.7402 | CW136: 0.008605701301 | CX136: 318880
A137: 00260998 | B137: 0026 | C137: 0998 | D137: 128 | E137: 26 | G137: 998 | I137: 0 | J137: 0 | K137: 0 | L137: =IF(K139>0, K137/K139, 0) -> 0 | N137: =ROUND(M139*L137,0) -> 0 | O137: 0 | P137: =N137-O137 -> 0 | Q137: 0 | R137: 0 | S137: 0 | T137: 26 | U137: 998 | V137: 128 | W137: 0 | X137: 0 | Y137: 128 | Z137: 26 | AA137: 998 | AB137: 128 | AC137: 0 | AD137: 0 | AQ137: 0 | CR137: 26 | CS137: 998 | CT137: 128 | CU137: 0 | CV137: 0 | CW137: 0 | CX137: 0
A138: =B138&C138 -> 00260998 | B138: 0026 | C138: 0998 | D138: 129 | E138: 26 | G138: 998 | I138: 0 | J138: 0 | K138: 0 | L138: =IF(K139>0, K138/K139, 0) -> 0 | N138: =ROUND(M139*L138,0) -> 0 | O138: 0 | P138: =N138-O138 -> 0 | Q138: 0 | R138: 0 | S138: 0 | T138: =VLOOKUP($D138, foundoptions, VLOOKUP($T$6, foundoptcell, 2, FALSE), FALSE) -> 26 | U138: =VLOOKUP($D138, foundoptions, VLOOKUP($T$6, foundoptcell, 2, FALSE)+1, FALSE) -> 998 | V138: =VLOOKUP($D138, foundoptions, VLOOKUP($T$6, foundoptcell, 2, FALSE)+2, FALSE) -> 129 | W138: =VLOOKUP($D138, foundoptions, VLOOKUP($T$6, foundoptcell, 2, FALSE)+3, FALSE) -> 0 | X138: =VLOOKUP($D138, foundoptions, VLOOKUP($T$6, foundoptcell, 2, FALSE)+4, FALSE) -> 0 | Y138: 129 | Z138: 26 | AA138: 998 | AB138: 129 | AC138: 0 | AD138: 0 | AQ138: 0 | CR138: 26 | CS138: 998 | CT138: 129 | CU138: 0 | CV138: 0 | CW138: 0 | CX138: 0
A139: 00260999 | B139: 0026 | C139: 0999 | D139: 130 | E139: 26 | F139: Belmont | G139: 999 | H139: Total | I139: 48372294.53 | J139: 1 | K139: =SUM(K135:K138) -> 50418107.66 | L139: =SUM(L135:L138) -> 1 | M139: =VLOOKUP(E139,town351,24) -> 40662179 | N139: =SUM(N135:N138) -> 40662179 | O139: 38777588 | P139: =SUM(P135:P138) -> 1884591 | Q139: 4.860000576 | R139: 4545 | S139: =W139 -> 4638 | T139: 26 | U139: 999 | V139: 130 | W139: 4638 | X139: 50418107.66 | Y139: =D139 -> 130 | Z139: 26 | AA139: 999 | AB139: 130 | AC139: 4638 | AD139: 50418107.66 | AQ139: =AK139-AE139 -> 0 | CR139: 26 | CS139: 999 | CT139: 130 | CU139: 4510.064516 | CV139: 45907675.2 | CW139: 1 | CX139: 37054551
A140: 00270027 | B140: 0027 | C140: 0027 | D140: 131 | E140: 27 | F140: Berkley | G140: 27 | H140: Berkley | I140: 7578024.3 | J140: 0.6105605747 | K140: =X140 -> 8014902.18 | L140: =IF(K144>0, K140/K144, 0) -> 0.6150031131 | N140: =ROUND(M144*L140,0) -> 4170576 | O140: 3944412 | P140: =N140-O140 -> 226164 | Q140: 5.733782374 | R140: 742 | S140: 764 | T140: 27 | U140: 27 | V140: 131 | W140: 764 | X140: 8014902.18 | Y140: 131 | Z140: 27 | AA140: 27 | AB140: 131 | AC140: 764 | AD140: 8014902.18 | AQ140: 0 | CR140: 27 | CS140: 27 | CT140: 131 | CU140: 774 | CV140: 7541762.29 | CW140: 0.6173477677 | CX140: 3837447
A141: 00270763 | B141: 0027 | C141: 0763 | D141: 132 | E141: 27 | F141: Berkley | G141: 763 | H141: Somerset Berkley | I141: 3153707.445 | J141: 0.254093858 | K141: 3435010.976 | L141: =IF(K144>0, K141/K144, 0) -> 0.2635768218 | N141: =ROUND(M144*L141,0) -> 1787417 | O141: 1641526 | P141: =N141-O141 -> 145891 | Q141: 8.887522951 | R141: 270 | S141: 286 | T141: 27 | U141: 763 | V141: 132 | W141: 286 | X141: 3435010.976 | Y141: 132 | Z141: 27 | AA141: 763 | AB141: 132 | AC141: 286 | AD141: 3435010.976 | AQ141: 0 | CR141: 27 | CS141: 763 | CT141: 132 | CU141: 265 | CV141: 2968320.139 | CW141: 0.2429784633 | CX141: 1510359
A142: 00270810 | B142: 0027 | C142: 0810 | D142: 133 | E142: 27 | F142: Berkley | G142: 810 | H142: Bristol Plymouth | I142: 1508256.138 | J142: 0.1215200292 | K142: 1390464.314 | L142: =IF(K144>0, K142/K144, 0) -> 0.106693739 | N142: =ROUND(M144*L142,0) -> 723532 | O142: 785057 | P142: =N142-O142 -> -61525 | Q142: -7.837010561 | R142: 89.19970082 | S142: 80.29917727 | T142: 27 | U142: 810 | V142: 133 | W142: 80.29917727 | X142: 1390464.314 | Y142: 133 | Z142: 27 | AA142: 810 | AB142: 133 | AC142: 80.29917727 | AD142: 1390464.314 | AQ142: 0 | CR142: 27 | CS142: 810 | CT142: 133 | CU142: 93.21104387 | CV142: 1512814.346 | CW142: 0.1238347913 | CX142: 769760
A143: 00270910 | B143: 0027 | C143: 0910 | D143: 134 | E143: 27 | F143: Berkley | G143: 910 | H143: Bristol County | I143: 171596.837 | J143: 0.01382553806 | K143: 191917.8311 | L143: =IF(K144>0, K143/K144, 0) -> 0.01472632615 | N143: =ROUND(M144*L143,0) -> 99865 | O143: 89317 | P143: =N143-O143 -> 10548 | Q143: 11.80962191 | R143: 10 | S143: 11 | T143: 27 | U143: 910 | V143: 134 | W143: 11 | X143: 191917.8311 | Y143: 134 | Z143: 27 | AA143: 910 | AB143: 134 | AC143: 11 | AD143: 191917.8311 | AQ143: 0 | CR143: 27 | CS143: 910 | CT143: 134 | CU143: 12 | CV143: 193495.1602 | CW143: 0.01583897776 | CX143: 98455
A144: 00270999 | B144: 0027 | C144: 0999 | D144: 135 | E144: 27 | F144: Berkley | G144: 999 | H144: Total | I144: 12411584.72 | J144: 1 | K144: =SUM(K140:K143) -> 13032295.3 | L144: =SUM(L140:L143) -> 1 | M144: =VLOOKUP(E144,town351,24) -> 6781390 | N144: =SUM(N140:N143) -> 6781390 | O144: 6460312 | P144: =SUM(P140:P143) -> 321078 | Q144: =IF(O144>0,P144*100/O144,IF(P144>0,100,0)) -> 4.97000764 | R144: 1111.199701 | S144: 1141.299177 | T144: 27 | U144: 999 | V144: 135 | W144: 1141.299177 | X144: 13032295.3 | Y144: 135 | Z144: 27 | AA144: 999 | AB144: 135 | AC144: 1141.299177 | AD144: 13032295.3 | AQ144: 0 | CR144: 27 | CS144: 999 | CT144: 135 | CU144: 1144.211044 | CV144: 12216391.94 | CW144: 1 | CX144: 6216021
A145: 00280028 | B145: 0028 | C145: 0028 | D145: 136 | E145: 28 | F145: Berlin | G145: 28 | H145: Berlin | I145: 0 | J145: 0 | K145: =X145 -> 0 | L145: =IF(K149>0, K145/K149, 0) -> 0 | N145: =ROUND(M149*L145,0) -> 0 | O145: 0 | P145: =N145-O145 -> 0 | Q145: 0 | R145: 0 | S145: 0 | T145: 28 | U145: 28 | V145: 136 | W145: 0 | X145: 0 | Y145: 136 | Z145: 28 | AA145: 28 | AB145: 136 | AC145: 0 | AD145: 0 | AQ145: 0 | CR145: 28 | CS145: 28 | CT145: 136 | CU145: 159 | CV145: 1639651.663 | CW145: 0.409965727 | CX145: 1352713
A146: 00280620 | B146: 0028 | C146: 0620 | D146: 137 | E146: 28 | F146: Berlin | G146: 620 | H146: Berlin Boylston | I146: 3549939.236 | J146: 0.8983242928 | K146: 3478424.116 | L146: =IF(K149>0, K146/K149, 0) -> 0.8657588246 | N146: =ROUND(M149*L146,0) -> 2869700 | O146: 2928700 | P146: =N146-O146 -> -59000 | Q146: -2.014545703 | R146: 341.1392931 | S146: 326.9351464 | T146: 28 | U146: 620 | V146: 137 | W146: 326.9351464 | X146: 3478424.116 | Y146: 137 | Z146: 28 | AA146: 620 | AB146: 137 | AC146: 326.9351464 | AD146: 3478424.116 | AQ146: 0 | CR146: 28 | CS146: 620 | CT146: 137 | CU146: 189.6860254 | CV146: 1939567.246 | CW146: 0.4849542828 | CX146: 1600143
A147: 00280801 | B147: 0028 | C147: 0801 | D147: 138 | E147: 28 | F147: Berlin | G147: 801 | H147: Assabet Valley | I147: 401795.4154 | J147: 0.1016757072 | K147: 539350.8312 | L147: =IF(K149>0, K147/K149, 0) -> 0.1342411754 | N147: =ROUND(M149*L147,0) -> 444964 | O147: 331481 | P147: =N147-O147 -> 113483 | Q147: 34.2351447 | R147: 22 | S147: 29 | T147: 28 | U147: 801 | V147: 138 | W147: 29 | X147: 539350.8312 | Y147: 138 | Z147: 28 | AA147: 801 | AB147: 138 | AC147: 29 | AD147: 539350.8312 | AQ147: 0 | CR147: 28 | CS147: 801 | CT147: 138 | CU147: 24 | CV147: 420265.8159 | CW147: 0.1050799902 | CX147: 346719
A148: 00280998 | B148: 0028 | C148: 0998 | D148: 139 | E148: 28 | G148: 998 | I148: 0 | J148: 0 | K148: 0 | L148: =IF(K149>0, K148/K149, 0) -> 0 | N148: =ROUND(M149*L148,0) -> 0 | O148: 0 | P148: =N148-O148 -> 0 | Q148: 0 | R148: 0 | S148: 0 | T148: 28 | U148: 998 | V148: 139 | W148: 0 | X148: 0 | Y148: 139 | Z148: 28 | AA148: 998 | AB148: 139 | AC148: 0 | AD148: 0 | AQ148: 0 | CR148: 28 | CS148: 998 | CT148: 139 | CU148: 0 | CV148: 0 | CW148: 0 | CX148: 0
A149: 00280999 | B149: 0028 | C149: 0999 | D149: 140 | E149: 28 | F149: Berlin | G149: 999 | H149: Total | I149: 3951734.651 | J149: 1 | K149: =SUM(K145:K148) -> 4017774.947 | L149: =SUM(L145:L148) -> 1 | M149: =VLOOKUP(E149,town351,24) -> 3314664 | N149: =SUM(N145:N148) -> 3314664 | O149: 3260181 | P149: =SUM(P145:P148) -> 54483 | Q149: 1.671164883 | R149: 363.1392931 | S149: 355.9351464 | T149: 28 | U149: 999 | V149: 140 | W149: 355.9351464 | X149: 4017774.947 | Y149: 140 | Z149: 28 | AA149: 999 | AB149: 140 | AC149: 355.9351464 | AD149: 4017774.947 | AQ149: 0 | CR149: 28 | CS149: 999 | CT149: 140 | CU149: 372.6860254 | CV149: 3999484.725 | CW149: 1 | CX149: 3299575
A150: 00290029 | B150: 0029 | C150: 0029 | D150: 141 | E150: 29 | F150: Bernardston | G150: 29 | H150: Bernardston | I150: 0 | J150: 0 | K150: =X150 -> 0 | L150: =IF(K154>0, K150/K154, 0) -> 0 | N150: =ROUND(M154*L150,0) -> 0 | O150: 0 | P150: =N150-O150 -> 0 | Q150: 0 | R150: 0 | S150: 0 | T150: 29 | U150: 29 | V150: 141 | W150: 0 | X150: 0 | Y150: 141 | Z150: 29 | AA150: 29 | AB150: 141 | AC150: 0 | AD150: 0 | AQ150: 0 | CR150: 29 | CS150: 29 | CT150: 141 | CU150: 0 | CV150: 0 | CW150: 0 | CX150: 0
A151: 00290750 | B151: 0029 | C151: 0750 | D151: 142 | E151: 29 | F151: Bernardston | G151: 750 | H151: Pioneer | I151: 2585034.282 | J151: 0.8344133911 | K151: 2656656.363 | L151: =IF(K154>0, K151/K154, 0) -> 0.8396139443 | N151: =ROUND(M154*L151,0) -> 1426701 | O151: 1380201 | P151: =N151-O151 -> 46500 | Q151: 3.369074504 | R151: 236.223176 | S151: 235.8038633 | T151: 29 | U151: 750 | V151: 142 | W151: 235.8038633 | X151: 2656656.363 | Y151: 142 | Z151: 29 | AA151: 750 | AB151: 142 | AC151: 235.8038633 | AD151: 2656656.363 | AQ151: 0 | CR151: 29 | CS151: 750 | CT151: 142 | CU151: 239.6345609 | CV151: 2510445.984 | CW151: 0.8462046523 | CX151: 1412356
A152: 00290818 | B152: 0029 | C152: 0818 | D152: 143 | E152: 29 | F152: Bernardston | G152: 818 | H152: Franklin County | I152: 512991.6001 | J152: 0.1655866089 | K152: 507483.9909 | L152: =IF(K154>0, K152/K154, 0) -> 0.1603860557 | N152: =ROUND(M154*L152,0) -> 272533 | O152: 273896 | P152: =N152-O152 -> -1363 | Q152: -0.4976341385 | R152: 29 | S152: 28 | T152: 29 | U152: 818 | V152: 143 | W152: 28 | X152: 507483.9909 | Y152: 143 | Z152: 29 | AA152: 818 | AB152: 143 | AC152: 28 | AD152: 507483.9909 | AQ152: 0 | CR152: 29 | CS152: 818 | CT152: 143 | CU152: 27 | CV152: 456266.592 | CW152: 0.1537953477 | CX152: 256692
A153: 00290998 | B153: 0029 | C153: 0998 | D153: 144 | E153: 29 | G153: 998 | I153: 0 | J153: 0 | K153: 0 | L153: =IF(K154>0, K153/K154, 0) -> 0 | N153: =ROUND(M154*L153,0) -> 0 | O153: 0 | P153: =N153-O153 -> 0 | Q153: 0 | R153: 0 | S153: 0 | T153: 29 | U153: 998 | V153: 144 | W153: 0 | X153: 0 | Y153: 144 | Z153: 29 | AA153: 998 | AB153: 144 | AC153: 0 | AD153: 0 | AQ153: 0 | CR153: 29 | CS153: 998 | CT153: 144 | CU153: 0 | CV153: 0 | CW153: 0 | CX153: 0
A154: 00290999 | B154: 0029 | C154: 0999 | D154: 145 | E154: 29 | F154: Bernardston | G154: 999 | H154: Total | I154: 3098025.882 | J154: 1 | K154: =SUM(K150:K153) -> 3164140.354 | L154: =SUM(L150:L153) -> 1 | M154: =VLOOKUP(E154,town351,24) -> 1699234 | N154: =SUM(N150:N153) -> 1699234 | O154: 1654097 | P154: =SUM(P150:P153) -> 45137 | Q154: 2.728800064 | R154: 265.223176 | S154: 263.8038633 | T154: 29 | U154: 999 | V154: 145 | W154: 263.8038633 | X154: 3164140.354 | Y154: 145 | Z154: 29 | AA154: 999 | AB154: 145 | AC154: 263.8038633 | AD154: 3164140.354 | AQ154: 0 | CR154: 29 | CS154: 999 | CT154: 145 | CU154: 266.6345609 | CV154: 2966712.576 | CW154: 1 | CX154: 1669048
A155: 00300030 | B155: 0030 | C155: 0030 | D155: 146 | E155: 30 | F155: Beverly | G155: 30 | H155: Beverly | I155: 49446399.06 | J155: 0.9619007599 | K155: =X155 -> 51866271.12 | L155: =IF(K159>0, K155/K159, 0) -> 0.9616445719 | N155: =ROUND(M159*L155,0) -> 41749093 | O155: 40188832 | P155: =N155-O155 -> 1560261 | Q155: 3.882324821 | R155: 4458 | S155: 4570 | T155: 30 | U155: 30 | V155: 146 | W155: 4570 | X155: 51866271.12 | Y155: 146 | Z155: 30 | AA155: 30 | AB155: 146 | AC155: 4570 | AD155: 51866271.12 | AQ155: 0 | CR155: 30 | CS155: 30 | CT155: 146 | CU155: 4398 | CV155: 46490353.89 | CW155: 0.9572881994 | CX155: 38354542
A156: 00300817 | B156: 0030 | C156: 0817 | D156: 147 | E156: 30 | F156: Beverly | G156: 817 | H156: Essex North Shore | I156: 1958487.102 | J156: 0.03809924013 | K156: 2068698.866 | L156: =IF(K159>0, K156/K159, 0) -> 0.03835542814 | N156: =ROUND(M159*L156,0) -> 1665173 | O156: 1591811 | P156: =N156-O156 -> 73362 | Q156: 4.608712969 | R156: 117 | S156: 121 | T156: 30 | U156: 817 | V156: 147 | W156: 121 | X156: 2068698.866 | Y156: 147 | Z156: 30 | AA156: 817 | AB156: 147 | AC156: 121 | AD156: 2068698.866 | AQ156: 0 | CR156: 30 | CS156: 817 | CT156: 147 | CU156: 128 | CV156: 2074283.092 | CW156: 0.04271180062 | CX156: 1711284
A157: 00300998 | B157: 0030 | C157: 0998 | D157: 148 | E157: 30 | G157: 998 | I157: 0 | J157: 0 | K157: 0 | L157: =IF(K159>0, K157/K159, 0) -> 0 | N157: =ROUND(M159*L157,0) -> 0 | O157: 0 | P157: =N157-O157 -> 0 | Q157: 0 | R157: 0 | S157: 0 | T157: 30 | U157: 998 | V157: 148 | W157: 0 | X157: 0 | Y157: 148 | Z157: 30 | AA157: 998 | AB157: 148 | AC157: 0 | AD157: 0 | AQ157: 0 | CR157: 30 | CS157: 998 | CT157: 148 | CU157: 0 | CV157: 0 | CW157: 0 | CX157: 0
A158: 00300998 | B158: 0030 | C158: 0998 | D158: 149 | E158: 30 | G158: 998 | I158: 0 | J158: 0 | K158: 0 | L158: =IF(K159>0, K158/K159, 0) -> 0 | N158: =ROUND(M159*L158,0) -> 0 | O158: 0 | P158: =N158-O158 -> 0 | Q158: 0 | R158: 0 | S158: 0 | T158: 30 | U158: 998 | V158: 149 | W158: 0 | X158: 0 | Y158: 149 | Z158: 30 | AA158: 998 | AB158: 149 | AC158: 0 | AD158: 0 | AQ158: 0 | CR158: 30 | CS158: 998 | CT158: 149 | CU158: 0 | CV158: 0 | CW158: 0 | CX158: 0
A159: 00300999 | B159: 0030 | C159: 0999 | D159: 150 | E159: 30 | F159: Beverly | G159: 999 | H159: Total | I159: 51404886.16 | J159: 1 | K159: =SUM(K155:K158) -> 53934969.99 | L159: =SUM(L155:L158) -> 1 | M159: =VLOOKUP(E159,town351,24) -> 43414266 | N159: =SUM(N155:N158) -> 43414266 | O159: 41780643 | P159: =SUM(P155:P158) -> 1633623 | Q159: 3.909999662 | R159: 4575 | S159: 4691 | T159: 30 | U159: 999 | V159: 150 | W159: 4691 | X159: 53934969.99 | Y159: 150 | Z159: 30 | AA159: 999 | AB159: 150 | AC159: 4691 | AD159: 53934969.99 | AQ159: 0 | CR159: 30 | CS159: 999 | CT159: 150 | CU159: 4526 | CV159: 48564636.98 | CW159: 1 | CX159: 40065826
A160: 00310031 | B160: 0031 | C160: 0031 | D160: 151 | E160: 31 | F160: Billerica | G160: 31 | H160: Billerica | I160: 51908631.2 | J160: 0.8466390535 | K160: =X160 -> 52647471.61 | L160: =IF(K164>0, K160/K164, 0) -> 0.8582526149 | N160: =ROUND(M164*L160,0) -> 41417136 | O160: 39371685 | P160: =N160-O160 -> 2045451 | Q160: 5.19523358 | R160: 4866 | S160: 4866 | T160: 31 | U160: 31 | V160: 151 | W160: 4866 | X160: 52647471.61 | Y160: 151 | Z160: 31 | AA160: 31 | AB160: 151 | AC160: 4866 | AD160: 52647471.61 | AQ160: 0 | CR160: 31 | CS160: 31 | CT160: 151 | CU160: 4912 | CV160: 50010476.06 | CW160: 0.832729159 | CX160: 37025362
A161: 00310871 | B161: 0031 | C161: 0871 | D161: 152 | E161: 31 | F161: Billerica | G161: 871 | H161: Shawsheen Valley | I161: 9402775.336 | J161: 0.1533609465 | K161: 8695157.231 | L161: =IF(K164>0, K161/K164, 0) -> 0.1417473851 | N161: =ROUND(M164*L161,0) -> 6840376 | O161: 7131822 | P161: =N161-O161 -> -291446 | Q161: -4.086557404 | R161: 564 | S161: 517 | T161: 31 | U161: 871 | V161: 152 | W161: 517 | X161: 8695157.231 | Y161: 152 | Z161: 31 | AA161: 871 | AB161: 152 | AC161: 517 | AD161: 8695157.231 | AQ161: 0 | CR161: 31 | CS161: 871 | CT161: 152 | CU161: 630 | CV161: 10045636.45 | CW161: 0.167270841 | CX161: 7437308
A162: 00310998 | B162: 0031 | C162: 0998 | D162: 153 | E162: 31 | G162: 998 | I162: 0 | J162: 0 | K162: 0 | L162: =IF(K164>0, K162/K164, 0) -> 0 | N162: =ROUND(M164*L162,0) -> 0 | O162: 0 | P162: =N162-O162 -> 0 | Q162: 0 | R162: 0 | S162: 0 | T162: 31 | U162: 998 | V162: 153 | W162: 0 | X162: 0 | Y162: 153 | Z162: 31 | AA162: 998 | AB162: 153 | AC162: 0 | AD162: 0 | AQ162: 0 | CR162: 31 | CS162: 998 | CT162: 153 | CU162: 0 | CV162: 0 | CW162: 0 | CX162: 0
A163: 00310998 | B163: 0031 | C163: 0998 | D163: 154 | E163: 31 | G163: 998 | I163: 0 | J163: 0 | K163: 0 | L163: =IF(K164>0, K163/K164, 0) -> 0 | N163: =ROUND(M164*L163,0) -> 0 | O163: 0 | P163: =N163-O163 -> 0 | Q163: 0 | R163: 0 | S163: 0 | T163: 31 | U163: 998 | V163: 154 | W163: 0 | X163: 0 | Y163: 154 | Z163: 31 | AA163: 998 | AB163: 154 | AC163: 0 | AD163: 0 | AQ163: 0 | CR163: 31 | CS163: 998 | CT163: 154 | CU163: 0 | CV163: 0 | CW163: 0 | CX163: 0
A164: 00310999 | B164: 0031 | C164: 0999 | D164: 155 | E164: 31 | F164: Billerica | G164: 999 | H164: Total | I164: 61311406.54 | J164: 1 | K164: =SUM(K160:K163) -> 61342628.84 | L164: =SUM(L160:L163) -> 1 | M164: =VLOOKUP(E164,town351,24) -> 48257512 | N164: =SUM(N160:N163) -> 48257512 | O164: 46503507 | P164: =SUM(P160:P163) -> 1754005 | Q164: 3.771769299 | R164: 5430 | S164: 5383 | T164: 31 | U164: 999 | V164: 155 | W164: 5383 | X164: 61342628.84 | Y164: 155 | Z164: 31 | AA164: 999 | AB164: 155 | AC164: 5383 | AD164: 61342628.84 | AQ164: 0 | CR164: 31 | CS164: 999 | CT164: 155 | CU164: 5542 | CV164: 60056112.51 | CW164: 1 | CX164: 44462670
A165: 00320032 | B165: 0032 | C165: 0032 | D165: 156 | E165: 32 | F165: Blackstone | G165: 32 | H165: Blackstone | I165: 357718.729 | J165: 0.02329189454 | K165: =X165 -> 408810.82 | L165: =IF(K169>0, K165/K169, 0) -> 0.02544576243 | N165: =ROUND(M169*L165,0) -> 197411 | O165: 174004 | P165: =N165-O165 -> 23407 | Q165: 13.45198961 | R165: 23 | S165: 26 | T165: 32 | U165: 32 | V165: 156 | W165: 26 | X165: 408810.82 | Y165: 156 | Z165: 32 | AA165: 32 | AB165: 156 | AC165: 26 | AD165: 408810.82 | AQ165: 0 | CR165: 32 | CS165: 32 | CT165: 156 | CU165: 20 | CV165: 303047.63 | CW165: 0.02048401944 | CX165: 146874
A166: 00320622 | B166: 0032 | C166: 0622 | D166: 157 | E166: 32 | F166: Blackstone | G166: 622 | H166: Blackstone Millville | I166: 13560560.65 | J166: 0.8829594959 | K166: 14224835.22 | L166: =IF(K169>0, K166/K169, 0) -> 0.8854016575 | N166: =ROUND(M169*L166,0) -> 6869052 | O166: 6596227 | P166: =N166-O166 -> 272825 | Q166: 4.136076578 | R166: 1263.439864 | S166: 1279.894737 | T166: 32 | U166: 622 | V166: 157 | W166: 1279.894737 | X166: 14224835.22 | Y166: 157 | Z166: 32 | AA166: 622 | AB166: 157 | AC166: 1279.894737 | AD166: 14224835.22 | AQ166: 0 | CR166: 32 | CS166: 622 | CT166: 157 | CU166: 1279.134454 | CV166: 13152292.87 | CW166: 0.8890081829 | CX166: 6374329
A167: 00320805 | B167: 0032 | C167: 0805 | D167: 158 | E167: 32 | F167: Blackstone | G167: 805 | H167: Blackstone Valley | I167: 1439798.442 | J167: 0.09374860959 | K167: 1432322.551 | L167: =IF(K169>0, K167/K169, 0) -> 0.08915258008 | N167: =ROUND(M169*L167,0) -> 691656 | O167: 700357 | P167: =N167-O167 -> -8701 | Q167: -1.242366393 | R167: 89 | S167: 87 | T167: 32 | U167: 805 | V167: 158 | W167: 87 | X167: 1432322.551 | Y167: 158 | Z167: 32 | AA167: 805 | AB167: 158 | AC167: 87 | AD167: 1432322.551 | AQ167: 0 | CR167: 32 | CS167: 805 | CT167: 158 | CU167: 86 | CV167: 1339003.493 | CW167: 0.09050779768 | CX167: 648955
A168: 00320998 | B168: 0032 | C168: 0998 | D168: 159 | E168: 32 | G168: 998 | I168: 0 | J168: 0 | K168: 0 | L168: =IF(K169>0, K168/K169, 0) -> 0 | N168: =ROUND(M169*L168,0) -> 0 | O168: 0 | P168: =N168-O168 -> 0 | Q168: 0 | R168: 0 | S168: 0 | T168: 32 | U168: 998 | V168: 159 | W168: 0 | X168: 0 | Y168: 159 | Z168: 32 | AA168: 998 | AB168: 159 | AC168: 0 | AD168: 0 | AQ168: 0 | CR168: 32 | CS168: 998 | CT168: 159 | CU168: 0 | CV168: 0 | CW168: 0 | CX168: 0
A169: 00320999 | B169: 0032 | C169: 0999 | D169: 160 | E169: 32 | F169: Blackstone | G169: 999 | H169: Total | I169: 15358077.82 | J169: 1 | K169: =SUM(K165:K168) -> 16065968.59 | L169: =SUM(L165:L168) -> 1 | M169: =VLOOKUP(E169,town351,24) -> 7758120 | N169: =SUM(N165:N168) -> 7758119 | O169: 7470588 | P169: =SUM(P165:P168) -> 287531 | Q169: 3.848840279 | R169: 1375.439864 | S169: 1392.894737 | T169: 32 | U169: 999 | V169: 160 | W169: 1392.894737 | X169: 16065968.59 | Y169: 160 | Z169: 32 | AA169: 999 | AB169: 160 | AC169: 1392.894737 | AD169: 16065968.59 | AQ169: 0 | CR169: 32 | CS169: 999 | CT169: 160 | CU169: 1385.134454 | CV169: 14794343.99 | CW169: 1 | CX169: 7170158
A170: 00330033 | B170: 0033 | C170: 0033 | D170: 161 | E170: 33 | F170: Blandford | G170: 33 | H170: Blandford | I170: 114974.378 | J170: 0.08315230172 | K170: =X170 -> 102604.6 | L170: =IF(K174>0, K170/K174, 0) -> 0.07295490693 | N170: =ROUND(M174*L170,0) -> 84649 | O170: 91083 | P170: =N170-O170 -> -6434 | Q170: -7.063886785 | R170: 8 | S170: 7 | T170: 33 | U170: 33 | V170: 161 | W170: 7 | X170: 102604.6 | Y170: 161 | Z170: 33 | AA170: 33 | AB170: 161 | AC170: 7 | AD170: 102604.6 | AQ170: 0 | CR170: 33 | CS170: 33 | CT170: 161 | CU170: 8 | CV170: 110697.28 | CW170: 0.08659184341 | CX170: 91325
A171: 00330672 | B171: 0033 | C171: 0672 | D171: 162 | E171: 33 | F171: Blandford | G171: 672 | H171: Gateway | I171: 1267721.899 | J171: 0.9168476983 | K171: 1303806.625 | L171: =IF(K174>0, K171/K174, 0) -> 0.9270450931 | N171: =ROUND(M174*L171,0) -> 1075640 | O171: 1004290 | P171: =N171-O171 -> 71350 | Q171: 7.104521602 | R171: 111.0305776 | S171: 110.3686007 | T171: 33 | U171: 672 | V171: 162 | W171: 110.3686007 | X171: 1303806.625 | Y171: 162 | Z171: 33 | AA171: 672 | AB171: 162 | AC171: 110.3686007 | AD171: 1303806.625 | AQ171: 0 | CR171: 33 | CS171: 672 | CT171: 162 | CU171: 108.006795 | CV171: 1167682.711 | CW171: 0.9134081566 | CX171: 963338
A172: 00330998 | B172: 0033 | C172: 0998 | D172: 163 | E172: 33 | G172: 998 | I172: 0 | J172: 0 | K172: 0 | L172: =IF(K174>0, K172/K174, 0) -> 0 | N172: =ROUND(M174*L172,0) -> 0 | O172: 0 | P172: =N172-O172 -> 0 | Q172: 0 | R172: 0 | S172: 0 | T172: 33 | U172: 998 | V172: 163 | W172: 0 | X172: 0 | Y172: 163 | Z172: 33 | AA172: 998 | AB172: 163 | AC172: 0 | AD172: 0 | AQ172: 0 | CR172: 33 | CS172: 998 | CT172: 163 | CU172: 0 | CV172: 0 | CW172: 0 | CX172: 0
A173: 00330998 | B173: 0033 | C173: 0998 | D173: 164 | E173: 33 | G173: 998 | I173: 0 | J173: 0 | K173: 0 | L173: =IF(K174>0, K173/K174, 0) -> 0 | N173: =ROUND(M174*L173,0) -> 0 | O173: 0 | P173: =N173-O173 -> 0 | Q173: 0 | R173: 0 | S173: 0 | T173: 33 | U173: 998 | V173: 164 | W173: 0 | X173: 0 | Y173: 164 | Z173: 33 | AA173: 998 | AB173: 164 | AC173: 0 | AD173: 0 | AQ173: 0 | CR173: 33 | CS173: 998 | CT173: 164 | CU173: 0 | CV173: 0 | CW173: 0 | CX173: 0
A174: 00330999 | B174: 0033 | C174: 0999 | D174: 165 | E174: 33 | F174: Blandford | G174: 999 | H174: Total | I174: 1382696.277 | J174: 1 | K174: =SUM(K170:K173) -> 1406411.225 | L174: =SUM(L170:L173) -> 1 | M174: =VLOOKUP(E174,town351,24) -> 1160289 | N174: =SUM(N170:N173) -> 1160289 | O174: 1095373 | P174: =SUM(P170:P173) -> 64916 | Q174: 5.926383068 | R174: 119.0305776 | S174: 117.3686007 | T174: 33 | U174: 999 | V174: 165 | W174: 117.3686007 | X174: 1406411.225 | Y174: 165 | Z174: 33 | AA174: 999 | AB174: 165 | AC174: 117.3686007 | AD174: 1406411.225 | AQ174: 0 | CR174: 33 | CS174: 999 | CT174: 165 | CU174: 116.006795 | CV174: 1278379.991 | CW174: 1 | CX174: 1054663
A175: 00340034 | B175: 0034 | C175: 0034 | D175: 166 | E175: 34 | F175: Bolton | G175: 34 | H175: Bolton | I175: 14861.54204 | J175: 0.001351679306 | K175: =X175 -> 15157.29088 | L175: =IF(K179>0, K175/K179, 0) -> 0.001364653637 | N175: =ROUND(M179*L175,0) -> 12505 | O175: 12091 | P175: =N175-O175 -> 414 | Q175: 3.424034406 | R175: 1 | S175: 1 | T175: 34 | U175: 34 | V175: 166 | W175: 1 | X175: 15157.29088 | Y175: 166 | Z175: 34 | AA175: 34 | AB175: 166 | AC175: 1 | AD175: 15157.29088 | AQ175: 0 | CR175: 34 | CS175: 34 | CT175: 166 | CU175: 1 | CV175: 14264.24656 | CW175: 0.001335325678 | CX175: 11464
A176: 00340725 | B176: 0034 | C176: 0725 | D176: 167 | E176: 34 | F176: Bolton | G176: 725 | H176: Nashoba | I176: 10777661.12 | J176: 0.9802442758 | K176: 10831610.86 | L176: =IF(K179>0, K176/K179, 0) -> 0.9752004675 | N176: =ROUND(M179*L176,0) -> 8936079 | O176: 8768396 | P176: =N176-O176 -> 167683 | Q176: 1.912356604 | R176: 1020.401112 | S176: 1004.171625 | T176: 34 | U176: 725 | V176: 167 | W176: 1004.171625 | X176: 10831610.86 | Y176: 167 | Z176: 34 | AA176: 725 | AB176: 167 | AC176: 1004.171625 | AD176: 10831610.86 | AQ176: 0 | CR176: 34 | CS176: 725 | CT176: 167 | CU176: 1037.266117 | CV176: 10452467.17 | CW176: 0.9784917668 | CX176: 8400729
A177: 00340830 | B177: 0034 | C177: 0830 | D177: 168 | E177: 34 | F177: Bolton | G177: 830 | H177: Minuteman | I177: 202350.1322 | J177: 0.01840404485 | K177: 260292.6234 | L177: =IF(K179>0, K177/K179, 0) -> 0.02343487883 | N177: =ROUND(M179*L177,0) -> 214741 | O177: 164626 | P177: =N177-O177 -> 50115 | Q177: 30.44172852 | R177: 11 | S177: 14 | T177: 34 | U177: 830 | V177: 168 | W177: 14 | X177: 260292.6234 | Y177: 168 | Z177: 34 | AA177: 830 | AB177: 168 | AC177: 14 | AD177: 260292.6234 | AQ177: 0 | CR177: 34 | CS177: 830 | CT177: 168 | CU177: 12.03519062 | CV177: 215491.4947 | CW177: 0.02017290749 | CX177: 173192
A178: 00340998 | B178: 0034 | C178: 0998 | D178: 169 | E178: 34 | G178: 998 | I178: 0 | J178: 0 | K178: 0 | L178: =IF(K179>0, K178/K179, 0) -> 0 | N178: =ROUND(M179*L178,0) -> 0 | O178: 0 | P178: =N178-O178 -> 0 | Q178: 0 | R178: 0 | S178: 0 | T178: 34 | U178: 998 | V178: 169 | W178: 0 | X178: 0 | Y178: 169 | Z178: 34 | AA178: 998 | AB178: 169 | AC178: 0 | AD178: 0 | AQ178: 0 | CR178: 34 | CS178: 998 | CT178: 169 | CU178: 0 | CV178: 0 | CW178: 0 | CX178: 0
A179: 00340999 | B179: 0034 | C179: 0999 | D179: 170 | E179: 34 | F179: Bolton | G179: 999 | H179: Total | I179: 10994872.8 | J179: 1 | K179: =SUM(K175:K178) -> 11107060.77 | L179: =SUM(L175:L178) -> 1 | M179: =VLOOKUP(E179,town351,24) -> 9163325 | N179: =SUM(N175:N178) -> 9163325 | O179: 8945113 | P179: =SUM(P175:P178) -> 218212 | Q179: 2.439454929 | R179: 1032.401112 | S179: 1019.171625 | T179: 34 | U179: 999 | V179: 170 | W179: 1019.171625 | X179: 11107060.77 | Y179: 170 | Z179: 34 | AA179: 999 | AB179: 170 | AC179: 1019.171625 | AD179: 11107060.77 | AQ179: 0 | CR179: 34 | CS179: 999 | CT179: 170 | CU179: 1050.301307 | CV179: 10682222.92 | CW179: 1 | CX179: 8585385
A180: 00350035 | B180: 0035 | C180: 0035 | D180: 171 | E180: 35 | F180: Boston | G180: 35 | H180: Boston | I180: 910864776.4 | J180: 1 | K180: =X180 -> 924506066 | L180: =IF(K184>0, K180/K184, 0) -> 1 | N180: =ROUND(M184*L180,0) -> 762717504 | O180: 749907338 | P180: =N180-O180 -> 12810166 | Q180: 1.708233184 | R180: 63777 | S180: 62890 | T180: 35 | U180: 35 | V180: 171 | W180: 62890 | X180: 924506066 | Y180: 171 | Z180: 35 | AA180: 35 | AB180: 171 | AC180: 62890 | AD180: 924506066 | AQ180: 0 | CR180: 35 | CS180: 35 | CT180: 171 | CU180: 64508 | CV180: 861999611.9 | CW180: 1 | CX180: 711149680
A181: 00350998 | B181: 0035 | C181: 0998 | D181: 172 | E181: 35 | G181: 998 | I181: 0 | J181: 0 | K181: 0 | L181: =IF(K184>0, K181/K184, 0) -> 0 | N181: =ROUND(M184*L181,0) -> 0 | O181: 0 | P181: =N181-O181 -> 0 | Q181: 0 | R181: 0 | S181: 0 | T181: 35 | U181: 998 | V181: 172 | W181: 0 | X181: 0 | Y181: 172 | Z181: 35 | AA181: 998 | AB181: 172 | AC181: 0 | AD181: 0 | AQ181: 0 | CR181: 35 | CS181: 998 | CT181: 172 | CU181: 0 | CV181: 0 | CW181: 0 | CX181: 0
A182: 00350998 | B182: 0035 | C182: 0998 | D182: 173 | E182: 35 | G182: 998 | I182: 0 | J182: 0 | K182: 0 | L182: =IF(K184>0, K182/K184, 0) -> 0 | N182: =ROUND(M184*L182,0) -> 0 | O182: 0 | P182: =N182-O182 -> 0 | Q182: 0 | R182: 0 | S182: 0 | T182: 35 | U182: 998 | V182: 173 | W182: 0 | X182: 0 | Y182: 173 | Z182: 35 | AA182: 998 | AB182: 173 | AC182: 0 | AD182: 0 | AQ182: 0 | CR182: 35 | CS182: 998 | CT182: 173 | CU182: 0 | CV182: 0 | CW182: 0 | CX182: 0
A183: 00350998 | B183: 0035 | C183: 0998 | D183: 174 | E183: 35 | G183: 998 | I183: 0 | J183: 0 | K183: 0 | L183: =IF(K184>0, K183/K184, 0) -> 0 | N183: =ROUND(M184*L183,0) -> 0 | O183: 0 | P183: =N183-O183 -> 0 | Q183: 0 | R183: 0 | S183: 0 | T183: 35 | U183: 998 | V183: 174 | W183: 0 | X183: 0 | Y183: 174 | Z183: 35 | AA183: 998 | AB183: 174 | AC183: 0 | AD183: 0 | AQ183: 0 | CR183: 35 | CS183: 998 | CT183: 174 | CU183: 0 | CV183: 0 | CW183: 0 | CX183: 0
A184: 00350999 | B184: 0035 | C184: 0999 | D184: 175 | E184: 35 | F184: Boston | G184: 999 | H184: Total | I184: 910864776.4 | J184: 1 | K184: =SUM(K180:K183) -> 924506066 | L184: =SUM(L180:L183) -> 1 | M184: =VLOOKUP(E184,town351,24) -> 762717504 | N184: =SUM(N180:N183) -> 762717504 | O184: 749907338 | P184: =SUM(P180:P183) -> 12810166 | Q184: 1.708233184 | R184: 63777 | S184: 62890 | T184: 35 | U184: 999 | V184: 175 | W184: 62890 | X184: 924506066 | Y184: 175 | Z184: 35 | AA184: 999 | AB184: 175 | AC184: 62890 | AD184: 924506066 | AQ184: 0 | CR184: 35 | CS184: 999 | CT184: 175 | CU184: 64508 | CV184: 861999611.9 | CW184: 1 | CX184: 711149680
A185: 00360036 | B185: 0036 | C185: 0036 | D185: 176 | E185: 36 | F185: Bourne | G185: 36 | H185: Bourne | I185: 22123862.83 | J185: 0.8931373289 | K185: =X185 -> 22664002.02 | L185: =IF(K189>0, K185/K189, 0) -> 0.8760903726 | N185: =ROUND(M189*L185,0) -> 18697802 | O185: 18252187 | P185: =N185-O185 -> 445615 | Q185: 2.441433457 | R185: 2001 | S185: 2012 | T185: 36 | U185: 36 | V185: 176 | W185: 2012 | X185: 22664002.02 | Y185: 176 | Z185: 36 | AA185: 36 | AB185: 176 | AC185: 2012 | AD185: 22664002.02 | AQ185: 0 | CR185: 36 | CS185: 36 | CT185: 176 | CU185: 2038 | CV185: 21368782.29 | CW185: 0.8829556615 | CX185: 17629245
A186: 00360879 | B186: 0036 | C186: 0879 | D186: 177 | E186: 36 | F186: Bourne | G186: 879 | H186: Upper Cape Cod | I186: 2647090.207 | J186: 0.1068626711 | K186: 3205477.577 | L186: =IF(K189>0, K186/K189, 0) -> 0.1239096274 | N186: =ROUND(M189*L186,0) -> 2644519 | O186: 2183849 | P186: =N186-O186 -> 460670 | Q186: 21.09440717 | R186: 157 | S186: 185 | T186: 36 | U186: 879 | V186: 177 | W186: 185 | X186: 3205477.577 | Y186: 177 | Z186: 36 | AA186: 879 | AB186: 177 | AC186: 185 | AD186: 3205477.577 | AQ186: 0 | CR186: 36 | CS186: 879 | CT186: 177 | CU186: 175 | CV186: 2832639.392 | CW186: 0.1170443385 | CX186: 2336928
A187: 00360998 | B187: 0036 | C187: 0998 | D187: 178 | E187: 36 | G187: 998 | I187: 0 | J187: 0 | K187: 0 | L187: =IF(K189>0, K187/K189, 0) -> 0 | N187: =ROUND(M189*L187,0) -> 0 | O187: 0 | P187: =N187-O187 -> 0 | Q187: 0 | R187: 0 | S187: 0 | T187: 36 | U187: 998 | V187: 178 | W187: 0 | X187: 0 | Y187: 178 | Z187: 36 | AA187: 998 | AB187: 178 | AC187: 0 | AD187: 0 | AQ187: 0 | CR187: 36 | CS187: 998 | CT187: 178 | CU187: 0 | CV187: 0 | CW187: 0 | CX187: 0
A188: 00360998 | B188: 0036 | C188: 0998 | D188: 179 | E188: 36 | G188: 998 | I188: 0 | J188: 0 | K188: 0 | L188: =IF(K189>0, K188/K189, 0) -> 0 | N188: =ROUND(M189*L188,0) -> 0 | O188: 0 | P188: =N188-O188 -> 0 | Q188: 0 | R188: 0 | S188: 0 | T188: 36 | U188: 998 | V188: 179 | W188: 0 | X188: 0 | Y188: 179 | Z188: 36 | AA188: 998 | AB188: 179 | AC188: 0 | AD188: 0 | AQ188: 0 | CR188: 36 | CS188: 998 | CT188: 179 | CU188: 0 | CV188: 0 | CW188: 0 | CX188: 0
A189: 00360999 | B189: 0036 | C189: 0999 | D189: 180 | E189: 36 | F189: Bourne | G189: 999 | H189: Total | I189: 24770953.04 | J189: 1 | K189: =SUM(K185:K188) -> 25869479.6 | L189: =SUM(L185:L188) -> 1 | M189: =VLOOKUP(E189,town351,24) -> 21342321 | N189: =SUM(N185:N188) -> 21342321 | O189: 20436036 | P189: =SUM(P185:P188) -> 906285 | Q189: 4.434739692 | R189: 2158 | S189: 2197 | T189: 36 | U189: 999 | V189: 180 | W189: 2197 | X189: 25869479.6 | Y189: 180 | Z189: 36 | AA189: 999 | AB189: 180 | AC189: 2197 | AD189: 25869479.6 | AQ189: 0 | CR189: 36 | CS189: 999 | CT189: 180 | CU189: 2213 | CV189: 24201421.68 | CW189: 1 | CX189: 19966173
A190: 00370037 | B190: 0037 | C190: 0037 | D190: 181 | E190: 37 | F190: Boxborough | G190: 37 | H190: Boxborough | I190: 127474.5305 | J190: 0.01406919288 | K190: =X190 -> 143372.8123 | L190: =IF(K194>0, K190/K194, 0) -> 0.01512259637 | N190: =ROUND(M194*L190,0) -> 117755 | O190: 104905 | P190: =N190-O190 -> 12850 | Q190: 12.24917783 | R190: 8 | S190: 9 | T190: 37 | U190: 37 | V190: 181 | W190: 9 | X190: 143372.8123 | Y190: 181 | Z190: 37 | AA190: 37 | AB190: 181 | AC190: 9 | AD190: 143372.8123 | AQ190: 0 | CR190: 37 | CS190: 37 | CT190: 181 | CU190: 7 | CV190: 106694.35 | CW190: 0.01223870901 | CX190: 87553
A191: 00370600 | B191: 0037 | C191: 0600 | D191: 182 | E191: 37 | F191: Boxborough | G191: 600 | H191: Acton Boxborough | I191: 8933068.718 | J191: 0.9859308071 | K191: 9337328.04 | L191: =IF(K194>0, K191/K194, 0) -> 0.9848774036 | N191: =ROUND(M194*L191,0) -> 7668914 | O191: 7351448 | P191: =N191-O191 -> 317466 | Q191: 4.318414549 | R191: 843.3208969 | S191: 856.0218559 | T191: 37 | U191: 600 | V191: 182 | W191: 856.0218559 | X191: 9337328.04 | Y191: 182 | Z191: 37 | AA191: 600 | AB191: 182 | AC191: 856.0218559 | AD191: 9337328.04 | AQ191: 0 | CR191: 37 | CS191: 600 | CT191: 182 | CU191: 848.4607105 | CV191: 8611083.801 | CW191: 0.987761291 | CX191: 7066196
A192: 00370830 | B192: 0037 | C192: 0830 | D192: 183 | E192: 37 | G192: 998 | I192: 0 | J192: 0 | K192: 0 | L192: =IF(K194>0, K192/K194, 0) -> 0 | N192: =ROUND(M194*L192,0) -> 0 | O192: 0 | P192: =N192-O192 -> 0 | Q192: 0 | R192: 0 | S192: 0 | T192: 37 | U192: 998 | V192: 183 | W192: 0 | X192: 0 | Y192: 183 | Z192: 37 | AA192: 998 | AB192: 183 | AC192: 0 | AD192: 0 | AQ192: 0 | CR192: 37 | CS192: 830 | CT192: 183 | CU192: 0 | CV192: 0 | CW192: 0 | CX192: 0
A193: 00370998 | B193: 0037 | C193: 0998 | D193: 184 | E193: 37 | G193: 998 | I193: 0 | J193: 0 | K193: 0 | L193: =IF(K194>0, K193/K194, 0) -> 0 | N193: =ROUND(M194*L193,0) -> 0 | O193: 0 | P193: =N193-O193 -> 0 | Q193: 0 | R193: 0 | S193: 0 | T193: 37 | U193: 998 | V193: 184 | W193: 0 | X193: 0 | Y193: 184 | Z193: 37 | AA193: 998 | AB193: 184 | AC193: 0 | AD193: 0 | AQ193: 0 | CR193: 37 | CS193: 998 | CT193: 184 | CU193: 0 | CV193: 0 | CW193: 0 | CX193: 0
A194: 00370999 | B194: 0037 | C194: 0999 | D194: 185 | E194: 37 | F194: Boxborough | G194: 999 | H194: Total | I194: 9060543.248 | J194: 1 | K194: =SUM(K190:K193) -> 9480700.853 | L194: =SUM(L190:L193) -> 1 | M194: =VLOOKUP(E194,town351,24) -> 7786669 | N194: =SUM(N190:N193) -> 7786669 | O194: 7456353 | P194: =SUM(P190:P193) -> 330316 | Q194: 4.429994127 | R194: 851.3208969 | S194: 865.0218559 | T194: 37 | U194: 999 | V194: 185 | W194: 865.0218559 | X194: 9480700.853 | Y194: 185 | Z194: 37 | AA194: 999 | AB194: 185 | AC194: 865.0218559 | AD194: 9480700.853 | AQ194: 0 | CR194: 37 | CS194: 999 | CT194: 185 | CU194: 855.4607105 | CV194: 8717778.151 | CW194: 1 | CX194: 7153749
A195: 00380038 | B195: 0038 | C195: 0038 | D195: 186 | E195: 38 | F195: Boxford | G195: 38 | H195: Boxford | I195: 7004474.169 | J195: 0.4716686631 | K195: =X195 -> 7419452.155 | L195: =IF(K199>0, K195/K199, 0) -> 0.4904939192 | N195: =ROUND(M199*L195,0) -> 6121048 | O195: 5765598 | P195: =N195-O195 -> 355450 | Q195: 6.16501532 | R195: 705 | S195: 729 | T195: 38 | U195: 38 | V195: 186 | W195: 729 | X195: 7419452.155 | Y195: 186 | Z195: 38 | AA195: 38 | AB195: 186 | AC195: 729 | AD195: 7419452.155 | AQ195: 0 | CR195: 38 | CS195: 38 | CT195: 186 | CU195: 704 | CV195: 6655216.908 | CW195: 0.4677186164 | CX195: 5490554
A196: 00380705 | B196: 0038 | C196: 0705 | D196: 187 | E196: 38 | F196: Boxford | G196: 705 | H196: Masconomet | I196: 7544632.535 | J196: 0.5080419537 | K196: 7433492.502 | L196: =IF(K199>0, K196/K199, 0) -> 0.491422115 | N196: =ROUND(M199*L196,0) -> 6132632 | O196: 6210219 | P196: =N196-O196 -> -77587 | Q196: -1.249344025 | R196: 697.5204806 | S196: 669.5079007 | T196: 38 | U196: 705 | V196: 187 | W196: 669.5079007 | X196: 7433492.502 | Y196: 187 | Z196: 38 | AA196: 705 | AB196: 187 | AC196: 669.5079007 | AD196: 7433492.502 | AQ196: 0 | CR196: 38 | CS196: 705 | CT196: 187 | CU196: 700.7592191 | CV196: 7282191.189 | CW196: 0.5117814241 | CX196: 6007808
A197: 00380817 | B197: 0038 | C197: 0817 | D197: 188 | E197: 38 | F197: Boxford | G197: 817 | H197: Essex North Shore | I197: 301305.708 | J197: 0.02028938319 | K197: 273546.9575 | L197: =IF(K199>0, K197/K199, 0) -> 0.01808396583 | N197: =ROUND(M199*L197,0) -> 225676 | O197: 248014 | P197: =N197-O197 -> -22338 | Q197: -9.006749619 | R197: 18 | S197: 16 | T197: 38 | U197: 817 | V197: 188 | W197: 16 | X197: 273546.9575 | Y197: 188 | Z197: 38 | AA197: 817 | AB197: 188 | AC197: 16 | AD197: 273546.9575 | AQ197: 0 | CR197: 38 | CS197: 817 | CT197: 188 | CU197: 18 | CV197: 291696.0598 | CW197: 0.02049995956 | CX197: 240649
A198: 00380998 | B198: 0038 | C198: 0998 | D198: 189 | E198: 38 | G198: 998 | I198: 0 | J198: 0 | K198: 0 | L198: =IF(K199>0, K198/K199, 0) -> 0 | N198: =ROUND(M199*L198,0) -> 0 | O198: 0 | P198: =N198-O198 -> 0 | Q198: 0 | R198: 0 | S198: 0 | T198: 38 | U198: 998 | V198: 189 | W198: 0 | X198: 0 | Y198: 189 | Z198: 38 | AA198: 998 | AB198: 189 | AC198: 0 | AD198: 0 | AQ198: 0 | CR198: 38 | CS198: 998 | CT198: 189 | CU198: 0 | CV198: 0 | CW198: 0 | CX198: 0
A199: 00380999 | B199: 0038 | C199: 0999 | D199: 190 | E199: 38 | F199: Boxford | G199: 999 | H199: Total | I199: 14850412.41 | J199: 1 | K199: =SUM(K195:K198) -> 15126491.61 | L199: =SUM(L195:L198) -> 1 | M199: =VLOOKUP(E199,town351,24) -> 12479356 | N199: =SUM(N195:N198) -> 12479356 | O199: 12223831 | P199: =SUM(P195:P198) -> 255525 | Q199: 2.090383939 | R199: 1420.520481 | S199: 1414.507901 | T199: 38 | U199: 999 | V199: 190 | W199: 1414.507901 | X199: 15126491.61 | Y199: 190 | Z199: 38 | AA199: 999 | AB199: 190 | AC199: 1414.507901 | AD199: 15126491.61 | AQ199: 0 | CR199: 38 | CS199: 999 | CT199: 190 | CU199: 1422.759219 | CV199: 14229104.16 | CW199: 1 | CX199: 11739011
A200: 00390039 | B200: 0039 | C200: 0039 | D200: 191 | E200: 39 | F200: Boylston | G200: 39 | H200: Boylston | I200: 429577.7153 | J200: 0.06310744261 | K200: =X200 -> 438126.42 | L200: =IF(K204>0, K200/K204, 0) -> 0.06199416389 | N200: =ROUND(M204*L200,0) -> 353125 | O200: 344845 | P200: =N200-O200 -> 8280 | Q200: 2.401078746 | R200: 28 | S200: 28 | T200: 39 | U200: 39 | V200: 191 | W200: 28 | X200: 438126.42 | Y200: 191 | Z200: 39 | AA200: 39 | AB200: 191 | AC200: 28 | AD200: 438126.42 | AQ200: 0 | CR200: 39 | CS200: 39 | CT200: 191 | CU200: 286 | CV200: 2856144.64 | CW200: 0.4346535656 | CX200: 2256220
... 362 more rows

Sheet Foundation Budget
A1: Return to Index | U1: More about the data
A2: Massachusetts Department of Elementary and Secondary Education
A3: Office of School Finance
A4: =parameters!B1&" Chapter 70 Foundation Budget" -> FY21 Chapter 70 Foundation Budget
A5: =lea -> 999 | B5: =IF(lea=999,"State total cannot be computed on this page; Please enter an lea code on the index sheet",VLOOKUP(A5,dist915,2)) -> State total cannot be computed on this page; Please enter an lea code on the index sheet | H5: 6 | I5: 8 | K5: 9 | L5: 10 | M5: 11 | N5: 12 | O5: 13 | P5: 14
C6: Base Foundation Components | K6: Incremental Costs Above the Base
C7: 1 | D7: 2 | E7: 3 | F7: 4 | G7: 5 | H7: 6 | I7: 7 | K7: 8 | L7: 9 | M7: 10 | N7: 11 | O7: 12 | P7: 13 | Q7: 14
D8: ------ Kindergarten ------ | G8: Junior/ | H8: High | K8: Special Ed | L8: Special Ed | M8: English learners | N8: English learners | O8: English learners
C9: Pre-school | D9: Half-Day | E9: Full-Day | F9: Elementary | G9: Middle | H9: School | I9: Vocational | K9: In-District | L9: Tuitioned-Out | M9: PK-5 | N9: 6-8 | O9: High School/Voc | P9: Low income | Q9: TOTAL
B10: Foundation Enrollment | C10: =IF($A$5<>999,VLOOKUP(lea,dist915,VALUE(C$7)+2),0) -> 0 | D10: 0 | E10: 0 | F10: 0 | G10: 0 | H10: 0 | I10: =IF($A$5<>999,VLOOKUP(lea,dist915,VALUE(I$7)+2),0) -> 0 | K10: =IF($A$5<>999,VLOOKUP(lea,dist915,VALUE(K$7)+2),0) -> 0 | L10: 0 | M10: 0 | N10: 0 | O10: 0 | P10: 0 | Q10: 0
A12: 1 | B12: Administration | C12: =(VLOOKUP(VALUE(C$7),newrates,$A12+2)*C$10*waf) -> 0 | D12: 0 | E12: 0 | F12: 0 | G12: 0 | H12: 0 | I12: 0 | K12: =(VLOOKUP(VALUE(K$7),newrates,$A12+2)*K$10*waf) -> 0 | L12: 0 | M12: 0 | N12: 0 | O12: 0 | P12: =(VLOOKUP(VALUE(P$7)+$C$29-1, newrates, $A12+2, FALSE))*P$10*waf -> 0 | Q12: =SUM(C12:P12) -> 0
A13: 2 | B13: Instructional Leadership | C13: 0 | D13: 0 | E13: 0 | F13: 0 | G13: 0 | H13: 0 | I13: 0 | K13: 0 | L13: 0 | M13: 0 | N13: 0 | O13: 0 | P13: =(VLOOKUP(VALUE(P$7)+$C$29-1, newrates, $A13+2, FALSE))*P$10*waf -> 0 | Q13: 0
A14: 3 | B14: Classroom & Specialist Teachers | C14: 0 | D14: 0 | E14: 0 | F14: 0 | G14: 0 | H14: 0 | I14: 0 | K14: 0 | L14: 0 | M14: 0 | N14: 0 | O14: 0 | P14: =(VLOOKUP(VALUE(P$7)+$C$29-1, newrates, $A14+2, FALSE))*P$10*waf -> 0 | Q14: 0
A15: 4 | B15: Other Teaching Services | C15: 0 | D15: 0 | E15: 0 | F15: 0 | G15: 0 | H15: 0 | I15: 0 | K15: 0 | L15: 0 | M15: 0 | N15: 0 | O15: 0 | P15: =(VLOOKUP(VALUE(P$7)+$C$29-1, newrates, $A15+2, FALSE))*P$10*waf -> 0 | Q15: 0
A16: 5 | B16: Professional Development | C16: 0 | D16: 0 | E16: 0 | F16: 0 | G16: 0 | H16: 0 | I16: 0 | K16: 0 | L16: 0 | M16: 0 | N16: 0 | O16: 0 | P16: =(VLOOKUP(VALUE(P$7)+$C$29-1, newrates, $A16+2, FALSE))*P$10*waf -> 0 | Q16: 0
A17: 6 | B17: Instructional Materials, Equipment & Technology* | C17: =(VLOOKUP(VALUE(C$7),newrates,$A17+2)*C$10) -> 0 | D17: 0 | E17: 0 | F17: 0 | G17: 0 | H17: 0 | I17: 0 | K17: =(VLOOKUP(VALUE(K$7),newrates,$A17+2)*K$10) -> 0 | L17: =(VLOOKUP(VALUE(L$7),newrates,$A17+2)*L$10) -> 0 | M17: =(VLOOKUP(VALUE(M$7),newrates,$A17+2)*M$10) -> 0 | N17: =(VLOOKUP(VALUE(N$7),newrates,$A17+2)*N$10) -> 0 | O17: =(VLOOKUP(VALUE(O$7),newrates,$A17+2)*O$10) -> 0 | P17: =(VLOOKUP(VALUE(P$7)+$C$29-1, newrates, $A17+2, FALSE))*P$10 -> 0 | Q17: 0
A18: 7 | B18: Guidance & Psychological Services | C18: =(VLOOKUP(VALUE(C$7),newrates,$A18+2)*C$10*waf) -> 0 | D18: 0 | E18: 0 | F18: 0 | G18: 0 | H18: 0 | I18: 0 | K18: =(VLOOKUP(VALUE(K$7),newrates,$A18+2)*K$10*waf) -> 0 | L18: 0 | M18: 0 | N18: 0 | O18: 0 | P18: =(VLOOKUP(VALUE(P$7)+$C$29-1, newrates, $A18+2, FALSE))*P$10*waf -> 0 | Q18: 0
A19: 8 | B19: Pupil Services | C19: 0 | D19: 0 | E19: 0 | F19: 0 | G19: 0 | H19: 0 | I19: 0 | K19: 0 | L19: 0 | M19: 0 | N19: 0 | O19: 0 | P19: =(VLOOKUP(VALUE(P$7)+$C$29-1, newrates, $A19+2, FALSE))*P$10*waf -> 0 | Q19: 0
A20: 9 | B20: Operations & Maintenance | C20: 0 | D20: 0 | E20: 0 | F20: 0 | G20: 0 | H20: 0 | I20: 0 | K20: 0 | L20: 0 | M20: 0 | N20: 0 | O20: 0 | P20: =(VLOOKUP(VALUE(P$7)+$C$29-1, newrates, $A20+2, FALSE))*P$10*waf -> 0 | Q20: 0
A21: 10 | B21: Employee Benefits/Fixed Charges* | C21: =(VLOOKUP(VALUE(C$7),newrates,$A21+2)*C$10) -> 0 | D21: 0 | E21: 0 | F21: 0 | G21: 0 | H21: 0 | I21: 0 | K21: =(VLOOKUP(VALUE(K$7),newrates,$A21+2)*K$10) -> 0 | L21: =(VLOOKUP(VALUE(L$7),newrates,$A21+2)*L$10) -> 0 | M21: =(VLOOKUP(VALUE(M$7),newrates,$A21+2)*M$10) -> 0 | N21: =(VLOOKUP(VALUE(N$7),newrates,$A21+2)*N$10) -> 0 | O21: =(VLOOKUP(VALUE(O$7),newrates,$A21+2)*O$10) -> 0 | P21: =(VLOOKUP(VALUE(P$7)+$C$29-1, newrates, $A21+2, FALSE))*P$10 -> 0 | Q21: 0
A22: 11 | B22: Special Education Tuition* | C22: 0 | D22: 0 | E22: 0 | F22: 0 | G22: 0 | H22: 0 | I22: 0 | K22: =(VLOOKUP(VALUE(K$7)-2,newrates,$A22+2)*K$10) -> 0 | L22: =(VLOOKUP(VALUE(L$7),newrates,$A22+2)*L$10) -> 0 | M22: =(VLOOKUP(VALUE(M$7),newrates,$A22+2)*M$10) -> 0 | N22: =(VLOOKUP(VALUE(N$7),newrates,$A22+2)*N$10) -> 0 | O22: =(VLOOKUP(VALUE(O$7)-2,newrates,$A22+2)*O$10) -> 0 | P22: =(VLOOKUP(VALUE(P$7)+$C$29-1, newrates, $A22+2, FALSE))*P$10 -> 0 | Q22: 0
A24: 12 | B24: Total | C24: =SUM(C12:C22) -> 0 | D24: 0 | E24: 0 | F24: 0 | G24: 0 | H24: 0 | I24: =SUM(I12:I22) -> 0 | K24: 0 | L24: 0 | M24: 0 | N24: 0 | O24: 0 | P24: 0 | Q24: =SUM(Q12:Q23) -> 0
A26: 13 | B26: Wage Adjustment Factor | C26: =VLOOKUP(lea,dist915,17) -> 0 | N26: Foundation Budget per Pupil | Q26: =IFERROR(IF(A5<>999,Q24/Q10," "),"") -> 
B27: *The wage adjustment factor is applied to underlying rates in all functions except instructional equipment, benefits and special education tuition.
A28: 14 | B28: Low income percentage | C28: =VLOOKUP(lea,dist915,19) -> 0 | L28: English learner foundation budget as % total foundation budget | Q28: =IFERROR(IF(A5=999,"",SUM(M24:O24)/Q24),"") -> 
A29: 15 | B29: Low income decile | C29: =VLOOKUP(lea,dist915,18) -> 0 | L29: Low-income foundation budget as % total foundation budget | Q29: =IFERROR(IF(A5=999,"",P24/Q24),"") -> 
B32: Total foundation enrollment (column 14) does not include incremental costs above the base. The pupils are already counted in columns 1 to 7.
B33: Total foundation enrollment assigns pupils in pre-kindergarten and half-time kindergarten an enrollment count of .5.
B34: Special education in-district enrollment is an assumed percentage, representing 3.79 percent of K-12 non-vocational enrollment and
B35: 4.79 percent of vocational enrollment.
B36: Special education tuitioned-out enrollment is also an assumed percentage, representing 1 percent of non-vocational K-12 enrollment.
B37: Direct certification includes the Supplemental Nutrition Assistance Program (SNAP);
B38: the Transitional Assistance for Families with Dependent Children (TAFDC); MassHealth (Medicaid); and students in foster care.
B39: Low income and English learner foundation budget increments are based on:
B40: the number of students attending school in the district or district residents who attend charter schools.
B41: The low income percentage is the ratio of the low-income enrollment to:
B42: the total students attending school in the district and the total resident students attending charter schools.
B44: Each component of the foundation budget represents the enrollment in row 10 multiplied by the appropriate statewide foundation allotment.
B45: The foundation budget shown on this page may differ from the final number used in the formula, due to rounding error.
B48: Return to Index

Sheet Municipal Contribution
M1: =IF(VLOOKUP(A6,town351,18)>0,"lo","hi") -> hi
A2: Return to Index | G2: More about the data
A3: Massachusetts Department of Elementary and Secondary Education
A4: Office of School Finance
A5: =parameters!B1&" Chapter 70 Determination of City and Town Total Required Contribution" -> FY21 Chapter 70 Determination of City and Town Total Required Contribution
A6: =lea -> 999 | B6: =IF(lea>351, "This lea code does not refer to a city or a town - this table shows municipal data only.",VLOOKUP(A6,aidcalc,2)) -> This lea code does not refer to a city or a town - this table shows municipal data only.
A8: Effort Goal | E8: =parameters!B1&" Increments Toward Goal" -> FY21 Increments Toward Goal
A10: 1) | B10: 2018 equalized valuation | C10: =IF(A6<352,VLOOKUP($A$6,town351,3)," ") ->  | E10: 13) | F10: =PYr&" required local contribution" -> FY20 required local contribution | G10: =IF(A6<352,VLOOKUP($A$6,town351,14)," ") -> 
A11: 2) | B11: Uniform property percentage | C11: =IF(A6<352,'Townwide Contributions'!D5," ") ->  | E11: 14) | F11: Municipal revenue growth factor (DOR) | G11: =IF(A$6<352,VLOOKUP($A$6,town351,15)," ") -> 
A12: 3) | B12: Local effort from property wealth | C12: =IF(A6<352,VLOOKUP($A$6,town351,4)," ") ->  | E12: 15) | F12: =parameters!B1&" preliminary contribution (13 raised by 14)" -> FY21 preliminary contribution (13 raised by 14) | G12: =IF(A$6<352,VLOOKUP($A$6,town351,16)," ") -> 
E13: 16) | F13: Preliminary contribution pct of foundation (15 / 8) | G13: =IF(A$6<352,VLOOKUP($A$6,town351,17)/100," ") -> 
A14: 4) | B14: 2017 income | C14: =IF(A6<352,VLOOKUP($A$6,town351,5)," ") -> 
A15: 5) | B15: Uniform income percentage | C15: =IF(A6<352,'Townwide Contributions'!F5," ") ->  | E15: If preliminary contribution is above the target share:
A16: 6) | B16: Local effort from income | C16: =IF(A6<352,VLOOKUP($A$6,town351,6)," ") ->  | E16: 17) | F16: Excess local effort (15 - 10) | G16: =IF(AND(A$6<352,M$1="hi"),VLOOKUP($A$6,town351,21)," ") -> 
E17: 18) | F17: =parameters!$C$50&" reduction toward target (17 x "&parameters!$C$50&")" -> 100% reduction toward target (17 x 100%) | G17: =IF(AND(A$6<352,M$1="hi"),VLOOKUP($A$6,town351,22)," ") -> 
A18: 7) | B18: Combined effort yield (3 + 6) | C18: =IF(A6<352,VLOOKUP($A$6,town351,7)," ") ->  | E18: 19) | F18: =parameters!B1&" required local contribution (15 - 18), capped at 90% of foundation" -> FY21 required local contribution (15 - 18), capped at 90% of foundation | G18: =IF(AND(A$6<352,M$1="hi"),VLOOKUP($A$6,town351,24)," ") -> 
E19: 20) | F19: Contribution as percentage of foundation (19 / 8) | G19: =IF(AND(A$6<352,M$1="hi"),VLOOKUP($A$6,town351,25)/100," ") -> 
A20: 8) | B20: =parameters!B1&" Foundation budget" -> FY21 Foundation budget | C20: =IF(A6<352,VLOOKUP($A$6,town351,8)," ") -> 
A21: 9) | B21: Maximum local contribution (82.5% * 8) | C21: =IF(A6<352,VLOOKUP($A$6,town351,10)," ") ->  | E21: If preliminary contribution is below the target share:
E22: 21) | F22: Shortfall from target local share (10 - 15) | G22: =IF(AND(A$6<352,M1="lo"),-1*VLOOKUP($A$6,town351,27)," ") -> 
A23: 10) | B23: Target local contribution (lesser of 7 or 9) | C23: =IF(A6<352,VLOOKUP($A$6,town351,11)," ") ->  | E23: 22) | F23: Shortfall percentage (11 - 16) | G23: =IF(AND(A$6<352,M1="lo"),VLOOKUP($A$6,town351,18)/100," ") -> 
E24: 23) | F24: Added increment toward target (13 x 1% or 2%)* | G24: =IF(AND(A$6<352,M1="lo"),VLOOKUP($A$6,town351,20)," ") -> 
A25: 11) | B25: Target local share (10 as % of 8) | C25: =IF(A6<352,VLOOKUP(lea,town351,12)/100," ") ->  | F25: *1% if shortfall is between 2.5% and 7.5%; 2% if shortfall > 7.5%
A26: 12) | B26: Target aid share (100% minus 11) | C26: =IF(A6<352,VLOOKUP(lea,aidcalc,12)/100," ") ->  | E26: 24) | F26: Special increment toward 82.5% target** | G26: =IF(AND(A$6<352,M1="lo"),VLOOKUP($A$6,town351,23)," ") -> 
F27: **if combined effort yield > 175% foundation
F28: Combined effort yield as % of foundation | G28: =IF(AND(A$6<352,M1="lo"),IF(VLOOKUP($A$6,town351,9)>175%,VLOOKUP($A$6,town351,9)," "),"") -> 
B29: See a listing of all 351 communities | E29: 25) | F29: Shortfall from target after adding increments (10 - 15 - 23 - 24) | G29: =IF(AND(A$6<352,M1="lo"),-1*VLOOKUP($A$6,town351,28)," ") -> 
E30: 26) | F30: =parameters!B1&" required local contribution (15 + 23 + 24)" -> FY21 required local contribution (15 + 23 + 24) | G30: =IF(AND(A$6<352,M1="lo"),VLOOKUP($A$6,town351,24)," ") -> 
E31: 27) | F31: Contribution as percentage of foundation (26 / 8) | G31: =IF(AND(A$6<352,M1="lo"),VLOOKUP($A$6,town351,25)/100," ") -> 

Sheet Regional Allocation
J1: More about the data
D2: Return to Index
D3: Massachusetts Department of Elementary and Secondary Education
D4: Office of School Finance
D5: =CYr& " Chapter 70 Apportionment of Local Contribution Across School Districts" -> FY21 Chapter 70 Apportionment of Local Contribution Across School Districts
E7: 4 | F7: 4 | G7: 3 | H7: 2 | I7: 1
A9: 5 | D9: =lea -> 999 | E9: =IF($D$9>351, "", IF(AND($D$9>0, VLOOKUP($D$9*5-E$7, order1755, $A9)<>0), VLOOKUP($D$9*5-E$7, order1755, $A9), "")) ->  | F9: =IF(OR($D$9="", $D$9>351), "", IF(AND($D$9>0, VLOOKUP($D$9*5-F$7, order1755, $A9)<>0), VLOOKUP($D$9*5-F$7, order1755, $A9), "")) ->  | G9: =IF(OR($D$9="", $D$9>351), "", IF(AND($D$9>0, VLOOKUP($D$9*5-G$7, order1755, $A9)<>0), VLOOKUP($D$9*5-G$7, order1755, $A9), "")) ->  | H9: =IF(OR($D$9="", $D$9>351), "", IF(AND($D$9>0, VLOOKUP($D$9*5-H$7, order1755, $A9)<>0), VLOOKUP($D$9*5-H$7, order1755, $A9), "")) ->  | I9: =IF(OR($D$9="", $D$9>351), "", IF(AND($D$9>0, VLOOKUP($D$9*5-I$7, order1755, $A9)<>0), VLOOKUP($D$9*5-I$7, order1755, $A9), "")) ->  | J9: Combined Total for All Districts
A10: 6
E11: Prior Year Data (for comparison purposes)
A13: 15 | D13: 1 | E13: =parameters!B2&" foundation enrollment" -> FY20 foundation enrollment | F13: =IF(OR($D$9="", $D$9>351), "", IF(AND($D$9>0, VLOOKUP($D$9*5-F$7, order1755, $A13)<>0), VLOOKUP($D$9*5-F$7, order1755, $A13), "")) ->  | J13: =IF(OR($D$9="", $D$9>351), "", VLOOKUP($D$9*5, order1755, $A13)) -> 
A14: 6 | D14: 2 | E14: =parameters!B2&" foundation budget" -> FY20 foundation budget | J14: =IF(OR($D$9="", $D$9>351), "", VLOOKUP($D$9*5, order1755, $A14)) -> 
A15: 7 | D15: 3 | E15: ="Each district's share of municipality's combined "& parameters!B2&" foundation" -> Each district's share of municipality's combined FY20 foundation | J15: =IF(OR($D$9="", $D$9>351), "", VLOOKUP($D$9*5, order1755, $A15)) -> 
A16: 12 | D16: 4 | E16: =parameters!B2&" required contribution" -> FY20 required contribution | J16: =IF(OR($D$9="", $D$9>351), "", VLOOKUP($D$9*5, order1755, $A16)) -> 
E17: =parameters!B1& " apportionment of contribution among community's districts" -> FY21 apportionment of contribution among community's districts
D18: 5 | E18: =parameters!B1&" total unapportioned required contribution ('municipal contribution' tab row 19 or 25)" -> FY21 total unapportioned required contribution ('municipal contribution' tab row 19 or 25) | J18: =IF(OR($D$9="", $D$9>351), "", VLOOKUP($D$9,town351,24)) -> 
A19: 20 | D19: 6 | E19: =parameters!B1&" foundation enrollment" -> FY21 foundation enrollment | F19: =IF(OR($D$9="", $D$9>351), "", IF(AND($D$9>0, VLOOKUP($D$9*5-F$7, order1755, $A19)<>0), VLOOKUP($D$9*5-F$7, order1755, $A19), "")) ->  | J19: =IF(OR($D$9="", $D$9>351), "", VLOOKUP($D$9*5, order1755, $A19)) -> 
A20: 8 | D20: 7 | E20: =parameters!B1&" foundation budget" -> FY21 foundation budget | J20: =IF(OR($D$9="", $D$9>351), "", VLOOKUP($D$9*5, order1755, $A20)) -> 
A21: 9 | D21: 8 | E21: ="Each district's share of municipality's total "& parameters!B1&" foundation " -> Each district's share of municipality's total FY21 foundation | J21: =IF(OR($D$9="", $D$9>351), "", VLOOKUP($D$9*5, order1755, $A21)) -> 
A22: 11 | D22: 9 | E22: =parameters!B1&" Required Contribution" -> FY21 Required Contribution | J22: =VLOOKUP($D$9*5, order1755, $A22) -> 6705321561
A24: 13 | D24: 10 | E24: ="Change "&parameters!B1&" to "&parameters!B2& " (9 - 4)" -> Change FY21 to FY20 (9 - 4) | F24: =IF(OR($D$9="", $D$9>351), "", IF(AND($D$9>0, VLOOKUP($D$9*5-F$7, order1755, $A24)<>0), VLOOKUP($D$9*5-F$7, order1755, $A24), "")) ->  | G24: =IF(OR($D$9="", $D$9>351), "", IF(AND($D$9>0, VLOOKUP($D$9*5-G$7, order1755, $A24)<>0), VLOOKUP($D$9*5-G$7, order1755, $A24), "")) ->  | H24: =IF(OR($D$9="", $D$9>351), "", IF(AND($D$9>0, VLOOKUP($D$9*5-H$7, order1755, $A24)<>0), VLOOKUP($D$9*5-H$7, order1755, $A24), "")) ->  | I24: =IF(OR($D$9="", $D$9>351), "", IF(AND($D$9>0, VLOOKUP($D$9*5-I$7, order1755, $A24)<>0), VLOOKUP($D$9*5-I$7, order1755, $A24), "")) ->  | J24: =IF(OR($D$9="", $D$9>351), "", VLOOKUP($D$9*5, order1755, $A24)) -> 
E26: The combined totals on lines 5 and 9 may differ due to rounding.

Sheet Summary
A1: Return to Index | J1: More about the data
A3: Massachusetts Department of Elementary and Secondary Education
A4: =parameters!B1&" Chapter 70 Summary" -> FY21 Chapter 70 Summary
A6: =lea -> 999 | B6: =PROPER(VLOOKUP(A6,dist915,2)) -> State Total
A8: Aid Calculation FY21 | E8: ="Comparison to "&PYr -> Comparison to FY20
F10: =PYr -> FY20 | G10: FY21 | H10: Change | I10: Pct Chg | U10: FY06 | V10: FY07 | W10: FY08 | X10: FY09 | Y10: FY10 | Z10: FY11 | AA10: FY12 | AB10: FY13 | AC10: FY14 | AD10: FY15 | AE10: FY16 | AF10: FY17 | AG10: FY18 | AH10: FY19 | AI10: FY20 | AJ10: FY21
A11: Prior Year Aid | E11: Enrollment | F11: =VLOOKUP(A6,aidcalc,13) -> 939683 | G11: =VLOOKUP(A6,aidcalc,14) -> 938085 | H11: =G11-F11 -> -1598 | I11: =IF(F11>0, H11/F11, 0) -> -0.001700573491 | T11: Required District Contribution | U11: =VLOOKUP($A$6,disthist,5) -> 4743946672 | V11: =VLOOKUP($A$6,disthist,8) -> 4876428772 | W11: =VLOOKUP($A$6,disthist,11) -> 4997705374 | X11: =VLOOKUP($A$6,disthist,14) -> 5110365426 | Y11: =VLOOKUP($A$6,disthist,18) -> 5250106061 | Z11: =VLOOKUP($A$6,disthist,22) -> 5302200670 | AA11: =VLOOKUP($A$6,disthist,27) -> 5413602268 | AB11: =VLOOKUP($A$6,disthist,30) -> 5582113529 | AC11: =VLOOKUP($A$6,disthist, 33) -> 5748475145 | AD11: =VLOOKUP($A$6,disthist, 36) -> 5817618237 | AE11: =VLOOKUP($A$6,disthist, 39) -> 5943909029 | AF11: =VLOOKUP($A$6,disthist, 42) -> 5926185567 | AG11: =VLOOKUP($A$6,disthist, 45) -> 6046916786 | AH11: =VLOOKUP($A$6,disthist, 48) -> 6246842886 | AI11: =VLOOKUP($A$6,disthist, 51) -> 6513607368 | AJ11: =VLOOKUP($A$6,aidcalc,9 ) -> 6705321561
A12: 1 | B12: ="Chapter 70 "&PYr -> Chapter 70 FY20 | C12: =VLOOKUP(A6,aidcalc,7) -> 5175694094 | E12: Foundation budget | F12: =VLOOKUP(A6,disthist,50) -> 1.135904851e+10 | G12: =VLOOKUP(A6,aidcalc,8) -> 1.16265311e+10 | H12: =G12-F12 -> 267482583.5 | I12: =IF(F12>0, H12/F12, 0) -> 0.02354797439 | T12: C70 Aid | U12: =VLOOKUP($A$6,disthist,6) -> 3288603062 | V12: =VLOOKUP($A$6,disthist,9) -> 3505192039 | W12: =VLOOKUP($A$6,disthist,12) -> 3725343327 | X12: =VLOOKUP($A$6,disthist,15)+VLOOKUP($A$6,disthist,16) -> 3948496062 | Y12: =VLOOKUP($A$6,disthist,19)+VLOOKUP($A$6,disthist,20) -> 4043156700 | Z12: =VLOOKUP($A$6,disthist,23)+VLOOKUP($A$6,disthist,24)+VLOOKUP($A$6,disthist,25) -> 4072032853 | AA12: =VLOOKUP($A$6,disthist,28) -> 3990504093 | AB12: =VLOOKUP($A$6,disthist,31) -> 4173223954 | AC12: =VLOOKUP($A$6,disthist,34) -> 4300854366 | AD12: =VLOOKUP($A$6,disthist,37) -> 4400335962 | AE12: =VLOOKUP($A$6,disthist,40) -> 4511521974 | AF12: =VLOOKUP($A$6,disthist,43) -> 4627705061 | AG12: =VLOOKUP($A$6,disthist,46) -> 4745645156 | AH12: =VLOOKUP($A$6,disthist,49) -> 4906614766 | AI12: =VLOOKUP($A$6,disthist,52) -> 5175694094 | AJ12: =VLOOKUP($A$6,aidcalc,39 ) -> 5283343073
E13: Required district contribution | F13: =VLOOKUP(A6,disthist,51) -> 6513607368 | G13: =VLOOKUP($A$6, aidcalc, 9) -> 6705321561 | H13: =G13-F13 -> 191714193 | I13: =IF(F13>0, H13/F13, 0) -> 0.02943287524 | T13: Foundation Budget | U13: =VLOOKUP($A$6,disthist,4) -> 7551933454 | V13: =VLOOKUP($A$6,disthist,7) -> 8014672861 | W13: =VLOOKUP($A$6,disthist,10) -> 8406096436 | X13: =VLOOKUP($A$6,disthist,13) -> 8811314229 | Y13: =VLOOKUP($A$6,disthist,17) -> 9088557473 | Z13: =VLOOKUP($A$6,disthist,21) -> 8921047970 | AA13: =VLOOKUP($A$6,disthist,26) -> 9119340580 | AB13: =VLOOKUP($A$6,disthist,29) -> 9467117141 | AC13: =VLOOKUP($A$6,disthist, 32) -> 9711217585 | AD13: =VLOOKUP($A$6,disthist, 35) -> 9866011313 | AE13: =VLOOKUP($A$6,disthist, 38) -> 1.009017727e+10 | AF13: =VLOOKUP($A$6,disthist, 41) -> 1.012823838e+10 | AG13: =VLOOKUP($A$6,disthist, 44) -> 1.037917384e+10 | AH13: =VLOOKUP($A$6,disthist, 47) -> 1.077758855e+10 | AI13: =VLOOKUP($A$6,disthist, 50) -> 1.135904851e+10 | AJ13: =VLOOKUP($A$6,aidcalc,8 ) -> 1.16265311e+10
A14: Foundation Aid | E14: Chapter 70 aid | F14: =IF(A6=999,VLOOKUP(A6,disthist,52,0)+308558,VLOOKUP(A6,disthist,52,0)) -> 5176002652 | G14: =IF(A6=999,VLOOKUP($A$6,aidcalc,39,0)+308558,VLOOKUP($A$6,aidcalc,39,0)) -> 5283651631 | H14: =G14-F14 -> 107648979.5 | I14: =IF(F14>0, H14/F14, 0) -> 0.02079770563
A15: 2 | B15: Foundation budget FY21 | C15: =VLOOKUP($A$6, aidcalc, 8) -> 1.16265311e+10 | E15: Required net school spending (NSS) | F15: =F13+F14 -> 11689610020 | G15: =G13+G14 -> 1.198897319e+10 | H15: =G15-F15 -> 299363172.5 | I15: =IF(F15>0, H15/F15, 0) -> 0.02560933786
A16: 3 | B16: ="Required district contribution "& CYr -> Required district contribution FY21 | C16: =VLOOKUP($A$6, aidcalc, 9) -> 6705321561
A17: 4 | B17: Foundation aid (2 -3) | C17: =VLOOKUP($A$6, aidcalc, 10) -> 4921209542 | E17: Target aid share | F17: =VLOOKUP(A$6,disthist,3)/100 -> 0.41 | G17: =VLOOKUP(A6,aidcalc,12)/100 -> 0.41
A18: 5 | B18: ="Increase over " & PYr&" (4 - 1)" -> Increase over FY20 (4 - 1) | C18: =VLOOKUP($A$6, aidcalc, 11) -> 106795442 | E18: C70 % of foundation | F18: =IF(F12>0,F14/F12,IF(F14>0,1,0)) -> 0.4556722024 | G18: =IF(G12>0,G14/G12,IF(G14>0,1,0)) -> 0.4544478132
A20: Minimum Aid (Not Funded) | E20: Required NSS % of foundation | F20: =IF(F12>0,F15/F12,IF(F15>0,1,0)) -> 1.029101162 | G20: =IF(G12>0,G15/G12,IF(G15>0,1,0)) -> 1.031173709
A21: 6 | B21: Minimum $30 per pupil increase | C21: =IF(A6=999,"",VLOOKUP($A$6,aidcalc,23,0)) -> 
A22: 7 | B22: Minimum aid amount
B23: (if line 6 - line 5 > 0, then line 6 - line 5, otherwise 0)
A25: Non-Operating District Reduction to Foundation
A26: 8 | B26: Reduction to foundation | C26: =VLOOKUP($A$6, aidcalc, 37) -> 66899.52
A28: Hold Harmless to July 2020 Adminstrative Update
A29: 9 | B29: Hold Harmless to Adminstrative Update | C29: =VLOOKUP($A$6, aidcalc, 38) -> 920437
A31: =CYr&" Chapter 70 Aid" -> FY21 Chapter 70 Aid
B32: Sum of 1,5,7,9 minus 8 | C32: =VLOOKUP($A$6, aidcalc, 39) -> 5283343073
C33: =IF(A6=999,C32+308558,"") -> 5283651631
C34: =IF(A6=999,"with Devens aid","") -> with Devens aid
A37: July 2020 Administrative Update:
A38: https://www.doe.mass.edu/covid19/finance-hr/chapter70-admin-update.html

Sheet Regional District Members
E2: Return to Index
F3: Select or type full regional district name below
E4: =VLOOKUP(reg_order, regdistricts, 3, FALSE) -> 600 | F4: Acton Boxborough | G4: =VLOOKUP(F4,leas!$E$450:$H$536,4,FALSE) -> 1
E6: Massachusetts Department of Elementary and Secondary Education
E7: Office of School Finance
E8: =CYr&" Chapter 70" -> FY21 Chapter 70
E9: Regional District Enrollment and Contributions by Member City or Town
E10: The table below presents the minimum required local contribution for each member to the selected regional district.
E11: Note: A city or town might belong to more than one regional district (e.g., a regional district and a vocational district) and therefore be required to contribute to multiple districts. See the regional allocation tab for a full list of minimum required contributions for each city or town.
B12: =VLOOKUP(E4, leas!D6:G445, 4, FALSE) -> 0600 | D12: 2 | E12: =VLOOKUP(reg_order, regdistricts, 2, FALSE) -> 600 Acton Boxborough
G14: Foundation Enrollment in Regional District | J14: Required Minimum Contribution to Regional District
B16: =VLOOKUP($E$4, regcount, 2, FALSE) -> 2 | E16: LEA | F16: Member | G16: =PYr -> FY20 | H16: =CYr -> FY21 | I16: Change | J16: =PYr -> FY20 | K16: =CYr -> FY21 | L16: Change
F18: Total | G18: =SUM(G20:G67) -> 5429 | H18: =SUM(H20:H67) -> 5294 | I18: =SUM(I20:I67) -> -135 | J18: =SUM(J20:J67) -> 45085137 | K18: =SUM(K20:K67) -> 46230356 | L18: =SUM(L20:L62) -> 1145219
A20: =IF($C20<=$B$16,VLOOKUP(E20,leas!D6:G445,4,FALSE),"") -> 0002 | B20: =$E$4*100+C20 -> 60001 | C20: 1 | E20: =IF($C20<=$B$16, VLOOKUP($B20, regdetail, 5), " ") -> 2 | F20: =IF($C20<=$B$16, VLOOKUP($B20, regdetail, 6), " ") -> Acton | G20: =IF($C20<=$B$16,VLOOKUP(A20&$B$12, localcont!A10:X1764, 18, FALSE), "") -> 4585.679103 | H20: =IF($C20<=$B$16,VLOOKUP(A20&$B$12, localcont!$A$10:$X$1764, 23, FALSE), "") -> 4437.978144 | I20: =IF($C20<=$B$16, H20-G20, " ") -> -147.700959 | J20: =IF($C20<=$B$16,VLOOKUP(A20&$B$12, localcont!$A$10:$X$1764, 15, FALSE), "") -> 37733689 | K20: =IF($C20<=$B$16,VLOOKUP(A20&$B$12, localcont!$A$10:$X$1764, 14, FALSE),"") -> 38561442 | L20: =IF($C20<=$B$16, K20-J20, " ") -> 827753
A21: =IF($C21<=$B$16,VLOOKUP(E21,leas!D7:G446,4,FALSE),"") -> 0037 | B21: =$E$4*100+C21 -> 60002 | C21: 2 | E21: 37 | F21: Boxborough | G21: =IF($C21<=$B$16,VLOOKUP(A21&$B$12, localcont!A11:X1765, 18, FALSE), "") -> 843.3208969 | H21: =IF($C21<=$B$16,VLOOKUP(A21&$B$12, localcont!$A$10:$X$1764, 23, FALSE), "") -> 856.0218559 | I21: =IF($C21<=$B$16, H21-G21, " ") -> 12.70095902 | J21: =IF($C21<=$B$16,VLOOKUP(A21&$B$12, localcont!$A$10:$X$1764, 15, FALSE), "") -> 7351448 | K21: =IF($C21<=$B$16,VLOOKUP(A21&$B$12, localcont!$A$10:$X$1764, 14, FALSE),"") -> 7668914 | L21: =IF($C21<=$B$16, K21-J21, " ") -> 317466
A22: =IF($C22<=$B$16,VLOOKUP(E22,leas!D8:G447,4,FALSE),"") ->  | B22: 60003 | C22: 3 | G22: =IF($C22<=$B$16,VLOOKUP(A22&$B$12, localcont!A12:X1766, 18, FALSE), "") ->  | H22: =IF($C22<=$B$16,VLOOKUP(A22&$B$12, localcont!$A$10:$X$1764, 23, FALSE), "") ->  | J22: =IF($C22<=$B$16,VLOOKUP(A22&$B$12, localcont!$A$10:$X$1764, 15, FALSE), "") ->  | K22: =IF($C22<=$B$16,VLOOKUP(A22&$B$12, localcont!$A$10:$X$1764, 14, FALSE),"") -> 
A23: =IF($C23<=$B$16,VLOOKUP(E23,leas!D9:G448,4,FALSE),"") ->  | B23: 60004 | C23: 4 | G23: =IF($C23<=$B$16,VLOOKUP(A23&$B$12, localcont!A13:X1767, 18, FALSE), "") ->  | H23: =IF($C23<=$B$16,VLOOKUP(A23&$B$12, localcont!$A$10:$X$1764, 23, FALSE), "") ->  | J23: =IF($C23<=$B$16,VLOOKUP(A23&$B$12, localcont!$A$10:$X$1764, 15, FALSE), "") ->  | K23: =IF($C23<=$B$16,VLOOKUP(A23&$B$12, localcont!$A$10:$X$1764, 14, FALSE),"") -> 
A24: =IF($C24<=$B$16,VLOOKUP(E24,leas!D10:G449,4,FALSE),"") ->  | B24: 60005 | C24: 5 | G24: =IF($C24<=$B$16,VLOOKUP(A24&$B$12, localcont!A14:X1768, 18, FALSE), "") ->  | H24: =IF($C24<=$B$16,VLOOKUP(A24&$B$12, localcont!$A$10:$X$1764, 23, FALSE), "") ->  | J24: =IF($C24<=$B$16,VLOOKUP(A24&$B$12, localcont!$A$10:$X$1764, 15, FALSE), "") ->  | K24: =IF($C24<=$B$16,VLOOKUP(A24&$B$12, localcont!$A$10:$X$1764, 14, FALSE),"") -> 
A25: =IF($C25<=$B$16,VLOOKUP(E25,leas!D11:G450,4,FALSE),"") ->  | B25: 60006 | C25: 6 | G25: =IF($C25<=$B$16,VLOOKUP(A25&$B$12, localcont!A15:X1769, 18, FALSE), "") ->  | H25: =IF($C25<=$B$16,VLOOKUP(A25&$B$12, localcont!$A$10:$X$1764, 23, FALSE), "") ->  | J25: =IF($C25<=$B$16,VLOOKUP(A25&$B$12, localcont!$A$10:$X$1764, 15, FALSE), "") ->  | K25: =IF($C25<=$B$16,VLOOKUP(A25&$B$12, localcont!$A$10:$X$1764, 14, FALSE),"") -> 
A26: =IF($C26<=$B$16,VLOOKUP(E26,leas!D12:G451,4,FALSE),"") ->  | B26: 60007 | C26: 7 | G26: =IF($C26<=$B$16,VLOOKUP(A26&$B$12, localcont!A16:X1770, 18, FALSE), "") ->  | H26: =IF($C26<=$B$16,VLOOKUP(A26&$B$12, localcont!$A$10:$X$1764, 23, FALSE), "") ->  | J26: =IF($C26<=$B$16,VLOOKUP(A26&$B$12, localcont!$A$10:$X$1764, 15, FALSE), "") ->  | K26: =IF($C26<=$B$16,VLOOKUP(A26&$B$12, localcont!$A$10:$X$1764, 14, FALSE),"") -> 
A27: =IF($C27<=$B$16,VLOOKUP(E27,leas!D13:G452,4,FALSE),"") ->  | B27: 60008 | C27: 8 | G27: =IF($C27<=$B$16,VLOOKUP(A27&$B$12, localcont!A17:X1771, 18, FALSE), "") ->  | H27: =IF($C27<=$B$16,VLOOKUP(A27&$B$12, localcont!$A$10:$X$1764, 23, FALSE), "") ->  | J27: =IF($C27<=$B$16,VLOOKUP(A27&$B$12, localcont!$A$10:$X$1764, 15, FALSE), "") ->  | K27: =IF($C27<=$B$16,VLOOKUP(A27&$B$12, localcont!$A$10:$X$1764, 14, FALSE),"") -> 
A28: =IF($C28<=$B$16,VLOOKUP(E28,leas!D14:G453,4,FALSE),"") ->  | B28: 60009 | C28: 9 | G28: =IF($C28<=$B$16,VLOOKUP(A28&$B$12, localcont!A18:X1772, 18, FALSE), "") ->  | H28: =IF($C28<=$B$16,VLOOKUP(A28&$B$12, localcont!$A$10:$X$1764, 23, FALSE), "") ->  | J28: =IF($C28<=$B$16,VLOOKUP(A28&$B$12, localcont!$A$10:$X$1764, 15, FALSE), "") ->  | K28: =IF($C28<=$B$16,VLOOKUP(A28&$B$12, localcont!$A$10:$X$1764, 14, FALSE),"") -> 
A29: =IF($C29<=$B$16,VLOOKUP(E29,leas!D15:G454,4,FALSE),"") ->  | B29: 60010 | C29: 10 | G29: =IF($C29<=$B$16,VLOOKUP(A29&$B$12, localcont!A19:X1773, 18, FALSE), "") ->  | H29: =IF($C29<=$B$16,VLOOKUP(A29&$B$12, localcont!$A$10:$X$1764, 23, FALSE), "") ->  | J29: =IF($C29<=$B$16,VLOOKUP(A29&$B$12, localcont!$A$10:$X$1764, 15, FALSE), "") ->  | K29: =IF($C29<=$B$16,VLOOKUP(A29&$B$12, localcont!$A$10:$X$1764, 14, FALSE),"") -> 
A30: =IF($C30<=$B$16,VLOOKUP(E30,leas!D16:G455,4,FALSE),"") ->  | B30: 60011 | C30: 11 | G30: =IF($C30<=$B$16,VLOOKUP(A30&$B$12, localcont!A20:X1774, 18, FALSE), "") ->  | H30: =IF($C30<=$B$16,VLOOKUP(A30&$B$12, localcont!$A$10:$X$1764, 23, FALSE), "") ->  | J30: =IF($C30<=$B$16,VLOOKUP(A30&$B$12, localcont!$A$10:$X$1764, 15, FALSE), "") ->  | K30: =IF($C30<=$B$16,VLOOKUP(A30&$B$12, localcont!$A$10:$X$1764, 14, FALSE),"") -> 
A31: =IF($C31<=$B$16,VLOOKUP(E31,leas!D17:G456,4,FALSE),"") ->  | B31: 60012 | C31: 12 | G31: =IF($C31<=$B$16,VLOOKUP(A31&$B$12, localcont!A21:X1775, 18, FALSE), "") ->  | H31: =IF($C31<=$B$16,VLOOKUP(A31&$B$12, localcont!$A$10:$X$1764, 23, FALSE), "") ->  | J31: =IF($C31<=$B$16,VLOOKUP(A31&$B$12, localcont!$A$10:$X$1764, 15, FALSE), "") ->  | K31: =IF($C31<=$B$16,VLOOKUP(A31&$B$12, localcont!$A$10:$X$1764, 14, FALSE),"") -> 
A32: =IF($C32<=$B$16,VLOOKUP(E32,leas!D18:G457,4,FALSE),"") ->  | B32: 60013 | C32: 13 | G32: =IF($C32<=$B$16,VLOOKUP(A32&$B$12, localcont!A22:X1776, 18, FALSE), "") ->  | H32: =IF($C32<=$B$16,VLOOKUP(A32&$B$12, localcont!$A$10:$X$1764, 23, FALSE), "") ->  | J32: =IF($C32<=$B$16,VLOOKUP(A32&$B$12, localcont!$A$10:$X$1764, 15, FALSE), "") ->  | K32: =IF($C32<=$B$16,VLOOKUP(A32&$B$12, localcont!$A$10:$X$1764, 14, FALSE),"") -> 
A33: =IF($C33<=$B$16,VLOOKUP(E33,leas!D19:G458,4,FALSE),"") ->  | B33: 60014 | C33: 14 | G33: =IF($C33<=$B$16,VLOOKUP(A33&$B$12, localcont!A23:X1777, 18, FALSE), "") ->  | H33: =IF($C33<=$B$16,VLOOKUP(A33&$B$12, localcont!$A$10:$X$1764, 23, FALSE), "") ->  | J33: =IF($C33<=$B$16,VLOOKUP(A33&$B$12, localcont!$A$10:$X$1764, 15, FALSE), "") ->  | K33: =IF($C33<=$B$16,VLOOKUP(A33&$B$12, localcont!$A$10:$X$1764, 14, FALSE),"") -> 
A34: =IF($C34<=$B$16,VLOOKUP(E34,leas!D20:G459,4,FALSE),"") ->  | B34: 60015 | C34: 15 | G34: =IF($C34<=$B$16,VLOOKUP(A34&$B$12, localcont!A24:X1778, 18, FALSE), "") ->  | H34: =IF($C34<=$B$16,VLOOKUP(A34&$B$12, localcont!$A$10:$X$1764, 23, FALSE), "") ->  | J34: =IF($C34<=$B$16,VLOOKUP(A34&$B$12, localcont!$A$10:$X$1764, 15, FALSE), "") ->  | K34: =IF($C34<=$B$16,VLOOKUP(A34&$B$12, localcont!$A$10:$X$1764, 14, FALSE),"") -> 
A35: =IF($C35<=$B$16,VLOOKUP(E35,leas!D21:G460,4,FALSE),"") ->  | B35: 60016 | C35: 16 | G35: =IF($C35<=$B$16,VLOOKUP(A35&$B$12, localcont!A25:X1779, 18, FALSE), "") ->  | H35: =IF($C35<=$B$16,VLOOKUP(A35&$B$12, localcont!$A$10:$X$1764, 23, FALSE), "") ->  | J35: =IF($C35<=$B$16,VLOOKUP(A35&$B$12, localcont!$A$10:$X$1764, 15, FALSE), "") ->  | K35: =IF($C35<=$B$16,VLOOKUP(A35&$B$12, localcont!$A$10:$X$1764, 14, FALSE),"") -> 
A36: =IF($C36<=$B$16,VLOOKUP(E36,leas!D22:G461,4,FALSE),"") ->  | B36: 60017 | C36: 17 | G36: =IF($C36<=$B$16,VLOOKUP(A36&$B$12, localcont!A26:X1780, 18, FALSE), "") ->  | H36: =IF($C36<=$B$16,VLOOKUP(A36&$B$12, localcont!$A$10:$X$1764, 23, FALSE), "") ->  | J36: =IF($C36<=$B$16,VLOOKUP(A36&$B$12, localcont!$A$10:$X$1764, 15, FALSE), "") ->  | K36: =IF($C36<=$B$16,VLOOKUP(A36&$B$12, localcont!$A$10:$X$1764, 14, FALSE),"") -> 
A37: =IF($C37<=$B$16,VLOOKUP(E37,leas!D23:G462,4,FALSE),"") ->  | B37: 60018 | C37: 18 | G37: =IF($C37<=$B$16,VLOOKUP(A37&$B$12, localcont!A27:X1781, 18, FALSE), "") ->  | H37: =IF($C37<=$B$16,VLOOKUP(A37&$B$12, localcont!$A$10:$X$1764, 23, FALSE), "") ->  | J37: =IF($C37<=$B$16,VLOOKUP(A37&$B$12, localcont!$A$10:$X$1764, 15, FALSE), "") ->  | K37: =IF($C37<=$B$16,VLOOKUP(A37&$B$12, localcont!$A$10:$X$1764, 14, FALSE),"") -> 
A38: =IF($C38<=$B$16,VLOOKUP(E38,leas!D24:G463,4,FALSE),"") ->  | B38: 60019 | C38: 19 | G38: =IF($C38<=$B$16,VLOOKUP(A38&$B$12, localcont!A28:X1782, 18, FALSE), "") ->  | H38: =IF($C38<=$B$16,VLOOKUP(A38&$B$12, localcont!$A$10:$X$1764, 23, FALSE), "") ->  | J38: =IF($C38<=$B$16,VLOOKUP(A38&$B$12, localcont!$A$10:$X$1764, 15, FALSE), "") ->  | K38: =IF($C38<=$B$16,VLOOKUP(A38&$B$12, localcont!$A$10:$X$1764, 14, FALSE),"") -> 
A39: =IF($C39<=$B$16,VLOOKUP(E39,leas!D25:G464,4,FALSE),"") ->  | B39: 60020 | C39: 20 | G39: =IF($C39<=$B$16,VLOOKUP(A39&$B$12, localcont!A29:X1783, 18, FALSE), "") ->  | H39: =IF($C39<=$B$16,VLOOKUP(A39&$B$12, localcont!$A$10:$X$1764, 23, FALSE), "") ->  | J39: =IF($C39<=$B$16,VLOOKUP(A39&$B$12, localcont!$A$10:$X$1764, 15, FALSE), "") ->  | K39: =IF($C39<=$B$16,VLOOKUP(A39&$B$12, localcont!$A$10:$X$1764, 14, FALSE),"") -> 
A40: =IF($C40<=$B$16,VLOOKUP(E40,leas!D26:G465,4,FALSE),"") ->  | B40: 60021 | C40: 21 | G40: =IF($C40<=$B$16,VLOOKUP(A40&$B$12, localcont!A30:X1784, 18, FALSE), "") ->  | H40: =IF($C40<=$B$16,VLOOKUP(A40&$B$12, localcont!$A$10:$X$1764, 23, FALSE), "") ->  | J40: =IF($C40<=$B$16,VLOOKUP(A40&$B$12, localcont!$A$10:$X$1764, 15, FALSE), "") ->  | K40: =IF($C40<=$B$16,VLOOKUP(A40&$B$12, localcont!$A$10:$X$1764, 14, FALSE),"") -> 
A41: =IF($C41<=$B$16,VLOOKUP(E41,leas!D27:G466,4,FALSE),"") ->  | B41: 60022 | C41: 22 | G41: =IF($C41<=$B$16,VLOOKUP(A41&$B$12, localcont!A31:X1785, 18, FALSE), "") ->  | H41: =IF($C41<=$B$16,VLOOKUP(A41&$B$12, localcont!$A$10:$X$1764, 23, FALSE), "") ->  | J41: =IF($C41<=$B$16,VLOOKUP(A41&$B$12, localcont!$A$10:$X$1764, 15, FALSE), "") ->  | K41: =IF($C41<=$B$16,VLOOKUP(A41&$B$12, localcont!$A$10:$X$1764, 14, FALSE),"") -> 
A42: =IF($C42<=$B$16,VLOOKUP(E42,leas!D28:G467,4,FALSE),"") ->  | B42: 60023 | C42: 23 | G42: =IF($C42<=$B$16,VLOOKUP(A42&$B$12, localcont!A32:X1786, 18, FALSE), "") ->  | H42: =IF($C42<=$B$16,VLOOKUP(A42&$B$12, localcont!$A$10:$X$1764, 23, FALSE), "") ->  | J42: =IF($C42<=$B$16,VLOOKUP(A42&$B$12, localcont!$A$10:$X$1764, 15, FALSE), "") ->  | K42: =IF($C42<=$B$16,VLOOKUP(A42&$B$12, localcont!$A$10:$X$1764, 14, FALSE),"") -> 
A43: =IF($C43<=$B$16,VLOOKUP(E43,leas!D29:G468,4,FALSE),"") ->  | B43: 60024 | C43: 24 | G43: =IF($C43<=$B$16,VLOOKUP(A43&$B$12, localcont!A33:X1787, 18, FALSE), "") ->  | H43: =IF($C43<=$B$16,VLOOKUP(A43&$B$12, localcont!$A$10:$X$1764, 23, FALSE), "") ->  | J43: =IF($C43<=$B$16,VLOOKUP(A43&$B$12, localcont!$A$10:$X$1764, 15, FALSE), "") ->  | K43: =IF($C43<=$B$16,VLOOKUP(A43&$B$12, localcont!$A$10:$X$1764, 14, FALSE),"") -> 
A44: =IF($C44<=$B$16,VLOOKUP(E44,leas!D30:G469,4,FALSE),"") ->  | B44: 60025 | C44: 25 | G44: =IF($C44<=$B$16,VLOOKUP(A44&$B$12, localcont!A34:X1788, 18, FALSE), "") ->  | H44: =IF($C44<=$B$16,VLOOKUP(A44&$B$12, localcont!$A$10:$X$1764, 23, FALSE), "") ->  | J44: =IF($C44<=$B$16,VLOOKUP(A44&$B$12, localcont!$A$10:$X$1764, 15, FALSE), "") ->  | K44: =IF($C44<=$B$16,VLOOKUP(A44&$B$12, localcont!$A$10:$X$1764, 14, FALSE),"") -> 
A45: =IF($C45<=$B$16,VLOOKUP(E45,leas!D31:G470,4,FALSE),"") ->  | B45: 60026 | C45: 26 | G45: =IF($C45<=$B$16,VLOOKUP(A45&$B$12, localcont!A35:X1789, 18, FALSE), "") ->  | H45: =IF($C45<=$B$16,VLOOKUP(A45&$B$12, localcont!$A$10:$X$1764, 23, FALSE), "") ->  | J45: =IF($C45<=$B$16,VLOOKUP(A45&$B$12, localcont!$A$10:$X$1764, 15, FALSE), "") ->  | K45: =IF($C45<=$B$16,VLOOKUP(A45&$B$12, localcont!$A$10:$X$1764, 14, FALSE),"") -> 
A46: =IF($C46<=$B$16,VLOOKUP(E46,leas!D32:G471,4,FALSE),"") ->  | B46: 60027 | C46: 27 | G46: =IF($C46<=$B$16,VLOOKUP(A46&$B$12, localcont!A36:X1790, 18, FALSE), "") ->  | H46: =IF($C46<=$B$16,VLOOKUP(A46&$B$12, localcont!$A$10:$X$1764, 23, FALSE), "") ->  | J46: =IF($C46<=$B$16,VLOOKUP(A46&$B$12, localcont!$A$10:$X$1764, 15, FALSE), "") ->  | K46: =IF($C46<=$B$16,VLOOKUP(A46&$B$12, localcont!$A$10:$X$1764, 14, FALSE),"") -> 
A47: =IF($C47<=$B$16,VLOOKUP(E47,leas!D33:G472,4,FALSE),"") ->  | B47: 60028 | C47: 28 | G47: =IF($C47<=$B$16,VLOOKUP(A47&$B$12, localcont!A37:X1791, 18, FALSE), "") ->  | H47: =IF($C47<=$B$16,VLOOKUP(A47&$B$12, localcont!$A$10:$X$1764, 23, FALSE), "") ->  | J47: =IF($C47<=$B$16,VLOOKUP(A47&$B$12, localcont!$A$10:$X$1764, 15, FALSE), "") ->  | K47: =IF($C47<=$B$16,VLOOKUP(A47&$B$12, localcont!$A$10:$X$1764, 14, FALSE),"") -> 
A48: =IF($C48<=$B$16,VLOOKUP(E48,leas!D34:G473,4,FALSE),"") ->  | B48: 60029 | C48: 29 | G48: =IF($C48<=$B$16,VLOOKUP(A48&$B$12, localcont!A38:X1792, 18, FALSE), "") ->  | H48: =IF($C48<=$B$16,VLOOKUP(A48&$B$12, localcont!$A$10:$X$1764, 23, FALSE), "") ->  | J48: =IF($C48<=$B$16,VLOOKUP(A48&$B$12, localcont!$A$10:$X$1764, 15, FALSE), "") ->  | K48: =IF($C48<=$B$16,VLOOKUP(A48&$B$12, localcont!$A$10:$X$1764, 14, FALSE),"") -> 
A49: =IF($C49<=$B$16,VLOOKUP(E49,leas!D35:G474,4,FALSE),"") ->  | B49: 60030 | C49: 30 | G49: =IF($C49<=$B$16,VLOOKUP(A49&$B$12, localcont!A39:X1793, 18, FALSE), "") ->  | H49: =IF($C49<=$B$16,VLOOKUP(A49&$B$12, localcont!$A$10:$X$1764, 23, FALSE), "") ->  | J49: =IF($C49<=$B$16,VLOOKUP(A49&$B$12, localcont!$A$10:$X$1764, 15, FALSE), "") ->  | K49: =IF($C49<=$B$16,VLOOKUP(A49&$B$12, localcont!$A$10:$X$1764, 14, FALSE),"") -> 
A50: =IF($C50<=$B$16,VLOOKUP(E50,leas!D36:G475,4,FALSE),"") ->  | B50: 60031 | C50: 31 | G50: =IF($C50<=$B$16,VLOOKUP(A50&$B$12, localcont!A40:X1794, 18, FALSE), "") ->  | H50: =IF($C50<=$B$16,VLOOKUP(A50&$B$12, localcont!$A$10:$X$1764, 23, FALSE), "") ->  | J50: =IF($C50<=$B$16,VLOOKUP(A50&$B$12, localcont!$A$10:$X$1764, 15, FALSE), "") ->  | K50: =IF($C50<=$B$16,VLOOKUP(A50&$B$12, localcont!$A$10:$X$1764, 14, FALSE),"") -> 
A51: =IF($C51<=$B$16,VLOOKUP(E51,leas!D37:G476,4,FALSE),"") ->  | B51: 60032 | C51: 32 | G51: =IF($C51<=$B$16,VLOOKUP(A51&$B$12, localcont!A41:X1795, 18, FALSE), "") ->  | H51: =IF($C51<=$B$16,VLOOKUP(A51&$B$12, localcont!$A$10:$X$1764, 23, FALSE), "") ->  | J51: =IF($C51<=$B$16,VLOOKUP(A51&$B$12, localcont!$A$10:$X$1764, 15, FALSE), "") ->  | K51: =IF($C51<=$B$16,VLOOKUP(A51&$B$12, localcont!$A$10:$X$1764, 14, FALSE),"") -> 
A52: =IF($C52<=$B$16,VLOOKUP(E52,leas!D38:G477,4,FALSE),"") ->  | B52: 60033 | C52: 33 | F52: =IF($C52<=$B$16, VLOOKUP($B52, regdetail, 6), " ") ->  | G52: =IF($C52<=$B$16,VLOOKUP(A52&$B$12, localcont!A42:X1796, 18, FALSE), "") ->  | H52: =IF($C52<=$B$16,VLOOKUP(A52&$B$12, localcont!$A$10:$X$1764, 23, FALSE), "") ->  | J52: =IF($C52<=$B$16,VLOOKUP(A52&$B$12, localcont!$A$10:$X$1764, 15, FALSE), "") ->  | K52: =IF($C52<=$B$16,VLOOKUP(A52&$B$12, localcont!$A$10:$X$1764, 14, FALSE),"") -> 
A53: =IF($C53<=$B$16,VLOOKUP(E53,leas!D39:G478,4,FALSE),"") ->  | B53: 60034 | C53: 34 | G53: =IF($C53<=$B$16,VLOOKUP(A53&$B$12, localcont!A43:X1797, 18, FALSE), "") ->  | H53: =IF($C53<=$B$16,VLOOKUP(A53&$B$12, localcont!$A$10:$X$1764, 23, FALSE), "") ->  | J53: =IF($C53<=$B$16,VLOOKUP(A53&$B$12, localcont!$A$10:$X$1764, 15, FALSE), "") ->  | K53: =IF($C53<=$B$16,VLOOKUP(A53&$B$12, localcont!$A$10:$X$1764, 14, FALSE),"") -> 
A54: =IF($C54<=$B$16,VLOOKUP(E54,leas!D40:G479,4,FALSE),"") ->  | B54: 60035 | C54: 35 | G54: =IF($C54<=$B$16,VLOOKUP(A54&$B$12, localcont!A44:X1798, 18, FALSE), "") ->  | H54: =IF($C54<=$B$16,VLOOKUP(A54&$B$12, localcont!$A$10:$X$1764, 23, FALSE), "") ->  | J54: =IF($C54<=$B$16,VLOOKUP(A54&$B$12, localcont!$A$10:$X$1764, 15, FALSE), "") ->  | K54: =IF($C54<=$B$16,VLOOKUP(A54&$B$12, localcont!$A$10:$X$1764, 14, FALSE),"") -> 
A55: =IF($C55<=$B$16,VLOOKUP(E55,leas!D41:G480,4,FALSE),"") ->  | B55: 60036 | C55: 36 | G55: =IF($C55<=$B$16,VLOOKUP(A55&$B$12, localcont!A45:X1799, 18, FALSE), "") ->  | H55: =IF($C55<=$B$16,VLOOKUP(A55&$B$12, localcont!$A$10:$X$1764, 23, FALSE), "") ->  | J55: =IF($C55<=$B$16,VLOOKUP(A55&$B$12, localcont!$A$10:$X$1764, 15, FALSE), "") ->  | K55: =IF($C55<=$B$16,VLOOKUP(A55&$B$12, localcont!$A$10:$X$1764, 14, FALSE),"") -> 
A56: =IF($C56<=$B$16,VLOOKUP(E56,leas!D42:G481,4,FALSE),"") ->  | B56: 60037 | C56: 37 | G56: =IF($C56<=$B$16,VLOOKUP(A56&$B$12, localcont!A46:X1800, 18, FALSE), "") ->  | H56: =IF($C56<=$B$16,VLOOKUP(A56&$B$12, localcont!$A$10:$X$1764, 23, FALSE), "") ->  | J56: =IF($C56<=$B$16,VLOOKUP(A56&$B$12, localcont!$A$10:$X$1764, 15, FALSE), "") ->  | K56: =IF($C56<=$B$16,VLOOKUP(A56&$B$12, localcont!$A$10:$X$1764, 14, FALSE),"") -> 
A57: =IF($C57<=$B$16,VLOOKUP(E57,leas!D43:G482,4,FALSE),"") ->  | B57: 60038 | C57: 38 | G57: =IF($C57<=$B$16,VLOOKUP(A57&$B$12, localcont!A47:X1801, 18, FALSE), "") ->  | H57: =IF($C57<=$B$16,VLOOKUP(A57&$B$12, localcont!$A$10:$X$1764, 23, FALSE), "") ->  | J57: =IF($C57<=$B$16,VLOOKUP(A57&$B$12, localcont!$A$10:$X$1764, 15, FALSE), "") ->  | K57: =IF($C57<=$B$16,VLOOKUP(A57&$B$12, localcont!$A$10:$X$1764, 14, FALSE),"") -> 
A58: =IF($C58<=$B$16,VLOOKUP(E58,leas!D44:G483,4,FALSE),"") ->  | B58: 60039 | C58: 39 | G58: =IF($C58<=$B$16,VLOOKUP(A58&$B$12, localcont!A48:X1802, 18, FALSE), "") ->  | H58: =IF($C58<=$B$16,VLOOKUP(A58&$B$12, localcont!$A$10:$X$1764, 23, FALSE), "") ->  | J58: =IF($C58<=$B$16,VLOOKUP(A58&$B$12, localcont!$A$10:$X$1764, 15, FALSE), "") ->  | K58: =IF($C58<=$B$16,VLOOKUP(A58&$B$12, localcont!$A$10:$X$1764, 14, FALSE),"") -> 
A59: =IF($C59<=$B$16,VLOOKUP(E59,leas!D45:G484,4,FALSE),"") ->  | B59: 60040 | C59: 40 | G59: =IF($C59<=$B$16,VLOOKUP(A59&$B$12, localcont!A49:X1803, 18, FALSE), "") ->  | H59: =IF($C59<=$B$16,VLOOKUP(A59&$B$12, localcont!$A$10:$X$1764, 23, FALSE), "") ->  | J59: =IF($C59<=$B$16,VLOOKUP(A59&$B$12, localcont!$A$10:$X$1764, 15, FALSE), "") ->  | K59: =IF($C59<=$B$16,VLOOKUP(A59&$B$12, localcont!$A$10:$X$1764, 14, FALSE),"") -> 
A60: =IF($C60<=$B$16,VLOOKUP(E60,leas!D46:G485,4,FALSE),"") ->  | B60: 60041 | C60: 41 | G60: =IF($C60<=$B$16,VLOOKUP(A60&$B$12, localcont!A50:X1804, 18, FALSE), "") ->  | H60: =IF($C60<=$B$16,VLOOKUP(A60&$B$12, localcont!$A$10:$X$1764, 23, FALSE), "") ->  | J60: =IF($C60<=$B$16,VLOOKUP(A60&$B$12, localcont!$A$10:$X$1764, 15, FALSE), "") ->  | K60: =IF($C60<=$B$16,VLOOKUP(A60&$B$12, localcont!$A$10:$X$1764, 14, FALSE),"") -> 
A61: =IF($C61<=$B$16,VLOOKUP(E61,leas!D47:G486,4,FALSE),"") ->  | B61: 60042 | C61: 42 | G61: =IF($C61<=$B$16,VLOOKUP(A61&$B$12, localcont!A51:X1805, 18, FALSE), "") ->  | H61: =IF($C61<=$B$16,VLOOKUP(A61&$B$12, localcont!$A$10:$X$1764, 23, FALSE), "") ->  | J61: =IF($C61<=$B$16,VLOOKUP(A61&$B$12, localcont!$A$10:$X$1764, 15, FALSE), "") ->  | K61: =IF($C61<=$B$16,VLOOKUP(A61&$B$12, localcont!$A$10:$X$1764, 14, FALSE),"") -> 
A62: =IF($C62<=$B$16,VLOOKUP(E62,leas!D48:G487,4,FALSE),"") ->  | B62: 60043 | C62: 43 | G62: =IF($C62<=$B$16,VLOOKUP(A62&$B$12, localcont!A52:X1806, 18, FALSE), "") ->  | H62: =IF($C62<=$B$16,VLOOKUP(A62&$B$12, localcont!$A$10:$X$1764, 23, FALSE), "") ->  | J62: =IF($C62<=$B$16,VLOOKUP(A62&$B$12, localcont!$A$10:$X$1764, 15, FALSE), "") ->  | K62: =IF($C62<=$B$16,VLOOKUP(A62&$B$12, localcont!$A$10:$X$1764, 14, FALSE),"") -> 
A63: =IF($C63<=$B$16,VLOOKUP(E63,leas!D49:G488,4,FALSE),"") ->  | B63: 60044 | C63: 44 | G63: =IF($C63<=$B$16,VLOOKUP(A63&$B$12, localcont!A53:X1807, 18, FALSE), "") ->  | H63: =IF($C63<=$B$16,VLOOKUP(A63&$B$12, localcont!$A$10:$X$1764, 23, FALSE), "") ->  | J63: =IF($C63<=$B$16,VLOOKUP(A63&$B$12, localcont!$A$10:$X$1764, 15, FALSE), "") ->  | K63: =IF($C63<=$B$16,VLOOKUP(A63&$B$12, localcont!$A$10:$X$1764, 14, FALSE),"") -> 
A64: =IF($C64<=$B$16,VLOOKUP(E64,leas!D50:G489,4,FALSE),"") ->  | B64: 60045 | C64: 45 | G64: =IF($C64<=$B$16,VLOOKUP(A64&$B$12, localcont!A54:X1808, 18, FALSE), "") ->  | H64: =IF($C64<=$B$16,VLOOKUP(A64&$B$12, localcont!$A$10:$X$1764, 23, FALSE), "") ->  | J64: =IF($C64<=$B$16,VLOOKUP(A64&$B$12, localcont!$A$10:$X$1764, 15, FALSE), "") ->  | K64: =IF($C64<=$B$16,VLOOKUP(A64&$B$12, localcont!$A$10:$X$1764, 14, FALSE),"") -> 
A65: =IF($C65<=$B$16,VLOOKUP(E65,leas!D51:G490,4,FALSE),"") ->  | B65: 60046 | C65: 46 | G65: =IF($C65<=$B$16,VLOOKUP(A65&$B$12, localcont!A55:X1809, 18, FALSE), "") ->  | H65: =IF($C65<=$B$16,VLOOKUP(A65&$B$12, localcont!$A$10:$X$1764, 23, FALSE), "") ->  | J65: =IF($C65<=$B$16,VLOOKUP(A65&$B$12, localcont!$A$10:$X$1764, 15, FALSE), "") ->  | K65: =IF($C65<=$B$16,VLOOKUP(A65&$B$12, localcont!$A$10:$X$1764, 14, FALSE),"") -> 
A66: =IF($C66<=$B$16,VLOOKUP(E66,leas!D52:G491,4,FALSE),"") ->  | B66: 60047 | C66: 47 | G66: =IF($C66<=$B$16,VLOOKUP(A66&$B$12, localcont!A56:X1810, 18, FALSE), "") ->  | H66: =IF($C66<=$B$16,VLOOKUP(A66&$B$12, localcont!$A$10:$X$1764, 23, FALSE), "") ->  | J66: =IF($C66<=$B$16,VLOOKUP(A66&$B$12, localcont!$A$10:$X$1764, 15, FALSE), "") ->  | K66: =IF($C66<=$B$16,VLOOKUP(A66&$B$12, localcont!$A$10:$X$1764, 14, FALSE),"") -> 
A67: =IF($C67<=$B$16,VLOOKUP(E67,leas!D53:G492,4,FALSE),"") ->  | B67: 60048 | C67: 48 | G67: =IF($C67<=$B$16,VLOOKUP(A67&$B$12, localcont!A57:X1811, 18, FALSE), "") ->  | H67: =IF($C67<=$B$16,VLOOKUP(A67&$B$12, localcont!$A$10:$X$1764, 23, FALSE), "") ->  | J67: =IF($C67<=$B$16,VLOOKUP(A67&$B$12, localcont!$A$10:$X$1764, 15, FALSE), "") ->  | K67: =IF($C67<=$B$16,VLOOKUP(A67&$B$12, localcont!$A$10:$X$1764, 14, FALSE),"") -> 
A68: =IF($C68<=$B$16,VLOOKUP(E68,leas!D54:G493,4,FALSE),"") ->  | B68: 60049 | C68: 49 | G68: =IF($C68<=$B$16,VLOOKUP(A68&$B$12, localcont!A58:X1812, 18, FALSE), "") ->  | H68: =IF($C68<=$B$16,VLOOKUP(A68&$B$12, localcont!$A$10:$X$1764, 23, FALSE), "") ->  | J68: =IF($C68<=$B$16,VLOOKUP(A68&$B$12, localcont!$A$10:$X$1764, 15, FALSE), "") ->  | K68: =IF($C68<=$B$16,VLOOKUP(A68&$B$12, localcont!$A$10:$X$1764, 14, FALSE),"") -> 

Sheet Comparison to FY20
B1: Return to Index | P1: More about the data
A2: Massachusetts Department of Elementary and Secondary Education
A3: =CYr&" Chapter 70 Comparison to "&PYr -> FY21 Chapter 70 Comparison to FY20
C7: =PYr -> FY20 | D7: FY21 | F7: =PYr -> FY20 | G7: FY21 | I7: =PYr -> FY20 | J7: FY21 | L7: =PYr -> FY20 | M7: FY21
B8: Operating | C8: Foundation | D8: Foundation | F8: Foundation | G8: Foundation | I8: Minimum | J8: Minimum | L8: Chapter 70 | M8: Chapter 70
A9: LEA | B9: District name | C9: Enrollment | D9: Enrollment | E9: change | F9: Budget | G9: Budget | H9: change per pupil | I9: Contribution | J9: Contribution | K9: change per pupil | L9: aid | M9: aid | N9: change in aid | O9: change in aid per pupil | P9: % change in aid
A10: 1 | B10: Abington | C10: =VLOOKUP(A10,aidcalc,13,0) -> 2105 | D10: =VLOOKUP(A10,aidcalc,14,0) -> 2197 | E10: =D10-C10 -> 92 | F10: =VLOOKUP(A10,aidcalc,4) -> 23388476.61 | G10: =VLOOKUP(A10,aidcalc,8) -> 25332546.71 | H10: =(G10-F10)/$D10 -> 884.8748772 | I10: =SUMIF(dist1755,A10,pynetmin) -> 14463601 | J10: =VLOOKUP(A10,aidcalc,9) -> 15287069 | K10: =(J10-I10)/$D10 -> 374.8147474 | L10: =VLOOKUP(A10,aidcalc,7) -> 8933994 | M10: =VLOOKUP(A10,aidcalc,39) -> 10045478 | N10: =M10-L10 -> 1111484 | O10: =(M10-L10)/$D10 -> 505.9098771 | P10: =ROUND(IF(F10>0,(M10-L10)/L10,100),2) -> 0.12
A11: 3 | B11: Acushnet | C11: 1272 | D11: 1292 | E11: =D11-C11 -> 20 | F11: 13443441.48 | G11: 13990412.9 | H11: 423.3524905 | I11: 7498601 | J11: 7889510 | K11: =(J11-I11)/$D11 -> 302.5611455 | L11: 6361492 | M11: 6361492 | N11: =M11-L11 -> 0 | O11: =(M11-L11)/$D11 -> 0 | P11: 0
A12: 5 | B12: Agawam | C12: 3677 | D12: 3623 | E12: -54 | F12: 42227451.05 | G12: 42427489.5 | H12: 55.21348347 | I12: 22951211 | J12: 23256462 | K12: 84.25365719 | L12: 19477412 | M12: 19477412 | N12: 0 | O12: 0 | P12: 0
A13: 7 | B13: Amesbury | C13: 2112 | D13: 2036 | E13: -76 | F13: 22996252.75 | G13: 22553274.58 | H13: -217.5727728 | I13: 15621860 | J13: 16118764 | K13: 244.0589391 | L13: 9190887 | M13: 9190887 | N13: 0 | O13: 0 | P13: 0
A14: 8 | B14: Amherst | C14: 1134 | D14: 1097 | E14: -37 | F14: 12803970.65 | G14: 12512134.57 | H14: -266.0310657 | I14: 9508882 | J14: 9645618 | K14: 124.6453965 | L14: 6122223 | M14: 6122223 | N14: 0 | O14: 0 | P14: 0
A15: 9 | B15: Andover | C15: 5835 | D15: 5740 | E15: -95 | F15: 63835635.79 | G15: 64237434.88 | H15: 69.99984012 | I15: 52178457 | J15: 52995883 | K15: 142.4087108 | L15: 11668291 | M15: 11668291 | N15: 0 | O15: 0 | P15: 0
A16: 10 | B16: Arlington | C16: 5980 | D16: 6092 | E16: 112 | F16: 62294073.1 | G16: 64895656.34 | H16: 427.0491208 | I16: 48330137 | J16: 50343449 | K16: 330.4845699 | L16: 13979327 | M16: 14566028 | N16: 586701 | O16: 96.3067958 | P16: 0.04
A17: 14 | B17: Ashland | C17: 2764 | D17: 2786 | E17: 22 | F17: 29177890.76 | G17: 30232498.72 | H17: 378.5383925 | I17: 21472389 | J17: 22294876 | K17: 295.2214645 | L17: 7839520 | M17: 7937623 | N17: 98103 | O17: 35.21284996 | P17: 0.01
A18: 16 | B18: Attleboro | C18: 6355 | D18: 6383 | E18: 28 | F18: 77760770.56 | G18: 79207276.43 | H18: 226.6184978 | I18: 36638947 | J18: 38037529 | K18: 219.1104496 | L18: 41121824 | M18: 41169747 | N18: 47923 | O18: 7.50791164 | P18: 0
A19: 17 | B19: Auburn | C19: 2494 | D19: 2511 | E19: 17 | F19: 26762943.25 | G19: 27521289.79 | H19: 302.0097732 | I19: 15076760 | J19: 15309359 | K19: 92.63201912 | L19: 11851108 | M19: 12211931 | N19: 360823 | O19: 143.6969335 | P19: 0.03
A20: 18 | B20: Avon | C20: 563 | D20: 586 | E20: 23 | F20: 6653932.031 | G20: 7045846.11 | H20: 668.7953568 | I20: 4537696 | J20: 4598969 | K20: 104.5614334 | L20: 2116236 | M20: 2448769 | N20: 332533 | O20: =(M20-L20)/$D20 -> 567.4624573 | P20: 0.16
A21: 20 | B21: Barnstable | C21: 5444 | D21: 5405 | E21: -39 | F21: 63524348.52 | G21: 65773443.14 | H21: 416.1137133 | I21: 51296149 | J21: 52762387 | K21: 271.2743756 | L21: 12228200 | M21: 13011056 | N21: 782856 | O21: 144.8392229 | P21: 0.06
A22: 23 | B22: Bedford | C22: 2693 | D22: 2707 | E22: 14 | F22: 29672258.16 | G22: 30502691.57 | H22: 306.7725946 | I22: 24098559 | J22: 25097492 | K22: 369.0184706 | L22: 5595167 | M22: 5595167 | N22: 0 | O22: 0 | P22: 0
A23: 24 | B23: Belchertown | C23: 2310 | D23: 2278 | E23: -32 | F23: 24514320.31 | G23: 24726417.46 | H23: 93.10673959 | I23: 12048062 | J23: 12418125 | K23: 162.4508341 | L23: 13884146 | M23: 13884146 | N23: 0 | O23: 0 | P23: 0
A24: 25 | B24: Bellingham | C24: 2286 | D24: 2247 | E24: -39 | F24: 24541929.43 | G24: 24676853.43 | H24: 60.04628591 | I24: 16455942 | J24: 16772086 | K24: 140.6960392 | L24: 8642425 | M24: 8642425 | N24: 0 | O24: 0 | P24: 0
A25: 26 | B25: Belmont | C25: 4517 | D25: 4638 | E25: 121 | F25: 47857221.47 | G25: 50418107.66 | H25: 552.1531249 | I25: 38364680 | J25: 40662179 | K25: 495.3641656 | L25: 9637942 | M25: 9755929 | N25: 117987 | O25: 25.43919793 | P25: 0.01
A26: 27 | B26: Berkley | C26: 742 | D26: 764 | E26: 22 | F26: 7578024.3 | G26: 8014902.18 | H26: 571.829686 | I26: 3944412 | J26: 4170576 | K26: 296.026178 | L26: 4003448 | M26: 4003448 | N26: 0 | O26: 0 | P26: 0
A27: 30 | B27: Beverly | C27: 4458 | D27: 4570 | E27: 112 | F27: 49446399.06 | G27: 51866271.12 | H27: 529.5124864 | I27: 40188832 | J27: 41749093 | K27: 341.4137856 | L27: 9257567 | M27: 10125430 | N27: 867863 | O27: 189.9043764 | P27: 0.09
A28: 31 | B28: Billerica | C28: 4866 | D28: 4866 | E28: 0 | F28: 51908631.2 | G28: 52647471.61 | H28: 151.8373219 | I28: 39371685 | J28: 41417136 | K28: 420.3557337 | L28: 19348854 | M28: 19348854 | N28: 0 | O28: 0 | P28: 0
A29: 35 | B29: Boston | C29: 63777 | D29: 62890 | E29: -887 | F29: 910864776.4 | G29: 924506066 | H29: 216.9071338 | I29: 749907338 | J29: 762717504 | K29: 203.6916203 | L29: 221915045 | M29: 221915045 | N29: 0 | O29: 0 | P29: 0
A30: 36 | B30: Bourne | C30: 2001 | D30: 2012 | E30: 11 | F30: 22123862.83 | G30: 22664002.02 | H30: 268.4588414 | I30: 18252187 | J30: 18697802 | K30: 221.4786282 | L30: 5215213 | M30: 5215213 | N30: 0 | O30: 0 | P30: 0
A31: 38 | B31: Boxford | C31: 705 | D31: 729 | E31: 24 | F31: 7004474.169 | G31: 7419452.155 | H31: 569.24278 | I31: 5765598 | J31: 6121048 | K31: 487.5857339 | L31: 1747903 | M31: 1747903 | N31: 0 | O31: 0 | P31: 0
A32: 40 | B32: Braintree | C32: 5682 | D32: 5666 | E32: -16 | F32: 63032117.84 | G32: 64248920.53 | H32: 214.7551518 | I32: 44795946 | J32: 46089277 | K32: 228.2617367 | L32: 18297651 | M32: 18297651 | N32: 0 | O32: 0 | P32: 0
A33: 41 | B33: Brewster | C33: 477 | D33: 468 | E33: -9 | F33: 5028082.151 | G33: 5175998.03 | H33: 316.05957 | I33: 4091479 | J33: 4206025 | K33: 244.7564103 | L33: 1011979 | M33: 1011979 | N33: 0 | O33: 0 | P33: 0
A34: 43 | B34: Brimfield | C34: 262 | D34: 283 | E34: 21 | F34: 2714228.212 | G34: 3081860.73 | H34: 1299.054832 | I34: 1546449 | J34: 1716855 | K34: 602.1413428 | L34: 1247172 | M34: 1365006 | N34: 117834 | O34: 416.3745583 | P34: 0.09
A35: 44 | B35: Brockton | C35: 17723 | D35: 17491 | E35: -232 | F35: 232535452.2 | G35: 237304379 | H35: 272.6503241 | I35: 46034943 | J35: 48074759 | K35: 116.6208907 | L35: 186500509 | M35: 189236745 | N35: 2736236 | O35: 156.4367961 | P35: 0.01
A36: 45 | B36: Brookfield | C36: 246 | D36: 253 | E36: 7 | F36: 2740659.036 | G36: 2871199.05 | H36: 515.9684358 | I36: 1155170 | J36: 1170696 | K36: 61.36758893 | L36: 1585489 | M36: 1700503 | N36: 115014 | O36: 454.6007905 | P36: 0.07
A37: 46 | B37: Brookline | C37: 7737 | D37: 7648 | E37: -89 | F37: 83235896.76 | G37: 83874467.61 | H37: 83.49514289 | I37: 68669614 | J37: 69196436 | K37: 68.88362971 | L37: 15006787 | M37: 15006787 | N37: 0 | O37: 0 | P37: 0
A38: 48 | B38: Burlington | C38: 3526 | D38: 3518 | E38: -8 | F38: 39132795.41 | G38: 40012176.14 | H38: 249.9660972 | I38: 32284557 | J38: 33010045 | K38: 206.2217169 | L38: 6851477 | M38: 7002131 | N38: 150654 | O38: 42.8237635 | P38: 0.02
A39: 49 | B39: Cambridge | C39: 7460 | D39: 7519 | E39: 59 | F39: 95754602.36 | G39: 97837766.09 | H39: 277.0532954 | I39: 78997547 | J39: 80716157 | K39: 228.5689586 | L39: 16757055 | M39: 17121609 | N39: 364554 | O39: 48.48437292 | P39: 0.02
A40: 50 | B40: Canton | C40: 3299 | D40: 3325 | E40: 26 | F40: 36127373.08 | G40: 37234938.64 | H40: 333.1024215 | I40: 29805082 | J40: 30718825 | K40: 274.8099248 | L40: 6327312 | M40: 6516115 | N40: 188803 | O40: 56.78285714 | P40: 0.03
A41: 51 | B41: Carlisle | C41: 571 | D41: 570 | E41: -1 | F41: 5645404.454 | G41: 5783671.18 | H41: 242.5732036 | I41: 4644791 | J41: 4771528 | K41: 222.345614 | L41: 1009657 | M41: 1012143 | N41: 2486 | O41: 4.361403509 | P41: 0
A42: 52 | B42: Carver | C42: 1582 | D42: 1591 | E42: 9 | F42: 17414154.78 | G42: 18039221.23 | H42: 392.876466 | I42: 9062138 | J42: 9418559 | K42: 224.0232558 | L42: 10008599 | M42: 10008599 | N42: 0 | O42: 0 | P42: 0
A43: 56 | B43: Chelmsford | C43: 5076 | D43: 5112 | E43: 36 | F43: 52945358.5 | G43: 54223728 | H43: 250.0722805 | I43: 42445789 | J43: 43879883 | K43: 280.53482 | L43: 11199428 | M43: 11199428 | N43: 0 | O43: 0 | P43: 0
A44: 57 | B44: Chelsea | C44: 7116 | D44: 7289 | E44: 173 | F44: 100163293.2 | G44: 105670798.9 | H44: 755.5913924 | I44: 18590816 | J44: 19903086 | K44: 180.0342983 | L44: 81572477 | M44: 85769782 | N44: 4197305 | O44: 575.8409933 | P44: 0.05
A45: 61 | B45: Chicopee | C45: 7666 | D45: 7571 | E45: -95 | F45: 99336604.58 | G45: 99981143.99 | H45: 85.13266501 | I45: 30513907 | J45: 30903112 | K45: 51.40734381 | L45: 68822698 | M45: 69078032 | N45: 255334 | O45: 33.72526747 | P45: 0
A46: 63 | B46: Clarksburg | C46: 182 | D46: 171 | E46: -11 | F46: 2056910.87 | G46: 2005332.37 | H46: -301.6286563 | I46: 685446 | J46: 683465 | K46: -11.58479532 | L46: 1799935 | M46: 1799935 | N46: 0 | O46: 0 | P46: 0
A47: 64 | B47: Clinton | C47: 2022 | D47: 2086 | E47: 64 | F47: 24086138.2 | G47: 25739349.56 | H47: 792.5270203 | I47: 10670037 | J47: 11372125 | K47: 336.5714286 | L47: 13416101 | M47: 14367225 | N47: 951124 | O47: 455.9558965 | P47: 0.07
A48: 65 | B48: Cohasset | C48: 1523 | D48: 1468 | E48: -55 | F48: 15680191 | G48: 15514224.73 | H48: -113.056046 | I48: 12936157 | J48: 12799236 | K48: -93.27043597 | L48: 2748292 | M48: 2748292 | N48: 0 | O48: 0 | P48: 0
A49: 67 | B49: Concord | C49: 2020 | D49: 2081 | E49: 61 | F49: 20298530.03 | G49: 21359034.91 | H49: 509.6131109 | I49: 16746287 | J49: 17621204 | K49: 420.4310428 | L49: 3552455 | M49: 3737831 | N49: 185376 | O49: 89.08024988 | P49: 0.05
A50: 68 | B50: Conway | C50: 86 | D50: 79 | E50: -7 | F50: 982498.9821 | G50: 894594.82 | H50: -1112.710913 | I50: 810562 | J50: 738041 | K50: -917.9873418 | L50: 626464 | M50: 626464 | N50: 0 | O50: 0 | P50: 0
A51: 71 | B51: Danvers | C51: 3545 | D51: 3483 | E51: -62 | F51: 37107615.19 | G51: 37325532.02 | H51: 62.56584161 | I51: 30032857 | J51: 30589946 | K51: 159.9451622 | L51: 7108192 | M51: 7108192 | N51: 0 | O51: 0 | P51: 0
A52: 72 | B52: Dartmouth | C52: 3553 | D52: 3517 | E52: -36 | F52: 38394448.35 | G52: 38785092.38 | H52: 111.0730825 | I52: 31675420 | J52: 31997701 | K52: 91.63520045 | L52: 9948121 | M52: 9948121 | N52: 0 | O52: 0 | P52: 0
A53: 73 | B53: Dedham | C53: 2681 | D53: 2700 | E53: 19 | F53: 30327812.14 | G53: 31069861.76 | H53: 274.8331938 | I53: 24319967 | J53: 25205198 | K53: 327.8633333 | L53: 6066360 | M53: 6066360 | N53: 0 | O53: 0 | P53: 0
A54: 74 | B54: Deerfield | C54: 316 | D54: 315 | E54: -1 | F54: 3354720.406 | G54: 3368724.27 | H54: 44.45671179 | I54: 2690443 | J54: 2732273 | K54: 132.7936508 | L54: 1114363 | M54: 1114363 | N54: 0 | O54: 0 | P54: 0
A55: 77 | B55: Douglas | C55: 1227 | D55: 1213 | E55: -14 | F55: 12970126.82 | G55: 13102757.23 | H55: 109.3408131 | I55: 7112759 | J55: 7355911 | K55: 200.4550701 | L55: 8759585 | M55: 8759585 | N55: 0 | O55: 0 | P55: 0
A56: 78 | B56: Dover | C56: 492 | D56: 492 | E56: 0 | F56: 4873658.069 | G56: 4983216.45 | H56: 222.6796362 | I56: 4020768 | J56: 4111154 | K56: 183.7113821 | L56: 853856 | M56: 872062 | N56: 18206 | O56: 37.00406504 | P56: 0.02
A57: 79 | B57: Dracut | C57: 3888 | D57: 3964 | E57: 76 | F57: 41837070.95 | G57: 44096709.13 | H57: 570.0399043 | I57: 23013126 | J57: 23979412 | K57: 243.7653885 | L57: 19413857 | M57: 20128364 | N57: 714507 | O57: 180.2489909 | P57: 0.04
A58: 82 | B58: Duxbury | C58: 2922 | D58: 2888 | E58: -34 | F58: 30413600.83 | G58: 30754555.55 | H58: 118.0591127 | I58: 25091221 | J58: 25372508 | K58: 97.39854571 | L58: 5340535 | M58: 5382048 | N58: 41513 | O58: 14.37430748 | P58: 0.01
A59: 83 | B59: East Bridgewater | C59: 2159 | D59: 2153 | E59: -6 | F59: 23021485.87 | G59: 23574021.35 | H59: 256.6351513 | I59: 12183037 | J59: 12580578 | K59: 184.6451463 | L59: 10847253 | M59: 10995125 | N59: 147872 | O59: 68.68183929 | P59: 0.01
A60: 85 | B60: Eastham | C60: 170 | D60: 191 | E60: 21 | F60: 1859186.078 | G60: 2151871.93 | H60: 1532.38666 | I60: 1533829 | J60: 1775294 | K60: 1264.21466 | L60: 364971 | M60: 376578 | N60: 11607 | O60: 60.76963351 | P60: 0.03
A61: 86 | B61: Easthampton | C61: 1733 | D61: 1719 | E61: -14 | F61: 19700559.14 | G61: 20082994.25 | H61: 222.4753416 | I61: 12320207 | J61: 12651233 | K61: 192.5689354 | L61: 8029692 | M61: 8029692 | N61: 0 | O61: 0 | P61: 0
A62: 87 | B62: East Longmeadow | C62: 2679 | D62: 2643 | E62: -36 | F62: 28769862.74 | G62: 29030299.67 | H62: 98.53837519 | I62: 16848895 | J62: 17494208 | K62: 244.1592887 | L62: 12102248 | M62: 12102248 | N62: 0 | O62: 0 | P62: 0
A63: 88 | B63: Easton | C63: 3559 | D63: 3516 | E63: -43 | F63: 37265050.04 | G63: 37563612.82 | H63: 84.91546773 | I63: 28602736 | J63: 29384825 | K63: 222.4371445 | L63: 10148451 | M63: 10148451 | N63: 0 | O63: 0 | P63: 0
A64: 89 | B64: Edgartown | C64: 438 | D64: 441 | E64: 3 | F64: 4884680.548 | G64: 5167542.74 | H64: 641.4108654 | I64: 4029861 | J64: 4263223 | K64: 529.1655329 | L64: 854820 | M64: 904320 | N64: 49500 | O64: 112.244898 | P64: 0.06
A65: 91 | B65: Erving | C65: 217 | D65: 219 | E65: 2 | F65: 2280809.049 | G65: 2326189.63 | H65: 207.2172652 | I65: 1881667 | J65: 1919106 | K65: 170.9543379 | L65: 471505 | M65: 471505 | N65: 0 | O65: 0 | P65: 0
A66: 93 | B66: Everett | C66: 7710 | D66: 7652 | E66: -58 | F66: 105617503.5 | G66: 109071464.2 | H66: 451.3801175 | I66: 30615794 | J66: 35431511 | K66: 629.3409566 | L66: 75001709 | M66: 75001709 | N66: 0 | O66: 0 | P66: 0
A67: 94 | B67: Fairhaven | C67: 1798 | D67: 1816 | E67: 18 | F67: 20489574.58 | G67: 20977288.11 | H67: 268.5647211 | I67: 12333105 | J67: 12688884 | K67: 195.9135463 | L67: 8156470 | M67: 8291230 | N67: 134760 | O67: 74.20704846 | P67: 0.02
A68: 95 | B68: Fall River | C68: 11987 | D68: 12095 | E68: 108 | F68: 162111258.6 | G68: 169915017.7 | H68: 645.2053846 | I68: 31184570 | J68: 32906432 | K68: 142.3614717 | L68: 130926689 | M68: 137016364 | N68: 6089675 | O68: 503.4869781 | P68: 0.05
A69: 96 | B69: Falmouth | C69: 3326 | D69: 3221 | E69: -105 | F69: 38230736 | G69: 38101629.06 | H69: -40.08287361 | I69: 31450637 | J69: 31433844 | K69: =(J69-I69)/$D69 -> -5.213598261 | L69: 6780099 | M69: 6780099 | N69: =M69-L69 -> 0 | O69: =(M69-L69)/$D69 -> 0 | P69: 0
A70: 97 | B70: Fitchburg | C70: 5798 | D70: 5815 | E70: 17 | F70: 75293069.02 | G70: 77039272.93 | H70: 300.2930198 | I70: 18599162 | J70: 19328344 | K70: 125.3967326 | L70: 56693907 | M70: 57710929 | N70: 1017022 | O70: 174.8963027 | P70: 0.02
A71: 98 | B71: Florida | C71: 66 | D71: 66 | E71: 0 | F71: 740254.54 | G71: 747149.5 | H71: 104.4690907 | I71: 441172 | J71: 475424 | K71: 518.969697 | L71: 550717 | M71: 550717 | N71: 0 | O71: 0 | P71: 0
A72: 99 | B72: Foxborough | C72: 2636 | D72: 2639 | E72: 3 | F72: 28934003.21 | G72: 29781054.53 | H72: 320.9743522 | I72: 23797381 | J72: 24569370 | K72: 292.5308829 | L72: 9046950 | M72: 9046950 | N72: 0 | O72: 0 | P72: 0
A73: 100 | B73: Framingham | C73: 9348 | D73: 9572 | E73: 224 | F73: 114246010.4 | G73: 121857618.3 | H73: 795.1951422 | I73: 63283830 | J73: 65102393 | K73: 189.9877768 | L73: 50962180 | M73: 56755225 | N73: 5793045 | O73: 605.2073757 | P73: 0.11
A74: 101 | B74: Franklin | C74: =VLOOKUP(A74,aidcalc,13,0) -> 5576 | D74: =VLOOKUP(A74,aidcalc,14,0) -> 5511 | E74: -65 | F74: =VLOOKUP(A74,aidcalc,4) -> 59674983.51 | G74: =VLOOKUP(A74,aidcalc,8) -> 60169866.39 | H74: =(G74-F74)/$D74 -> 89.79910741 | I74: =SUMIF(dist1755,A74,pynetmin) -> 40088811 | J74: =VLOOKUP(A74,aidcalc,9) -> 41152523 | K74: 193.0161495 | L74: =VLOOKUP(A74,aidcalc,7) -> 28416161 | M74: =VLOOKUP(A74,aidcalc,39) -> 28416161 | N74: 0 | O74: 0 | P74: =ROUND(IF(F74>0,(M74-L74)/L74,100),2) -> 0
A75: 103 | B75: Gardner | C75: 2471 | D75: 2418 | E75: =D75-C75 -> -53 | F75: 30422248.53 | G75: 30692122.61 | H75: 111.6104548 | I75: 9418789 | J75: 9927325 | K75: 210.3126551 | L75: 21003460 | M75: 21003460 | N75: 0 | O75: 0 | P75: 0
A76: 105 | B76: Georgetown | C76: 1314 | D76: 1303 | E76: -11 | F76: 13380030.1 | G76: 13521537.54 | H76: 108.6012564 | I76: 10305171 | J76: 10617926 | K76: 240.0268611 | L76: 5527768 | M76: 5527768 | N76: 0 | O76: 0 | P76: 0
A77: 107 | B77: Gloucester | C77: 3136 | D77: 3094 | E77: -42 | F77: 37845891.76 | G77: 38460242.65 | H77: 198.5620191 | I77: 31169618 | J77: 31729700 | K77: 181.021978 | L77: 6699157 | M77: 6730543 | N77: 31386 | O77: 10.14414997 | P77: 0
A78: 110 | B78: Grafton | C78: 3112 | D78: 3079 | E78: -33 | F78: 32167051.5 | G78: 32659858.43 | H78: 160.0542171 | I78: 21474332 | J78: 22211911 | K78: 239.5514778 | L78: 11108735 | M78: 11108735 | N78: 0 | O78: 0 | P78: 0
A79: 111 | B79: Granby | C79: 701 | D79: 710 | E79: 9 | F79: 7816401.303 | G79: 8181734.87 | H79: 514.5543202 | I79: 4990654 | J79: 5150983 | K79: 225.815493 | L79: 4664780 | M79: 4664780 | N79: 0 | O79: 0 | P79: 0
A80: 114 | B80: Greenfield | C80: 1989 | D80: 1965 | E80: -24 | F80: 23758804.48 | G80: 24159291.55 | H80: 203.8102142 | I80: 10147449 | J80: 10256971 | K80: 55.73638677 | L80: 13611355 | M80: 13902321 | N80: 290966 | O80: 148.0743003 | P80: 0.02
A81: 117 | B81: Hadley | C81: 559 | D81: 520 | E81: -39 | F81: 6230653.903 | G81: 5921818.32 | H81: -593.9145825 | I81: 4968021 | J81: 4885500 | K81: -158.6942308 | L81: 1279420 | M81: 1279420 | N81: 0 | O81: 0 | P81: 0
A82: 118 | B82: Halifax | C82: 647 | D82: 630 | E82: -17 | F82: 6718564.054 | G82: 6764091.258 | H82: 72.26540439 | I82: 3664674 | J82: 3795461 | K82: 207.5984127 | L82: 3063392 | M82: 3063392 | N82: 0 | O82: 0 | P82: 0
A83: 121 | B83: Hancock | C83: 73 | D83: 77 | E83: 4 | F83: 800339.2692 | G83: 883632.04 | H83: 1081.724296 | I83: 609145 | J83: 673593 | K83: 836.987013 | L83: 211450 | M83: 211450 | N83: 0 | O83: 0 | P83: 0
A84: 122 | B84: Hanover | C84: 2548 | D84: 2558 | E84: 10 | F84: 26655202.68 | G84: 27226298.17 | H84: 223.2585984 | I84: 20506773 | J84: 21124278 | K84: 241.4014855 | L84: 7023879 | M84: 7023879 | N84: 0 | O84: 0 | P84: 0
A85: 125 | B85: Harvard | C85: 931 | D85: 911 | E85: -20 | F85: 9480813.679 | G85: 9458347.19 | H85: -24.66134886 | I85: 7821672 | J85: 7803137 | K85: -20.34577387 | L85: 1982671 | M85: 1982671 | N85: 0 | O85: 0 | P85: 0
A86: 127 | B86: Hatfield | C86: 347 | D86: 353 | E86: 6 | F86: 3779440.848 | G86: 3943217.63 | H86: 463.95689 | I86: 3053395 | J86: 3167592 | K86: 323.5042493 | L86: 846256 | M86: 846256 | N86: 0 | O86: 0 | P86: 0
A87: 128 | B87: Haverhill | C87: 8237 | D87: 8540 | E87: 303 | F87: 100463268.1 | G87: 107173075.3 | H87: 785.6917097 | I87: 42109344 | J87: 43835110 | K87: 202.0803279 | L87: 58353924 | M87: 63349956 | N87: 4996032 | O87: 585.0154567 | P87: 0.09
A88: 131 | B88: Hingham | C88: 4253 | D88: 4289 | E88: 36 | F88: 43961797.37 | G88: 45460703.84 | H88: 349.4769114 | I88: 36268483 | J88: 37505081 | K88: 288.3184892 | L88: 7695110 | M88: 7955623 | N88: 260513 | O88: 60.73979949 | P88: 0.03
A89: 133 | B89: Holbrook | C89: 1288 | D89: 1346 | E89: 58 | F89: 15200054.58 | G89: 16096140.68 | H89: 665.7400447 | I89: 7861744 | J89: 8273118 | K89: 305.6270431 | L89: 7338311 | M89: 7826400 | N89: 488089 | O89: 362.6218425 | P89: 0.07
A90: 135 | B90: Holland | C90: 172 | D90: 156 | E90: -16 | F90: 1957811.389 | G90: 1899540.24 | H90: -373.5330057 | I90: 1087826 | J90: 1117998 | K90: 193.4102564 | L90: 933678 | M90: 933678 | N90: 0 | O90: 0 | P90: 0
A91: 136 | B91: Holliston | C91: 2688 | D91: 2706 | E91: 18 | F91: 27996289.16 | G91: 28673820.52 | H91: 250.3811374 | I91: 20267619 | J91: 21202129 | K91: 345.3473762 | L91: 7936216 | M91: 7936216 | N91: 0 | O91: 0 | P91: 0
A92: 137 | B92: Holyoke | C92: 6330 | D92: 6357 | E92: 27 | F92: 88111145.83 | G92: 90161028.66 | H92: 322.4607259 | I92: 11074770 | J92: 11207668 | K92: 20.90577316 | L92: 77036376 | M92: 78953361 | N92: 1916985 | O92: 301.5549788 | P92: 0.02
A93: 138 | B93: Hopedale | C93: 937 | D93: 924 | E93: -13 | F93: 9935233.215 | G93: 9927021.495 | H93: -8.887143078 | I93: 5786456 | J93: 5864081 | K93: 84.00974026 | L93: 6087390 | M93: 6087390 | N93: 0 | O93: 0 | P93: 0
A94: 139 | B94: Hopkinton | C94: 3702 | D94: 3867 | E94: 165 | F94: 39305559.54 | G94: 41585309.19 | H94: 589.5396029 | I94: 32314609 | J94: 34279876 | K94: 508.2148953 | L94: 7021215 | M94: 7305433 | N94: 284218 | O94: 73.49831911 | P94: 0.04
A95: 141 | B95: Hudson | C95: 2658 | D95: 2658 | E95: 0 | F95: 29439397.28 | G95: 30603552.29 | H95: 437.9815684 | I95: 17734729 | J95: 18666759 | K95: 350.6508653 | L95: 12020446 | M95: 12020446 | N95: 0 | O95: 0 | P95: 0
A96: 142 | B96: Hull | C96: 928 | D96: 896 | E96: -32 | F96: 10718331.73 | G96: 10567859.95 | H96: -167.9372496 | I96: 8741934 | J96: 8718484 | K96: -26.171875 | L96: 3874466 | M96: 3874466 | N96: 0 | O96: 0 | P96: 0
A97: 144 | B97: Ipswich | C97: 1670 | D97: 1654 | E97: -16 | F97: 18376694.04 | G97: 18495911.75 | H97: 72.07842002 | I97: 15160772 | J97: 15259127 | K97: 59.46493349 | L97: 3332340 | M97: 3332340 | N97: 0 | O97: 0 | P97: 0
A98: 145 | B98: Kingston | C98: 1082 | D98: 1105 | E98: 23 | F98: 11332153.55 | G98: 11789935.42 | H98: 414.2822396 | I98: 7314667 | J98: 7692593 | K98: 342.0144796 | L98: 4372585 | M98: 4372585 | N98: 0 | O98: 0 | P98: 0
A99: 149 | B99: Lawrence | C99: 15428 | D99: 15367 | E99: -61 | F99: 210870986.7 | G99: 218786376.4 | H99: 515.0901137 | I99: 10875618 | J99: 11530073 | K99: 42.58833865 | L99: 199995369 | M99: 207256303 | N99: 7260934 | O99: 472.5017245 | P99: 0.04
A100: 150 | B100: Lee | C100: 615 | D100: 616 | E100: 1 | F100: 7374237.847 | G100: 7515008.59 | H100: 228.5239334 | I100: 5858890 | J100: 6036549 | K100: 288.4074675 | L100: 2085069 | M100: 2085069 | N100: 0 | O100: 0 | P100: 0
A101: 151 | B101: Leicester | C101: 1555 | D101: 1539 | E101: -16 | F101: 17701915.2 | G101: 18032789.12 | H101: 214.992803 | I101: 8369468 | J101: 8592877 | K101: 145.1650422 | L101: 9802497 | M101: 9802497 | N101: 0 | O101: 0 | P101: 0
A102: 152 | B102: Lenox | C102: 494 | D102: 507 | E102: 13 | F102: 5511981.85 | G102: 5736170.58 | H102: 442.1868444 | I102: 4547385 | J102: 4728371 | K102: 356.974359 | L102: 1272525 | M102: 1272525 | N102: 0 | O102: 0 | P102: 0
A103: 153 | B103: Leominster | C103: 6157 | D103: 6177 | E103: 20 | F103: 77172702.96 | G103: 79655609.19 | H103: 401.9598889 | I103: 30127166 | J103: 30886014 | K103: 122.8505747 | L103: 47045537 | M103: 48769595 | N103: 1724058 | O103: 279.1092763 | P103: 0.04
A104: 154 | B104: Leverett | C104: 112 | D104: 116 | E104: 4 | F104: 1166005.24 | G104: 1203602.15 | H104: 324.1112918 | I104: 885170 | J104: 992972 | K104: 929.3275862 | L104: 295511 | M104: 295511 | N104: 0 | O104: 0 | P104: 0
A105: 155 | B105: Lexington | C105: 7335 | D105: 7282 | E105: -53 | F105: 80260931.78 | G105: 81400953.56 | H105: 156.5533899 | I105: 66088777 | J105: 67155786 | K105: 146.5269157 | L105: 14438034 | M105: 14438034 | N105: 0 | O105: 0 | P105: 0
A106: 157 | B106: Lincoln | C106: 653 | D106: 595 | E106: -58 | F106: 6701030.602 | G106: 6274212.113 | H106: -717.3419993 | I106: 5528351 | J106: 5176225 | K106: -591.8084034 | L106: 1174169 | M106: 1174169 | N106: 0 | O106: 0 | P106: 0
A107: 158 | B107: Littleton | C107: 1612 | D107: 1611 | E107: -1 | F107: 16632291.76 | G107: 16791308.8 | H107: 98.70703786 | I107: 13448982 | J107: 13852830 | K107: 250.6815642 | L107: 4039908 | M107: 4039908 | N107: 0 | O107: 0 | P107: 0
A108: 159 | B108: Longmeadow | C108: 2855 | D108: 2808 | E108: -47 | F108: 29113308.34 | G108: 29237892.87 | H108: 44.3677103 | I108: 23465469 | J108: 24121262 | K108: 233.5445157 | L108: 5669282 | M108: 5669282 | N108: 0 | O108: 0 | P108: 0
A109: 160 | B109: Lowell | C109: 16353 | D109: 16352 | E109: -1 | F109: 212748263.5 | G109: 218744159.7 | H109: 366.6766258 | I109: 49724317 | J109: 51808768 | K109: 127.4737647 | L109: 163023947 | M109: 166954483 | N109: 3930536 | O109: 240.3703523 | P109: 0.02
A110: 161 | B110: Ludlow | C110: 2543 | D110: 2509 | E110: -34 | F110: 29028174.44 | G110: 29294399.16 | H110: 106.107898 | I110: 16193284 | J110: 16443714 | K110: 99.81267437 | L110: 13795983 | M110: 13795983 | N110: 0 | O110: 0 | P110: 0
A111: 162 | B111: Lunenburg | C111: 1705 | D111: 1705 | E111: 0 | F111: 17948505.28 | G111: 18301715.41 | H111: 207.1613641 | I111: 10176765 | J111: 10527777 | K111: 205.8721408 | L111: 7771740 | M111: 7773938 | N111: 2198 | O111: 1.28914956 | P111: 0
A112: 163 | B112: Lynn | C112: 17598 | D112: 18087 | E112: 489 | F112: 238010020.2 | G112: 252551048.5 | H112: 803.9491484 | I112: 52164961 | J112: 53396054 | K112: 68.06507436 | L112: 185845059 | M112: 199154994 | N112: 13309935 | O112: 735.8840604 | P112: 0.07
A113: 164 | B113: Lynnfield | C113: 2199 | D113: 2205 | E113: 6 | F113: 23010166.94 | G113: 23513323.47 | H113: 228.1889003 | I113: 18762401 | J113: 19317442 | K113: 251.7192744 | L113: 4404631 | M113: 4404631 | N113: 0 | O113: 0 | P113: 0
A114: 165 | B114: Malden | C114: 7451 | D114: 7268 | E114: -183 | F114: 95060966.5 | G114: 94879629.91 | H114: -24.94999855 | I114: 43854744 | J114: 45560692 | K114: 234.7204183 | L114: 51206223 | M114: 51206223 | N114: 0 | O114: 0 | P114: 0
A115: 167 | B115: Mansfield | C115: 3867 | D115: 3730 | E115: -137 | F115: 42363212.75 | G115: 41671720.92 | H115: -185.3865506 | I115: 28659688 | J115: 29709526 | K115: 281.4579088 | L115: 18962339 | M115: 18962339 | N115: 0 | O115: 0 | P115: 0
A116: 168 | B116: Marblehead | C116: 3144 | D116: 3023 | E116: -121 | F116: 32505638.69 | G116: 31915735.24 | H116: -195.1384213 | I116: 26599814 | J116: 26330482 | K116: -89.09427721 | L116: 5952147 | M116: 5952147 | N116: 0 | O116: 0 | P116: 0
A117: 169 | B117: Marion | C117: 450 | D117: 432 | E117: -18 | F117: 4612923.796 | G117: 4522671.78 | H117: -208.9167045 | I117: 3799640 | J117: 3731204 | K117: -158.4166667 | L117: 860344 | M117: 860344 | N117: 0 | O117: 0 | P117: 0
A118: 170 | B118: Marlborough | C118: 5213 | D118: 5336 | E118: 123 | F118: 64168256.45 | G118: 67959735.83 | H118: 710.5471105 | I118: 35637847 | J118: 36937156 | K118: 243.4986882 | L118: 28530409 | M118: 31032674 | N118: 2502265 | O118: 468.9402174 | P118: 0.09
A119: 171 | B119: Marshfield | C119: 4046 | D119: 3941 | E119: -105 | F119: 43523657.53 | G119: 43514601.6 | H119: -2.297876301 | I119: 35619824 | J119: 35899546 | K119: 70.9774169 | L119: 14664853 | M119: 14664853 | N119: 0 | O119: 0 | P119: 0
A120: 172 | B120: Mashpee | C120: 1647 | D120: 1585 | E120: -62 | F120: 18627382.03 | G120: 18424932.77 | H120: -127.7282426 | I120: 15124670 | J120: 15200570 | K120: 47.88643533 | L120: 4640166 | M120: 4640166 | N120: 0 | O120: 0 | P120: 0
A121: 173 | B121: Mattapoisett | C121: 436 | D121: 437 | E121: 1 | F121: 4426546.981 | G121: 4546818.59 | H121: 275.2210733 | I121: 3651901 | J121: 3751126 | K121: 227.0594966 | L121: 839485 | M121: 839485 | N121: 0 | O121: 0 | P121: 0
A122: 174 | B122: Maynard | C122: 1364 | D122: 1305 | E122: -59 | F122: 15291603.71 | G122: 14950228.73 | H122: -261.590028 | I122: 10005157 | J122: 10176959 | K122: 131.6490421 | L122: 5442941 | M122: 5442941 | N122: 0 | O122: 0 | P122: 0
A123: 175 | B123: Medfield | C123: 2520 | D123: 2513 | E123: -7 | F123: 26032948.58 | G123: 26552098.79 | H123: 206.5858357 | I123: 21176396 | J123: 21905481 | K123: 290.1253482 | L123: 6288744 | M123: 6288744 | N123: 0 | O123: 0 | P123: 0
A124: 176 | B124: Medford | C124: 4618 | D124: 4622 | E124: 4 | F124: 58384769.5 | G124: 59524340.66 | H124: 246.5536918 | I124: 48076837 | J124: 49107581 | K124: 223.0082215 | L124: 12143306 | M124: 12143306 | N124: 0 | O124: 0 | P124: 0
A125: 177 | B125: Medway | C125: 2219 | D125: 2186 | E125: -33 | F125: 23515724.42 | G125: 23623580.68 | H125: 49.33955223 | I125: 16195477 | J125: 16885292 | K125: 315.5603843 | L125: 10501419 | M125: 10501419 | N125: 0 | O125: 0 | P125: 0
A126: 178 | B126: Melrose | C126: 3943 | D126: 4013 | E126: 70 | F126: 42022188.06 | G126: 43519030.45 | H126: 372.9983531 | I126: 33686027 | J126: 35108451 | K126: 354.4540244 | L126: 8514496 | M126: 8514496 | N126: 0 | O126: 0 | P126: 0
A127: 181 | B127: Methuen | C127: 7164 | D127: 7124 | E127: -40 | F127: 86487500.83 | G127: 88769466.08 | H127: 320.3207816 | I127: 38919879 | J127: 40325303 | K127: 197.2801797 | L127: 47567622 | M127: 48444163 | N127: 876541 | O127: 123.0405671 | P127: 0.02
A128: 182 | B128: Middleborough | C128: 3053 | D128: 3073 | E128: 20 | F128: 34113306.29 | G128: 35057530.5 | H128: 307.2646309 | I128: 16968154 | J128: 18220402 | K128: =(J128-I128)/$D128 -> 407.5001627 | L128: 17978609 | M128: 17978609 | N128: =M128-L128 -> 0 | O128: =(M128-L128)/$D128 -> 0 | P128: 0
A129: 184 | B129: Middleton | C129: 670 | D129: 686 | E129: 16 | F129: 6689182.211 | G129: 7013290.126 | H129: 472.4605178 | I129: 5513538 | J129: 5785964 | K129: 397.122449 | L129: 1666151 | M129: 1666151 | N129: 0 | O129: 0 | P129: 0
A130: 185 | B130: Milford | C130: 4317 | D130: 4482 | E130: 165 | F130: 52148898.39 | G130: 56604613.88 | H130: 994.1355396 | I130: 24846959 | J130: 25435714 | K130: 131.359884 | L130: 27301939 | M130: 31168900 | N130: 3866961 | O130: 862.7757697 | P130: 0.14
A131: 186 | B131: Millbury | C131: 1729 | D131: 1743 | E131: 14 | F131: 19134294.71 | G131: 19675592.06 | H131: 310.5549921 | I131: 11458671 | J131: 11797270 | K131: 194.2621916 | L131: 7675624 | M131: 7878322 | N131: 202698 | O131: 116.292599 | P131: 0.03
A132: 187 | B132: Millis | C132: 1146 | D132: 1088 | E132: -58 | F132: 12179710.21 | G132: 11739340.25 | H132: -404.7518031 | I132: 8612588 | J132: 8676571 | K132: 58.80790441 | L132: 4831312 | M132: 4831312 | N132: 0 | O132: 0 | P132: 0
A133: 189 | B133: Milton | C133: 4220 | D133: 4374 | E133: 154 | F133: 44445617.57 | G133: 46912230.01 | H133: 563.9260262 | I133: 35446365 | J133: 37346878 | K133: 434.5022862 | L133: 9033561 | M133: 9567275 | N133: 533714 | O133: 122.0196616 | P133: 0.06
A134: 191 | B134: Monson | C134: 936 | D134: 934 | E134: -2 | F134: 10353119.73 | G134: 10603017.18 | H134: 267.5561575 | I134: 5746939 | J134: 5893568 | K134: 156.990364 | L134: 7541075 | M134: 7541075 | N134: 0 | O134: 0 | P134: 0
A135: 196 | B135: Nahant | C135: 257 | D135: 266 | E135: 9 | F135: 2602347.191 | G135: 2739284.95 | H135: 514.8036069 | I135: 2146936 | J135: 2259910 | K135: 424.7142857 | L135: 523513 | M135: 523513 | N135: 0 | O135: 0 | P135: 0
A136: 197 | B136: Nantucket | C136: 1663 | D136: 1664 | E136: 1 | F136: 19008236.73 | G136: 19472349.76 | H136: 278.9140778 | I136: 15681795 | J136: 16064689 | K136: 230.1045673 | L136: 3600249 | M136: 3600249 | N136: 0 | O136: 0 | P136: 0
A137: 198 | B137: Natick | C137: 5508 | D137: 5484 | E137: -24 | F137: 57774437.1 | G137: 58312471.33 | H137: 98.10981541 | I137: 47663911 | J137: 48107789 | K137: 80.94055434 | L137: 10120767 | M137: 10204682 | N137: 83915 | O137: 15.30178702 | P137: 0.01
A138: 199 | B138: Needham | C138: =VLOOKUP(A138,aidcalc,13,0) -> 5556 | D138: =VLOOKUP(A138,aidcalc,14,0) -> 5754 | E138: 198 | F138: =VLOOKUP(A138,aidcalc,4) -> 59693731.69 | G138: =VLOOKUP(A138,aidcalc,8) -> 63004475.7 | H138: =(G138-F138)/$D138 -> 575.3813026 | I138: =SUMIF(dist1755,A138,pynetmin) -> 49247329 | J138: =VLOOKUP(A138,aidcalc,9) -> 51978693 | K138: 474.6896072 | L138: =VLOOKUP(A138,aidcalc,7) -> 10451715 | M138: =VLOOKUP(A138,aidcalc,39) -> 11025783 | N138: 574068 | O138: 99.76850886 | P138: =ROUND(IF(F138>0,(M138-L138)/L138,100),2) -> 0.05
A139: 201 | B139: New Bedford | C139: 14042 | D139: 14257 | E139: =D139-C139 -> 215 | F139: 189742059.8 | G139: 197388756 | H139: 536.3467958 | I139: 29911096 | J139: 31307615 | K139: 97.95321596 | L139: 159830964 | M139: 166091904 | N139: 6260940 | O139: 439.1484885 | P139: 0.04
A140: 204 | B140: Newburyport | C140: 2341 | D140: 2308 | E140: -33 | F140: 23879060.91 | G140: 24204978.57 | H140: 141.2121596 | I140: 19700226 | J140: 19969107 | K140: 116.4995667 | L140: 4182944 | M140: 4235872 | N140: 52928 | O140: 22.93240901 | P140: 0.01
A141: 207 | B141: Newton | C141: 12889 | D141: 12831 | E141: -58 | F141: 141578979.1 | G141: 143592665.2 | H141: 156.9391445 | I141: 116802658 | J141: 118463949 | K141: 129.4747876 | L141: 24814496 | M141: 25128716 | N141: 314220 | O141: 24.48912789 | P141: 0.01
A142: 208 | B142: Norfolk | C142: 916 | D142: 944 | E142: 28 | F142: 9114958.338 | G142: 9555961.115 | H142: 467.1639583 | I142: 7519840 | J142: 7883668 | K142: 385.4110169 | L142: 3461385 | M142: 3461385 | N142: 0 | O142: 0 | P142: 0
A143: 209 | B143: North Adams | C143: 1444 | D143: 1424 | E143: -20 | F143: 17859474.7 | G143: 18178355.15 | H143: 223.9328976 | I143: 5053318 | J143: 5057245 | K143: 2.757724719 | L143: 13809703 | M143: 13809703 | N143: 0 | O143: 0 | P143: 0
A144: 210 | B144: Northampton | C144: 2702 | D144: 2745 | E144: 43 | F144: 30030364.25 | G144: 31063338.95 | H144: 376.3113657 | I144: 24547028 | J144: 25627255 | K144: 393.5253188 | L144: 7558369 | M144: 7558369 | N144: 0 | O144: 0 | P144: 0
A145: 211 | B145: North Andover | C145: 4796 | D145: 4704 | E145: -92 | F145: 50326384.48 | G145: 50577443.99 | H145: 53.37149471 | I145: 41262379 | J145: 41726391 | K145: 98.6420068 | L145: 9160097 | M145: 9160097 | N145: 0 | O145: 0 | P145: 0
A146: 212 | B146: North Attleborough | C146: 4179 | D146: 4170 | E146: -9 | F146: 44126489.42 | G146: 45073173.74 | H146: 227.0226179 | I146: 26972001 | J146: 28270188 | K146: 311.3158273 | L146: 20682041 | M146: 20682041 | N146: 0 | O146: 0 | P146: 0
A147: 213 | B147: Northborough | C147: 1541 | D147: 1540 | E147: -1 | F147: 15348450.35 | G147: 15653167.56 | H147: 197.8683191 | I147: 12662472 | J147: 12913864 | K147: 163.2415584 | L147: 3993500 | M147: 3993500 | N147: 0 | O147: 0 | P147: 0
A148: 214 | B148: Northbridge | C148: 2133 | D148: 2074 | E148: -59 | F148: 23912162.03 | G148: 23651358.31 | H148: -125.7491428 | I148: 12120372 | J148: 12499433 | K148: 182.768081 | L148: 15603931 | M148: 15603931 | N148: 0 | O148: 0 | P148: 0
A149: 215 | B149: North Brookfield | C149: 609 | D149: 609 | E149: 0 | F149: 6861155.143 | G149: 6921441.02 | H149: 98.9915884 | I149: 2904011 | J149: 2970928 | K149: 109.8801314 | L149: 4290838 | M149: 4290838 | N149: 0 | O149: 0 | P149: 0
A150: 217 | B150: North Reading | C150: 2347 | D150: 2320 | E150: -27 | F150: 25154643.37 | G150: 25345400.25 | H150: 82.22279521 | I150: 20752580 | J150: 20909956 | K150: 67.83448276 | L150: 7153937 | M150: 7153937 | N150: 0 | O150: 0 | P150: 0
A151: 218 | B151: Norton | C151: 2433 | D151: 2400 | E151: -33 | F151: 25977850.92 | G151: 26443914.05 | H151: 194.1929706 | I151: 17399530 | J151: 18367335 | K151: 403.2520833 | L151: 12827390 | M151: 12827390 | N151: 0 | O151: 0 | P151: 0
A152: 219 | B152: Norwell | C152: 2143 | D152: 2153 | E152: 10 | F152: 22329816.44 | G152: 22887277.59 | H152: 258.9229665 | I152: 18350859 | J152: 18882004 | K152: 246.6999536 | L152: 4011711 | M152: 4011711 | N152: 0 | O152: 0 | P152: 0
A153: 220 | B153: Norwood | C153: 3460 | D153: 3531 | E153: 71 | F153: 40452845.13 | G153: 42697305.22 | H153: 635.6443164 | I153: 32400134 | J153: 33534173 | K153: 321.1665251 | L153: 8052711 | M153: 9166992 | N153: 1114281 | O153: 315.5709431 | P153: 0.14
A154: 221 | B154: Oak Bluffs | C154: 447 | D154: 447 | E154: 0 | F154: 4939842.549 | G154: 5068644.35 | H154: 288.1472047 | I154: 3951377 | J154: 3984819 | K154: 74.81431767 | L154: 988466 | M154: 1083825 | N154: 95359 | O154: 213.3310962 | P154: 0.1
A155: 223 | B155: Orange | C155: 613 | D155: 595 | E155: -18 | F155: 7421674.388 | G155: 7238630.15 | H155: -307.6373741 | I155: 1989628 | J155: 2020501 | K155: 51.88739496 | L155: 5432046 | M155: 5432046 | N155: 0 | O155: 0 | P155: 0
A156: 224 | B156: Orleans | C156: 224 | D156: 204 | E156: -20 | F156: 2457051.796 | G156: 2333514.66 | H156: -605.5741955 | I156: 2027068 | J156: 1925150 | K156: -499.5980392 | L156: 429984 | M156: 429984 | N156: 0 | O156: 0 | P156: 0
A157: 226 | B157: Oxford | C157: 1738 | D157: 1655 | E157: -83 | F157: 19698237.28 | G157: 19171590.48 | H157: -318.2155866 | I157: 9622553 | J157: 9891135 | K157: 162.2851964 | L157: 10566894 | M157: 10566894 | N157: 0 | O157: 0 | P157: 0
A158: 227 | B158: Palmer | C158: 1417 | D158: 1413 | E158: -4 | F158: 16594239.76 | G158: 17071234.92 | H158: 337.5761951 | I158: 6825833 | J158: 6857027 | K158: 22.07643312 | L158: 10915640 | M158: 10915640 | N158: 0 | O158: 0 | P158: 0
A159: 229 | B159: Peabody | C159: 5936 | D159: 5983 | E159: 47 | F159: 69609817.44 | G159: 72290192.48 | H159: 447.9985027 | I159: 48453163 | J159: 50135481 | K159: 281.1830186 | L159: 21156654 | M159: 22171771 | N159: 1015117 | O159: 169.6668895 | P159: 0.05
A160: 230 | B160: Pelham | C160: 82 | D160: 84 | E160: 2 | F160: 905329.7285 | G160: 928975.21 | H160: 281.493827 | I160: 687532 | J160: 690492 | K160: 35.23809524 | L160: 235531 | M160: 238483 | N160: 2952 | O160: 35.14285714 | P160: 0.01
A161: 231 | B161: Pembroke | C161: 2900 | D161: 2854 | E161: -46 | F161: 31408204.4 | G161: 31797805.65 | H161: 136.5105973 | I161: 20722469 | J161: 21249366 | K161: 184.6170287 | L161: 13608752 | M161: 13608752 | N161: 0 | O161: 0 | P161: 0
A162: 234 | B162: Petersham | C162: 70 | D162: 79 | E162: 9 | F162: 825450.3645 | G162: 932984.68 | H162: 1361.193867 | I162: 571360 | J162: 640821 | K162: 879.2531646 | L162: 435523 | M162: 435523 | N162: 0 | O162: 0 | P162: 0
A163: 236 | B163: Pittsfield | C163: 6022 | D163: 5920 | E163: -102 | F163: 75857280.53 | G163: 76463876.15 | H163: 102.4654757 | I163: 28171219 | J163: 28300807 | K163: 21.88986486 | L163: 47686062 | M163: 48163069 | N163: 477007 | O163: 80.57550676 | P163: 0.01
A164: 238 | B164: Plainville | C164: 702 | D164: 716 | E164: 14 | F164: 7272815.849 | G164: 7517996.15 | H164: 342.4305883 | I164: 5127708 | J164: 5427402 | K164: 418.5670391 | L164: 2927801 | M164: 2927801 | N164: 0 | O164: 0 | P164: 0
A165: 239 | B165: Plymouth | C165: 8045 | D165: 7951 | E165: -94 | F165: 93345303.48 | G165: 94027629.56 | H165: 85.81638539 | I165: 68683929 | J165: 71603127 | K165: 367.1485348 | L165: 26369547 | M165: 26369547 | N165: 0 | O165: 0 | P165: 0
A166: 240 | B166: Plympton | C166: 210 | D166: 227 | E166: 17 | F166: 2239539.098 | G166: 2429975.092 | H166: 838.9250868 | I166: 1665166 | J166: 1772432 | K166: 472.5374449 | L166: 740470 | M166: 740470 | N166: 0 | O166: 0 | P166: 0
A167: 242 | B167: Provincetown | C167: 110 | D167: 97 | E167: -13 | F167: 1386868.408 | G167: 1297760.28 | H167: -918.6404971 | I167: 1144166 | J167: 1070652 | K167: -757.8762887 | L167: 290781 | M167: 290781 | N167: 0 | O167: 0 | P167: 0
A168: 243 | B168: Quincy | C168: 9455 | D168: 9657 | E168: 202 | F168: 123682608.2 | G168: 129336079.2 | H168: 585.4272566 | I168: 95726151 | J168: 101589945 | K168: 607.2065859 | L168: 28647763 | M168: 28647763 | N168: 0 | O168: 0 | P168: 0
A169: 244 | B169: Randolph | C169: 3279 | D169: 3286 | E169: 7 | F169: 41045165.96 | G169: 42468258.92 | H169: 433.077591 | I169: 22557750 | J169: 23490641 | K169: 283.898661 | L169: 18487416 | M169: 18986721 | N169: 499305 | O169: 151.9491783 | P169: 0.03
A170: 246 | B170: Reading | C170: 4040 | D170: 3975 | E170: -65 | F170: 42311533.29 | G170: 42488891.06 | H170: 44.61830752 | I170: 34907015 | J170: 35053335 | K170: 36.81006289 | L170: 10834809 | M170: 10834809 | N170: 0 | O170: 0 | P170: 0
A171: 248 | B171: Revere | C171: 7991 | D171: 7979 | E171: -12 | F171: 104529856.5 | G171: 107222329.5 | H171: 337.4449231 | I171: 34860627 | J171: 36927909 | K171: 259.0903622 | L171: 69669229 | M171: 70298333 | N171: 629104 | O171: 78.84496804 | P171: 0.01
A172: 249 | B172: Richmond | C172: 120 | D172: 125 | E172: 5 | F172: 1333384.021 | G172: 1449827.3 | H172: 931.546235 | I172: 1100042 | J172: 1196108 | K172: 768.528 | L172: 364649 | M172: 364649 | N172: 0 | O172: 0 | P172: 0
A173: 250 | B173: Rochester | C173: 513 | D173: 514 | E173: 1 | F173: 5204047.035 | G173: 5386708.88 | H173: 355.3732392 | I173: 3146498 | J173: 3382851 | K173: 459.8307393 | L173: 2057549 | M173: 2057549 | N173: 0 | O173: 0 | P173: 0
A174: 251 | B174: Rockland | C174: 2278 | D174: 2326 | E174: 48 | F174: 27535663.69 | G174: 29202100.01 | H174: 716.4386558 | I174: 13793841 | J174: 14473503 | K174: 292.2020636 | L174: 13843235 | M174: 14728597 | N174: 885362 | O174: 380.6371453 | P174: 0.06
A175: 252 | B175: Rockport | C175: 679 | D175: 665 | E175: -14 | F175: 7685699.873 | G175: 7619056.399 | H175: -100.2157491 | I175: 6224394 | J175: 6285722 | K175: 92.22255639 | L175: 1502126 | M175: 1502126 | N175: 0 | O175: 0 | P175: 0
A176: 253 | B176: Rowe | C176: 48 | D176: 50 | E176: 2 | F176: 582531.0268 | G176: 643874.47 | H176: 1226.868863 | I176: 480588 | J176: 531196 | K176: 1012.16 | L176: 139775 | M176: 139775 | N176: 0 | O176: 0 | P176: 0
A177: 258 | B177: Salem | C177: 4635 | D177: 4536 | E177: -99 | F177: 59983631.4 | G177: 59442159.62 | H177: -119.3720849 | I177: 34176479 | J177: 35764101 | K177: 350.0048501 | L177: 25807152 | M177: 25807152 | N177: 0 | O177: 0 | P177: 0
A178: 261 | B178: Sandwich | C178: 2672 | D178: 2644 | E178: -28 | F178: 28195096.03 | G178: 28550950.06 | H178: 134.5892699 | I178: 23260955 | J178: 23554534 | K178: 111.0359304 | L178: 7151788 | M178: 7151788 | N178: 0 | O178: 0 | P178: 0
A179: 262 | B179: Saugus | C179: 2761 | D179: 2798 | E179: 37 | F179: 31417986.97 | G179: 33051187.88 | H179: 583.702969 | I179: 25343552 | J179: 26786282 | K179: 515.6290207 | L179: 6136490 | M179: 6270812 | N179: 134322 | O179: 48.00643317 | P179: 0.02
A180: 263 | B180: Savoy | C180: 60 | D180: 50 | E180: -10 | F180: 751434.4035 | G180: 635304.58 | H180: -2322.59647 | I180: 362123 | J180: 372887 | K180: 215.28 | L180: 515849 | M180: 515849 | N180: 0 | O180: 0 | P180: 0
A181: 264 | B181: Scituate | C181: 2906 | D181: 2991 | E181: 85 | F181: 30755855.73 | G181: 32099035.58 | H181: 449.0738396 | I181: 24906358 | J181: 26068183 | K181: 388.440321 | L181: 5863240 | M181: 6030853 | N181: 167613 | O181: 56.03911735 | P181: 0.03
A182: 265 | B182: Seekonk | C182: 2095 | D182: 2077 | E182: -18 | F182: 21995792.01 | G182: 22173871.39 | H182: 85.73874944 | I182: 15294251 | J182: 15952238 | K182: 316.7968223 | L182: 6705263 | M182: 6705263 | N182: 0 | O182: 0 | P182: 0
A183: 266 | B183: Sharon | C183: 3505 | D183: 3535 | E183: 30 | F183: 37027112.38 | G183: 38206192.1 | H183: 333.5444759 | I183: 29719389 | J183: 30736571 | K183: 287.7459689 | L183: 7449437 | M183: 7469972 | N183: 20535 | O183: 5.809052334 | P183: 0
A184: 269 | B184: Sherborn | C184: 394 | D184: 400 | E184: 6 | F184: 3922730.141 | G184: 4086891.646 | H184: 410.4037628 | I184: 3236252 | J184: 3371686 | K184: 338.585 | L184: 693583 | M184: 715207 | N184: 21624 | O184: 54.06 | P184: 0.03
A185: 271 | B185: Shrewsbury | C185: 6043 | D185: 6207 | E185: 164 | F185: 63259403.71 | G185: 66373147.32 | H185: 501.6503322 | I185: 49749302 | J185: 50487975 | K185: 119.0064443 | L185: 20068648 | M185: 20068648 | N185: 0 | O185: 0 | P185: 0
A186: 272 | B186: Shutesbury | C186: 117 | D186: 105 | E186: -12 | F186: 1321150.804 | G186: 1221694.11 | H186: -947.2066095 | I186: 730491 | J186: 712492 | K186: -171.4190476 | L186: 630386 | M186: 630386 | N186: 0 | O186: 0 | P186: 0
A187: 273 | B187: Somerset | C187: 1778 | D187: 1758 | E187: -20 | F187: 18329520.12 | G187: 18501842.41 | H187: 98.02178304 | I187: 9423790 | J187: 9406646 | K187: -9.751990899 | L187: 8920409 | M187: 9096902 | N187: 176493 | O187: 100.394198 | P187: 0.02
A188: 274 | B188: Somerville | C188: 5263 | D188: 5282 | E188: 19 | F188: 68863033.37 | G188: 72325602.75 | H188: 655.5413454 | I188: 56812003 | J188: 59668622 | K188: 540.8214691 | L188: 20486918 | M188: 20486918 | N188: 0 | O188: 0 | P188: 0
A189: 275 | B189: Southampton | C189: 478 | D189: 462 | E189: -16 | F189: 5018160.418 | G189: 4972548.33 | H189: -98.72746271 | I189: 3476888 | J189: 3367625 | K189: -236.5 | L189: 2551486 | M189: 2551486 | N189: 0 | O189: 0 | P189: 0
A190: 276 | B190: Southborough | C190: 1171 | D190: 1225 | E190: 54 | F190: 11760311.47 | G190: 12497359.94 | H190: 601.672218 | I190: 9702257 | J190: 10310322 | K190: 496.3795918 | L190: 2986051 | M190: 2986051 | N190: 0 | O190: 0 | P190: 0
A191: 277 | B191: Southbridge | C191: 2324 | D191: 2231 | E191: -93 | F191: 30836388.96 | G191: 29979243.07 | H191: -384.1980663 | I191: 7846557 | J191: 8016911 | K191: =(J191-I191)/$D191 -> 76.35768714 | L191: 22989832 | M191: 22989832 | N191: =M191-L191 -> 0 | O191: =(M191-L191)/$D191 -> 0 | P191: 0
A192: 278 | B192: South Hadley | C192: 1944 | D192: 1941 | E192: -3 | F192: 22011471.95 | G192: 22558199.09 | H192: 281.6729195 | I192: 13763185 | J192: 14027360 | K192: 136.1025245 | L192: 8248287 | M192: 8530839 | N192: 282552 | O192: 145.5703246 | P192: 0.03
A193: 281 | B193: Springfield | C193: 29645 | D193: 29551 | E193: -94 | F193: 411555995.6 | G193: 419043165.7 | H193: 253.364355 | I193: 40832170 | J193: 41873391 | K193: 35.23471287 | L193: 370723826 | M193: 377169775 | N193: 6445949 | O193: 218.1296403 | P193: 0.02
A194: 284 | B194: Stoneham | C194: 2464 | D194: 2450 | E194: -14 | F194: 26898862.89 | G194: 27298622.59 | H194: 163.167227 | I194: 21654643 | J194: 22148293 | K194: 201.4897959 | L194: 5266351 | M194: 5266351 | N194: 0 | O194: 0 | P194: 0
A195: 285 | B195: Stoughton | C195: 3643 | D195: 3644 | E195: 1 | F195: 42580952.19 | G195: 44058289.5 | H195: 405.4163858 | I195: 26370325 | J195: 27084504 | K195: 195.9876509 | L195: 16210627 | M195: 16973793 | N195: 763166 | O195: 209.4308452 | P195: 0.05
A196: 287 | B196: Sturbridge | C196: 844 | D196: 870 | E196: 26 | F196: 8568656.499 | G196: 8866569.39 | H196: 342.4286104 | I196: 4956813 | J196: 5185477 | K196: 262.8321839 | L196: 3846634 | M196: 3846634 | N196: 0 | O196: 0 | P196: 0
A197: 288 | B197: Sudbury | C197: 2665 | D197: 2690 | E197: 25 | F197: 25917962.07 | G197: 26639866.14 | H197: 268.3658235 | I197: 21382319 | J197: 21977890 | K197: 221.4018587 | L197: 4990518 | M197: 4990518 | N197: 0 | O197: 0 | P197: 0
A198: 289 | B198: Sunderland | C198: 185 | D198: 171 | E198: -14 | F198: 2147362.319 | G198: 2034470.88 | H198: -660.1838513 | I198: 1649338 | J198: 1662285 | K198: 75.71345029 | L198: 872838 | M198: 872838 | N198: 0 | O198: 0 | P198: 0
A199: 290 | B199: Sutton | C199: 1326 | D199: 1321 | E199: -5 | F199: 13566435.92 | G199: 13916186.88 | H199: 264.7622675 | I199: 10402774 | J199: 10856059 | K199: 343.1377744 | L199: 5479815 | M199: 5479815 | N199: 0 | O199: 0 | P199: 0
A200: 291 | B200: Swampscott | C200: 2134 | D200: 2155 | E200: 21 | F200: 22677171.82 | G200: 23409223.78 | H200: 339.6992869 | I200: 18340193 | J200: 18964138 | K200: 289.5336427 | L200: 4351751 | M200: 4447386 | N200: 95635 | O200: 44.37819026 | P200: 0.02
A201: 292 | B201: Swansea | C201: 2097 | D201: 2115 | E201: 18 | F201: 22235382.68 | G201: 22877752.37 | H201: 303.7208948 | I201: 13936344 | J201: 14533757 | K201: 282.4647754 | L201: 8449049 | M201: 8449049 | N201: 0 | O201: 0 | P201: 0
A202: 293 | B202: Taunton | C202: =VLOOKUP(A202,aidcalc,13,0) -> 8057 | D202: =VLOOKUP(A202,aidcalc,14,0) -> 8113 | E202: 56 | F202: =VLOOKUP(A202,aidcalc,4) -> 100148666.4 | G202: =VLOOKUP(A202,aidcalc,8) -> 103523189.7 | H202: =(G202-F202)/$D202 -> 415.9402608 | I202: =SUMIF(dist1755,A202,pynetmin) -> 35674642 | J202: =VLOOKUP(A202,aidcalc,9) -> 36893138 | K202: 150.1905584 | L202: =VLOOKUP(A202,aidcalc,7) -> 64474024 | M202: =VLOOKUP(A202,aidcalc,39) -> 66638377 | N202: 2164353 | O202: 266.7759152 | P202: =ROUND(IF(F202>0,(M202-L202)/L202,100),2) -> 0.03
A203: 295 | B203: Tewksbury | C203: 3402 | D203: 3364 | E203: =D203-C203 -> -38 | F203: 35772861.62 | G203: 35851430.13 | H203: 23.35568029 | I203: 29512611 | J203: 29577430 | K203: 19.26843044 | L203: 13326215 | M203: 13326215 | N203: 0 | O203: 0 | P203: 0
... 128 more rows

Sheet Rates
A3: Massachusetts Department of Elementary and Secondary Education
A4: Office of School Finance
A6: ="Foundation Budget Rates Per Pupil, "& CYr &" Chapter 70" -> Foundation Budget Rates Per Pupil, FY21 Chapter 70
C8: Administration | D8: Instructional Leadership | E8: Classroom & Specialist Teachers | F8: Other Teaching Services | G8: Professional Development | H8: Instructional Materials, Equipment & Technology | I8: Guidance & Psychological Services | J8: Pupil Services | K8: Operations & Maintenance | L8: Employee Benefits/Fixed Charges | M8: Special Education Tuition | N8: Total, All Categories
A10: 1 | B10: Pre-school | C10: 199.87 | D10: 360.97 | E10: 1655.18 | F10: 424.5 | G10: 65.46 | H10: 239.56 | I10: 120.43 | J10: 47.89 | K10: 459.63 | L10: 529.72 | M10: 0 | N10: 4103.21
A11: 2 | B11: Kindergarten half-day | C11: 199.87 | D11: 360.97 | E11: 1655.18 | F11: 424.5 | G11: 65.46 | H11: 239.56 | I11: 120.43 | J11: 47.89 | K11: 459.63 | L11: 529.72 | M11: 0 | N11: 4103.21
A12: 3 | B12: Kindergarten full-day | C12: 399.73 | D12: 721.95 | E12: 3310.35 | F12: 849.04 | G12: 130.98 | H12: 479.13 | I12: 240.89 | J12: 95.84 | K12: 919.24 | L12: 1059.42 | M12: 0 | N12: 8206.57
A13: 4 | B13: Elementary | C13: 399.73 | D13: 721.95 | E13: 3310.31 | F13: 849.04 | G13: 131 | H13: 479.13 | I13: 240.89 | J13: 143.73 | K13: 919.24 | L13: 1059.46 | M13: 0 | N13: 8254.48
A14: 5 | B14: Junior/Middle | C14: 399.73 | D14: 721.95 | E14: 2913.09 | F14: 611.18 | G14: 142.01 | H14: 479.13 | I14: 320.64 | J14: 234.79 | K14: 996.57 | L14: 1091.07 | M14: 0 | N14: 7910.16
A15: 6 | B15: High School | C15: 399.73 | D15: 721.95 | E15: 4283.93 | F15: 508.81 | G15: 137.7 | H15: 766.61 | I15: 401.93 | J15: 541.41 | K15: 966.28 | L15: 987.11 | M15: 0 | N15: 9715.46
A16: 7 | B16: Vocational | C16: 399.73 | D16: 721.95 | E16: 7282.72 | F16: 508.81 | G16: 227.65 | H16: 1341.55 | I16: 401.93 | J16: 541.41 | K16: 1808.44 | L16: 1423.61 | M16: 0 | N16: 14657.8
A17: 8 | B17: Special Ed-in district | C17: 2758.81 | D17: 0 | E17: 9103.37 | F17: 8499.69 | G17: 439.14 | H17: 383.3 | I17: 0 | J17: 0 | K17: 3081.72 | L17: 3441.99 | M17: 0 | N17: 27708.02
A18: 9 | B18: Special Ed-tuitioned out | C18: 2858.69 | D18: 0 | E18: 0 | F18: 43.67 | G18: 0 | H18: 0 | I18: 0 | J18: 0 | K18: 0 | L18: 0 | M18: 27141.71 | N18: 30044.07
A19: 10 | B19: English learners PK-5 | C19: 91.93 | D19: 160.88 | E19: 1126.09 | F19: 160.88 | G19: 45.96 | H19: 114.9 | I19: 68.94 | J19: 22.99 | K19: 275.78 | L19: 252.8 | M19: 0 | N19: 2321.15
A20: 11 | B20: English learners 6-8 | C20: 96.16 | D20: 168.27 | E20: 1177.87 | F20: 168.27 | G20: 48.08 | H20: 120.19 | I20: 72.12 | J20: 24.04 | K20: 288.46 | L20: 264.42 | M20: 0 | N20: 2427.88
A21: 12 | B21: English learners high school/voc | C21: 75.06 | D21: 131.35 | E21: 919.41 | F21: 131.35 | G21: 37.52 | H21: 93.81 | I21: 56.29 | J21: 18.77 | K21: 225.16 | L21: 206.4 | M21: 0 | N21: 1895.12
A22: 13 | B22: Low income decile 1 | C22: 51.99 | D22: 246.34 | E22: 2404.79 | F22: 0 | G22: 116.67 | H22: 17.88 | I22: 97.38 | J22: 506 | K22: 0 | L22: 388.99 | M22: 0 | N22: 3830.04
A23: 14 | B23: Low income decile 2 | C23: 52.57 | D23: 249.06 | E23: 2431.36 | F23: 0 | G23: 117.96 | H23: 18.08 | I23: 98.45 | J23: 511.59 | K23: 0 | L23: 393.29 | M23: 0 | N23: 3872.36
A24: 15 | B24: Low income decile 3 | C24: 53.14 | D24: 251.79 | E24: 2457.92 | F24: 0 | G24: 119.25 | H24: 18.28 | I24: 99.53 | J24: 517.18 | K24: 0 | L24: 397.59 | M24: 0 | N24: 3914.68
A25: 16 | B25: Low income decile 4 | C25: 53.72 | D25: 254.51 | E25: 2484.5 | F25: 0 | G25: 120.54 | H25: 18.47 | I25: 100.61 | J25: 522.77 | K25: 0 | L25: 401.89 | M25: 0 | N25: 3957.01
A26: 17 | B26: Low income decile 5 | C26: 54.29 | D26: 257.23 | E26: 2511.08 | F26: 0 | G26: 121.83 | H26: 18.67 | I26: 101.68 | J26: 528.37 | K26: 0 | L26: 406.19 | M26: 0 | N26: 3999.34
A27: 18 | B27: Low income decile 6 | C27: 58.02 | D27: 274.89 | E27: 2683.45 | F27: 0 | G27: 130.18 | H27: 19.96 | I27: 108.66 | J27: 564.63 | K27: 0 | L27: 434.07 | M27: 0 | N27: 4273.86
A28: 19 | B28: Low income decile 7 | C28: 59.4 | D28: 281.43 | E28: 2747.33 | F28: 0 | G28: 133.28 | H28: 20.43 | I28: 111.25 | J28: 578.08 | K28: 0 | L28: 444.4 | M28: 0 | N28: 4375.6
A29: 20 | B29: Low income decile 8 | C29: 60.78 | D29: 287.97 | E29: 2811.2 | F29: 0 | G29: 136.38 | H29: 20.91 | I29: 113.83 | J29: 591.51 | K29: 0 | L29: 454.73 | M29: 0 | N29: 4477.31
A30: 21 | B30: Low income decile 9 | C30: 62.16 | D30: 294.52 | E30: 2875.09 | F30: 0 | G30: 139.48 | H30: 21.38 | I30: 116.42 | J30: 604.96 | K30: 0 | L30: 465.07 | M30: 0 | N30: 4579.08
A31: 22 | B31: Low income decile 10 | C31: 63.54 | D31: 301.07 | E31: 2938.97 | F31: 0 | G31: 142.58 | H31: 21.86 | I31: 119.01 | J31: 618.4 | K31: 0 | L31: 475.4 | M31: 0 | N31: 4680.83
A32: 23
A33: 24

Sheet Townwide Contributions
A1: 1 | C1: From DOR, Dec 2018 3 | D1: 4 | E1: From DOR, Dec 2019 5 | F1: 6 | G1: 7 | H1: 8 | I1: =H1+1 -> 9 | J1: =I1+1 -> 10 | K1: 11 | L1: 12 | M1: 13 | N1: From DOR, Jan 2020 14 | O1: 15 | P1: 16 | Q1: 17 | R1: 18 | S1: 19 | T1: 20 | U1: 21 | V1: 22 | W1: 23 | X1: 24 | Y1: 25 | Z1: 26 | AA1: 27 | AB1: 28 | AC1: 29 | AD1: 30 | AE1: 29 | AF1: 30 | AG1: 31 | AH1: 32
B2: Return to Index | C2: 1. Calculation of effort goal (target local share) | N2: 2. Calculation of annual increments toward goal (required local contribution) | AA2: Analysis of Gap Closing
B3: More about the data | S3: Increments | T3: Thresholds
D4: uniform property percentage | F4: uniform income percentage | O4: 2020-01-08 | S4: =parameters!C18 -> 0.01 | T4: =parameters!C16 -> 2.5 | V4: Effort Reduction | W4: OPTION TO ACTIVATE THIS INCREMENT | AH4: -0.05
D5: =parameters!C29 -> 0.003625549417 | F5: =parameters!C30 -> 0.01433248352 | S5: =parameters!C19 -> 0.02 | T5: =parameters!C17 -> 7.5 | V5: =effortred -> 1 | W5: 1 | AH5: -0.1 | AM5: SUMMARY FOR EXPORT (reads from columns to the left)
J6: maximum | K6: target local | N6: required | Q6: preliminary | S6: percentage | T6: dollar | AH6: 0.02
D7: local effort | E7: DOR total | F7: local effort | G7: combined | J7: local contribution | K7: contribution | L7: target | N7: local | P7: preliminary | Q7: contribution | R7: shortfall | S7: increment | T7: increment | V7: excess effort | X7: required | AA7: Before | AB7: After implementation | AH7: 0.01 | AK7: MRGF revised from DOR 1/8/2020 | AO7: CEY% | AP7: target
C8: total | D8: from property | E8: income | F8: from income | G8: effort | H8: =CYr -> FY21 | I8: CEY % | J8: foundation pct= | K8: (lesser of max local | L8: local | N8: contribution | O8: mrgf | P8: contribution | Q8: percentage of | R8: from target | S8: toward | T8: toward | U8: excess | V8: times effort | W8: CEY% > 175% | X8: contribution | Y8: percentage | AA8: below effort | AB8: below effort | AC8: above effort | AD8: distance from | AF8: % distance | AG8: Points | AH8: x% of | AM8: 3 digit town code | AO8: found | AP8: local share | AQ8: RLC | AR8: distance from
A9: LEA | B9: Town | C9: EQV 2018 | D9: wealth | E9: 2017 | F9: wealth | G9: yield | H9: foundation | I9: Found | J9: =maxloc -> 0.825 | K9: or effort yield) | L9: share | N9: =PYr -> FY20 | O9: FY21 | P9: =CYr -> FY21 | Q9: foundation | R9: local share | S9: target | T9: target | U9: effort | V9: reduction % | W9: increment | X9: =CYr -> FY21 | Y9: of foundation | AA9: shortfall | AB9: shortfall | AC9: excess | AD9: target | AF9: from target | AG9: from target | AH9: the gap | AM9: =CYr -> FY21 | AN9: Town | AO9: =CYr -> FY21 | AP9: =CYr -> FY21 | AQ9: =CYr -> FY21 | AR9: target
A10: 1 | B10: Abington | C10: 2103633000 | D10: =D$5*C10 -> 7626825.396 | E10: 597856000 | F10: =E10*F$5 -> 8568761.266 | G10: =ROUND(D10+F10,0) -> 16195587 | H10: =(SUMIF(town1755,A10,found1755)/2) -> 26838073.19 | I10: =G10/H10 -> 0.6034556537 | J10: =ROUND(H10*maxloc,0) -> 22141410 | K10: =MIN(G10,J10) -> 16195587 | L10: =IF(H10>0, ROUND((K10*100/H10), 2), 0) -> 60.35 | N10: 15491948 | O10: 0.0568 | P10: =ROUND(N10*(1+O10),0) -> 16371891 | Q10: =P10*100/H10 -> 61.00248287 | R10: =IF(L10>Q10,L10-Q10,0) -> 0 | S10: =IF(AND(R10>$T$4,R10<=$T$5),$S$4,IF(R10>$T$5,$S$5,0)) -> 0 | T10: =ROUND(S10*N10,0) -> 0 | U10: =MAX(P10-K10,0) -> 176304 | V10: =MAX(U10*(V$5),0) -> 176304 | W10: =IF(AND(I10>1.75,$W$5=1),MAX(K10-(P10+T10),0),0) -> 0 | X10: =MIN(H10*parameters!C$22,ROUND(P10+T10-V10+W10,0)) -> 16195587 | Y10: =X10*100/H10 -> 60.34556537 | AA10: =IF(Q10<L10, P10-K10, 0) -> 0 | AB10: =-1*MAX(K10-(P10+T10+W10),0) -> 0 | AC10: =IF(Q10>L10, X10-K10,0) -> 0 | AD10: =Y10-L10 -> -0.004434630747 | AF10: =(P10-K10)/K10 -> 0.01088592837 | AG10: =Q10-L10 -> 0.6524828713 | AH10: =IF(AF10<$AH$5, $AH$6*(N10), IF(AND(AF10<$AH$4, AF10>$AH$5), $AH$7*(N10), 0)) -> 0 | AK10: 0.0568 | AM10: =TEXT(A10,"000") -> 001 | AN10: =B10 -> Abington | AO10: =I10 -> 0.6034556537 | AP10: =L10 -> 60.35 | AQ10: =X10 -> 16195587 | AR10: =AD10 -> -0.004434630747
A11: 2 | B11: Acton | C11: 4597929200 | D11: 16670019.53 | E11: 1569766000 | F11: =E11*F$5 -> 22498645.32 | G11: 39168665 | H11: =(SUMIF(town1755,A11,found1755)/2) -> 49170930.11 | I11: =G11/H11 -> 0.7965817387 | J11: 40566017 | K11: =MIN(G11,J11) -> 39168665 | L11: =IF(H11>0, ROUND((K11*100/H11), 2), 0) -> 79.66 | N11: 38190965 | O11: 0.0341 | P11: =ROUND(N11*(1+O11),0) -> 39493277 | Q11: =P11*100/H11 -> 80.31834442 | R11: =IF(L11>Q11,L11-Q11,0) -> 0 | S11: =IF(AND(R11>$T$4,R11<=$T$5),$S$4,IF(R11>$T$5,$S$5,0)) -> 0 | T11: =ROUND(S11*N11,0) -> 0 | U11: =MAX(P11-K11,0) -> 324612 | V11: 324612 | W11: =IF(AND(I11>1.75,$W$5=1),MAX(K11-(P11+T11),0),0) -> 0 | X11: =MIN(H11*parameters!C$22,ROUND(P11+T11-V11+W11,0)) -> 39168665 | Y11: =X11*100/H11 -> 79.65817387 | AA11: =IF(Q11<L11, P11-K11, 0) -> 0 | AB11: =-1*MAX(K11-(P11+T11+W11),0) -> 0 | AC11: =IF(Q11>L11, X11-K11,0) -> 0 | AD11: =Y11-L11 -> -0.001826134878 | AF11: 0.008287543116 | AG11: =Q11-L11 -> 0.6583444156 | AH11: 0 | AK11: 0.0341 | AM11: =TEXT(A11,"000") -> 002 | AN11: =B11 -> Acton | AO11: =I11 -> 0.7965817387 | AP11: 79.66 | AQ11: 39168665 | AR11: =AD11 -> -0.001826134878
A12: 3 | B12: Acushnet | C12: 1214098100 | D12: 4401772.658 | E12: 337691000 | F12: =E12*F$5 -> 4839950.692 | G12: 9241723 | H12: 16345479.6 | I12: 0.5653993167 | J12: 13485021 | K12: 9241723 | L12: 56.54 | N12: 8794566 | O12: 0.0481 | P12: 9217585 | Q12: 56.39225782 | R12: 0.1477421822 | S12: 0 | T12: 0 | U12: 0 | V12: 0 | W12: 0 | X12: =MIN(H12*parameters!C$22,ROUND(P12+T12-V12+W12,0)) -> 9217585 | Y12: 56.39225782 | AA12: -24138 | AB12: -24138 | AC12: 0 | AD12: -0.1477421822 | AF12: -0.002611850626 | AG12: -0.1477421822 | AH12: 0 | AK12: 0.0481 | AM12: 003 | AN12: Acushnet | AO12: 0.5653993167 | AP12: 56.54 | AQ12: 9217585 | AR12: -0.1477421822
A13: 4 | B13: Adams | C13: 525826800 | D13: 1906411.048 | E13: 191880000 | F13: 2750116.937 | G13: 4656528 | H13: 13551965.12 | I13: 0.3436053709 | J13: 11180371 | K13: 4656528 | L13: 34.36 | N13: 4595257 | O13: 0.0333 | P13: 4748279 | Q13: 35.03756805 | R13: 0 | S13: 0 | T13: 0 | U13: 91751 | V13: 91751 | W13: 0 | X13: =MIN(H13*parameters!C$22,ROUND(P13+T13-V13+W13,0)) -> 4656528 | Y13: 34.36053709 | AA13: 0 | AB13: 0 | AC13: 0 | AD13: 0.0005370857297 | AF13: 0.01970373635 | AG13: 0.6775680492 | AH13: 0 | AK13: 0.0333 | AM13: 004 | AN13: Adams | AO13: 0.3436053709 | AP13: 34.36 | AQ13: 4656528 | AR13: 0.0005370857297
A14: 5 | B14: Agawam | C14: 3067519900 | D14: 11121444.98 | E14: 850720000 | F14: 12192930.38 | G14: 23314375 | H14: 42427489.5 | I14: 0.5495110664 | J14: 35002679 | K14: 23314375 | L14: 54.95 | N14: 22951211 | O14: 0.0133 | P14: 23256462 | Q14: 54.81460787 | R14: 0.1353921265 | S14: 0 | T14: 0 | U14: 0 | V14: 0 | W14: 0 | X14: =MIN(H14*parameters!C$22,ROUND(P14+T14-V14+W14,0)) -> 23256462 | Y14: 54.81460787 | AA14: -57913 | AB14: -57913 | AC14: 0 | AD14: -0.1353921265 | AF14: -0.002484003968 | AG14: -0.1353921265 | AH14: 0 | AK14: 0.0133 | AM14: 005 | AN14: Agawam | AO14: 0.5495110664 | AP14: 54.95 | AQ14: 23256462 | AR14: -0.1353921265
A15: 6 | B15: Alford | C15: 279820300 | D15: 1014502.325 | E15: 18140000 | F15: 259991.251 | G15: 1274494 | H15: 249430.3231 | I15: 5.109619329 | J15: 205780 | K15: 205780 | L15: 82.5 | N15: 217041 | O15: 0.0184 | P15: 221035 | Q15: 88.6159298 | R15: 0 | S15: 0 | T15: 0 | U15: 15255 | V15: 15255 | W15: 0 | X15: =MIN(H15*parameters!C$22,ROUND(P15+T15-V15+W15,0)) -> 205780 | Y15: 82.49999337 | AA15: 0 | AB15: 0 | AC15: 0 | AD15: -6.630675031e-06 | AF15: 0.07413256876 | AG15: 6.115929801 | AH15: 0 | AK15: 0.0184 | AM15: 006 | AN15: Alford | AO15: 5.109619329 | AP15: 82.5 | AQ15: 205780 | AR15: -6.630675031e-06
A16: 7 | B16: Amesbury | C16: 2273556700 | D16: 8242892.167 | E16: 675197000 | F16: 9677249.874 | G16: 17920142 | H16: 24233881.57 | I16: 0.7394664347 | J16: 19992952 | K16: 17920142 | L16: 73.95 | N16: 16674583 | O16: 0.0387 | P16: 17319889 | Q16: 71.46972701 | R16: 2.480272986 | S16: 0 | T16: 0 | U16: 0 | V16: 0 | W16: 0 | X16: =MIN(H16*parameters!C$22,ROUND(P16+T16-V16+W16,0)) -> 17319889 | Y16: 71.46972701 | AA16: -600253 | AB16: -600253 | AC16: 0 | AD16: -2.480272986 | AF16: -0.03349599573 | AG16: -2.480272986 | AH16: 0 | AK16: 0.0387 | AM16: 007 | AN16: Amesbury | AO16: 0.7394664347 | AP16: 73.95 | AQ16: 17319889 | AR16: -2.480272986
A17: 8 | B17: Amherst | C17: 2516974800 | D17: 9125416.518 | E17: 772086000 | F17: 11065909.87 | G17: 20191326 | H17: 26191849.57 | I17: 0.7709011135 | J17: 21608276 | K17: 20191326 | L17: 77.09 | N17: 19374211 | O17: 0.0454 | P17: 20253800 | Q17: 77.32863594 | R17: 0 | S17: 0 | T17: 0 | U17: 62474 | V17: 62474 | W17: 0 | X17: =MIN(H17*parameters!C$22,ROUND(P17+T17-V17+W17,0)) -> 20191326 | Y17: 77.09011135 | AA17: 0 | AB17: 0 | AC17: 0 | AD17: 0.0001113542127 | AF17: 0.003094100903 | AG17: 0.2386359373 | AH17: 0 | AK17: 0.0454 | AM17: 008 | AN17: Amherst | AO17: 0.7709011135 | AP17: 77.09 | AQ17: 20191326 | AR17: 0.0001113542127
A18: 9 | B18: Andover | C18: 8453211200 | D18: 30647534.94 | E18: 3006243000 | F18: 43086928.25 | G18: 73734463 | H18: 64897137.55 | I18: 1.136174349 | J18: 53540138 | K18: 53540138 | L18: 82.5 | N18: 52687464 | O18: 0.0528 | P18: 55469362 | Q18: 85.47274054 | R18: 0 | S18: 0 | T18: 0 | U18: 1929224 | V18: 1929224 | W18: 0 | X18: =MIN(H18*parameters!C$22,ROUND(P18+T18-V18+W18,0)) -> 53540138 | Y18: 82.49999926 | AA18: 0 | AB18: 0 | AC18: 0 | AD18: -7.39167902e-07 | AF18: 0.03603322801 | AG18: 2.972740545 | AH18: 0 | AK18: 0.0528 | AM18: 009 | AN18: Andover | AO18: 1.136174349 | AP18: 82.5 | AQ18: 53540138 | AR18: -7.39167902e-07
A19: 10 | B19: Arlington | C19: 10614146500 | D19: 38482112.65 | E19: 2783875000 | F19: 39899842.55 | G19: 78381955 | H19: 67591544.23 | I19: 1.15964143 | J19: 55763024 | K19: 55763024 | L19: 82.5 | N19: 50042766 | O19: 0.0378 | P19: 51934383 | Q19: 76.83562137 | R19: 5.66437863 | S19: 0.01 | T19: 500428 | U19: 0 | V19: 0 | W19: 0 | X19: =MIN(H19*parameters!C$22,ROUND(P19+T19-V19+W19,0)) -> 52434811 | Y19: 77.57599209 | AA19: -3828641 | AB19: -3328213 | AC19: 0 | AD19: -4.924007914 | AF19: -0.06865913513 | AG19: -5.66437863 | AH19: 500427.66 | AK19: 0.0378 | AM19: 010 | AN19: Arlington | AO19: 1.15964143 | AP19: 82.5 | AQ19: 52434811 | AR19: -4.924007914
A20: 11 | B20: Ashburnham | C20: 640811300 | D20: 2323293.035 | E20: 227762000 | F20: 3264395.111 | G20: 5587688 | H20: 12373347.3 | I20: 0.4515906541 | J20: 10208012 | K20: 5587688 | L20: 45.16 | N20: 5376055 | O20: 0.0428 | P20: 5606150 | Q20: 45.30827322 | R20: 0 | S20: 0 | T20: 0 | U20: 18462 | V20: 18462 | W20: 0 | X20: =MIN(H20*parameters!C$22,ROUND(P20+T20-V20+W20,0)) -> 5587688 | Y20: 45.15906541 | AA20: 0 | AB20: 0 | AC20: 0 | AD20: -0.000934588049 | AF20: 0.003304049904 | AG20: 0.1482732177 | AH20: 0 | AK20: 0.0428 | AM20: 011 | AN20: Ashburnham | AO20: 0.4515906541 | AP20: 45.16 | AQ20: 5587688 | AR20: -0.000934588049
A21: 12 | B21: Ashby | C21: 319398200 | D21: 1157993.958 | E21: 107391000 | F21: 1539179.738 | G21: 2697174 | H21: 4465945.613 | I21: 0.6039424198 | J21: 3684405 | K21: 2697174 | L21: 60.39 | N21: 2513082 | O21: 0.0341 | P21: 2598778 | Q21: 58.19099079 | R21: 2.199009215 | S21: 0 | T21: 0 | U21: 0 | V21: 0 | W21: 0 | X21: =MIN(H21*parameters!C$22,ROUND(P21+T21-V21+W21,0)) -> 2598778 | Y21: 58.19099079 | AA21: -98396 | AB21: -98396 | AC21: 0 | AD21: -2.199009215 | AF21: -0.03648114656 | AG21: -2.199009215 | AH21: 0 | AK21: 0.0341 | AM21: 012 | AN21: Ashby | AO21: 0.6039424198 | AP21: 60.39 | AQ21: 2598778 | AR21: -2.199009215
A22: 13 | B22: Ashfield | C22: 248466800 | D22: 900828.6618 | E22: 48226000 | F22: 691198.3502 | G22: 1592027 | H22: 1855207.187 | I22: 0.8581397331 | J22: 1530546 | K22: 1530546 | L22: 82.5 | N22: 1542348 | O22: 0.0407 | P22: 1605122 | Q22: 86.51982439 | R22: 0 | S22: 0 | T22: 0 | U22: 74576 | V22: 74576 | W22: 0 | X22: =MIN(H22*parameters!C$22,ROUND(P22+T22-V22+W22,0)) -> 1530546 | Y22: 82.50000383 | AA22: 0 | AB22: 0 | AC22: 0 | AD22: 3.825520096e-06 | AF22: 0.04872509549 | AG22: 4.01982439 | AH22: 0 | AK22: 0.0407 | AM22: 013 | AN22: Ashfield | AO22: 0.8581397331 | AP22: 82.5 | AQ22: 1530546 | AR22: 3.825520096e-06
A23: 14 | B23: Ashland | C23: 2809780000 | D23: 10186996.24 | E23: 897367000 | F23: 12861497.74 | G23: 23048494 | H23: 31254426.41 | I23: 0.7374473522 | J23: 25784902 | K23: 23048494 | L23: 73.74 | N23: 22226325 | O23: 0.0508 | P23: 23355422 | Q23: 74.72676572 | R23: 0 | S23: 0 | T23: 0 | U23: 306928 | V23: 306928 | W23: 0 | X23: =MIN(H23*parameters!C$22,ROUND(P23+T23-V23+W23,0)) -> 23048494 | Y23: 73.74473522 | AA23: 0 | AB23: 0 | AC23: 0 | AD23: 0.004735218198 | AF23: 0.01331661843 | AG23: 0.9867657184 | AH23: 0 | AK23: 0.0508 | AM23: 014 | AN23: Ashland | AO23: 0.7374473522 | AP23: 73.74 | AQ23: 23048494 | AR23: 0.004735218198
A24: 15 | B24: Athol | C24: 730647700 | D24: 2648999.343 | E24: 239184000 | F24: 3428100.738 | G24: 6077100 | H24: 22016985.81 | I24: 0.2760187091 | J24: 18164013 | K24: 6077100 | L24: 27.6 | N24: 3166947 | O24: 0.0444 | P24: 3307559 | Q24: 15.02276029 | R24: 12.57723971 | S24: 0.02 | T24: 63339 | U24: 0 | V24: 0 | W24: 0 | X24: =MIN(H24*parameters!C$22,ROUND(P24+T24-V24+W24,0)) -> 3370898 | Y24: 15.31044272 | AA24: -2769541 | AB24: -2706202 | AC24: 0 | AD24: -12.28955728 | AF24: -0.455733985 | AG24: -12.57723971 | AH24: 63338.94 | AK24: 0.0444 | AM24: 015 | AN24: Athol | AO24: 0.2760187091 | AP24: 27.6 | AQ24: 3370898 | AR24: -12.28955728
A25: 16 | B25: Attleboro | C25: 4710804300 | D25: 17079253.78 | E25: 1476322000 | F25: 21159360.73 | G25: 38238615 | H25: 79626006.24 | I25: 0.4802277146 | J25: 65691455 | K25: 38238615 | L25: 48.02 | N25: 36857248 | O25: 0.0376 | P25: 38243081 | Q25: 48.02838018 | R25: 0 | S25: 0 | T25: 0 | U25: 4466 | V25: 4466 | W25: 0 | X25: =MIN(H25*parameters!C$22,ROUND(P25+T25-V25+W25,0)) -> 38238615 | Y25: 48.02277146 | AA25: 0 | AB25: 0 | AC25: 0 | AD25: 0.002771458801 | AF25: 0.000116792933 | AG25: 0.008380179131 | AH25: 0 | AK25: 0.0376 | AM25: 016 | AN25: Attleboro | AO25: 0.4802277146 | AP25: 48.02 | AQ25: 38238615 | AR25: 0.002771458801
A26: 17 | B26: Auburn | C26: 2175990900 | D26: 7889162.538 | E26: 577559000 | F26: 8277854.848 | G26: 16167017 | H26: 29063082.82 | I26: 0.5562733004 | J26: 23977043 | K26: 16167017 | L26: 55.63 | N26: 15893997 | O26: 0.04 | P26: 16529757 | Q26: 56.87544265 | R26: 0 | S26: 0 | T26: 0 | U26: 362740 | V26: 362740 | W26: 0 | X26: =MIN(H26*parameters!C$22,ROUND(P26+T26-V26+W26,0)) -> 16167017 | Y26: 55.62733004 | AA26: 0 | AB26: 0 | AC26: 0 | AD26: -0.002669956353 | AF26: 0.02243703956 | AG26: 1.245442648 | AH26: 0 | AK26: 0.04 | AM26: 017 | AN26: Auburn | AO26: 0.5562733004 | AP26: 55.63 | AQ26: 16167017 | AR26: -0.002669956353
A27: 18 | B27: Avon | C27: 855860900 | D27: 3102965.987 | E27: 159994000 | F27: 2293111.368 | G27: 5396077 | H27: 8267054.731 | I27: 0.6527206091 | J27: 6820320 | K27: 5396077 | L27: 65.27 | N27: 5251681 | O27: 0.0429 | P27: 5476978 | Q27: 66.2506561 | R27: 0 | S27: 0 | T27: 0 | U27: 80901 | V27: 80901 | W27: 0 | X27: =MIN(H27*parameters!C$22,ROUND(P27+T27-V27+W27,0)) -> 5396077 | Y27: 65.27206091 | AA27: 0 | AB27: 0 | AC27: 0 | AD27: 0.002060913592 | AF27: 0.01499255848 | AG27: 0.9806561041 | AH27: 0 | AK27: 0.0429 | AM27: 018 | AN27: Avon | AO27: 0.6527206091 | AP27: 65.27 | AQ27: 5396077 | AR27: 0.002060913592
A28: 19 | B28: Ayer | C28: 1219304900 | D28: 4420650.169 | E28: 281209000 | F28: 4030423.358 | G28: 8451074 | H28: 11803945.82 | I28: 0.7159533029 | J28: 9738255 | K28: 8451074 | L28: 71.6 | N28: 8260758 | O28: 0.058 | P28: 8739882 | Q28: 74.04203755 | R28: 0 | S28: 0 | T28: 0 | U28: 288808 | V28: 288808 | W28: 0 | X28: =MIN(H28*parameters!C$22,ROUND(P28+T28-V28+W28,0)) -> 8451074 | Y28: 71.59533029 | AA28: 0 | AB28: 0 | AC28: 0 | AD28: -0.004669710716 | AF28: 0.03417411799 | AG28: 2.442037554 | AH28: 0 | AK28: 0.058 | AM28: 019 | AN28: Ayer | AO28: 0.7159533029 | AP28: 71.6 | AQ28: 8451074 | AR28: -0.004669710716
A29: 20 | B29: Barnstable | C29: 14932044600 | D29: 54136865.59 | E29: 1838787000 | F29: 26354384.37 | G29: 80491250 | H29: 69353426.57 | I29: 1.160595143 | J29: 57216577 | K29: 57216577 | L29: 82.5 | N29: 53862128 | O29: 0.0329 | P29: 55634192 | Q29: 80.21837529 | R29: 2.281624714 | S29: 0 | T29: 0 | U29: 0 | V29: 0 | W29: 0 | X29: =MIN(H29*parameters!C$22,ROUND(P29+T29-V29+W29,0)) -> 55634192 | Y29: 80.21837529 | AA29: -1582385 | AB29: -1582385 | AC29: 0 | AD29: -2.281624714 | AF29: -0.02765605849 | AG29: -2.281624714 | AH29: 0 | AK29: 0.0329 | AM29: 020 | AN29: Barnstable | AO29: 1.160595143 | AP29: 82.5 | AQ29: 55634192 | AR29: -2.281624714
A30: 21 | B30: Barre | C30: 458372300 | D30: 1661851.425 | E30: 141187000 | F30: 2023560.351 | G30: 3685412 | H30: 9253839.562 | I30: 0.398257607 | J30: 7634418 | K30: 3685412 | L30: 39.83 | N30: 3667194 | O30: 0.0438 | P30: 3827817 | Q30: 41.36463545 | R30: 0 | S30: 0 | T30: 0 | U30: 142405 | V30: 142405 | W30: 0 | X30: =MIN(H30*parameters!C$22,ROUND(P30+T30-V30+W30,0)) -> 3685412 | Y30: 39.8257607 | AA30: 0 | AB30: 0 | AC30: 0 | AD30: -0.004239296119 | AF30: 0.0386401846 | AG30: 1.534635449 | AH30: 0 | AK30: 0.0438 | AM30: 021 | AN30: Barre | AO30: 0.398257607 | AP30: 39.83 | AQ30: 3685412 | AR30: -0.004239296119
A31: 22 | B31: Becket | C31: 523623000 | D31: 1898421.062 | E31: 50942000 | F31: 730125.3754 | G31: 2628546 | H31: 2358431.565 | I31: 1.114531386 | J31: 1945706 | K31: 1945706 | L31: 82.5 | N31: 1950831 | O31: 0.0335 | P31: 2016184 | Q31: 85.48834022 | R31: 0 | S31: 0 | T31: 0 | U31: 70478 | V31: 70478 | W31: 0 | X31: =MIN(H31*parameters!C$22,ROUND(P31+T31-V31+W31,0)) -> 1945706 | Y31: 82.49999826 | AA31: 0 | AB31: 0 | AC31: 0 | AD31: -1.74227803e-06 | AF31: 0.03622232753 | AG31: 2.988340215 | AH31: 0 | AK31: 0.0335 | AM31: 022 | AN31: Becket | AO31: 1.114531386 | AP31: 82.5 | AQ31: 1945706 | AR31: -1.74227803e-06
A32: 23 | B32: Bedford | C32: 3957585000 | D32: 14348419.99 | E32: 1026747000 | F32: 14715834.45 | G32: 29064254 | H32: 31074520.1 | I32: 0.9353082175 | J32: 25636479 | K32: 25636479 | L32: 82.5 | N32: 24450598 | O32: 0.0457 | P32: 25567990 | Q32: 82.27959731 | R32: 0.2204026911 | S32: 0 | T32: 0 | U32: 0 | V32: 0 | W32: 0 | X32: =MIN(H32*parameters!C$22,ROUND(P32+T32-V32+W32,0)) -> 25567990 | Y32: 82.27959731 | AA32: -68489 | AB32: -68489 | AC32: 0 | AD32: -0.2204026911 | AF32: -0.002671544716 | AG32: -0.2204026911 | AH32: 0 | AK32: 0.0457 | AM32: 023 | AN32: Bedford | AO32: 0.9353082175 | AP32: 82.5 | AQ32: 25567990 | AR32: -0.2204026911
A33: 24 | B33: Belchertown | C33: 1554339300 | D33: 5635333.942 | E33: 526637000 | F33: 7548016.123 | G33: 13183350 | H33: 26250099.65 | I33: 0.5022209507 | J33: 21656332 | K33: 13183350 | L33: 50.22 | N33: 12964553 | O33: 0.0434 | P33: 13527215 | Q33: 51.532052 | R33: 0 | S33: 0 | T33: 0 | U33: 343865 | V33: 343865 | W33: 0 | X33: =MIN(H33*parameters!C$22,ROUND(P33+T33-V33+W33,0)) -> 13183350 | Y33: 50.22209507 | AA33: 0 | AB33: 0 | AC33: 0 | AD33: 0.002095070913 | AF33: 0.02608327929 | AG33: 1.312052003 | AH33: 0 | AK33: 0.0434 | AM33: 024 | AN33: Belchertown | AO33: 0.5022209507 | AP33: 50.22 | AQ33: 13183350 | AR33: 0.002095070913
A34: 25 | B34: Bellingham | C34: 2504502600 | D34: 9080197.94 | E34: 611911000 | F34: 8770204.322 | G34: 17850402 | H34: 26263384.92 | I34: 0.6796687499 | J34: 21667293 | K34: 17850402 | L34: 67.97 | N34: 17423701 | O34: 0.0457 | P34: 18219964 | Q34: 69.37401273 | R34: 0 | S34: 0 | T34: 0 | U34: 369562 | V34: 369562 | W34: 0 | X34: =MIN(H34*parameters!C$22,ROUND(P34+T34-V34+W34,0)) -> 17850402 | Y34: 67.96687499 | AA34: 0 | AB34: 0 | AC34: 0 | AD34: -0.003125009521 | AF34: 0.02070328724 | AG34: 1.404012726 | AH34: 0 | AK34: 0.0457 | AM34: 025 | AN34: Bellingham | AO34: 0.6796687499 | AP34: 67.97 | AQ34: 17850402 | AR34: -0.003125009521
A35: 26 | B35: Belmont | C35: 7850565400 | D35: 28462612.81 | E35: 2512075000 | F35: 36004273.53 | G35: =ROUND(D35+F35,0) -> 64466886 | H35: =(SUMIF(town1755,A35,found1755)/2) -> 50418107.66 | I35: 1.278645491 | J35: 41594939 | K35: 41594939 | L35: 82.5 | N35: 38777588 | O35: 0.0486 | P35: 40662179 | Q35: 80.64995076 | R35: =IF(L35>Q35,L35-Q35,0) -> 1.850049244 | S35: =IF(AND(R35>$T$4,R35<=$T$5),$S$4,IF(R35>$T$5,$S$5,0)) -> 0 | T35: =ROUND(S35*N35,0) -> 0 | U35: 0 | V35: 0 | W35: 0 | X35: =MIN(H35*parameters!C$22,ROUND(P35+T35-V35+W35,0)) -> 40662179 | Y35: 80.64995076 | AA35: -932760 | AB35: -932760 | AC35: 0 | AD35: -1.850049244 | AF35: -0.02242484356 | AG35: -1.850049244 | AH35: 0 | AK35: 0.0486 | AM35: 026 | AN35: Belmont | AO35: 1.278645491 | AP35: 82.5 | AQ35: 40662179 | AR35: -1.850049244
A36: 27 | B36: Berkley | C36: 880793800 | D36: 3193361.448 | E36: 260329000 | F36: 3731161.102 | G36: 6924523 | H36: 13032295.3 | I36: 0.5313356428 | J36: 10751644 | K36: 6924523 | L36: 53.13 | N36: 6460312 | O36: 0.0497 | P36: 6781390 | Q36: 52.03526964 | R36: 1.094730359 | S36: 0 | T36: 0 | U36: 0 | V36: 0 | W36: 0 | X36: =MIN(H36*parameters!C$22,ROUND(P36+T36-V36+W36,0)) -> 6781390 | Y36: 52.03526964 | AA36: -143133 | AB36: -143133 | AC36: 0 | AD36: -1.094730359 | AF36: -0.02067044907 | AG36: -1.094730359 | AH36: 0 | AK36: 0.0497 | AM36: 027 | AN36: Berkley | AO36: 0.5313356428 | AP36: 53.13 | AQ36: 6781390 | AR36: -1.094730359
A37: 28 | B37: Berlin | C37: 642333300 | D37: 2328811.121 | E37: 161955000 | F37: 2321217.368 | G37: 4650028 | H37: 4017774.947 | I37: 1.157363979 | J37: 3314664 | K37: 3314664 | L37: 82.5 | N37: 3260181 | O37: 0.0503 | P37: 3424168 | Q37: 85.2254804 | R37: 0 | S37: 0 | T37: 0 | U37: 109504 | V37: 109504 | W37: 0 | X37: =MIN(H37*parameters!C$22,ROUND(P37+T37-V37+W37,0)) -> 3314664 | Y37: 82.49999175 | AA37: 0 | AB37: 0 | AC37: 0 | AD37: -8.249362182e-06 | AF37: 0.03303622931 | AG37: 2.725480396 | AH37: 0 | AK37: 0.0503 | AM37: 028 | AN37: Berlin | AO37: 1.157363979 | AP37: 82.5 | AQ37: 3314664 | AR37: -8.249362182e-06
A38: 29 | B38: Bernardston | C38: 216624000 | D38: 785381.0168 | E38: 63761000 | F38: 913853.4816 | G38: 1699234 | H38: 3164140.354 | I38: 0.5370286429 | J38: 2610416 | K38: 1699234 | L38: 53.7 | N38: 1654097 | O38: 0.0352 | P38: 1712321 | Q38: 54.11646794 | R38: 0 | S38: 0 | T38: 0 | U38: 13087 | V38: 13087 | W38: 0 | X38: =MIN(H38*parameters!C$22,ROUND(P38+T38-V38+W38,0)) -> 1699234 | Y38: 53.70286429 | AA38: 0 | AB38: 0 | AC38: 0 | AD38: 0.002864289484 | AF38: 0.007701705592 | AG38: 0.4164679397 | AH38: 0 | AK38: 0.0352 | AM38: 029 | AN38: Bernardston | AO38: 0.5370286429 | AP38: 53.7 | AQ38: 1699234 | AR38: 0.002864289484
A39: 30 | B39: Beverly | C39: 6939374700 | D39: 25159045.9 | E39: 1843316000 | F39: 26419296.19 | G39: 51578342 | H39: 53934969.99 | I39: 0.9563061222 | J39: 44496350 | K39: 44496350 | L39: 82.5 | N39: 41780643 | O39: 0.0391 | P39: 43414266 | Q39: 80.49372422 | R39: 2.006275777 | S39: 0 | T39: 0 | U39: 0 | V39: 0 | W39: 0 | X39: =MIN(H39*parameters!C$22,ROUND(P39+T39-V39+W39,0)) -> 43414266 | Y39: 80.49372422 | AA39: -1082084 | AB39: -1082084 | AC39: 0 | AD39: -2.006275777 | AF39: -0.02431848904 | AG39: -2.006275777 | AH39: 0 | AK39: 0.0391 | AM39: 030 | AN39: Beverly | AO39: 0.9563061222 | AP39: 82.5 | AQ39: 43414266 | AR39: -2.006275777
A40: 31 | B40: Billerica | C40: 6791697200 | D40: 24623633.82 | E40: 1648973000 | F40: 23633878.34 | G40: 48257512 | H40: 61342628.84 | I40: 0.7866880326 | J40: 50607669 | K40: 48257512 | L40: 78.67 | N40: 46503507 | O40: 0.045 | P40: 48596165 | Q40: 79.22087122 | R40: 0 | S40: 0 | T40: 0 | U40: 338653 | V40: 338653 | W40: 0 | X40: =MIN(H40*parameters!C$22,ROUND(P40+T40-V40+W40,0)) -> 48257512 | Y40: 78.66880326 | AA40: 0 | AB40: 0 | AC40: 0 | AD40: -0.001196738968 | AF40: 0.007017622458 | AG40: 0.5508712216 | AH40: 0 | AK40: 0.045 | AM40: 031 | AN40: Billerica | AO40: 0.7866880326 | AP40: 78.67 | AQ40: 48257512 | AR40: -0.001196738968
A41: 32 | B41: Blackstone | C41: 972102100 | D41: 3524404.202 | E41: 295393000 | F41: 4233715.304 | G41: 7758120 | H41: 16065968.59 | I41: 0.4828915205 | J41: 13254424 | K41: 7758120 | L41: 48.29 | N41: 7470588 | O41: 0.0469 | P41: 7820959 | Q41: 48.68028315 | R41: 0 | S41: 0 | T41: 0 | U41: 62839 | V41: 62839 | W41: 0 | X41: =MIN(H41*parameters!C$22,ROUND(P41+T41-V41+W41,0)) -> 7758120 | Y41: 48.28915205 | AA41: 0 | AB41: 0 | AC41: 0 | AD41: -0.0008479518874 | AF41: 0.008099771594 | AG41: 0.3902831502 | AH41: 0 | AK41: 0.0469 | AM41: 032 | AN41: Blackstone | AO41: 0.4828915205 | AP41: 48.29 | AQ41: 7758120 | AR41: -0.0008479518874
A42: 33 | B42: Blandford | C42: 174764000 | D42: 633615.5183 | E42: 38466000 | F42: 551313.311 | G42: 1184929 | H42: 1406411.225 | I42: 0.8425195841 | J42: 1160289 | K42: 1160289 | L42: 82.5 | N42: 1095373 | O42: 0.062 | P42: 1163286 | Q42: 82.71307706 | R42: 0 | S42: 0 | T42: 0 | U42: 2997 | V42: 2997 | W42: 0 | X42: =MIN(H42*parameters!C$22,ROUND(P42+T42-V42+W42,0)) -> 1160289 | Y42: 82.49998149 | AA42: 0 | AB42: 0 | AC42: 0 | AD42: -1.850753054e-05 | AF42: 0.002582977172 | AG42: 0.2130770614 | AH42: 0 | AK42: 0.062 | AM42: 033 | AN42: Blandford | AO42: 0.8425195841 | AP42: 82.5 | AQ42: 1160289 | AR42: -1.850753054e-05
A43: 34 | B43: Bolton | C43: 1087848200 | D43: 3944047.407 | E43: 409226000 | F43: 5865224.9 | G43: 9809272 | H43: 11107060.77 | I43: 0.8831564172 | J43: 9163325 | K43: 9163325 | L43: 82.5 | N43: 8945113 | O43: 0.0465 | P43: 9361061 | Q43: 84.28027171 | R43: 0 | S43: 0 | T43: 0 | U43: 197736 | V43: 197736 | W43: 0 | X43: =MIN(H43*parameters!C$22,ROUND(P43+T43-V43+W43,0)) -> 9163325 | Y43: 82.49999875 | AA43: 0 | AB43: 0 | AC43: 0 | AD43: -1.254343331e-06 | AF43: 0.02157906655 | AG43: 1.780271709 | AH43: 0 | AK43: 0.0465 | AM43: 034 | AN43: Bolton | AO43: 0.8831564172 | AP43: 82.5 | AQ43: 9163325 | AR43: -1.254343331e-06
A44: 35 | B44: Boston | C44: 179793040700 | D44: 651848553.8 | E44: 35247155000 | F44: 505179268.1 | G44: 1157027822 | H44: 924506066 | I44: 1.251509173 | J44: 762717504 | K44: 762717504 | L44: 82.5 | N44: 749907338 | O44: 0.063 | P44: 797151500 | Q44: 86.22458298 | R44: 0 | S44: 0 | T44: 0 | U44: 34433996 | V44: 34433996 | W44: 0 | X44: =MIN(H44*parameters!C$22,ROUND(P44+T44-V44+W44,0)) -> 762717504 | Y44: 82.49999995 | AA44: 0 | AB44: 0 | AC44: 0 | AD44: -4.935729692e-08 | AF44: 0.04514646094 | AG44: 3.724582976 | AH44: 0 | AK44: 0.063 | AM44: 035 | AN44: Boston | AO44: 1.251509173 | AP44: 82.5 | AQ44: 762717504 | AR44: -4.935729692e-08
A45: 36 | B45: Bourne | C45: 4814391000 | D45: 17454812.48 | E45: 734962000 | F45: 10533830.75 | G45: 27988643 | H45: 25869479.6 | I45: 1.081917512 | J45: 21342321 | K45: 21342321 | L45: 82.5 | N45: 20436036 | O45: 0.0469 | P45: 21394486 | Q45: 82.70164817 | R45: 0 | S45: 0 | T45: 0 | U45: 52165 | V45: 52165 | W45: 0 | X45: =MIN(H45*parameters!C$22,ROUND(P45+T45-V45+W45,0)) -> 21342321 | Y45: 82.50000129 | AA45: 0 | AB45: 0 | AC45: 0 | AD45: 1.285023046e-06 | AF45: 0.002444204639 | AG45: 0.2016481709 | AH45: 0 | AK45: 0.0469 | AM45: 036 | AN45: Bourne | AO45: 1.081917512 | AP45: 82.5 | AQ45: 21342321 | AR45: 1.285023046e-06
A46: 37 | B46: Boxborough | C46: 1177906300 | D46: 4270557.499 | E46: 367508000 | F46: 5267302.353 | G46: 9537860 | H46: 9480700.853 | I46: 1.006029 | J46: 7821578 | K46: 7821578 | L46: 82.5 | N46: 7456353 | O46: 0.0443 | P46: 7786669 | Q46: 82.13178668 | R46: =IF(L46>Q46,L46-Q46,0) -> 0.3682133208 | S46: 0 | T46: 0 | U46: 0 | V46: 0 | W46: 0 | X46: =MIN(H46*parameters!C$22,ROUND(P46+T46-V46+W46,0)) -> 7786669 | Y46: 82.13178668 | AA46: -34909 | AB46: -34909 | AC46: 0 | AD46: -0.3682133208 | AF46: -0.004463165873 | AG46: -0.3682133208 | AH46: 0 | AK46: 0.0443 | AM46: 037 | AN46: Boxborough | AO46: 1.006029 | AP46: 82.5 | AQ46: 7786669 | AR46: -0.3682133208
A47: 38 | B47: Boxford | C47: 1868910500 | D47: 6775827.373 | E47: 881249000 | F47: 12630486.77 | G47: 19406314 | H47: 15126491.61 | I47: 1.282935561 | J47: 12479356 | K47: 12479356 | L47: 82.5 | N47: 12223832 | O47: 0.0319 | P47: 12613772 | Q47: 83.38861595 | R47: 0 | S47: 0 | T47: 0 | U47: 134416 | V47: 134416 | W47: 0 | X47: =MIN(H47*parameters!C$22,ROUND(P47+T47-V47+W47,0)) -> 12479356 | Y47: 82.50000276 | AA47: 0 | AB47: 0 | AC47: 0 | AD47: 2.76138104e-06 | AF47: 0.01077106864 | AG47: 0.8886159535 | AH47: 0 | AK47: 0.0319 | AM47: 038 | AN47: Boxford | AO47: 1.282935561 | AP47: 82.5 | AQ47: 12479356 | AR47: 2.76138104e-06
A48: 39 | B48: Boylston | C48: 766982300 | D48: 2780732.23 | E48: 266618000 | F48: 3821298.091 | G48: 6602030 | H48: 7067220.404 | I48: 0.9341763271 | J48: 5830457 | K48: 5830457 | L48: 82.5 | N48: 5464404 | O48: 0.0424 | P48: 5696095 | Q48: 80.59880228 | R48: 1.901197722 | S48: 0 | T48: 0 | U48: 0 | V48: 0 | W48: 0 | X48: =MIN(H48*parameters!C$22,ROUND(P48+T48-V48+W48,0)) -> 5696095 | Y48: 80.59880228 | AA48: -134362 | AB48: -134362 | AC48: 0 | AD48: -1.901197722 | AF48: -0.0230448488 | AG48: -1.901197722 | AH48: 0 | AK48: 0.0424 | AM48: 039 | AN48: Boylston | AO48: 0.9341763271 | AP48: 82.5 | AQ48: 5696095 | AR48: -1.901197722
A49: 40 | B49: Braintree | C49: 7187550000 | D49: 26058817.71 | E49: 1616164000 | F49: 23163643.89 | G49: 49222462 | H49: 67017191.13 | I49: 0.7344751574 | J49: 55289183 | K49: 49222462 | L49: 73.45 | N49: 46738391 | O49: 0.0286 | P49: 48075109 | Q49: 71.73548785 | R49: 1.714512146 | S49: 0 | T49: 0 | U49: 0 | V49: 0 | W49: 0 | X49: =MIN(H49*parameters!C$22,ROUND(P49+T49-V49+W49,0)) -> 48075109 | Y49: 71.73548785 | AA49: -1147353 | AB49: -1147353 | AC49: 0 | AD49: -1.714512146 | AF49: -0.02330954108 | AG49: -1.714512146 | AH49: 0 | AK49: 0.0286 | AM49: 040 | AN49: Braintree | AO49: 0.7344751574 | AP49: 73.45 | AQ49: 48075109 | AR49: -1.714512146
A50: 41 | B50: Brewster | C50: 4100984500 | D50: 14868321.96 | E50: 356227000 | F50: 5105617.606 | G50: 19973940 | H50: 12416222.29 | I50: 1.608697036 | J50: 10243383 | K50: 10243383 | L50: 82.5 | N50: 9888704 | O50: 0.0203 | P50: 10089445 | Q50: 81.26018337 | R50: 1.239816626 | S50: 0 | T50: 0 | U50: 0 | V50: 0 | W50: 0 | X50: =MIN(H50*parameters!C$22,ROUND(P50+T50-V50+W50,0)) -> 10089445 | Y50: 81.26018337 | AA50: -153938 | AB50: -153938 | AC50: 0 | AD50: -1.239816626 | AF50: -0.01502804298 | AG50: -1.239816626 | AH50: 0 | AK50: 0.0203 | AM50: 041 | AN50: Brewster | AO50: 1.608697036 | AP50: 82.5 | AQ50: 10089445 | AR50: -1.239816626
A51: 42 | B51: Bridgewater | C51: 3016111400 | D51: 10935060.93 | E51: 897950000 | F51: 12869853.58 | G51: 23804915 | H51: 37899671.09 | I51: 0.628103472 | J51: 31267229 | K51: 23804915 | L51: 62.81 | N51: 23074032 | O51: 0.0424 | P51: 24052371 | Q51: 63.46327107 | R51: 0 | S51: 0 | T51: 0 | U51: 247456 | V51: 247456 | W51: 0 | X51: =MIN(H51*parameters!C$22,ROUND(P51+T51-V51+W51,0)) -> 23804915 | Y51: 62.8103472 | AA51: 0 | AB51: 0 | AC51: 0 | AD51: 0.0003471967332 | AF51: 0.01039516419 | AG51: 0.6532710688 | AH51: 0 | AK51: 0.0424 | AM51: 042 | AN51: Bridgewater | AO51: 0.628103472 | AP51: 62.81 | AQ51: 23804915 | AR51: 0.0003471967332
A52: 43 | B52: Brimfield | C52: 439485600 | D52: 1593376.761 | E52: 142891000 | F52: 2047982.902 | G52: 3641360 | H52: 6289190.254 | I52: 0.5789870958 | J52: 5188582 | K52: 3641360 | L52: 57.9 | N52: 3427516 | O52: 0.0222 | P52: 3503607 | Q52: 55.70839581 | R52: 2.191604186 | S52: 0 | T52: 0 | U52: 0 | V52: 0 | W52: 0 | X52: =MIN(H52*parameters!C$22,ROUND(P52+T52-V52+W52,0)) -> 3503607 | Y52: 55.70839581 | AA52: -137753 | AB52: -137753 | AC52: 0 | AD52: -2.191604186 | AF52: -0.03783009645 | AG52: -2.191604186 | AH52: 0 | AK52: 0.0222 | AM52: 043 | AN52: Brimfield | AO52: 0.5789870958 | AP52: 57.9 | AQ52: 3503607 | AR52: -2.191604186
A53: 44 | B53: Brockton | C53: 7675101300 | D53: 27826459.04 | E53: 2101878000 | F53: 30125131.79 | G53: 57951591 | H53: 254114890.5 | I53: 0.2280527162 | J53: 209644785 | K53: 57951591 | L53: 22.81 | N53: 49395844 | O53: 0.0322 | P53: 50986390 | Q53: 20.06430631 | R53: 2.745693693 | S53: 0.01 | T53: 493958 | U53: 0 | V53: 0 | W53: 0 | X53: =MIN(H53*parameters!C$22,ROUND(P53+T53-V53+W53,0)) -> 51480348 | Y53: 20.25869004 | AA53: -6965201 | AB53: -6471243 | AC53: 0 | AD53: -2.551309964 | AF53: -0.1201899875 | AG53: -2.745693693 | AH53: 987916.88 | AK53: 0.0322 | AM53: 044 | AN53: Brockton | AO53: 0.2280527162 | AP53: 22.81 | AQ53: 51480348 | AR53: -2.551309964
A54: 45 | B54: Brookfield | C54: 276658600 | D54: 1003039.426 | E54: 97125000 | F54: 1392042.462 | G54: 2395082 | H54: 5874077.289 | I54: 0.40773757 | J54: 4846114 | K54: 2395082 | L54: 40.77 | N54: 2378066 | O54: 0.0363 | P54: 2464390 | Q54: 41.95365295 | R54: 0 | S54: 0 | T54: 0 | U54: 69308 | V54: 69308 | W54: 0 | X54: =MIN(H54*parameters!C$22,ROUND(P54+T54-V54+W54,0)) -> 2395082 | Y54: 40.773757 | AA54: 0 | AB54: 0 | AC54: 0 | AD54: 0.003757001068 | AF54: 0.02893763136 | AG54: 1.18365295 | AH54: 0 | AK54: 0.0363 | AM54: 045 | AN54: Brookfield | AO54: 0.40773757 | AP54: 40.77 | AQ54: 2395082 | AR54: 0.003757001068
A55: 46 | B55: Brookline | C55: 24547879100 | D55: 88999548.75 | E55: 5594220000 | F55: 80179065.95 | G55: 169178615 | H55: 83892429.73 | I55: 2.016613603 | J55: 69211255 | K55: 69211255 | L55: 82.5 | N55: 68684369 | O55: 0.0371 | P55: 71232559 | Q55: 84.90940032 | R55: 0 | S55: 0 | T55: 0 | U55: 2021304 | V55: 2021304 | W55: 0 | X55: =MIN(H55*parameters!C$22,ROUND(P55+T55-V55+W55,0)) -> 69211255 | Y55: 82.50000056 | AA55: 0 | AB55: 0 | AC55: 0 | AD55: 5.640075784e-07 | AF55: 0.02920484537 | AG55: 2.409400323 | AH55: 0 | AK55: 0.0371 | AM55: 046 | AN55: Brookline | AO55: 2.016613603 | AP55: 82.5 | AQ55: 69211255 | AR55: 5.640075784e-07
A56: 47 | B56: Buckland | C56: 216985500 | D56: 786691.6529 | E56: 40307737.5 | F56: 577709.9834 | G56: 1364402 | H56: 2409885.42 | I56: 0.5661688264 | J56: 1988155 | K56: 1364402 | L56: 56.62 | N56: 1340110 | O56: 0.0297 | P56: 1379911 | Q56: 57.26044021 | R56: 0 | S56: 0 | T56: 0 | U56: 15509 | V56: 15509 | W56: 0 | X56: =MIN(H56*parameters!C$22,ROUND(P56+T56-V56+W56,0)) -> 1364402 | Y56: 56.61688264 | AA56: 0 | AB56: 0 | AC56: 0 | AD56: -0.00311736122 | AF56: 0.01136688454 | AG56: 0.6404402067 | AH56: 0 | AK56: 0.0297 | AM56: 047 | AN56: Buckland | AO56: 0.5661688264 | AP56: 56.62 | AQ56: 1364402 | AR56: -0.00311736122
A57: 48 | B57: Burlington | C57: 7011898700 | D57: 25421985.24 | E57: 1266081000 | F57: 18146085.07 | G57: 43568070 | H57: 42148123.85 | I57: 1.033689427 | J57: 34772202 | K57: 34772202 | L57: 82.5 | N57: 33976306 | O57: 0.0529 | P57: 35773653 | Q57: 84.87602705 | R57: 0 | S57: 0 | T57: 0 | U57: 1001451 | V57: 1001451 | W57: 0 | X57: =MIN(H57*parameters!C$22,ROUND(P57+T57-V57+W57,0)) -> 34772202 | Y57: 82.49999958 | AA57: 0 | AB57: 0 | AC57: 0 | AD57: -4.170700549e-07 | AF57: 0.02880033309 | AG57: 2.376027051 | AH57: 0 | AK57: 0.0529 | AM57: 048 | AN57: Burlington | AO57: 1.033689427 | AP57: 82.5 | AQ57: 34772202 | AR57: -4.170700549e-07
A58: 49 | B58: Cambridge | C58: 49449365600 | D58: 179281118.6 | E58: 7188046000 | F58: 103022550.8 | G58: 282303669 | H58: 97837766.09 | I58: 2.885426357 | J58: 80716157 | K58: 80716157 | L58: 82.5 | N58: 78997547 | O58: 0.0493 | P58: 82892126 | Q58: 84.72405832 | R58: 0 | S58: 0 | T58: 0 | U58: 2175969 | V58: 2175969 | W58: 0 | X58: =MIN(H58*parameters!C$22,ROUND(P58+T58-V58+W58,0)) -> 80716157 | Y58: 82.49999998 | AA58: 0 | AB58: 0 | AC58: 0 | AD58: -2.222252249e-08 | AF58: 0.02695828296 | AG58: 2.224058322 | AH58: 0 | AK58: 0.0493 | AM58: 049 | AN58: Cambridge | AO58: 2.885426357 | AP58: 82.5 | AQ58: 80716157 | AR58: -2.222252249e-08
A59: 50 | B59: Canton | C59: 5111198800 | D59: 18530903.83 | E59: 1468020000 | F59: 21040372.45 | G59: 39571276 | H59: 38636895.2 | I59: 1.024183641 | J59: 31875439 | K59: 31875439 | L59: 82.5 | N59: 30888516 | O59: 0.0484 | P59: 32383520 | Q59: 83.81501627 | R59: 0 | S59: 0 | T59: 0 | U59: 508081 | V59: 508081 | W59: 0 | X59: =MIN(H59*parameters!C$22,ROUND(P59+T59-V59+W59,0)) -> 31875439 | Y59: 82.50000119 | AA59: 0 | AB59: 0 | AC59: 0 | AD59: 1.188342381e-06 | AF59: 0.01593957655 | AG59: 1.315016273 | AH59: 0 | AK59: 0.0484 | AM59: 050 | AN59: Canton | AO59: 1.024183641 | AP59: 82.5 | AQ59: 31875439 | AR59: 1.188342381e-06
A60: 51 | B60: Carlisle | C60: 1544199600 | D60: 5598571.959 | E60: 649881000 | F60: 9314408.721 | G60: 14912981 | H60: 9560821.098 | I60: 1.559801281 | J60: 7887677 | K60: 7887677 | L60: 82.5 | N60: 7739201 | O60: 0.0395 | P60: 8044899 | Q60: 84.14443611 | R60: 0 | S60: 0 | T60: 0 | U60: 157222 | V60: 157222 | W60: 0 | X60: =MIN(H60*parameters!C$22,ROUND(P60+T60-V60+W60,0)) -> 7887677 | Y60: 82.49999576 | AA60: 0 | AB60: 0 | AC60: 0 | AD60: -4.244644884e-06 | AF60: 0.01993261134 | AG60: 1.644436106 | AH60: 0 | AK60: 0.0395 | AM60: 051 | AN60: Carlisle | AO60: 1.559801281 | AP60: 82.5 | AQ60: 7887677 | AR60: -4.244644884e-06
A61: 52 | B61: Carver | C61: 1394846000 | D61: 5057083.102 | E61: 369318000 | F61: 5293244.148 | G61: 10350327 | H61: 19623560.48 | I61: 0.5274438862 | J61: 16189437 | K61: 10350327 | L61: 52.74 | N61: 9851699 | O61: 0.04 | P61: 10245767 | Q61: 52.21155973 | R61: 0.5284402732 | S61: 0 | T61: 0 | U61: 0 | V61: 0 | W61: 0 | X61: =MIN(H61*parameters!C$22,ROUND(P61+T61-V61+W61,0)) -> 10245767 | Y61: 52.21155973 | AA61: -104560 | AB61: -104560 | AC61: 0 | AD61: -0.5284402732 | AF61: -0.01010209629 | AG61: -0.5284402732 | AH61: 0 | AK61: 0.04 | AM61: 052 | AN61: Carver | AO61: 0.5274438862 | AP61: 52.74 | AQ61: 10245767 | AR61: -0.5284402732
A62: 53 | B62: Charlemont | C62: 142686500 | D62: 517316.9568 | E62: 26593000 | F62: 381143.7342 | G62: 898461 | H62: 1745375.444 | I62: 0.5147666098 | J62: 1439935 | K62: 898461 | L62: 51.48 | N62: 883461 | O62: 0.039 | P62: 917916 | Q62: 52.59132087 | R62: 0 | S62: 0 | T62: 0 | U62: 19455 | V62: 19455 | W62: 0 | X62: =MIN(H62*parameters!C$22,ROUND(P62+T62-V62+W62,0)) -> 898461 | Y62: 51.47666098 | AA62: 0 | AB62: 0 | AC62: 0 | AD62: -0.003339015053 | AF62: 0.02165369448 | AG62: 1.111320875 | AH62: 0 | AK62: 0.039 | AM62: 053 | AN62: Charlemont | AO62: 0.5147666098 | AP62: 51.48 | AQ62: 898461 | AR62: -0.003339015053
A63: 54 | B63: Charlton | C63: 1610444700 | D63: 5838746.843 | E63: 505236000 | F63: 7241286.643 | G63: 13080033 | H63: 24269057 | I63: 0.53895926 | J63: 20021972 | K63: 13080033 | L63: 53.9 | N63: 12642068 | O63: 0.0536 | P63: 13319683 | Q63: 54.88339741 | R63: 0 | S63: 0 | T63: 0 | U63: 239650 | V63: 239650 | W63: 0 | X63: =MIN(H63*parameters!C$22,ROUND(P63+T63-V63+W63,0)) -> 13080033 | Y63: 53.895926 | AA63: 0 | AB63: 0 | AC63: 0 | AD63: -0.004074000472 | AF63: 0.01832181922 | AG63: 0.9833974123 | AH63: 0 | AK63: 0.0536 | AM63: 054 | AN63: Charlton | AO63: 0.53895926 | AP63: 53.9 | AQ63: 13080033 | AR63: -0.004074000472
A64: 55 | B64: Chatham | C64: 7374670100 | D64: 26737230.88 | E64: 359411000 | F64: 5151252.234 | G64: 31888483 | H64: 5263066.223 | I64: 6.058917302 | J64: 4342030 | K64: 4342030 | L64: 82.5 | N64: 4312491 | O64: 0.042 | P64: 4493616 | Q64: 85.38019112 | R64: 0 | S64: 0 | T64: 0 | U64: 151586 | V64: 151586 | W64: 0 | X64: =MIN(H64*parameters!C$22,ROUND(P64+T64-V64+W64,0)) -> 4342030 | Y64: 82.50000695 | AA64: 0 | AB64: 0 | AC64: 0 | AD64: 6.950584037e-06 | AF64: 0.03491132028 | AG64: 2.880191116 | AH64: 0 | AK64: 0.042 | AM64: 055 | AN64: Chatham | AO64: 6.058917302 | AP64: 82.5 | AQ64: 4342030 | AR64: 6.950584037e-06
A65: 56 | B65: Chelmsford | C65: 5849923100 | D65: 21209185.28 | E65: 1989752000 | F65: 28518087.75 | G65: 49727273 | H65: 57689266.5 | I65: 0.8619848373 | J65: 47593645 | K65: 47593645 | L65: 82.5 | N65: 44988269 | O65: 0.0377 | P65: 46684327 | Q65: 80.92376595 | R65: 1.576234053 | S65: 0 | T65: 0 | U65: 0 | V65: 0 | W65: 0 | X65: =MIN(H65*parameters!C$22,ROUND(P65+T65-V65+W65,0)) -> 46684327 | Y65: 80.92376595 | AA65: -909318 | AB65: -909318 | AC65: 0 | AD65: -1.576234053 | AF65: -0.01910587012 | AG65: -1.576234053 | AH65: 0 | AK65: 0.0377 | AM65: 056 | AN65: Chelmsford | AO65: 0.8619848373 | AP65: 82.5 | AQ65: 46684327 | AR65: -1.576234053
A66: 57 | B66: Chelsea | C66: 3534210300 | D66: 12813454.09 | E66: 763876000 | F66: 10948240.18 | G66: 23761694 | H66: 110473216.9 | I66: 0.2150900886 | J66: 91140404 | K66: 23761694 | L66: 21.51 | N66: 19512023 | O66: 0.0564 | P66: 20612501 | Q66: 18.6583695 | R66: 2.851630502 | S66: 0.01 | T66: 195120 | U66: 0 | V66: 0 | W66: 0 | X66: =MIN(H66*parameters!C$22,ROUND(P66+T66-V66+W66,0)) -> 20807621 | Y66: 18.83499149 | AA66: -3149193 | AB66: -2954073 | AC66: 0 | AD66: -2.675008507 | AF66: -0.1325323439 | AG66: -2.851630502 | AH66: 390240.46 | AK66: 0.0564 | AM66: 057 | AN66: Chelsea | AO66: 0.2150900886 | AP66: 21.51 | AQ66: 20807621 | AR66: -2.675008507
A67: 58 | B67: Cheshire | C67: 308072500 | D67: 1116932.073 | E67: 96183000 | F67: 1378541.262 | G67: 2495473 | H67: 5236208.406 | I67: 0.4765801524 | J67: 4319872 | K67: 2495473 | L67: 47.66 | N67: 2455886 | O67: 0.0346 | P67: 2540860 | Q67: 48.52480656 | R67: 0 | S67: 0 | T67: 0 | U67: 45387 | V67: 45387 | W67: 0 | X67: =MIN(H67*parameters!C$22,ROUND(P67+T67-V67+W67,0)) -> 2495473 | Y67: 47.65801524 | AA67: 0 | AB67: 0 | AC67: 0 | AD67: -0.001984764784 | AF67: 0.01818773435 | AG67: 0.8648065559 | AH67: 0 | AK67: 0.0346 | AM67: 058 | AN67: Cheshire | AO67: 0.4765801524 | AP67: 47.66 | AQ67: 2495473 | AR67: -0.001984764784
A68: 59 | B68: Chester | C68: 125043400 | D68: 453351.0259 | E68: 32139000 | F68: 460631.6878 | G68: 913983 | H68: 1767396.931 | I68: 0.5171351064 | J68: 1458102 | K68: 913983 | L68: 51.71 | N68: 892810 | O68: 0.0332 | P68: 922451 | Q68: 52.19263335 | R68: 0 | S68: 0 | T68: 0 | U68: 8468 | V68: 8468 | W68: 0 | X68: =MIN(H68*parameters!C$22,ROUND(P68+T68-V68+W68,0)) -> 913983 | Y68: 51.71351064 | AA68: 0 | AB68: 0 | AC68: 0 | AD68: 0.003510644539 | AF68: 0.009264942565 | AG68: 0.4826333505 | AH68: 0 | AK68: 0.0332 | AM68: 059 | AN68: Chester | AO68: 0.5171351064 | AP68: 51.71 | AQ68: 913983 | AR68: 0.003510644539
A69: 60 | B69: Chesterfield | C69: 157870800 | D69: 572368.3868 | E69: 26806000 | F69: 384196.5532 | G69: 956565 | H69: 1328991.619 | I69: 0.7197675187 | J69: 1096418 | K69: 956565 | L69: 71.98 | N69: 964639 | O69: 0.0357 | P69: 999077 | Q69: 75.17556813 | R69: 0 | S69: 0 | T69: 0 | U69: 42512 | V69: 42512 | W69: 0 | X69: =MIN(H69*parameters!C$22,ROUND(P69+T69-V69+W69,0)) -> 956565 | Y69: 71.97675187 | AA69: 0 | AB69: 0 | AC69: 0 | AD69: -0.003248126406 | AF69: 0.04444235363 | AG69: 3.195568133 | AH69: 0 | AK69: 0.0357 | AM69: 060 | AN69: Chesterfield | AO69: 0.7197675187 | AP69: 71.98 | AQ69: 956565 | AR69: -0.003248126406
A70: 61 | B70: Chicopee | C70: 3998413400 | D70: 14496445.37 | E70: 1144719000 | F70: 16406666.2 | G70: 30903112 | H70: 99981143.99 | I70: 0.3090894019 | J70: 82484444 | K70: 30903112 | L70: 30.91 | N70: 30513907 | O70: 0.0395 | P70: 31719206 | Q70: 31.7251881 | R70: 0 | S70: 0 | T70: 0 | U70: 816094 | V70: 816094 | W70: 0 | X70: =MIN(H70*parameters!C$22,ROUND(P70+T70-V70+W70,0)) -> 30903112 | Y70: 30.90894019 | AA70: 0 | AB70: 0 | AC70: 0 | AD70: -0.001059807146 | AF70: 0.02640814944 | AG70: 0.8151881046 | AH70: 0 | AK70: 0.0395 | AM70: 061 | AN70: Chicopee | AO70: 0.3090894019 | AP70: 30.91 | AQ70: 30903112 | AR70: -0.001059807146
A71: 62 | B71: Chilmark | C71: 3358805700 | D71: 12177516.05 | E71: 64047000 | F71: 917952.5719 | G71: 13095469 | H71: 1399308.549 | I71: 9.358528548 | J71: 1154430 | K71: 1154430 | L71: 82.5 | N71: 1101810 | O71: 0.0427 | P71: 1148857 | Q71: 82.10176384 | R71: 0.3982361575 | S71: 0 | T71: 0 | U71: 0 | V71: 0 | W71: 5573 | X71: =MIN(H71*parameters!C$22,ROUND(P71+T71-V71+W71,0)) -> 1154430 | Y71: 82.50003197 | AA71: -5573 | AB71: 0 | AC71: 0 | AD71: 3.197324794e-05 | AF71: -0.004827490623 | AG71: -0.3982361575 | AH71: 0 | AK71: 0.0427 | AM71: 062 | AN71: Chilmark | AO71: 9.358528548 | AP71: 82.5 | AQ71: 1154430 | AR71: 3.197324794e-05
A72: 63 | B72: Clarksburg | C72: 128418100 | D72: 465586.1675 | E72: 39862000 | F72: 571321.458 | G72: 1036908 | H72: 2899516.209 | I72: 0.3576141415 | J72: 2392101 | K72: 1036908 | L72: 35.76 | N72: 955083 | O72: 0.0347 | P72: 988224 | Q72: 34.08237542 | R72: 1.677624576 | S72: 0 | T72: 0 | U72: 0 | V72: 0 | W72: 0 | X72: =MIN(H72*parameters!C$22,ROUND(P72+T72-V72+W72,0)) -> 988224 | Y72: 34.08237542 | AA72: -48684 | AB72: -48684 | AC72: 0 | AD72: -1.677624576 | AF72: -0.04695112778 | AG72: -1.677624576 | AH72: 0 | AK72: 0.0347 | AM72: 063 | AN72: Clarksburg | AO72: 0.3576141415 | AP72: 35.76 | AQ72: 988224 | AR72: -1.677624576
A73: 64 | B73: Clinton | C73: 1385425600 | D73: 5022928.976 | E73: 446983000 | F73: 6406376.48 | G73: 11429305 | H73: 25739349.56 | I73: 0.444040164 | J73: 21234963 | K73: 11429305 | L73: 44.4 | N73: 10670037 | O73: 0.0658 | P73: 11372125 | Q73: 44.18186626 | R73: 0.2181337353 | S73: 0 | T73: 0 | U73: 0 | V73: 0 | W73: 0 | X73: =MIN(H73*parameters!C$22,ROUND(P73+T73-V73+W73,0)) -> 11372125 | Y73: 44.18186626 | AA73: -57180 | AB73: -57180 | AC73: 0 | AD73: -0.2181337353 | AF73: -0.005002928875 | AG73: -0.2181337353 | AH73: 0 | AK73: 0.0658 | AM73: 064 | AN73: Clinton | AO73: 0.444040164 | AP73: 44.4 | AQ73: 11372125 | AR73: -0.2181337353
A74: 65 | B74: Cohasset | C74: 3075090800 | D74: 11148893.66 | E74: 1087503000 | F74: 15586618.82 | G74: 26735512 | H74: 15657608.2 | I74: 1.707509324 | J74: =ROUND(H74*maxloc,0) -> 12917527 | K74: 12917527 | L74: 82.5 | N74: 12979941 | O74: 0.0528 | P74: 13665282 | Q74: 87.27566705 | R74: 0 | S74: 0 | T74: 0 | U74: 747755 | V74: =MAX(U74*(V$5),0) -> 747755 | W74: 0 | X74: =MIN(H74*parameters!C$22,ROUND(P74+T74-V74+W74,0)) -> 12917527 | Y74: 82.5000015 | AA74: 0 | AB74: 0 | AC74: 0 | AD74: 1.50222273e-06 | AF74: =(P74-K74)/K74 -> 0.05788685404 | AG74: 4.775667047 | AH74: =IF(AF74<$AH$5, $AH$6*(N74), IF(AND(AF74<$AH$4, AF74>$AH$5), $AH$7*(N74), 0)) -> 0 | AK74: 0.0528 | AM74: 065 | AN74: Cohasset | AO74: 1.707509324 | AP74: =L74 -> 82.5 | AQ74: =X74 -> 12917527 | AR74: 1.50222273e-06
A75: 66 | B75: Colrain | C75: 179350200 | D75: =D$5*C75 -> 650243.013 | E75: 46782000 | F75: 670502.244 | G75: =ROUND(D75+F75,0) -> 1320745 | H75: =(SUMIF(town1755,A75,found1755)/2) -> 2372801.353 | I75: =G75/H75 -> 0.5566184453 | J75: 1957561 | K75: =MIN(G75,J75) -> 1320745 | L75: =IF(H75>0, ROUND((K75*100/H75), 2), 0) -> 55.66 | N75: 1245591 | O75: 0.0322 | P75: =ROUND(N75*(1+O75),0) -> 1285699 | Q75: =P75*100/H75 -> 54.18485616 | R75: =IF(L75>Q75,L75-Q75,0) -> 1.475143842 | S75: =IF(AND(R75>$T$4,R75<=$T$5),$S$4,IF(R75>$T$5,$S$5,0)) -> 0 | T75: =ROUND(S75*N75,0) -> 0 | U75: =MAX(P75-K75,0) -> 0 | V75: 0 | W75: =IF(AND(I75>1.75,$W$5=1),MAX(K75-(P75+T75),0),0) -> 0 | X75: =MIN(H75*parameters!C$22,ROUND(P75+T75-V75+W75,0)) -> 1285699 | Y75: =X75*100/H75 -> 54.18485616 | AA75: =IF(Q75<L75, P75-K75, 0) -> -35046 | AB75: =-1*MAX(K75-(P75+T75+W75),0) -> -35046 | AC75: =IF(Q75>L75, X75-K75,0) -> 0 | AD75: =Y75-L75 -> -1.475143842 | AF75: -0.02653502379 | AG75: =Q75-L75 -> -1.475143842 | AH75: 0 | AK75: 0.0322 | AM75: =TEXT(A75,"000") -> 066 | AN75: =B75 -> Colrain | AO75: =I75 -> 0.5566184453 | AP75: 55.66 | AQ75: 1285699 | AR75: =AD75 -> -1.475143842
A76: 67 | B76: Concord | C76: 6572447900 | D76: 23828734.65 | E76: 2581841000 | F76: =E76*F$5 -> 37004193.58 | G76: 60832928 | H76: 33782265.11 | I76: 1.800735617 | J76: 27870369 | K76: 27870369 | L76: 82.5 | N76: 26682639 | O76: 0.0482 | P76: 27968742 | Q76: 82.79119801 | R76: 0 | S76: 0 | T76: 0 | U76: 98373 | V76: 98373 | W76: 0 | X76: =MIN(H76*parameters!C$22,ROUND(P76+T76-V76+W76,0)) -> 27870369 | Y76: 82.50000084 | AA76: 0 | AB76: 0 | AC76: 0 | AD76: 8.369147082e-07 | AF76: 0.003529662632 | AG76: 0.291198007 | AH76: 0 | AK76: 0.0482 | AM76: 067 | AN76: Concord | AO76: 1.800735617 | AP76: 82.5 | AQ76: 27870369 | AR76: 8.369147082e-07
A77: 68 | B77: Conway | C77: 270902400 | D77: 982170.0383 | E77: 66086000 | F77: 947176.5058 | G77: 1929347 | H77: 2256479.642 | I77: 0.8550252188 | J77: 1861596 | K77: 1861596 | L77: 82.5 | N77: 1918900 | O77: 0.0398 | P77: 1995272 | Q77: 88.42410817 | R77: 0 | S77: 0 | T77: 0 | U77: 133676 | V77: 133676 | W77: 0 | X77: =MIN(H77*parameters!C$22,ROUND(P77+T77-V77+W77,0)) -> 1861596 | Y77: 82.50001307 | AA77: 0 | AB77: 0 | AC77: 0 | AD77: 1.307102366e-05 | AF77: 0.07180720199 | AG77: 5.924108174 | AH77: 0 | AK77: 0.0398 | AM77: 068 | AN77: Conway | AO77: 0.8550252188 | AP77: 82.5 | AQ77: 1861596 | AR77: 1.307102366e-05
A78: 69 | B78: Cummington | C78: 130242300 | D78: 472199.8948 | E78: 27225000 | F78: 390201.8638 | G78: 862402 | H78: 776673.0682 | I78: 1.110379689 | J78: 640755 | K78: 640755 | L78: 82.5 | N78: 726441 | O78: 0.0359 | P78: 752520 | Q78: 96.89018853 | R78: 0 | S78: 0 | T78: 0 | U78: 111765 | V78: 111765 | W78: 0 | X78: =MIN(H78*parameters!C$22,ROUND(P78+T78-V78+W78,0)) -> 640755 | Y78: 82.49996379 | AA78: 0 | AB78: 0 | AC78: 0 | AD78: -3.621120862e-05 | AF78: 0.1744270431 | AG78: 14.39018853 | AH78: 0 | AK78: 0.0359 | AM78: 069 | AN78: Cummington | AO78: 1.110379689 | AP78: 82.5 | AQ78: 640755 | AR78: -3.621120862e-05
A79: 70 | B79: Dalton | C79: 616299000 | D79: 2234422.48 | E79: 213940000 | F79: 3066291.524 | G79: 5300714 | H79: 10744825.56 | I79: 0.4933271343 | J79: 8864481 | K79: 5300714 | L79: 49.33 | N79: 5271023 | O79: 0.0334 | P79: 5447075 | Q79: 50.69486676 | R79: 0 | S79: 0 | T79: 0 | U79: 146361 | V79: 146361 | W79: 0 | X79: =MIN(H79*parameters!C$22,ROUND(P79+T79-V79+W79,0)) -> 5300714 | Y79: 49.33271343 | AA79: 0 | AB79: 0 | AC79: 0 | AD79: 0.002713426328 | AF79: 0.02761156327 | AG79: 1.364866764 | AH79: 0 | AK79: 0.0334 | AM79: 070 | AN79: Dalton | AO79: 0.4933271343 | AP79: 49.33 | AQ79: 5300714 | AR79: 0.002713426328
A80: 71 | B80: Danvers | C80: 5183902300 | D80: 18794493.96 | E80: 1229185000 | F80: 17617273.75 | G80: 36411768 | H80: 40471322.03 | I80: 0.8996930709 | J80: 33388841 | K80: 33388841 | L80: 82.5 | N80: 32065025 | O80: 0.0344 | P80: 33168062 | Q80: 81.95448119 | R80: 0.5455188125 | S80: 0 | T80: 0 | U80: 0 | V80: 0 | W80: 0 | X80: =MIN(H80*parameters!C$22,ROUND(P80+T80-V80+W80,0)) -> 33168062 | Y80: 81.95448119 | AA80: -220779 | AB80: -220779 | AC80: 0 | AD80: -0.5455188125 | AF80: -0.006612358902 | AG80: -0.5455188125 | AH80: 0 | AK80: 0.0344 | AM80: 071 | AN80: Danvers | AO80: 0.8996930709 | AP80: 82.5 | AQ80: 33168062 | AR80: -0.5455188125
A81: 72 | B81: Dartmouth | C81: 5885151300 | D81: 21336906.86 | E81: 1239186000 | F81: 17760612.92 | G81: 39097520 | H81: 45147870.38 | I81: 0.8659881335 | J81: 37246993 | K81: 37246993 | L81: 82.5 | N81: 36929057 | O81: 0.0354 | P81: 38236346 | Q81: 84.69136126 | R81: 0 | S81: 0 | T81: 0 | U81: 989353 | V81: 989353 | W81: 0 | X81: =MIN(H81*parameters!C$22,ROUND(P81+T81-V81+W81,0)) -> 37246993 | Y81: 82.49999987 | AA81: 0 | AB81: 0 | AC81: 0 | AD81: -1.340483067e-07 | AF81: 0.02656195629 | AG81: 2.191361256 | AH81: 0 | AK81: 0.0354 | AM81: 072 | AN81: Dartmouth | AO81: 0.8659881335 | AP81: 82.5 | AQ81: 37246993 | AR81: -1.340483067e-07
A82: 73 | B82: Dedham | C82: 5319862700 | D82: 19287425.11 | E82: 1651934000 | F82: 23676316.83 | G82: 42963742 | H82: 33018005.91 | I82: 1.301221586 | J82: 27239855 | K82: 27239855 | L82: 82.5 | N82: 25814973 | O82: 0.0376 | P82: 26785616 | Q82: 81.12426921 | R82: 1.375730787 | S82: 0 | T82: 0 | U82: 0 | V82: 0 | W82: 0 | X82: =MIN(H82*parameters!C$22,ROUND(P82+T82-V82+W82,0)) -> 26785616 | Y82: 81.12426921 | AA82: -454239 | AB82: -454239 | AC82: 0 | AD82: -1.375730787 | AF82: -0.01667552929 | AG82: -1.375730787 | AH82: 0 | AK82: 0.0376 | AM82: 073 | AN82: Dedham | AO82: 1.301221586 | AP82: 82.5 | AQ82: 26785616 | AR82: -1.375730787
A83: 74 | B83: Deerfield | C83: 711485200 | D83: 2579524.752 | E83: 222279000 | F83: 3185810.104 | G83: 5765335 | H83: 6912780.921 | I83: 0.8340109525 | J83: 5703044 | K83: 5703044 | L83: 82.5 | N83: 5347914 | O83: 0.0484 | P83: 5606753 | Q83: 81.10705466 | R83: 1.392945339 | S83: 0 | T83: 0 | U83: 0 | V83: 0 | W83: 0 | X83: =MIN(H83*parameters!C$22,ROUND(P83+T83-V83+W83,0)) -> 5606753 | Y83: 81.10705466 | AA83: -96291 | AB83: -96291 | AC83: 0 | AD83: -1.392945339 | AF83: -0.01688414117 | AG83: -1.392945339 | AH83: 0 | AK83: 0.0484 | AM83: 074 | AN83: Deerfield | AO83: 0.8340109525 | AP83: 82.5 | AQ83: 5606753 | AR83: -1.392945339
A84: 75 | B84: Dennis | C84: 7229652400 | D84: 26211462.04 | E84: 501777000 | F84: 7191710.582 | G84: 33403173 | H84: 14129370.18 | I84: 2.364094972 | J84: 11656730 | K84: 11656730 | L84: 82.5 | N84: 11432715 | O84: 0.0303 | P84: 11779126 | Q84: 83.36624953 | R84: 0 | S84: 0 | T84: 0 | U84: 122396 | V84: 122396 | W84: 0 | X84: =MIN(H84*parameters!C$22,ROUND(P84+T84-V84+W84,0)) -> 11656730 | Y84: 82.49999719 | AA84: 0 | AB84: 0 | AC84: 0 | AD84: -2.808284307e-06 | AF84: 0.01050002874 | AG84: 0.8662495332 | AH84: 0 | AK84: 0.0303 | AM84: 075 | AN84: Dennis | AO84: 2.364094972 | AP84: 82.5 | AQ84: 11656730 | AR84: -2.808284307e-06
A85: 76 | B85: Dighton | C85: 1019183000 | D85: 3695098.331 | E85: 277507000 | F85: 3977364.504 | G85: 7672463 | H85: 15159763.84 | I85: 0.5061070265 | J85: 12506805 | K85: 7672463 | L85: 50.61 | N85: 7184700 | O85: 0.0612 | P85: 7624404 | Q85: 50.29368584 | R85: 0.3163141569 | S85: 0 | T85: 0 | U85: 0 | V85: 0 | W85: 0 | X85: =MIN(H85*parameters!C$22,ROUND(P85+T85-V85+W85,0)) -> 7624404 | Y85: 50.29368584 | AA85: -48059 | AB85: -48059 | AC85: 0 | AD85: -0.3163141569 | AF85: -0.00626382949 | AG85: -0.3163141569 | AH85: 0 | AK85: 0.0612 | AM85: 076 | AN85: Dighton | AO85: 0.5061070265 | AP85: 50.61 | AQ85: 7624404 | AR85: -0.3163141569
A86: 77 | B86: Douglas | C86: 1022069000 | D86: 3705561.667 | E86: 334887000 | F86: 4799762.408 | G86: 8505324 | H86: 15078374.54 | I86: 0.5640743289 | J86: 12439659 | K86: 8505324 | L86: 56.41 | N86: 8115258 | O86: 0.0431 | P86: 8465026 | Q86: 56.14017596 | R86: 0.269824039 | S86: 0 | T86: 0 | U86: 0 | V86: 0 | W86: 0 | X86: =MIN(H86*parameters!C$22,ROUND(P86+T86-V86+W86,0)) -> 8465026 | Y86: 56.14017596 | AA86: -40298 | AB86: -40298 | AC86: 0 | AD86: -0.269824039 | AF86: -0.004737973533 | AG86: -0.269824039 | AH86: 0 | AK86: 0.0431 | AM86: 077 | AN86: Douglas | AO86: 0.5640743289 | AP86: 56.41 | AQ86: 8465026 | AR86: -0.269824039
A87: 78 | B87: Dover | C87: 2646446400 | D87: 9594822.202 | E87: 1623392000 | F87: 23267239.08 | G87: 32862061 | H87: 12630916.43 | I87: 2.601716287 | J87: 10420506 | K87: 10420506 | L87: 82.5 | N87: 10103131 | O87: 0.044 | P87: 10547669 | Q87: 83.50675944 | R87: 0 | S87: 0 | T87: 0 | U87: 127163 | V87: 127163 | W87: 0 | X87: =MIN(H87*parameters!C$22,ROUND(P87+T87-V87+W87,0)) -> 10420506 | Y87: 82.49999955 | AA87: 0 | AB87: 0 | AC87: 0 | AD87: -4.477978024e-07 | AF87: 0.01220315021 | AG87: 1.006759439 | AH87: 0 | AK87: 0.044 | AM87: 078 | AN87: Dover | AO87: 2.601716287 | AP87: 82.5 | AQ87: 10420506 | AR87: -4.477978024e-07
A88: 79 | B88: Dracut | C88: 3647155100 | D88: 13222941.05 | E88: 1126313000 | F88: 16142862.51 | G88: 29365804 | H88: 52687119.99 | I88: 0.557362103 | J88: 43466874 | K88: 29365804 | L88: 55.74 | N88: 27532966 | O88: 0.0406 | P88: 28650804 | Q88: 54.37914239 | R88: 1.360857609 | S88: 0 | T88: 0 | U88: 0 | V88: 0 | W88: 0 | X88: =MIN(H88*parameters!C$22,ROUND(P88+T88-V88+W88,0)) -> 28650804 | Y88: 54.37914239 | AA88: -715000 | AB88: -715000 | AC88: 0 | AD88: -1.360857609 | AF88: -0.02434804782 | AG88: -1.360857609 | AH88: 0 | AK88: 0.0406 | AM88: 079 | AN88: Dracut | AO88: 0.557362103 | AP88: 55.74 | AQ88: 28650804 | AR88: -1.360857609
A89: 80 | B89: Dudley | C89: 1016192300 | D89: 3684255.4 | E89: 330837000 | F89: 4741715.85 | G89: 8425971 | H89: 20950402.57 | I89: 0.4021865915 | J89: 17284082 | K89: 8425971 | L89: 40.22 | N89: 7113348 | O89: 0.0474 | P89: 7450521 | Q89: 35.5626627 | R89: 4.657337301 | S89: 0.01 | T89: 71133 | U89: 0 | V89: 0 | W89: 0 | X89: =MIN(H89*parameters!C$22,ROUND(P89+T89-V89+W89,0)) -> 7521654 | Y89: 35.90219317 | AA89: -975450 | AB89: -904317 | AC89: 0 | AD89: -4.317806833 | AF89: -0.115767073 | AG89: -4.657337301 | AH89: 142266.96 | AK89: 0.0474 | AM89: 080 | AN89: Dudley | AO89: 0.4021865915 | AP89: 40.22 | AQ89: 7521654 | AR89: -4.317806833
A90: 81 | B90: Dunstable | C90: 551243500 | D90: 1998560.55 | E90: 201001000 | F90: 2880843.52 | G90: 4879404 | H90: 5863583.241 | I90: 0.8321539576 | J90: 4837456 | K90: 4837456 | L90: 82.5 | N90: 4617537 | O90: 0.0427 | P90: 4814706 | Q90: 82.11200902 | R90: 0.3879909805 | S90: 0 | T90: 0 | U90: 0 | V90: 0 | W90: 0 | X90: =MIN(H90*parameters!C$22,ROUND(P90+T90-V90+W90,0)) -> 4814706 | Y90: 82.11200902 | AA90: -22750 | AB90: -22750 | AC90: 0 | AD90: -0.3879909805 | AF90: -0.004702885153 | AG90: -0.3879909805 | AH90: 0 | AK90: 0.0427 | AM90: 081 | AN90: Dunstable | AO90: 0.8321539576 | AP90: 82.5 | AQ90: 4814706 | AR90: -0.3879909805
A91: 82 | B91: Duxbury | C91: 4265308000 | D91: 15464084.93 | E91: 1535883000 | F91: 22013017.78 | G91: 37477103 | H91: 30754555.55 | I91: 1.218587046 | J91: 25372508 | K91: 25372508 | L91: 82.5 | N91: 25091221 | O91: 0.0405 | P91: 26107415 | Q91: 84.88958638 | R91: 0 | S91: 0 | T91: 0 | U91: 734907 | V91: 734907 | W91: 0 | X91: =MIN(H91*parameters!C$22,ROUND(P91+T91-V91+W91,0)) -> 25372508 | Y91: 82.49999892 | AA91: 0 | AB91: 0 | AC91: 0 | AD91: -1.075385384e-06 | AF91: 0.02896469675 | AG91: 2.389586375 | AH91: 0 | AK91: 0.0405 | AM91: 082 | AN91: Duxbury | AO91: 1.218587046 | AP91: 82.5 | AQ91: 25372508 | AR91: -1.075385384e-06
A92: 83 | B92: East Bridgewater | C92: 1751566500 | D92: 6350390.902 | E92: 507518000 | F92: 7273993.37 | G92: 13624384 | H92: 25069871.95 | I92: 0.5434564655 | J92: 20682644 | K92: 13624384 | L92: 54.35 | N92: 12903991 | O92: 0.0368 | P92: 13378858 | Q92: 53.36627976 | R92: 0.9837202415 | S92: 0 | T92: 0 | U92: 0 | V92: 0 | W92: 0 | X92: =MIN(H92*parameters!C$22,ROUND(P92+T92-V92+W92,0)) -> 13378858 | Y92: 53.36627976 | AA92: -245526 | AB92: -245526 | AC92: 0 | AD92: -0.9837202415 | AF92: -0.01802107163 | AG92: -0.9837202415 | AH92: 0 | AK92: 0.0368 | AM92: 083 | AN92: East Bridgewater | AO92: 0.5434564655 | AP92: 54.35 | AQ92: 13378858 | AR92: -0.9837202415
A93: 84 | B93: East Brookfield | C93: 253517600 | D93: 919140.5868 | E93: 70811000 | F93: 1014897.49 | G93: 1934038 | H93: 3813851.66 | I93: 0.5071088685 | J93: 3146428 | K93: 1934038 | L93: 50.71 | N93: 1754382 | O93: 0.0398 | P93: 1824206 | Q93: 47.8310685 | R93: 2.8789315 | S93: 0.01 | T93: 17544 | U93: 0 | V93: 0 | W93: 0 | X93: =MIN(H93*parameters!C$22,ROUND(P93+T93-V93+W93,0)) -> 1841750 | Y93: 48.2910759 | AA93: -109832 | AB93: -92288 | AC93: 0 | AD93: -2.418924097 | AF93: -0.05678895658 | AG93: -2.8789315 | AH93: 17543.82 | AK93: 0.0398 | AM93: 084 | AN93: East Brookfield | AO93: 0.5071088685 | AP93: 50.71 | AQ93: 1841750 | AR93: -2.418924097
A94: 85 | B94: Eastham | C94: 2976889500 | D94: 10792859.99 | E94: 175156000 | F94: 2510420.483 | G94: 13303280 | H94: 5257526.907 | I94: 2.530330369 | J94: 4337460 | K94: 4337460 | L94: 82.5 | N94: 4191229 | O94: 0.0315 | P94: 4323253 | Q94: 82.22978364 | R94: 0.2702163641 | S94: 0 | T94: 0 | U94: 0 | V94: 0 | W94: 14207 | X94: =MIN(H94*parameters!C$22,ROUND(P94+T94-V94+W94,0)) -> 4337460 | Y94: 82.50000574 | AA94: -14207 | AB94: 0 | AC94: 0 | AD94: 5.743214672e-06 | AF94: -0.003275419255 | AG94: -0.2702163641 | AH94: 0 | AK94: 0.0315 | AM94: 085 | AN94: Eastham | AO94: 2.530330369 | AP94: 82.5 | AQ94: 4337460 | AR94: 5.743214672e-06
A95: 86 | B95: Easthampton | C95: 1554415700 | D95: 5635610.934 | E95: 489491000 | F95: 7015621.69 | G95: 12651233 | H95: 20082994.25 | I95: 0.6299475488 | J95: 16568470 | K95: 12651233 | L95: 62.99 | N95: 12320207 | O95: 0.0431 | P95: 12851208 | Q95: 63.99049783 | R95: 0 | S95: 0 | T95: 0 | U95: 199975 | V95: 199975 | W95: 0 | X95: =MIN(H95*parameters!C$22,ROUND(P95+T95-V95+W95,0)) -> 12651233 | Y95: 62.99475488 | AA95: 0 | AB95: 0 | AC95: 0 | AD95: 0.004754878247 | AF95: 0.0158067597 | AG95: 1.000497831 | AH95: 0 | AK95: 0.0431 | AM95: 086 | AN95: Easthampton | AO95: 0.6299475488 | AP95: 62.99 | AQ95: 12651233 | AR95: 0.004754878247
A96: 87 | B96: East Longmeadow | C96: 1986089000 | D96: 7200663.815 | E96: 733231000 | F96: 10509021.22 | G96: 17709685 | H96: 29030299.67 | I96: 0.6100414119 | J96: 23949997 | K96: 17709685 | L96: 61 | N96: 16848895 | O96: 0.0383 | P96: 17494208 | Q96: 60.26189257 | R96: 0.7381074296 | S96: 0 | T96: 0 | U96: 0 | V96: 0 | W96: 0 | X96: =MIN(H96*parameters!C$22,ROUND(P96+T96-V96+W96,0)) -> 17494208 | Y96: 60.26189257 | AA96: -215477 | AB96: -215477 | AC96: 0 | AD96: -0.7381074296 | AF96: -0.01216718423 | AG96: -0.7381074296 | AH96: 0 | AK96: 0.0383 | AM96: 087 | AN96: East Longmeadow | AO96: 0.6100414119 | AP96: 61 | AQ96: 17494208 | AR96: -0.7381074296
A97: 88 | B97: Easton | C97: 3609247100 | D97: 13085503.72 | E97: 1223595000 | F97: 17537155.17 | G97: 30622659 | H97: 39145977.46 | I97: 0.782268345 | J97: 32295431 | K97: 30622659 | L97: 78.23 | N97: 29808094 | O97: 0.0423 | P97: 31068976 | Q97: 79.36696953 | R97: 0 | S97: 0 | T97: 0 | U97: 446317 | V97: 446317 | W97: 0 | X97: =MIN(H97*parameters!C$22,ROUND(P97+T97-V97+W97,0)) -> 30622659 | Y97: 78.2268345 | AA97: 0 | AB97: 0 | AC97: 0 | AD97: -0.003165499904 | AF97: 0.01457473043 | AG97: 1.136969525 | AH97: 0 | AK97: 0.0423 | AM97: 088 | AN97: Easton | AO97: 0.782268345 | AP97: 78.23 | AQ97: 30622659 | AR97: -0.003165499904
A98: 89 | B98: Edgartown | C98: 8635274400 | D98: 31307614.06 | E98: 254220000 | F98: 3643603.96 | G98: 34951218 | H98: 7919677.143 | I98: 4.41321248 | J98: 6533734 | K98: 6533734 | L98: 82.5 | N98: 6134598 | O98: 0.0458 | P98: 6415563 | Q98: 81.00788561 | R98: 1.492114394 | S98: 0 | T98: 0 | U98: 0 | V98: 0 | W98: 118171 | X98: =MIN(H98*parameters!C$22,ROUND(P98+T98-V98+W98,0)) -> 6533734 | Y98: 82.50000451 | AA98: -118171 | AB98: 0 | AC98: 0 | AD98: 4.512672007e-06 | AF98: -0.01808628879 | AG98: -1.492114394 | AH98: 0 | AK98: 0.0458 | AM98: 089 | AN98: Edgartown | AO98: 4.41321248 | AP98: 82.5 | AQ98: 6533734 | AR98: 4.512672007e-06
A99: 90 | B99: Egremont | C99: 447001500 | D99: 1620626.028 | E99: 36419000 | F99: 521974.7173 | G99: 2142601 | H99: 884343.8729 | I99: 2.422814321 | J99: 729584 | K99: 729584 | L99: 82.5 | N99: 811544 | O99: 0.0296 | P99: 835566 | Q99: 94.48428667 | R99: 0 | S99: 0 | T99: 0 | U99: 105982 | V99: 105982 | W99: 0 | X99: =MIN(H99*parameters!C$22,ROUND(P99+T99-V99+W99,0)) -> 729584 | Y99: 82.50003447 | AA99: 0 | AB99: 0 | AC99: 0 | AD99: 3.447398419e-05 | AF99: 0.1452636023 | AG99: 11.98428667 | AH99: 0 | AK99: 0.0296 | AM99: 090 | AN99: Egremont | AO99: 2.422814321 | AP99: 82.5 | AQ99: 729584 | AR99: 3.447398419e-05
A100: 91 | B100: Erving | C100: 895171300 | D100: 3245487.785 | E100: 37645000 | F100: 539546.342 | G100: 3785034 | H100: 2797424.764 | I100: 1.353042287 | J100: 2307875 | K100: 2307875 | L100: 82.5 | N100: 2319479 | O100: 0.0223 | P100: 2371203 | Q100: 84.76378097 | R100: 0 | S100: 0 | T100: 0 | U100: 63328 | V100: 63328 | W100: 0 | X100: =MIN(H100*parameters!C$22,ROUND(P100+T100-V100+W100,0)) -> 2307875 | Y100: 82.49998461 | AA100: 0 | AB100: 0 | AC100: 0 | AD100: -1.539407899e-05 | AF100: 0.027439961 | AG100: 2.263780966 | AH100: 0 | AK100: 0.0223 | AM100: 091 | AN100: Erving | AO100: 1.353042287 | AP100: 82.5 | AQ100: 2307875 | AR100: -1.539407899e-05
A101: 92 | B101: Essex | C101: 867344300 | D101: 3144599.621 | E101: 234934000 | F101: 3367187.683 | G101: 6511787 | H101: 5855853.076 | I101: 1.112013385 | J101: 4831079 | K101: 4831079 | L101: 82.5 | N101: 4666078 | O101: 0.0348 | P101: 4828458 | Q101: 82.45524498 | R101: 0.04475501653 | S101: 0 | T101: 0 | U101: 0 | V101: 0 | W101: 0 | X101: =MIN(H101*parameters!C$22,ROUND(P101+T101-V101+W101,0)) -> 4828458 | Y101: 82.45524498 | AA101: -2621 | AB101: -2621 | AC101: 0 | AD101: -0.04475501653 | AF101: -0.000542528905 | AG101: -0.04475501653 | AH101: 0 | AK101: 0.0348 | AM101: 092 | AN101: Essex | AO101: 1.112013385 | AP101: 82.5 | AQ101: 4828458 | AR101: -0.04475501653
A102: 93 | B102: Everett | C102: 5767100400 | D102: 20908907.49 | E102: 1013265000 | F102: 14522603.91 | G102: 35431511 | H102: 109071464.2 | I102: 0.3248467532 | J102: 89983958 | K102: 35431511 | L102: 32.48 | N102: 30615794 | O102: 0.231 | P102: 37688042 | Q102: 34.55353084 | R102: 0 | S102: 0 | T102: 0 | U102: 2256531 | V102: 2256531 | W102: 0 | X102: =MIN(H102*parameters!C$22,ROUND(P102+T102-V102+W102,0)) -> 35431511 | Y102: 32.48467532 | AA102: 0 | AB102: 0 | AC102: 0 | AD102: 0.004675321736 | AF102: 0.06368712302 | AG102: 2.073530835 | AH102: 0 | AK102: 0.231 | AM102: 093 | AN102: Everett | AO102: 0.3248467532 | AP102: 32.48 | AQ102: 35431511 | AR102: 0.004675321736
A103: 94 | B103: Fairhaven | C103: 2181956700 | D103: 7910791.841 | E103: 473118000 | F103: 6780955.937 | G103: 14691748 | H103: 24288427.77 | I103: 0.6048867444 | J103: 20037953 | K103: 14691748 | L103: 60.49 | N103: 14259144 | O103: 0.0482 | P103: 14946435 | Q103: 61.53726845 | R103: 0 | S103: 0 | T103: 0 | U103: 254687 | V103: 254687 | W103: 0 | X103: =MIN(H103*parameters!C$22,ROUND(P103+T103-V103+W103,0)) -> 14691748 | Y103: 60.48867444 | AA103: 0 | AB103: 0 | AC103: 0 | AD103: -0.001325560873 | AF103: 0.01733537766 | AG103: 1.047268454 | AH103: 0 | AK103: 0.0482 | AM103: 094 | AN103: Fairhaven | AO103: 0.6048867444 | AP103: 60.49 | AQ103: 14691748 | AR103: -0.001325560873
A104: 95 | B104: Fall River | C104: 5571429500 | D104: 20199492.97 | E104: 1594437000 | F104: 22852242.02 | G104: 43051735 | H104: 190051583.1 | I104: 0.2265265792 | J104: 156792556 | K104: 43051735 | L104: 22.65 | N104: 34953619 | O104: 0.043 | P104: 36456625 | Q104: 19.18248951 | R104: 3.467510488 | S104: 0.01 | T104: 349536 | U104: 0 | V104: 0 | W104: 0 | X104: =MIN(H104*parameters!C$22,ROUND(P104+T104-V104+W104,0)) -> 36806161 | Y104: 19.3664059 | AA104: -6595110 | AB104: -6245574 | AC104: 0 | AD104: -3.283594104 | AF104: -0.1531903418 | AG104: -3.467510488 | AH104: 699072.38 | AK104: 0.043 | AM104: 095 | AN104: Fall River | AO104: 0.2265265792 | AP104: 22.65 | AQ104: 36806161 | AR104: -3.283594104
A105: 96 | B105: Falmouth | C105: 12342275400 | D105: 44747529.38 | E105: 1375556000 | F105: 19715133.7 | G105: 64462663 | H105: 41081856.86 | I105: 1.569127297 | J105: 33892532 | K105: 33892532 | L105: 82.5 | N105: 33905680 | O105: 0.0387 | P105: 35217830 | Q105: 85.72599364 | R105: 0 | S105: 0 | T105: 0 | U105: 1325298 | V105: 1325298 | W105: 0 | X105: =MIN(H105*parameters!C$22,ROUND(P105+T105-V105+W105,0)) -> 33892532 | Y105: 82.50000022 | AA105: 0 | AB105: 0 | AC105: 0 | AD105: 2.174549252e-07 | AF105: 0.03910295047 | AG105: 3.225993639 | AH105: 0 | AK105: 0.0387 | AM105: 096 | AN105: Falmouth | AO105: 1.569127297 | AP105: 82.5 | AQ105: 33892532 | AR105: 2.174549252e-07
A106: 97 | B106: Fitchburg | C106: 2522862600 | D106: 9146763.028 | E106: 826755000 | F106: 11849452.41 | G106: 20996215 | H106: 83687104.86 | I106: 0.2508894893 | J106: 69041862 | K106: 20996215 | L106: 25.09 | N106: 20239310 | O106: 0.0465 | P106: 21180438 | Q106: 25.30908201 | R106: 0 | S106: 0 | T106: 0 | U106: 184223 | V106: 184223 | W106: 0 | X106: =MIN(H106*parameters!C$22,ROUND(P106+T106-V106+W106,0)) -> 20996215 | Y106: 25.08894893 | AA106: 0 | AB106: 0 | AC106: 0 | AD106: -0.001051070294 | AF106: 0.008774105238 | AG106: 0.2190820079 | AH106: 0 | AK106: 0.0465 | AM106: 097 | AN106: Fitchburg | AO106: 0.2508894893 | AP106: 25.09 | AQ106: 20996215 | AR106: -0.001051070294
A107: 98 | B107: Florida | C107: 123293200 | D107: 447005.5893 | E107: 14127000 | F107: 202474.9947 | G107: 649481 | H107: 1015404.652 | I107: 0.6396277571 | J107: 837709 | K107: 649481 | L107: 63.96 | N107: 629868 | O107: 0.0258 | P107: 646119 | Q107: 63.63167618 | R107: 0.3283238155 | S107: 0 | T107: 0 | U107: 0 | V107: 0 | W107: 0 | X107: =MIN(H107*parameters!C$22,ROUND(P107+T107-V107+W107,0)) -> 646119 | Y107: 63.63167618 | AA107: -3362 | AB107: -3362 | AC107: 0 | AD107: -0.3283238155 | AF107: -0.005176440881 | AG107: -0.3283238155 | AH107: 0 | AK107: 0.0258 | AM107: 098 | AN107: Florida | AO107: 0.6396277571 | AP107: 63.96 | AQ107: 646119 | AR107: -0.3283238155
A108: 99 | B108: Foxborough | C108: 3309738100 | D108: 11999619.04 | E108: 944494000 | F108: 13536944.69 | G108: 25536564 | H108: 30744525.22 | I108: 0.8306052481 | J108: 25364233 | K108: 25364233 | L108: 82.5 | N108: 24433581 | O108: 0.0543 | P108: 25760324 | Q108: 83.78832918 | R108: 0 | S108: 0 | T108: 0 | U108: 396091 | V108: 396091 | W108: 0 | X108: =MIN(H108*parameters!C$22,ROUND(P108+T108-V108+W108,0)) -> 25364233 | Y108: 82.499999 | AA108: 0 | AB108: 0 | AC108: 0 | AD108: -1.004541275e-06 | AF108: 0.0156161237 | AG108: 1.288329185 | AH108: 0 | AK108: 0.0543 | AM108: 099 | AN108: Foxborough | AO108: 0.8306052481 | AP108: 82.5 | AQ108: 25364233 | AR108: -1.004541275e-06
A109: 100 | B109: Framingham | C109: 9773587600 | D109: 35434624.82 | E109: 2567398000 | F109: 36797189.52 | G109: 72231814 | H109: 133272357.8 | I109: 0.5419864643 | J109: 109949695 | K109: 72231814 | L109: 54.2 | N109: 68773026 | O109: 0.0353 | P109: 71200714 | Q109: 53.42496761 | R109: 0.7750323898 | S109: 0 | T109: 0 | U109: 0 | V109: 0 | W109: 0 | X109: =MIN(H109*parameters!C$22,ROUND(P109+T109-V109+W109,0)) -> 71200714 | Y109: 53.42496761 | AA109: -1031100 | AB109: -1031100 | AC109: 0 | AD109: -0.7750323898 | AF109: -0.0142748734 | AG109: -0.7750323898 | AH109: 0 | AK109: 0.0353 | AM109: 100 | AN109: Framingham | AO109: 0.5419864643 | AP109: 54.2 | AQ109: 71200714 | AR109: -0.7750323898
